Workbook

Sheet Introduction
C4: Joint Monitoring Programme for Water Supply, Sanitation and Hygiene
C6: Estimates on household water, sanitation and hygiene by wealth quintile and sub-national region in
C7: =+Water!B5 -> Zimbabwe
C9: Updated May 2021
C11: Follow the links below to find the following information:
C13: JMP Estimates
C14: WASH status and trends by wealth quintile (customized quintiles made without water and sanitation assets)
C15: Water
C16: Sanitation
C17: Hygiene
C19: Data inputs
C20: customized wealth quintiles and subnational data:
C21: =IF(INDIRECT(CONCATENATE("Water","!B105"))=0,"",INDIRECT(CONCATENATE("Water","!B105"))) -> WHS03
C22: =IF(INDIRECT(CONCATENATE("Water","!B106"))=0,"",INDIRECT(CONCATENATE("Water","!B106"))) -> DHS06
C23: =IF(INDIRECT(CONCATENATE("Water","!B107"))=0,"",INDIRECT(CONCATENATE("Water","!B107"))) -> MICS09
C24: =IF(INDIRECT(CONCATENATE("Water","!B108"))=0,"",INDIRECT(CONCATENATE("Water","!B108"))) -> DHS11
C25: =IF(INDIRECT(CONCATENATE("Water","!B109"))=0,"",INDIRECT(CONCATENATE("Water","!B109"))) -> MICS14
C26: =IF(INDIRECT(CONCATENATE("Water","!B110"))=0,"",INDIRECT(CONCATENATE("Water","!B110"))) -> DHS15
C27: =IF(INDIRECT(CONCATENATE("Water","!B111"))=0,"",INDIRECT(CONCATENATE("Water","!B111"))) -> MICS19
C28: =IF(INDIRECT(CONCATENATE("Water","!B112"))=0,"",INDIRECT(CONCATENATE("Water","!B112"))) -> 
C29: =IF(INDIRECT(CONCATENATE("Water","!B113"))=0,"",INDIRECT(CONCATENATE("Water","!B113"))) -> 
C30: =IF(INDIRECT(CONCATENATE("Water","!B114"))=0,"",INDIRECT(CONCATENATE("Water","!B114"))) -> 
C31: =IF(INDIRECT(CONCATENATE("Water","!B115"))=0,"",INDIRECT(CONCATENATE("Water","!B115"))) -> 
C32: =IF(INDIRECT(CONCATENATE("Water","!B116"))=0,"",INDIRECT(CONCATENATE("Water","!B116"))) -> 
L55: =+IF(ISNUMBER(M48), "", "Insufficient data to estimate safely managed sanitation services at national level") -> Insufficient data to estimate safely managed sanitation services at national level

Sheet Water
A1: BGD
B4: Summary of trends in use of drinking water by wealth quintile (%)
B5: =IF(ISERROR(INDIRECT(CONCATENATE($B105,"!A2"))),"",INDIRECT(CONCATENATE($B105,"!A2"))) -> Zimbabwe
B7: =B118 -> National use of drinking water sources, 2000–2020 | J7: =B218 -> Urban use of drinking water sources, 2000–2020 | R7: =B318 -> Rural use of drinking water sources, 2000–2020
B31: =IF(ISERROR(INDIRECT(CONCATENATE($B105,"!A2"))),"",INDIRECT(CONCATENATE($B105,"!A2"))) -> Zimbabwe | F31: Poorest | J31: Poor | N31: Middle | R31: Rich | V31: Richest
F32: Basic | G32: Limited | H32: Unimproved | I32: Surface water | J32: Basic | K32: Limited | L32: Unimproved | M32: Surface water | N32: Basic | O32: Limited | P32: Unimproved | Q32: Surface water | R32: Basic | S32: Limited | T32: Unimproved | U32: Surface water | V32: Basic | W32: Limited | X32: Unimproved | Y32: Surface water
B33: NATIONAL | D33: Estimate | E33: =C99 -> 2000 | F33: =E99 -> 44.73896844 | G33: =F99 -> 17.20142339 | H33: 25.13530607 | I33: 12.9243021 | J33: =J99 -> 48.93829799 | K33: =K99 -> 14.5318877 | L33: 25.92884727 | M33: 10.60096703 | N33: =O99 -> 57.65479881 | O33: =P99 -> 12.44297134 | P33: 24.44302943 | Q33: 5.459200425 | R33: =T99 -> 78.21021128 | S33: =U99 -> 6.219909455 | T33: 13.64593699 | U33: 1.923942277 | V33: =Y99 -> 95.42296282 | W33: =Z99 -> 3.109982343 | X33: 1.328486485 | Y33: 0.1385683538
E34: =C100 -> 2020 | F34: =E100 -> 37.34955891 | G34: 14.36031269 | H34: 31.59856146 | I34: 16.69156694 | J34: =J100 -> 50.90111958 | K34: 15.11473394 | L34: 23.61842756 | M34: 10.36571893 | N34: =O100 -> 60.72287751 | O34: 13.10511943 | P34: 17.35520956 | Q34: 8.816793496 | R34: =T100 -> 85.27509068 | S34: 6.781765886 | T34: 5.669841044 | U34: 2.273302389 | V34: =Y100 -> 95.77455267 | W34: 3.121441202 | X34: 0.987481705 | Y34: 0.1165244279
B36: URBAN | D36: Estimate | E36: =C199 -> 2000 | F36: =E199 -> 91.60237886 | G36: =F199 -> 4.475131813 | H36: 3.922489331 | I36: 0 | J36: =J199 -> 96.70463059 | K36: =K199 -> 2.943147798 | L36: 0.3522216133 | M36: 0 | N36: =O199 -> 95.34300275 | O36: =P199 -> 3.576342459 | P36: 1.076914478 | Q36: 0.003740312533 | R36: =T199 -> 97.82476493 | S36: =U199 -> 1.941419133 | T36: 0.2338159333 | U36: 0 | V36: =Y199 -> 96.79237685 | W36: =Z199 -> 2.845025373 | X36: 0.1300426571 | Y36: 0.2325551158
E37: =C200 -> 2020 | F37: =E200 -> 87.17443277 | G37: 4.258809457 | H37: 6.972652661 | I37: 1.594105109 | J37: =J200 -> 93.60983153 | K37: 2.848959433 | L37: 3.4369775 | M37: 0.1042315415 | N37: =O200 -> 95.43338426 | O37: 3.579732695 | P37: 0.7399252878 | Q37: 0.2469577613 | R37: =T200 -> 96.54404678 | S37: 1.916002147 | T37: 1.539951075 | U37: 0 | V37: =Y200 -> 96.04597516 | W37: 2.823086333 | X37: 1.130938507 | Y37: 0
B39: RURAL | D39: Estimate | E39: =C299 -> 2000 | F39: =E299 -> 42.3728298 | G39: =F299 -> 16.72361499 | H39: 27.77021844 | I39: 13.13333677 | J39: =J299 -> 46.00088921 | K39: =K299 -> 16.51408653 | L39: 24.52296613 | M39: 12.96205813 | N39: =O299 -> 50.83659739 | O39: =P299 -> 14.10301957 | P39: 26.24717996 | Q39: 8.813203082 | R39: =T299 -> 57.11023483 | S39: =U299 -> 12.53724271 | T39: 24.16224206 | U39: 6.190280404 | V39: =Y299 -> 63.33046135 | W39: =Z299 -> 9.791594015 | X39: 22.01096883 | Y39: 4.866975802
E40: =C300 -> 2020 | F40: =E300 -> 37.34344417 | G40: 14.73862817 | H40: 30.89771616 | I40: 17.0202115 | J40: =J300 -> 43.28694282 | K40: 15.53979351 | L40: 27.81721 | M40: 13.35605367 | N40: =O300 -> 53.26775784 | O40: 14.77746879 | P40: 22.11701088 | Q40: 9.837762484 | R40: =T300 -> 59.61697746 | S40: 13.08754058 | T40: 18.31546498 | U40: 8.98001698 | V40: =Y300 -> 73.85935784 | W40: 11.41947857 | X40: 10.24398356 | Y40: 4.477180036
A97: NATIONAL | D97: Poorest | I97: Poor | N97: Middle | S97: Rich | X97: Richest
D98: Improved | E98: Basic | F98: Limited | G98: Unimproved | H98: Surface water | I98: Improved | J98: Basic | K98: Limited | L98: Unimproved | M98: Surface water | N98: Improved | O98: Basic | P98: Limited | Q98: Unimproved | R98: Surface water | S98: Improved | T98: Basic | U98: Limited | V98: Unimproved | W98: Surface water | X98: Improved | Y98: Basic | Z98: Limited | AA98: Unimproved | AB98: Surface water
A99: Forecast period: | C99: 2000 | D99: =IF((D101+H101)>100,D101*100/(D101+H101),D101) -> 61.94039183 | E99: =D99*AVERAGEIF(E105:E116,">0")/100 -> 44.73896844 | F99: =D99*(100-AVERAGEIF(E105:E116,">0"))/100 -> 17.20142339 | G99: =100-(E99+F99+H99) -> 25.13530607 | H99: =IF((D101+H101)>100,H101*100/(D101+H101),H101) -> 12.9243021 | I99: =IF((I101+M101)>100,I101*100/(I101+M101),I101) -> 63.4701857 | J99: =I99*AVERAGEIF(J105:J116,">0")/100 -> 48.93829799 | K99: =I99*(100-AVERAGEIF(J105:J116,">0"))/100 -> 14.5318877 | L99: =100-(J99+K99+M99) -> 25.92884727 | M99: =IF((I101+M101)>100,M101*100/(I101+M101),M101) -> 10.60096703 | N99: =IF((N101+R101)>100,N101*100/(N101+R101),N101) -> 70.09777015 | O99: =N99*AVERAGEIF(O105:O116,">0")/100 -> 57.65479881 | P99: =N99*(100-AVERAGEIF(O105:O116,">0"))/100 -> 12.44297134 | Q99: =100-(O99+P99+R99) -> 24.44302943 | R99: =IF((N101+R101)>100,R101*100/(N101+R101),R101) -> 5.459200425 | S99: =IF((S101+W101)>100,S101*100/(S101+W101),S101) -> 84.43012074 | T99: =S99*AVERAGEIF(T105:T116,">0")/100 -> 78.21021128 | U99: =S99*(100-AVERAGEIF(T105:T116,">0"))/100 -> 6.219909455 | V99: =100-(T99+U99+W99) -> 13.64593699 | W99: =IF((S101+W101)>100,W101*100/(S101+W101),W101) -> 1.923942277 | X99: =IF((X101+AB101)>100,X101*100/(X101+AB101),X101) -> 98.53294516 | Y99: =X99*AVERAGEIF(Y105:Y116,">0")/100 -> 95.42296282 | Z99: =X99*(100-AVERAGEIF(Y105:Y116,">0"))/100 -> 3.109982343 | AA99: =100-(Y99+Z99+AB99) -> 1.328486485 | AB99: =IF((X101+AB101)>100,AB101*100/(X101+AB101),AB101) -> 0.1385683538
C100: 2020 | D100: =IF((D102+H102)>100,D102*100/(D102+H102),D102) -> 51.7098716 | E100: =D100*AVERAGEIF(E105:E116,">0")/100 -> 37.34955891 | F100: =D100*(100-AVERAGEIF(E105:E116,">0"))/100 -> 14.36031269 | G100: =100-(E100+F100+H100) -> 31.59856146 | H100: =IF((D102+H102)>100,H102*100/(D102+H102),H102) -> 16.69156694 | I100: =IF((I102+M102)>100,I102*100/(I102+M102),I102) -> 66.01585352 | J100: =I100*AVERAGEIF(J105:J116,">0")/100 -> 50.90111958 | K100: =I100*(100-AVERAGEIF(J105:J116,">0"))/100 -> 15.11473394 | L100: =100-(J100+K100+M100) -> 23.61842756 | M100: =IF((I102+M102)>100,M102*100/(I102+M102),M102) -> 10.36571893 | N100: =IF((N102+R102)>100,N102*100/(N102+R102),N102) -> 73.82799694 | O100: =N100*AVERAGEIF(O105:O116,">0")/100 -> 60.72287751 | P100: =N100*(100-AVERAGEIF(O105:O116,">0"))/100 -> 13.10511943 | Q100: =100-(O100+P100+R100) -> 17.35520956 | R100: =IF((N102+R102)>100,R102*100/(N102+R102),R102) -> 8.816793496 | S100: =IF((S102+W102)>100,S102*100/(S102+W102),S102) -> 92.05685657 | T100: =S100*AVERAGEIF(T105:T116,">0")/100 -> 85.27509068 | U100: =S100*(100-AVERAGEIF(T105:T116,">0"))/100 -> 6.781765886 | V100: =100-(T100+U100+W100) -> 5.669841044 | W100: =IF((S102+W102)>100,W102*100/(S102+W102),W102) -> 2.273302389 | X100: =IF((X102+AB102)>100,X102*100/(X102+AB102),X102) -> 98.89599387 | Y100: =X100*AVERAGEIF(Y105:Y116,">0")/100 -> 95.77455267 | Z100: =X100*(100-AVERAGEIF(Y105:Y116,">0"))/100 -> 3.121441202 | AA100: =100-(Y100+Z100+AB100) -> 0.987481705 | AB100: =IF((X102+AB102)>100,AB102*100/(X102+AB102),AB102) -> 0.1165244279
A101: Regression period: | C101: =MinRegYear(C99,C105:C116) -> 2001 | D101: =IF(MAX(C105:C116)-MIN(C105:C116)<5,AVERAGEIF(C105:C116,">0",D105:D116), IF(FORECAST($C101,D$105:D$116,$C$105:$C$116)<0,0, IF(FORECAST($C101,D$105:D$116,$C$105:$C$116)>100,100, FORECAST($C101,D$105:D$116,$C$105:$C$116)))) -> 61.94039183 | H101: =IF(MAX(C105:C116)-MIN(C105:C116)<5,AVERAGEIF(C105:C116,">0",H105:H116), IF(FORECAST($C101,H$105:H$116,$C$105:$C$116)<0,0, IF(FORECAST($C101,H$105:H$116,$C$105:$C$116)>100,100, FORECAST($C101,H$105:H$116,$C$105:$C$116)))) -> 12.9243021 | I101: =IF(MAX(C105:C116)-MIN(C105:C116)<5,AVERAGEIF(C105:C116,">0",I105:I116), IF(FORECAST($C101,I$105:I$116,$C$105:$C$116)<0,0, IF(FORECAST($C101,I$105:I$116,$C$105:$C$116)>100,100, FORECAST($C101,I$105:I$116,$C$105:$C$116)))) -> 63.4701857 | M101: =IF(MAX(C105:C116)-MIN(C105:C116)<5,AVERAGEIF(C105:C116,">0",M105:M116), IF(FORECAST($C101,M$105:M$116,$C$105:$C$116)<0,0, IF(FORECAST($C101,M$105:M$116,$C$105:$C$116)>100,100, FORECAST($C101,M$105:M$116,$C$105:$C$116)))) -> 10.60096703 | N101: =IF(MAX(C105:C116)-MIN(C105:C116)<5,AVERAGEIF(C105:C116,">0",N105:N116), IF(FORECAST($C101,N$105:N$116,$C$105:$C$116)<0,0, IF(FORECAST($C101,N$105:N$116,$C$105:$C$116)>100,100, FORECAST($C101,N$105:N$116,$C$105:$C$116)))) -> 70.09777015 | R101: =IF(MAX(C105:C116)-MIN(C105:C116)<5,AVERAGEIF(C105:C116,">0",R105:R116), IF(FORECAST($C101,R$105:R$116,$C$105:$C$116)<0,0, IF(FORECAST($C101,R$105:R$116,$C$105:$C$116)>100,100, FORECAST($C101,R$105:R$116,$C$105:$C$116)))) -> 5.459200425 | S101: =IF(MAX(C105:C116)-MIN(C105:C116)<5,AVERAGEIF(C105:C116,">0",S105:S116), IF(FORECAST($C101,S$105:S$116,$C$105:$C$116)<0,0, IF(FORECAST($C101,S$105:S$116,$C$105:$C$116)>100,100, FORECAST($C101,S$105:S$116,$C$105:$C$116)))) -> 84.43012074 | W101: =IF(MAX(C105:C116)-MIN(C105:C116)<5,AVERAGEIF(C105:C116,">0",W105:W116), IF(FORECAST($C101,W$105:W$116,$C$105:$C$116)<0,0, IF(FORECAST($C101,W$105:W$116,$C$105:$C$116)>100,100, FORECAST($C101,W$105:W$116,$C$105:$C$116)))) -> 1.923942277 | X101: =IF(MAX(C105:C116)-MIN(C105:C116)<5,AVERAGEIF(C105:C116,">0",X105:X116), IF(FORECAST($C101,X$105:X$116,$C$105:$C$116)<0,0, IF(FORECAST($C101,X$105:X$116,$C$105:$C$116)>100,100, FORECAST($C101,X$105:X$116,$C$105:$C$116)))) -> 98.53294516 | AB101: =IF(MAX(C105:C116)-MIN(C105:C116)<5,AVERAGEIF(C105:C116,">0",AB105:AB116), IF(FORECAST($C101,AB$105:AB$116,$C$105:$C$116)<0,0, IF(FORECAST($C101,AB$105:AB$116,$C$105:$C$116)>100,100, FORECAST($C101,AB$105:AB$116,$C$105:$C$116)))) -> 0.1385683538
C102: =MaxRegYear(C100,C105:C116) -> 2020 | D102: =IF(MAX(C105:C116)-MIN(C105:C116)<5,AVERAGEIF(C105:C116,">0",D105:D116), IF(FORECAST($C102,D$105:D$116,$C$105:$C$116)<0,0, IF(FORECAST($C102,D$105:D$116,$C$105:$C$116)>100,100, FORECAST($C102,D$105:D$116,$C$105:$C$116)))) -> 51.7098716 | H102: =IF(MAX(C105:C116)-MIN(C105:C116)<5,AVERAGEIF(C105:C116,">0",H105:H116), IF(FORECAST($C102,H$105:H$116,$C$105:$C$116)<0,0, IF(FORECAST($C102,H$105:H$116,$C$105:$C$116)>100,100, FORECAST($C102,H$105:H$116,$C$105:$C$116)))) -> 16.69156694 | I102: =IF(MAX(C105:C116)-MIN(C105:C116)<5,AVERAGEIF(C105:C116,">0",I105:I116), IF(FORECAST($C102,I$105:I$116,$C$105:$C$116)<0,0, IF(FORECAST($C102,I$105:I$116,$C$105:$C$116)>100,100, FORECAST($C102,I$105:I$116,$C$105:$C$116)))) -> 66.01585352 | M102: =IF(MAX(C105:C116)-MIN(C105:C116)<5,AVERAGEIF(C105:C116,">0",M105:M116), IF(FORECAST($C102,M$105:M$116,$C$105:$C$116)<0,0, IF(FORECAST($C102,M$105:M$116,$C$105:$C$116)>100,100, FORECAST($C102,M$105:M$116,$C$105:$C$116)))) -> 10.36571893 | N102: =IF(MAX(C105:C116)-MIN(C105:C116)<5,AVERAGEIF(C105:C116,">0",N105:N116), IF(FORECAST($C102,N$105:N$116,$C$105:$C$116)<0,0, IF(FORECAST($C102,N$105:N$116,$C$105:$C$116)>100,100, FORECAST($C102,N$105:N$116,$C$105:$C$116)))) -> 73.82799694 | R102: =IF(MAX(C105:C116)-MIN(C105:C116)<5,AVERAGEIF(C105:C116,">0",R105:R116), IF(FORECAST($C102,R$105:R$116,$C$105:$C$116)<0,0, IF(FORECAST($C102,R$105:R$116,$C$105:$C$116)>100,100, FORECAST($C102,R$105:R$116,$C$105:$C$116)))) -> 8.816793496 | S102: =IF(MAX(C105:C116)-MIN(C105:C116)<5,AVERAGEIF(C105:C116,">0",S105:S116), IF(FORECAST($C102,S$105:S$116,$C$105:$C$116)<0,0, IF(FORECAST($C102,S$105:S$116,$C$105:$C$116)>100,100, FORECAST($C102,S$105:S$116,$C$105:$C$116)))) -> 92.05685657 | W102: =IF(MAX(C105:C116)-MIN(C105:C116)<5,AVERAGEIF(C105:C116,">0",W105:W116), IF(FORECAST($C102,W$105:W$116,$C$105:$C$116)<0,0, IF(FORECAST($C102,W$105:W$116,$C$105:$C$116)>100,100, FORECAST($C102,W$105:W$116,$C$105:$C$116)))) -> 2.273302389 | X102: =IF(MAX(C105:C116)-MIN(C105:C116)<5,AVERAGEIF(C105:C116,">0",X105:X116), IF(FORECAST($C102,X$105:X$116,$C$105:$C$116)<0,0, IF(FORECAST($C102,X$105:X$116,$C$105:$C$116)>100,100, FORECAST($C102,X$105:X$116,$C$105:$C$116)))) -> 98.89599387 | AB102: =IF(MAX(C105:C116)-MIN(C105:C116)<5,AVERAGEIF(C105:C116,">0",AB105:AB116), IF(FORECAST($C102,AB$105:AB$116,$C$105:$C$116)<0,0, IF(FORECAST($C102,AB$105:AB$116,$C$105:$C$116)>100,100, FORECAST($C102,AB$105:AB$116,$C$105:$C$116)))) -> 0.1165244279
B104: Survey | C104: Year | D104: Improved | E104: % Improved < = 30min | H104: Surface water | I104: Improved | J104: % Improved < = 30min | M104: Surface water | N104: Improved | O104: % Improved < = 30min | R104: Surface water | S104: Improved | T104: % Improved < = 30min | W104: Surface water | X104: Improved | Y104: % Improved < = 30min | AB104: Surface water
B105: WHS03 | C105: 2003 | D105: =IF(ISERROR(INDIRECT(CONCATENATE($B105,"!C16"))),"",INDIRECT(CONCATENATE($B105,"!C16"))) -> 66.28230993 | E105: =IF(ISERROR(INDIRECT(CONCATENATE($B105,"!C23"))),"",INDIRECT(CONCATENATE($B105,"!C23"))) -> 72.84491976 | H105: =IF(ISERROR(INDIRECT(CONCATENATE($B105,"!C21"))),"",INDIRECT(CONCATENATE($B105,"!C21"))) -> 10.06218515 | I105: =IF(ISERROR(INDIRECT(CONCATENATE($B105,"!D16"))),"",INDIRECT(CONCATENATE($B105,"!D16"))) -> 70.13688812 | J105: =IF(ISERROR(INDIRECT(CONCATENATE($B105,"!D23"))),"",INDIRECT(CONCATENATE($B105,"!D23"))) -> 76.65659619 | M105: =IF(ISERROR(INDIRECT(CONCATENATE($B105,"!D21"))),"",INDIRECT(CONCATENATE($B105,"!D21"))) -> 8.38182543 | N105: =IF(ISERROR(INDIRECT(CONCATENATE($B105,"!E16"))),"",INDIRECT(CONCATENATE($B105,"!E16"))) -> 70.57589584 | O105: =IF(ISERROR(INDIRECT(CONCATENATE($B105,"!E23"))),"",INDIRECT(CONCATENATE($B105,"!E23"))) -> 86.14876125 | R105: =IF(ISERROR(INDIRECT(CONCATENATE($B105,"!E21"))),"",INDIRECT(CONCATENATE($B105,"!E21"))) -> 3.87781813 | S105: =IF(ISERROR(INDIRECT(CONCATENATE($B105,"!F16"))),"",INDIRECT(CONCATENATE($B105,"!F16"))) -> 79.83814031 | T105: =IF(ISERROR(INDIRECT(CONCATENATE($B105,"!F23"))),"",INDIRECT(CONCATENATE($B105,"!F23"))) -> 88.51329828 | W105: =IF(ISERROR(INDIRECT(CONCATENATE($B105,"!F21"))),"",INDIRECT(CONCATENATE($B105,"!F21"))) -> 1.490529128 | X105: =IF(ISERROR(INDIRECT(CONCATENATE($B105,"!G16"))),"",INDIRECT(CONCATENATE($B105,"!G16"))) -> 98.13128395 | Y105: =IF(ISERROR(INDIRECT(CONCATENATE($B105,"!G23"))),"",INDIRECT(CONCATENATE($B105,"!G23"))) -> 96.22277429 | AB105: =IF(ISERROR(INDIRECT(CONCATENATE($B105,"!G221"))),"",INDIRECT(CONCATENATE($B105,"!G21"))) -> 0
B106: DHS06 | C106: 2006 | D106: 54.78334047 | E106: 68.5 | H106: 17.50315991 | I106: 60.93311883 | J106: 74.4 | M106: 12.70856289 | N106: 72.70423523 | O106: 82.2 | R106: 8.27648901 | S106: 93.00305758 | T106: 95.9 | W106: 1.466248231 | X106: 99.6715661 | Y106: 99.4 | AB106: 0.09615525343
B107: MICS09 | C107: 2009 | D107: 53.27956633 | E107: 74.7597405 | H107: 14.97809185 | I107: 56.95050867 | J107: 79.80496181 | M107: 11.83963896 | N107: 68.51472701 | O107: 85.23267285 | R107: 7.968971135 | S107: 87.47969114 | T107: 93.08137153 | W107: 3.394584348 | X107: 98.32479201 | Y107: 96.3303573 | AB107: 0.3034041059
B108: DHS11 | C108: 2011 | D108: 57.7355915 | E108: 79.1 | H108: 14.29726675 | I108: 66.96559576 | J108: 83.8 | M108: 9.15378658 | N108: 73.8468154 | O108: 85.7 | R108: 5.814671075 | S108: 88.80705358 | T108: 95.8 | W108: 2.720835521 | X108: 97.98174103 | Y108: 97.7 | AB108: 0.3482612915
B109: MICS14 | C109: 2014 | D109: 53.64659365 | E109: 71.1 | H109: 15.87314969 | I109: 64.99314394 | J109: 75.9 | M109: 9.903828158 | N109: 72.63997532 | O109: 81.4 | R109: 7.023331859 | S109: 90.29507343 | T109: 92.7 | W109: 1.502693328 | X109: 99.59125122 | Y109: 96.8 | AB109: 0
B110: DHS15 | C110: 2015 | D110: 57.37867156 | E110: 71.68683668 | H110: 16.6622045 | I110: 65.11486581 | J110: 75.95088383 | M110: 12.12690175 | N110: 71.54898678 | O110: 79.10834726 | R110: 10.38761698 | S110: 89.15999068 | T110: 92.24289641 | W110: 2.138876914 | X110: 98.54467014 | Y110: 96.61398131 | AB110: 0.06278000609
B111: MICS19 | C111: 2019 | D111: =IF(ISERROR(INDIRECT(CONCATENATE($B111,"!C16"))),"",INDIRECT(CONCATENATE($B111,"!C16"))) -> 52.78527905 | E111: =IF(ISERROR(INDIRECT(CONCATENATE($B111,"!C23"))),"",INDIRECT(CONCATENATE($B111,"!C23"))) -> 67.61198704 | H111: =IF(ISERROR(INDIRECT(CONCATENATE($B111,"!C21"))),"",INDIRECT(CONCATENATE($B111,"!C21"))) -> 14.97345363 | I111: =IF(ISERROR(INDIRECT(CONCATENATE($B111,"!D16"))),"",INDIRECT(CONCATENATE($B111,"!D16"))) -> 68.57595493 | J111: =IF(ISERROR(INDIRECT(CONCATENATE($B111,"!D23"))),"",INDIRECT(CONCATENATE($B111,"!D23"))) -> 73.2182714 | M111: =IF(ISERROR(INDIRECT(CONCATENATE($B111,"!D21"))),"",INDIRECT(CONCATENATE($B111,"!D21"))) -> 9.225521895 | N111: =IF(ISERROR(INDIRECT(CONCATENATE($B111,"!E16"))),"",INDIRECT(CONCATENATE($B111,"!E16"))) -> 74.59669625 | O111: =IF(ISERROR(INDIRECT(CONCATENATE($B111,"!E23"))),"",INDIRECT(CONCATENATE($B111,"!E23"))) -> 75.9540559 | R111: =IF(ISERROR(INDIRECT(CONCATENATE($B111,"!E21"))),"",INDIRECT(CONCATENATE($B111,"!E21"))) -> 7.235584525 | S111: =IF(ISERROR(INDIRECT(CONCATENATE($B111,"!F16"))),"",INDIRECT(CONCATENATE($B111,"!F16"))) -> 90.52633885 | T111: =IF(ISERROR(INDIRECT(CONCATENATE($B111,"!F23"))),"",INDIRECT(CONCATENATE($B111,"!F23"))) -> 90.19391083 | W111: =IF(ISERROR(INDIRECT(CONCATENATE($B111,"!F21"))),"",INDIRECT(CONCATENATE($B111,"!F21"))) -> 2.04094467 | X111: =IF(ISERROR(INDIRECT(CONCATENATE($B111,"!G16"))),"",INDIRECT(CONCATENATE($B111,"!G16"))) -> 98.82285955 | Y111: =IF(ISERROR(INDIRECT(CONCATENATE($B111,"!G23"))),"",INDIRECT(CONCATENATE($B111,"!G23"))) -> 94.83887949 | AB111: =IF(ISERROR(INDIRECT(CONCATENATE($B111,"!G221"))),"",INDIRECT(CONCATENATE($B111,"!G21"))) -> 0.07816335604
D112: =IF(ISERROR(INDIRECT(CONCATENATE($B112,"!C16"))),"",INDIRECT(CONCATENATE($B112,"!C16"))) ->  | E112: =IF(ISERROR(INDIRECT(CONCATENATE($B112,"!C23"))),"",INDIRECT(CONCATENATE($B112,"!C23"))) ->  | H112: =IF(ISERROR(INDIRECT(CONCATENATE($B112,"!C21"))),"",INDIRECT(CONCATENATE($B112,"!C21"))) ->  | I112: =IF(ISERROR(INDIRECT(CONCATENATE($B112,"!D16"))),"",INDIRECT(CONCATENATE($B112,"!D16"))) ->  | J112: =IF(ISERROR(INDIRECT(CONCATENATE($B112,"!D23"))),"",INDIRECT(CONCATENATE($B112,"!D23"))) ->  | M112: =IF(ISERROR(INDIRECT(CONCATENATE($B112,"!D21"))),"",INDIRECT(CONCATENATE($B112,"!D21"))) ->  | N112: =IF(ISERROR(INDIRECT(CONCATENATE($B112,"!E16"))),"",INDIRECT(CONCATENATE($B112,"!E16"))) ->  | O112: =IF(ISERROR(INDIRECT(CONCATENATE($B112,"!E23"))),"",INDIRECT(CONCATENATE($B112,"!E23"))) ->  | R112: =IF(ISERROR(INDIRECT(CONCATENATE($B112,"!E21"))),"",INDIRECT(CONCATENATE($B112,"!E21"))) ->  | S112: =IF(ISERROR(INDIRECT(CONCATENATE($B112,"!F16"))),"",INDIRECT(CONCATENATE($B112,"!F16"))) ->  | T112: =IF(ISERROR(INDIRECT(CONCATENATE($B112,"!F23"))),"",INDIRECT(CONCATENATE($B112,"!F23"))) ->  | W112: =IF(ISERROR(INDIRECT(CONCATENATE($B112,"!F21"))),"",INDIRECT(CONCATENATE($B112,"!F21"))) ->  | X112: =IF(ISERROR(INDIRECT(CONCATENATE($B112,"!G16"))),"",INDIRECT(CONCATENATE($B112,"!G16"))) ->  | Y112: =IF(ISERROR(INDIRECT(CONCATENATE($B112,"!G23"))),"",INDIRECT(CONCATENATE($B112,"!G23"))) ->  | AB112: =IF(ISERROR(INDIRECT(CONCATENATE($B112,"!G221"))),"",INDIRECT(CONCATENATE($B112,"!G21"))) -> 
B118: =CONCATENATE("National use of drinking water sources, ",C99,"–",C100) -> National use of drinking water sources, 2000–2020 | S118: Data points used for regression
E153: =IF(ISERROR(INDIRECT(CONCATENATE($B153,"!M18"))),"",INDIRECT(CONCATENATE($B153,"!M18"))) ->  | F153: =IF(ISERROR(INDIRECT(CONCATENATE($B153,"!M19"))),"",INDIRECT(CONCATENATE($B153,"!M19"))) ->  | G153: =IF(ISERROR(INDIRECT(CONCATENATE($B153,"!M20"))),"",INDIRECT(CONCATENATE($B153,"!M20"))) ->  | H153: =IF(ISERROR(INDIRECT(CONCATENATE($B153,"!M21"))),"",INDIRECT(CONCATENATE($B153,"!M21"))) ->  | J153: =IF(ISERROR(INDIRECT(CONCATENATE($B153,"!N18"))),"",INDIRECT(CONCATENATE($B153,"!N18"))) ->  | K153: =IF(ISERROR(INDIRECT(CONCATENATE($B153,"!N19"))),"",INDIRECT(CONCATENATE($B153,"!N19"))) ->  | L153: =IF(ISERROR(INDIRECT(CONCATENATE($B153,"!N20"))),"",INDIRECT(CONCATENATE($B153,"!N20"))) ->  | M153: =IF(ISERROR(INDIRECT(CONCATENATE($B153,"!N21"))),"",INDIRECT(CONCATENATE($B153,"!N21"))) ->  | O153: =IF(ISERROR(INDIRECT(CONCATENATE($B153,"!O18"))),"",INDIRECT(CONCATENATE($B153,"!O18"))) ->  | P153: =IF(ISERROR(INDIRECT(CONCATENATE($B153,"!O19"))),"",INDIRECT(CONCATENATE($B153,"!O19"))) ->  | Q153: =IF(ISERROR(INDIRECT(CONCATENATE($B153,"!O20"))),"",INDIRECT(CONCATENATE($B153,"!O20"))) ->  | R153: =IF(ISERROR(INDIRECT(CONCATENATE($B153,"!O21"))),"",INDIRECT(CONCATENATE($B153,"!O21"))) ->  | T153: =IF(ISERROR(INDIRECT(CONCATENATE($B153,"!P18"))),"",INDIRECT(CONCATENATE($B153,"!P18"))) ->  | U153: =IF(ISERROR(INDIRECT(CONCATENATE($B153,"!P19"))),"",INDIRECT(CONCATENATE($B153,"!P19"))) ->  | V153: =IF(ISERROR(INDIRECT(CONCATENATE($B153,"!P20"))),"",INDIRECT(CONCATENATE($B153,"!P20"))) ->  | W153: =IF(ISERROR(INDIRECT(CONCATENATE($B153,"!P21"))),"",INDIRECT(CONCATENATE($B153,"!P21"))) ->  | Y153: =IF(ISERROR(INDIRECT(CONCATENATE($B153,"!Q18"))),"",INDIRECT(CONCATENATE($B153,"!Q18"))) ->  | Z153: =IF(ISERROR(INDIRECT(CONCATENATE($B153,"!Q19"))),"",INDIRECT(CONCATENATE($B153,"!Q19"))) ->  | AA153: =IF(ISERROR(INDIRECT(CONCATENATE($B153,"!Q20"))),"",INDIRECT(CONCATENATE($B153,"!Q20"))) ->  | AB153: =IF(ISERROR(INDIRECT(CONCATENATE($B153,"!Q21"))),"",INDIRECT(CONCATENATE($B153,"!Q1"))) -> 
A197: URBAN | D197: Poorest | I197: Poor | N197: Middle | S197: Rich | X197: Richest
D198: Improved | E198: Basic | F198: Limited | G198: Unimproved | H198: Surface water | I198: Improved | J198: Basic | K198: Limited | L198: Unimproved | M198: Surface water | N198: Improved | O198: Basic | P198: Limited | Q198: Unimproved | R198: Surface water | S198: Improved | T198: Basic | U198: Limited | V198: Unimproved | W198: Surface water | X198: Improved | Y198: Basic | Z198: Limited | AA198: Unimproved | AB198: Surface water
A199: Forecast period: | C199: =MinBase(C205:C216) -> 2000 | D199: =IF((D201+H201)>100,D201*100/(D201+H201),D201) -> 96.07751067 | E199: =D199*AVERAGEIF(E205:E216,">0")/100 -> 91.60237886 | F199: =D199*(100-AVERAGEIF(E205:E216,">0"))/100 -> 4.475131813 | G199: =100-(E199+F199+H199) -> 3.922489331 | H199: =IF((D201+H201)>100,H201*100/(D201+H201),H201) -> 0 | I199: =IF((I201+M201)>100,I201*100/(I201+M201),I201) -> 99.64777839 | J199: =I199*AVERAGEIF(J205:J216,">0")/100 -> 96.70463059 | K199: =I199*(100-AVERAGEIF(J205:J216,">0"))/100 -> 2.943147798 | L199: =100-(J199+K199+M199) -> 0.3522216133 | M199: =IF((I201+M201)>100,M201*100/(I201+M201),M201) -> 0 | N199: =IF((N201+R201)>100,N201*100/(N201+R201),N201) -> 98.91934521 | O199: =N199*AVERAGEIF(O205:O216,">0")/100 -> 95.34300275 | P199: =N199*(100-AVERAGEIF(O205:O216,">0"))/100 -> 3.576342459 | Q199: =100-(O199+P199+R199) -> 1.076914478 | R199: =IF((N201+R201)>100,R201*100/(N201+R201),R201) -> 0.003740312533 | S199: =IF((S201+W201)>100,S201*100/(S201+W201),S201) -> 99.76618407 | T199: =S199*AVERAGEIF(T205:T216,">0")/100 -> 97.82476493 | U199: =S199*(100-AVERAGEIF(T205:T216,">0"))/100 -> 1.941419133 | V199: =100-(T199+U199+W199) -> 0.2338159333 | W199: =IF((S201+W201)>100,W201*100/(S201+W201),W201) -> 0 | X199: =IF((X201+AB201)>100,X201*100/(X201+AB201),X201) -> 99.63740223 | Y199: =X199*AVERAGEIF(Y205:Y216,">0")/100 -> 96.79237685 | Z199: =X199*(100-AVERAGEIF(Y205:Y216,">0"))/100 -> 2.845025373 | AA199: =100-(Y199+Z199+AB199) -> 0.1300426571 | AB199: =IF((X201+AB201)>100,AB201*100/(X201+AB201),AB201) -> 0.2325551158
C200: =MaxTarget(C205:C216) -> 2020 | D200: =IF((D202+H202)>100,D202*100/(D202+H202),D202) -> 91.43324223 | E200: =D200*AVERAGEIF(E205:E216,">0")/100 -> 87.17443277 | F200: =D200*(100-AVERAGEIF(E205:E216,">0"))/100 -> 4.258809457 | G200: =100-(E200+F200+H200) -> 6.972652661 | H200: =IF((D202+H202)>100,H202*100/(D202+H202),H202) -> 1.594105109 | I200: =IF((I202+M202)>100,I202*100/(I202+M202),I202) -> 96.45879096 | J200: =I200*AVERAGEIF(J205:J216,">0")/100 -> 93.60983153 | K200: =I200*(100-AVERAGEIF(J205:J216,">0"))/100 -> 2.848959433 | L200: =100-(J200+K200+M200) -> 3.4369775 | M200: =IF((I202+M202)>100,M202*100/(I202+M202),M202) -> 0.1042315415 | N200: =IF((N202+R202)>100,N202*100/(N202+R202),N202) -> 99.01311695 | O200: =N200*AVERAGEIF(O205:O216,">0")/100 -> 95.43338426 | P200: =N200*(100-AVERAGEIF(O205:O216,">0"))/100 -> 3.579732695 | Q200: =100-(O200+P200+R200) -> 0.7399252878 | R200: =IF((N202+R202)>100,R202*100/(N202+R202),R202) -> 0.2469577613 | S200: =IF((S202+W202)>100,S202*100/(S202+W202),S202) -> 98.46004893 | T200: =S200*AVERAGEIF(T205:T216,">0")/100 -> 96.54404678 | U200: =S200*(100-AVERAGEIF(T205:T216,">0"))/100 -> 1.916002147 | V200: =100-(T200+U200+W200) -> 1.539951075 | W200: =IF((S202+W202)>100,W202*100/(S202+W202),W202) -> 0 | X200: =IF((X202+AB202)>100,X202*100/(X202+AB202),X202) -> 98.86906149 | Y200: =X200*AVERAGEIF(Y205:Y216,">0")/100 -> 96.04597516 | Z200: =X200*(100-AVERAGEIF(Y205:Y216,">0"))/100 -> 2.823086333 | AA200: =100-(Y200+Z200+AB200) -> 1.130938507 | AB200: =IF((X202+AB202)>100,AB202*100/(X202+AB202),AB202) -> 0
A201: Regression period: | C201: =MinRegYear(C199,C205:C216) -> 2004 | D201: =IF(MAX(C205:C216)-MIN(C205:C216)<5,AVERAGEIF(C205:C216,">0",D205:D216), IF(FORECAST($C201,D$205:D$216,$C$205:$C$216)<0,0, IF(FORECAST($C201,D$205:D$216,$C$205:$C$216)>100,100, FORECAST($C201,D$205:D$216,$C$205:$C$216)))) -> 96.07751067 | H201: =IF(MAX(C205:C216)-MIN(C205:C216)<5,AVERAGEIF(C205:C216,">0",H205:H216), IF(FORECAST($C201,H$205:H$216,$C$205:$C$216)<0,0, IF(FORECAST($C201,H$205:H$216,$C$205:$C$216)>100,100, FORECAST($C201,H$205:H$216,$C$205:$C$216)))) -> 0 | I201: =IF(MAX(C205:C216)-MIN(C205:C216)<5,AVERAGEIF(C205:C216,">0",I205:I216), IF(FORECAST($C201,I$205:I$216,$C$205:$C$216)<0,0, IF(FORECAST($C201,I$205:I$216,$C$205:$C$216)>100,100, FORECAST($C201,I$205:I$216,$C$205:$C$216)))) -> 99.64777839 | M201: =IF(MAX(C205:C216)-MIN(C205:C216)<5,AVERAGEIF(C205:C216,">0",M205:M216), IF(FORECAST($C201,M$205:M$216,$C$205:$C$216)<0,0, IF(FORECAST($C201,M$205:M$216,$C$205:$C$216)>100,100, FORECAST($C201,M$205:M$216,$C$205:$C$216)))) -> 0 | N201: =IF(MAX(C205:C216)-MIN(C205:C216)<5,AVERAGEIF(C205:C216,">0",N205:N216), IF(FORECAST($C201,N$205:N$216,$C$205:$C$216)<0,0, IF(FORECAST($C201,N$205:N$216,$C$205:$C$216)>100,100, FORECAST($C201,N$205:N$216,$C$205:$C$216)))) -> 98.91934521 | R201: =IF(MAX(C205:C216)-MIN(C205:C216)<5,AVERAGEIF(C205:C216,">0",R205:R216), IF(FORECAST($C201,R$205:R$216,$C$205:$C$216)<0,0, IF(FORECAST($C201,R$205:R$216,$C$205:$C$216)>100,100, FORECAST($C201,R$205:R$216,$C$205:$C$216)))) -> 0.003740312533 | S201: =IF(MAX(C205:C216)-MIN(C205:C216)<5,AVERAGEIF(C205:C216,">0",S205:S216), IF(FORECAST($C201,S$205:S$216,$C$205:$C$216)<0,0, IF(FORECAST($C201,S$205:S$216,$C$205:$C$216)>100,100, FORECAST($C201,S$205:S$216,$C$205:$C$216)))) -> 99.76618407 | W201: =IF(MAX(C205:C216)-MIN(C205:C216)<5,AVERAGEIF(C205:C216,">0",W205:W216), IF(FORECAST($C201,W$205:W$216,$C$205:$C$216)<0,0, IF(FORECAST($C201,W$205:W$216,$C$205:$C$216)>100,100, FORECAST($C201,W$205:W$216,$C$205:$C$216)))) -> 0 | X201: =IF(MAX(C205:C216)-MIN(C205:C216)<5,AVERAGEIF(C205:C216,">0",X205:X216), IF(FORECAST($C201,X$205:X$216,$C$205:$C$216)<0,0, IF(FORECAST($C201,X$205:X$216,$C$205:$C$216)>100,100, FORECAST($C201,X$205:X$216,$C$205:$C$216)))) -> 99.63740223 | AB201: =IF(MAX(C205:C216)-MIN(C205:C216)<5,AVERAGEIF(C205:C216,">0",AB205:AB216), IF(FORECAST($C201,AB$205:AB$216,$C$205:$C$216)<0,0, IF(FORECAST($C201,AB$205:AB$216,$C$205:$C$216)>100,100, FORECAST($C201,AB$205:AB$216,$C$205:$C$216)))) -> 0.2325551158
C202: =MaxRegYear(C200,C205:C216) -> 2020 | D202: =IF(MAX(C205:C216)-MIN(C205:C216)<5,AVERAGEIF(C205:C216,">0",D205:D216), IF(FORECAST($C202,D$205:D$216,$C$205:$C$216)<0,0, IF(FORECAST($C202,D$205:D$216,$C$205:$C$216)>100,100, FORECAST($C202,D$205:D$216,$C$205:$C$216)))) -> 91.43324223 | H202: =IF(MAX(C205:C216)-MIN(C205:C216)<5,AVERAGEIF(C205:C216,">0",H205:H216), IF(FORECAST($C202,H$205:H$216,$C$205:$C$216)<0,0, IF(FORECAST($C202,H$205:H$216,$C$205:$C$216)>100,100, FORECAST($C202,H$205:H$216,$C$205:$C$216)))) -> 1.594105109 | I202: =IF(MAX(C205:C216)-MIN(C205:C216)<5,AVERAGEIF(C205:C216,">0",I205:I216), IF(FORECAST($C202,I$205:I$216,$C$205:$C$216)<0,0, IF(FORECAST($C202,I$205:I$216,$C$205:$C$216)>100,100, FORECAST($C202,I$205:I$216,$C$205:$C$216)))) -> 96.45879096 | M202: =IF(MAX(C205:C216)-MIN(C205:C216)<5,AVERAGEIF(C205:C216,">0",M205:M216), IF(FORECAST($C202,M$205:M$216,$C$205:$C$216)<0,0, IF(FORECAST($C202,M$205:M$216,$C$205:$C$216)>100,100, FORECAST($C202,M$205:M$216,$C$205:$C$216)))) -> 0.1042315415 | N202: =IF(MAX(C205:C216)-MIN(C205:C216)<5,AVERAGEIF(C205:C216,">0",N205:N216), IF(FORECAST($C202,N$205:N$216,$C$205:$C$216)<0,0, IF(FORECAST($C202,N$205:N$216,$C$205:$C$216)>100,100, FORECAST($C202,N$205:N$216,$C$205:$C$216)))) -> 99.01311695 | R202: =IF(MAX(C205:C216)-MIN(C205:C216)<5,AVERAGEIF(C205:C216,">0",R205:R216), IF(FORECAST($C202,R$205:R$216,$C$205:$C$216)<0,0, IF(FORECAST($C202,R$205:R$216,$C$205:$C$216)>100,100, FORECAST($C202,R$205:R$216,$C$205:$C$216)))) -> 0.2469577613 | S202: =IF(MAX(C205:C216)-MIN(C205:C216)<5,AVERAGEIF(C205:C216,">0",S205:S216), IF(FORECAST($C202,S$205:S$216,$C$205:$C$216)<0,0, IF(FORECAST($C202,S$205:S$216,$C$205:$C$216)>100,100, FORECAST($C202,S$205:S$216,$C$205:$C$216)))) -> 98.46004893 | W202: =IF(MAX(C205:C216)-MIN(C205:C216)<5,AVERAGEIF(C205:C216,">0",W205:W216), IF(FORECAST($C202,W$205:W$216,$C$205:$C$216)<0,0, IF(FORECAST($C202,W$205:W$216,$C$205:$C$216)>100,100, FORECAST($C202,W$205:W$216,$C$205:$C$216)))) -> 0 | X202: =IF(MAX(C205:C216)-MIN(C205:C216)<5,AVERAGEIF(C205:C216,">0",X205:X216), IF(FORECAST($C202,X$205:X$216,$C$205:$C$216)<0,0, IF(FORECAST($C202,X$205:X$216,$C$205:$C$216)>100,100, FORECAST($C202,X$205:X$216,$C$205:$C$216)))) -> 98.86906149 | AB202: =IF(MAX(C205:C216)-MIN(C205:C216)<5,AVERAGEIF(C205:C216,">0",AB205:AB216), IF(FORECAST($C202,AB$205:AB$216,$C$205:$C$216)<0,0, IF(FORECAST($C202,AB$205:AB$216,$C$205:$C$216)>100,100, FORECAST($C202,AB$205:AB$216,$C$205:$C$216)))) -> 0
B204: Survey | C204: Year | D204: Improved | E204: % Improved < = 30min | H204: Surface water | I204: Improved | J204: % Improved < = 30min | M204: Surface water | N204: Improved | O204: % Improved < = 30min | R204: Surface water | S204: Improved | T204: % Improved < = 30min | W204: Surface water | X204: Improved | Y204: % Improved < = 30min | AB204: Surface water
B205: WHS03 | D205: =IF(ISERROR(INDIRECT(CONCATENATE($B205,"!H16"))),"",INDIRECT(CONCATENATE($B205,"!H16"))) -> 81.76816136 | E205: =IF(ISERROR(INDIRECT(CONCATENATE($B205,"!H23"))),"",INDIRECT(CONCATENATE($B205,"!H23"))) -> 90.47228865 | H205: =IF(ISERROR(INDIRECT(CONCATENATE($B205,"!H21"))),"",INDIRECT(CONCATENATE($B205,"!H21"))) -> 5.721971844 | I205: =IF(ISERROR(INDIRECT(CONCATENATE($B205,"!I16"))),"",INDIRECT(CONCATENATE($B205,"!I16"))) -> 75.41822108 | J205: =IF(ISERROR(INDIRECT(CONCATENATE($B205,"!I23"))),"",INDIRECT(CONCATENATE($B205,"!I23"))) -> 96.5622414 | M205: =IF(ISERROR(INDIRECT(CONCATENATE($B205,"!I21"))),"",INDIRECT(CONCATENATE($B205,"!I21"))) -> 0.4023529924 | N205: =IF(ISERROR(INDIRECT(CONCATENATE($B205,"!J16"))),"",INDIRECT(CONCATENATE($B205,"!J16"))) -> 90.93272226 | O205: =IF(ISERROR(INDIRECT(CONCATENATE($B205,"!J23"))),"",INDIRECT(CONCATENATE($B205,"!J23"))) -> 93.51855625 | R205: =IF(ISERROR(INDIRECT(CONCATENATE($B205,"!J21"))),"",INDIRECT(CONCATENATE($B205,"!J21"))) -> 0 | S205: =IF(ISERROR(INDIRECT(CONCATENATE($B205,"!K16"))),"",INDIRECT(CONCATENATE($B205,"!K16"))) -> 98.70077442 | T205: =IF(ISERROR(INDIRECT(CONCATENATE($B205,"!K23"))),"",INDIRECT(CONCATENATE($B205,"!K23"))) -> 100 | W205: =IF(ISERROR(INDIRECT(CONCATENATE($B205,"!K21"))),"",INDIRECT(CONCATENATE($B205,"!K21"))) -> 0 | X205: =IF(ISERROR(INDIRECT(CONCATENATE($B205,"!L16"))),"",INDIRECT(CONCATENATE($B205,"!L16"))) -> 99.03182509 | Y205: =IF(ISERROR(INDIRECT(CONCATENATE($B205,"!L23"))),"",INDIRECT(CONCATENATE($B205,"!L23"))) -> 100 | AB205: =IF(ISERROR(INDIRECT(CONCATENATE($B205,"!L221"))),"",INDIRECT(CONCATENATE($B205,"!L21"))) -> 0
B206: DHS06 | C206: 2006 | D206: 98.19969548 | E206: 99.1 | H206: 0.02825834336 | I206: 100 | J206: 99.6 | M206: 0 | N206: 99.69482472 | O206: 99.4 | R206: 0 | S206: 99.91208995 | T206: 99.4 | W206: 0 | X206: 100 | Y206: 99.9 | AB206: 0
B207: MICS09 | C207: 2009 | D207: 95.78062431 | E207: 95.38625512 | H207: 0.2598669564 | I207: 98.50404284 | J207: 96.99505923 | M207: 0 | N207: 98.2391686 | O207: 96.81976741 | R207: 0 | S207: 99.45021672 | T207: 96.61403237 | W207: 0 | X207: 98.70399761 | Y207: 97.06976084 | AB207: 0.5498070778
B208: DHS11 | C208: 2011 | D208: 85.00147766 | E208: 97.4 | H208: 0.9108472572 | I208: 97.21131605 | J208: 97.7 | M208: 0.1825603351 | N208: 97.95942312 | O208: 97.1 | R208: 0.3620162149 | S208: 98.4879166 | T208: 98 | W208: 0 | X208: 99.22057109 | Y208: 98.1 | AB208: 0
B209: MICS14 | C209: 2014 | D209: 96.76978009 | E209: 95.8 | H209: 0.4776052409 | I209: 99.08981064 | J209: 97.6 | M209: 0 | N209: 99.90745116 | O209: 96.6 | R209: 0 | S209: 99.41412092 | T209: 97.6 | W209: 0 | X209: 99.69657636 | Y209: 96.7 | AB209: 0
B210: DHS15 | C210: 2015 | D210: 94.80928225 | E210: 95.69052906 | H210: 1.238944198 | I210: 95.67166952 | J210: 98.05213124 | M210: 0 | N210: 99.11532155 | O210: 95.85238445 | R210: 0.1722323114 | S210: 98.46623247 | T210: 97.87987764 | W210: 0 | X210: 98.83896242 | Y210: 95.5589582 | AB210: 0.03390941142
B211: MICS19 | C211: 2019 | D211: 91.39086535 | E211: 93.54608295 | H211: 1.519375849 | I211: 97.44424556 | J211: 92.81571223 | M211: 0.1418534718 | N211: 98.8929188 | O211: 95.40140377 | R211: 0.2482478762 | S211: 98.78485543 | T211: 96.88430615 | W211: 0 | X211: 98.9632411 | Y211: 92.68362857 | AB211: 0
B218: =CONCATENATE("Urban use of drinking water sources, ",C199,"–",C200) -> Urban use of drinking water sources, 2000–2020 | S218: Data points used for regression
E253: =IF(ISERROR(INDIRECT(CONCATENATE($B253,"!M18"))),"",INDIRECT(CONCATENATE($B253,"!M18"))) ->  | F253: =IF(ISERROR(INDIRECT(CONCATENATE($B253,"!M19"))),"",INDIRECT(CONCATENATE($B253,"!M19"))) ->  | G253: =IF(ISERROR(INDIRECT(CONCATENATE($B253,"!M20"))),"",INDIRECT(CONCATENATE($B253,"!M20"))) ->  | H253: =IF(ISERROR(INDIRECT(CONCATENATE($B253,"!M21"))),"",INDIRECT(CONCATENATE($B253,"!M21"))) ->  | J253: =IF(ISERROR(INDIRECT(CONCATENATE($B253,"!N18"))),"",INDIRECT(CONCATENATE($B253,"!N18"))) ->  | K253: =IF(ISERROR(INDIRECT(CONCATENATE($B253,"!N19"))),"",INDIRECT(CONCATENATE($B253,"!N19"))) ->  | L253: =IF(ISERROR(INDIRECT(CONCATENATE($B253,"!N20"))),"",INDIRECT(CONCATENATE($B253,"!N20"))) ->  | M253: =IF(ISERROR(INDIRECT(CONCATENATE($B253,"!N21"))),"",INDIRECT(CONCATENATE($B253,"!N21"))) ->  | O253: =IF(ISERROR(INDIRECT(CONCATENATE($B253,"!O18"))),"",INDIRECT(CONCATENATE($B253,"!O18"))) ->  | P253: =IF(ISERROR(INDIRECT(CONCATENATE($B253,"!O19"))),"",INDIRECT(CONCATENATE($B253,"!O19"))) ->  | Q253: =IF(ISERROR(INDIRECT(CONCATENATE($B253,"!O20"))),"",INDIRECT(CONCATENATE($B253,"!O20"))) ->  | R253: =IF(ISERROR(INDIRECT(CONCATENATE($B253,"!O21"))),"",INDIRECT(CONCATENATE($B253,"!O21"))) ->  | T253: =IF(ISERROR(INDIRECT(CONCATENATE($B253,"!P18"))),"",INDIRECT(CONCATENATE($B253,"!P18"))) ->  | U253: =IF(ISERROR(INDIRECT(CONCATENATE($B253,"!P19"))),"",INDIRECT(CONCATENATE($B253,"!P19"))) ->  | V253: =IF(ISERROR(INDIRECT(CONCATENATE($B253,"!P20"))),"",INDIRECT(CONCATENATE($B253,"!P20"))) ->  | W253: =IF(ISERROR(INDIRECT(CONCATENATE($B253,"!P21"))),"",INDIRECT(CONCATENATE($B253,"!P21"))) ->  | Y253: =IF(ISERROR(INDIRECT(CONCATENATE($B253,"!Q18"))),"",INDIRECT(CONCATENATE($B253,"!Q18"))) ->  | Z253: =IF(ISERROR(INDIRECT(CONCATENATE($B253,"!Q19"))),"",INDIRECT(CONCATENATE($B253,"!Q19"))) ->  | AA253: =IF(ISERROR(INDIRECT(CONCATENATE($B253,"!Q20"))),"",INDIRECT(CONCATENATE($B253,"!Q20"))) ->  | AB253: =IF(ISERROR(INDIRECT(CONCATENATE($B253,"!Q21"))),"",INDIRECT(CONCATENATE($B253,"!Q1"))) -> 
E254: =IF(ISERROR(INDIRECT(CONCATENATE($B254,"!M18"))),"",INDIRECT(CONCATENATE($B254,"!M18"))) ->  | F254: =IF(ISERROR(INDIRECT(CONCATENATE($B254,"!M19"))),"",INDIRECT(CONCATENATE($B254,"!M19"))) ->  | G254: =IF(ISERROR(INDIRECT(CONCATENATE($B254,"!M20"))),"",INDIRECT(CONCATENATE($B254,"!M20"))) ->  | H254: =IF(ISERROR(INDIRECT(CONCATENATE($B254,"!M21"))),"",INDIRECT(CONCATENATE($B254,"!M21"))) ->  | J254: =IF(ISERROR(INDIRECT(CONCATENATE($B254,"!N18"))),"",INDIRECT(CONCATENATE($B254,"!N18"))) ->  | K254: =IF(ISERROR(INDIRECT(CONCATENATE($B254,"!N19"))),"",INDIRECT(CONCATENATE($B254,"!N19"))) ->  | L254: =IF(ISERROR(INDIRECT(CONCATENATE($B254,"!N20"))),"",INDIRECT(CONCATENATE($B254,"!N20"))) ->  | M254: =IF(ISERROR(INDIRECT(CONCATENATE($B254,"!N21"))),"",INDIRECT(CONCATENATE($B254,"!N21"))) ->  | O254: =IF(ISERROR(INDIRECT(CONCATENATE($B254,"!O18"))),"",INDIRECT(CONCATENATE($B254,"!O18"))) ->  | P254: =IF(ISERROR(INDIRECT(CONCATENATE($B254,"!O19"))),"",INDIRECT(CONCATENATE($B254,"!O19"))) ->  | Q254: =IF(ISERROR(INDIRECT(CONCATENATE($B254,"!O20"))),"",INDIRECT(CONCATENATE($B254,"!O20"))) ->  | R254: =IF(ISERROR(INDIRECT(CONCATENATE($B254,"!O21"))),"",INDIRECT(CONCATENATE($B254,"!O21"))) ->  | T254: =IF(ISERROR(INDIRECT(CONCATENATE($B254,"!P18"))),"",INDIRECT(CONCATENATE($B254,"!P18"))) ->  | U254: =IF(ISERROR(INDIRECT(CONCATENATE($B254,"!P19"))),"",INDIRECT(CONCATENATE($B254,"!P19"))) ->  | V254: =IF(ISERROR(INDIRECT(CONCATENATE($B254,"!P20"))),"",INDIRECT(CONCATENATE($B254,"!P20"))) ->  | W254: =IF(ISERROR(INDIRECT(CONCATENATE($B254,"!P21"))),"",INDIRECT(CONCATENATE($B254,"!P21"))) ->  | Y254: =IF(ISERROR(INDIRECT(CONCATENATE($B254,"!Q18"))),"",INDIRECT(CONCATENATE($B254,"!Q18"))) ->  | Z254: =IF(ISERROR(INDIRECT(CONCATENATE($B254,"!Q19"))),"",INDIRECT(CONCATENATE($B254,"!Q19"))) ->  | AA254: =IF(ISERROR(INDIRECT(CONCATENATE($B254,"!Q20"))),"",INDIRECT(CONCATENATE($B254,"!Q20"))) ->  | AB254: =IF(ISERROR(INDIRECT(CONCATENATE($B254,"!Q21"))),"",INDIRECT(CONCATENATE($B254,"!Q1"))) -> 
E255: =IF(ISERROR(INDIRECT(CONCATENATE($B255,"!M18"))),"",INDIRECT(CONCATENATE($B255,"!M18"))) ->  | F255: =IF(ISERROR(INDIRECT(CONCATENATE($B255,"!M19"))),"",INDIRECT(CONCATENATE($B255,"!M19"))) ->  | G255: =IF(ISERROR(INDIRECT(CONCATENATE($B255,"!M20"))),"",INDIRECT(CONCATENATE($B255,"!M20"))) ->  | H255: =IF(ISERROR(INDIRECT(CONCATENATE($B255,"!M21"))),"",INDIRECT(CONCATENATE($B255,"!M21"))) ->  | J255: =IF(ISERROR(INDIRECT(CONCATENATE($B255,"!N18"))),"",INDIRECT(CONCATENATE($B255,"!N18"))) ->  | K255: =IF(ISERROR(INDIRECT(CONCATENATE($B255,"!N19"))),"",INDIRECT(CONCATENATE($B255,"!N19"))) ->  | L255: =IF(ISERROR(INDIRECT(CONCATENATE($B255,"!N20"))),"",INDIRECT(CONCATENATE($B255,"!N20"))) ->  | M255: =IF(ISERROR(INDIRECT(CONCATENATE($B255,"!N21"))),"",INDIRECT(CONCATENATE($B255,"!N21"))) ->  | O255: =IF(ISERROR(INDIRECT(CONCATENATE($B255,"!O18"))),"",INDIRECT(CONCATENATE($B255,"!O18"))) ->  | P255: =IF(ISERROR(INDIRECT(CONCATENATE($B255,"!O19"))),"",INDIRECT(CONCATENATE($B255,"!O19"))) ->  | Q255: =IF(ISERROR(INDIRECT(CONCATENATE($B255,"!O20"))),"",INDIRECT(CONCATENATE($B255,"!O20"))) ->  | R255: =IF(ISERROR(INDIRECT(CONCATENATE($B255,"!O21"))),"",INDIRECT(CONCATENATE($B255,"!O21"))) ->  | T255: =IF(ISERROR(INDIRECT(CONCATENATE($B255,"!P18"))),"",INDIRECT(CONCATENATE($B255,"!P18"))) ->  | U255: =IF(ISERROR(INDIRECT(CONCATENATE($B255,"!P19"))),"",INDIRECT(CONCATENATE($B255,"!P19"))) ->  | V255: =IF(ISERROR(INDIRECT(CONCATENATE($B255,"!P20"))),"",INDIRECT(CONCATENATE($B255,"!P20"))) ->  | W255: =IF(ISERROR(INDIRECT(CONCATENATE($B255,"!P21"))),"",INDIRECT(CONCATENATE($B255,"!P21"))) ->  | Y255: =IF(ISERROR(INDIRECT(CONCATENATE($B255,"!Q18"))),"",INDIRECT(CONCATENATE($B255,"!Q18"))) ->  | Z255: =IF(ISERROR(INDIRECT(CONCATENATE($B255,"!Q19"))),"",INDIRECT(CONCATENATE($B255,"!Q19"))) ->  | AA255: =IF(ISERROR(INDIRECT(CONCATENATE($B255,"!Q20"))),"",INDIRECT(CONCATENATE($B255,"!Q20"))) ->  | AB255: =IF(ISERROR(INDIRECT(CONCATENATE($B255,"!Q21"))),"",INDIRECT(CONCATENATE($B255,"!Q1"))) -> 
E256: =IF(ISERROR(INDIRECT(CONCATENATE($B256,"!M18"))),"",INDIRECT(CONCATENATE($B256,"!M18"))) ->  | F256: =IF(ISERROR(INDIRECT(CONCATENATE($B256,"!M19"))),"",INDIRECT(CONCATENATE($B256,"!M19"))) ->  | G256: =IF(ISERROR(INDIRECT(CONCATENATE($B256,"!M20"))),"",INDIRECT(CONCATENATE($B256,"!M20"))) ->  | H256: =IF(ISERROR(INDIRECT(CONCATENATE($B256,"!M21"))),"",INDIRECT(CONCATENATE($B256,"!M21"))) ->  | J256: =IF(ISERROR(INDIRECT(CONCATENATE($B256,"!N18"))),"",INDIRECT(CONCATENATE($B256,"!N18"))) ->  | K256: =IF(ISERROR(INDIRECT(CONCATENATE($B256,"!N19"))),"",INDIRECT(CONCATENATE($B256,"!N19"))) ->  | L256: =IF(ISERROR(INDIRECT(CONCATENATE($B256,"!N20"))),"",INDIRECT(CONCATENATE($B256,"!N20"))) ->  | M256: =IF(ISERROR(INDIRECT(CONCATENATE($B256,"!N21"))),"",INDIRECT(CONCATENATE($B256,"!N21"))) ->  | O256: =IF(ISERROR(INDIRECT(CONCATENATE($B256,"!O18"))),"",INDIRECT(CONCATENATE($B256,"!O18"))) ->  | P256: =IF(ISERROR(INDIRECT(CONCATENATE($B256,"!O19"))),"",INDIRECT(CONCATENATE($B256,"!O19"))) ->  | Q256: =IF(ISERROR(INDIRECT(CONCATENATE($B256,"!O20"))),"",INDIRECT(CONCATENATE($B256,"!O20"))) ->  | R256: =IF(ISERROR(INDIRECT(CONCATENATE($B256,"!O21"))),"",INDIRECT(CONCATENATE($B256,"!O21"))) ->  | T256: =IF(ISERROR(INDIRECT(CONCATENATE($B256,"!P18"))),"",INDIRECT(CONCATENATE($B256,"!P18"))) ->  | U256: =IF(ISERROR(INDIRECT(CONCATENATE($B256,"!P19"))),"",INDIRECT(CONCATENATE($B256,"!P19"))) ->  | V256: =IF(ISERROR(INDIRECT(CONCATENATE($B256,"!P20"))),"",INDIRECT(CONCATENATE($B256,"!P20"))) ->  | W256: =IF(ISERROR(INDIRECT(CONCATENATE($B256,"!P21"))),"",INDIRECT(CONCATENATE($B256,"!P21"))) ->  | Y256: =IF(ISERROR(INDIRECT(CONCATENATE($B256,"!Q18"))),"",INDIRECT(CONCATENATE($B256,"!Q18"))) ->  | Z256: =IF(ISERROR(INDIRECT(CONCATENATE($B256,"!Q19"))),"",INDIRECT(CONCATENATE($B256,"!Q19"))) ->  | AA256: =IF(ISERROR(INDIRECT(CONCATENATE($B256,"!Q20"))),"",INDIRECT(CONCATENATE($B256,"!Q20"))) ->  | AB256: =IF(ISERROR(INDIRECT(CONCATENATE($B256,"!Q21"))),"",INDIRECT(CONCATENATE($B256,"!Q1"))) -> 
E257: =IF(ISERROR(INDIRECT(CONCATENATE($B257,"!M18"))),"",INDIRECT(CONCATENATE($B257,"!M18"))) ->  | F257: =IF(ISERROR(INDIRECT(CONCATENATE($B257,"!M19"))),"",INDIRECT(CONCATENATE($B257,"!M19"))) ->  | G257: =IF(ISERROR(INDIRECT(CONCATENATE($B257,"!M20"))),"",INDIRECT(CONCATENATE($B257,"!M20"))) ->  | H257: =IF(ISERROR(INDIRECT(CONCATENATE($B257,"!M21"))),"",INDIRECT(CONCATENATE($B257,"!M21"))) ->  | J257: =IF(ISERROR(INDIRECT(CONCATENATE($B257,"!N18"))),"",INDIRECT(CONCATENATE($B257,"!N18"))) ->  | K257: =IF(ISERROR(INDIRECT(CONCATENATE($B257,"!N19"))),"",INDIRECT(CONCATENATE($B257,"!N19"))) ->  | L257: =IF(ISERROR(INDIRECT(CONCATENATE($B257,"!N20"))),"",INDIRECT(CONCATENATE($B257,"!N20"))) ->  | M257: =IF(ISERROR(INDIRECT(CONCATENATE($B257,"!N21"))),"",INDIRECT(CONCATENATE($B257,"!N21"))) ->  | O257: =IF(ISERROR(INDIRECT(CONCATENATE($B257,"!O18"))),"",INDIRECT(CONCATENATE($B257,"!O18"))) ->  | P257: =IF(ISERROR(INDIRECT(CONCATENATE($B257,"!O19"))),"",INDIRECT(CONCATENATE($B257,"!O19"))) ->  | Q257: =IF(ISERROR(INDIRECT(CONCATENATE($B257,"!O20"))),"",INDIRECT(CONCATENATE($B257,"!O20"))) ->  | R257: =IF(ISERROR(INDIRECT(CONCATENATE($B257,"!O21"))),"",INDIRECT(CONCATENATE($B257,"!O21"))) ->  | T257: =IF(ISERROR(INDIRECT(CONCATENATE($B257,"!P18"))),"",INDIRECT(CONCATENATE($B257,"!P18"))) ->  | U257: =IF(ISERROR(INDIRECT(CONCATENATE($B257,"!P19"))),"",INDIRECT(CONCATENATE($B257,"!P19"))) ->  | V257: =IF(ISERROR(INDIRECT(CONCATENATE($B257,"!P20"))),"",INDIRECT(CONCATENATE($B257,"!P20"))) ->  | W257: =IF(ISERROR(INDIRECT(CONCATENATE($B257,"!P21"))),"",INDIRECT(CONCATENATE($B257,"!P21"))) ->  | Y257: =IF(ISERROR(INDIRECT(CONCATENATE($B257,"!Q18"))),"",INDIRECT(CONCATENATE($B257,"!Q18"))) ->  | Z257: =IF(ISERROR(INDIRECT(CONCATENATE($B257,"!Q19"))),"",INDIRECT(CONCATENATE($B257,"!Q19"))) ->  | AA257: =IF(ISERROR(INDIRECT(CONCATENATE($B257,"!Q20"))),"",INDIRECT(CONCATENATE($B257,"!Q20"))) ->  | AB257: =IF(ISERROR(INDIRECT(CONCATENATE($B257,"!Q21"))),"",INDIRECT(CONCATENATE($B257,"!Q1"))) -> 
A297: RURAL | D297: Poorest | I297: Poor | N297: Middle | S297: Rich | X297: Richest
D298: Improved | E298: Basic | F298: Limited | G298: Unimproved | H298: Surface water | I298: Improved | J298: Basic | K298: Limited | L298: Unimproved | M298: Surface water | N298: Improved | O298: Basic | P298: Limited | Q298: Unimproved | R298: Surface water | S298: Improved | T298: Basic | U298: Limited | V298: Unimproved | W298: Surface water | X298: Improved | Y298: Basic | Z298: Limited | AA298: Unimproved | AB298: Surface water
A299: Forecast period: | C299: 2000 | D299: =IF((D301+H301)>100,D301*100/(D301+H301),D301) -> 59.09644479 | E299: =D299*AVERAGEIF(E305:E316,">0")/100 -> 42.3728298 | F299: =D299*(100-AVERAGEIF(E305:E316,">0"))/100 -> 16.72361499 | G299: =100-(E299+F299+H299) -> 27.77021844 | H299: =IF((D301+H301)>100,H301*100/(D301+H301),H301) -> 13.13333677 | I299: =IF((I301+M301)>100,I301*100/(I301+M301),I301) -> 62.51497574 | J299: =I299*AVERAGEIF(J305:J316,">0")/100 -> 46.00088921 | K299: =I299*(100-AVERAGEIF(J305:J316,">0"))/100 -> 16.51408653 | L299: =100-(J299+K299+M299) -> 24.52296613 | M299: =IF((I301+M301)>100,M301*100/(I301+M301),M301) -> 12.96205813 | N299: =IF((N301+R301)>100,N301*100/(N301+R301),N301) -> 64.93961696 | O299: =N299*AVERAGEIF(O305:O316,">0")/100 -> 50.83659739 | P299: =N299*(100-AVERAGEIF(O305:O316,">0"))/100 -> 14.10301957 | Q299: =100-(O299+P299+R299) -> 26.24717996 | R299: =IF((N301+R301)>100,R301*100/(N301+R301),R301) -> 8.813203082 | S299: =IF((S301+W301)>100,S301*100/(S301+W301),S301) -> 69.64747754 | T299: =S299*AVERAGEIF(T305:T316,">0")/100 -> 57.11023483 | U299: =S299*(100-AVERAGEIF(T305:T316,">0"))/100 -> 12.53724271 | V299: =100-(T299+U299+W299) -> 24.16224206 | W299: =IF((S301+W301)>100,W301*100/(S301+W301),W301) -> 6.190280404 | X299: =IF((X301+AB301)>100,X301*100/(X301+AB301),X301) -> 73.12205537 | Y299: =X299*AVERAGEIF(Y305:Y316,">0")/100 -> 63.33046135 | Z299: =X299*(100-AVERAGEIF(Y305:Y316,">0"))/100 -> 9.791594015 | AA299: =100-(Y299+Z299+AB299) -> 22.01096883 | AB299: =IF((X301+AB301)>100,AB301*100/(X301+AB301),AB301) -> 4.866975802
C300: 2020 | D300: =IF((D302+H302)>100,D302*100/(D302+H302),D302) -> 52.08207234 | E300: =D300*AVERAGEIF(E305:E316,">0")/100 -> 37.34344417 | F300: =D300*(100-AVERAGEIF(E305:E316,">0"))/100 -> 14.73862817 | G300: =100-(E300+F300+H300) -> 30.89771616 | H300: =IF((D302+H302)>100,H302*100/(D302+H302),H302) -> 17.0202115 | I300: =IF((I302+M302)>100,I302*100/(I302+M302),I302) -> 58.82673633 | J300: =I300*AVERAGEIF(J305:J316,">0")/100 -> 43.28694282 | K300: =I300*(100-AVERAGEIF(J305:J316,">0"))/100 -> 15.53979351 | L300: =100-(J300+K300+M300) -> 27.81721 | M300: =IF((I302+M302)>100,M302*100/(I302+M302),M302) -> 13.35605367 | N300: =IF((N302+R302)>100,N302*100/(N302+R302),N302) -> 68.04522663 | O300: =N300*AVERAGEIF(O305:O316,">0")/100 -> 53.26775784 | P300: =N300*(100-AVERAGEIF(O305:O316,">0"))/100 -> 14.77746879 | Q300: =100-(O300+P300+R300) -> 22.11701088 | R300: =IF((N302+R302)>100,R302*100/(N302+R302),R302) -> 9.837762484 | S300: =IF((S302+W302)>100,S302*100/(S302+W302),S302) -> 72.70451804 | T300: =S300*AVERAGEIF(T305:T316,">0")/100 -> 59.61697746 | U300: =S300*(100-AVERAGEIF(T305:T316,">0"))/100 -> 13.08754058 | V300: =100-(T300+U300+W300) -> 18.31546498 | W300: =IF((S302+W302)>100,W302*100/(S302+W302),W302) -> 8.98001698 | X300: =IF((X302+AB302)>100,X302*100/(X302+AB302),X302) -> 85.2788364 | Y300: =X300*AVERAGEIF(Y305:Y316,">0")/100 -> 73.85935784 | Z300: =X300*(100-AVERAGEIF(Y305:Y316,">0"))/100 -> 11.41947857 | AA300: =100-(Y300+Z300+AB300) -> 10.24398356 | AB300: =IF((X302+AB302)>100,AB302*100/(X302+AB302),AB302) -> 4.477180036
A301: Regression period: | C301: =MinRegYear(C299,C305:C316) -> 2001 | D301: =IF(MAX(C305:C316)-MIN(C305:C316)<5,AVERAGEIF(C305:C316,">0",D305:D316), IF(FORECAST($C301,D$305:D$316,$C$305:$C$316)<0,0, IF(FORECAST($C301,D$305:D$316,$C$305:$C$316)>100,100, FORECAST($C301,D$305:D$316,$C$305:$C$316)))) -> 59.09644479 | H301: =IF(MAX(C305:C316)-MIN(C305:C316)<5,AVERAGEIF(C305:C316,">0",H305:H316), IF(FORECAST($C301,H$305:H$316,$C$305:$C$316)<0,0, IF(FORECAST($C301,H$305:H$316,$C$305:$C$316)>100,100, FORECAST($C301,H$305:H$316,$C$305:$C$316)))) -> 13.13333677 | I301: =IF(MAX(C305:C316)-MIN(C305:C316)<5,AVERAGEIF(C305:C316,">0",I305:I316), IF(FORECAST($C301,I$305:I$316,$C$305:$C$316)<0,0, IF(FORECAST($C301,I$305:I$316,$C$305:$C$316)>100,100, FORECAST($C301,I$305:I$316,$C$305:$C$316)))) -> 62.51497574 | M301: =IF(MAX(C305:C316)-MIN(C305:C316)<5,AVERAGEIF(C305:C316,">0",M305:M316), IF(FORECAST($C301,M$305:M$316,$C$305:$C$316)<0,0, IF(FORECAST($C301,M$305:M$316,$C$305:$C$316)>100,100, FORECAST($C301,M$305:M$316,$C$305:$C$316)))) -> 12.96205813 | N301: =IF(MAX(C305:C316)-MIN(C305:C316)<5,AVERAGEIF(C305:C316,">0",N305:N316), IF(FORECAST($C301,N$305:N$316,$C$305:$C$316)<0,0, IF(FORECAST($C301,N$305:N$316,$C$305:$C$316)>100,100, FORECAST($C301,N$305:N$316,$C$305:$C$316)))) -> 64.93961696 | R301: =IF(MAX(C305:C316)-MIN(C305:C316)<5,AVERAGEIF(C305:C316,">0",R305:R316), IF(FORECAST($C301,R$305:R$316,$C$305:$C$316)<0,0, IF(FORECAST($C301,R$305:R$316,$C$305:$C$316)>100,100, FORECAST($C301,R$305:R$316,$C$305:$C$316)))) -> 8.813203082 | S301: =IF(MAX(C305:C316)-MIN(C305:C316)<5,AVERAGEIF(C305:C316,">0",S305:S316), IF(FORECAST($C301,S$305:S$316,$C$305:$C$316)<0,0, IF(FORECAST($C301,S$305:S$316,$C$305:$C$316)>100,100, FORECAST($C301,S$305:S$316,$C$305:$C$316)))) -> 69.64747754 | W301: =IF(MAX(C305:C316)-MIN(C305:C316)<5,AVERAGEIF(C305:C316,">0",W305:W316), IF(FORECAST($C301,W$305:W$316,$C$305:$C$316)<0,0, IF(FORECAST($C301,W$305:W$316,$C$305:$C$316)>100,100, FORECAST($C301,W$305:W$316,$C$305:$C$316)))) -> 6.190280404 | X301: =IF(MAX(C305:C316)-MIN(C305:C316)<5,AVERAGEIF(C305:C316,">0",X305:X316), IF(FORECAST($C301,X$305:X$316,$C$305:$C$316)<0,0, IF(FORECAST($C301,X$305:X$316,$C$305:$C$316)>100,100, FORECAST($C301,X$305:X$316,$C$305:$C$316)))) -> 73.12205537 | AB301: =IF(MAX(C305:C316)-MIN(C305:C316)<5,AVERAGEIF(C305:C316,">0",AB305:AB316), IF(FORECAST($C301,AB$305:AB$316,$C$305:$C$316)<0,0, IF(FORECAST($C301,AB$305:AB$316,$C$305:$C$316)>100,100, FORECAST($C301,AB$305:AB$316,$C$305:$C$316)))) -> 4.866975802
C302: =MaxRegYear(C300,C305:C316) -> 2020 | D302: =IF(MAX(C305:C316)-MIN(C305:C316)<5,AVERAGEIF(C305:C316,">0",D305:D316), IF(FORECAST($C302,D$305:D$316,$C$305:$C$316)<0,0, IF(FORECAST($C302,D$305:D$316,$C$305:$C$316)>100,100, FORECAST($C302,D$305:D$316,$C$305:$C$316)))) -> 52.08207234 | H302: =IF(MAX(C305:C316)-MIN(C305:C316)<5,AVERAGEIF(C305:C316,">0",H305:H316), IF(FORECAST($C302,H$305:H$316,$C$305:$C$316)<0,0, IF(FORECAST($C302,H$305:H$316,$C$305:$C$316)>100,100, FORECAST($C302,H$305:H$316,$C$305:$C$316)))) -> 17.0202115 | I302: =IF(MAX(C305:C316)-MIN(C305:C316)<5,AVERAGEIF(C305:C316,">0",I305:I316), IF(FORECAST($C302,I$305:I$316,$C$305:$C$316)<0,0, IF(FORECAST($C302,I$305:I$316,$C$305:$C$316)>100,100, FORECAST($C302,I$305:I$316,$C$305:$C$316)))) -> 58.82673633 | M302: =IF(MAX(C305:C316)-MIN(C305:C316)<5,AVERAGEIF(C305:C316,">0",M305:M316), IF(FORECAST($C302,M$305:M$316,$C$305:$C$316)<0,0, IF(FORECAST($C302,M$305:M$316,$C$305:$C$316)>100,100, FORECAST($C302,M$305:M$316,$C$305:$C$316)))) -> 13.35605367 | N302: =IF(MAX(C305:C316)-MIN(C305:C316)<5,AVERAGEIF(C305:C316,">0",N305:N316), IF(FORECAST($C302,N$305:N$316,$C$305:$C$316)<0,0, IF(FORECAST($C302,N$305:N$316,$C$305:$C$316)>100,100, FORECAST($C302,N$305:N$316,$C$305:$C$316)))) -> 68.04522663 | R302: =IF(MAX(C305:C316)-MIN(C305:C316)<5,AVERAGEIF(C305:C316,">0",R305:R316), IF(FORECAST($C302,R$305:R$316,$C$305:$C$316)<0,0, IF(FORECAST($C302,R$305:R$316,$C$305:$C$316)>100,100, FORECAST($C302,R$305:R$316,$C$305:$C$316)))) -> 9.837762484 | S302: =IF(MAX(C305:C316)-MIN(C305:C316)<5,AVERAGEIF(C305:C316,">0",S305:S316), IF(FORECAST($C302,S$305:S$316,$C$305:$C$316)<0,0, IF(FORECAST($C302,S$305:S$316,$C$305:$C$316)>100,100, FORECAST($C302,S$305:S$316,$C$305:$C$316)))) -> 72.70451804 | W302: =IF(MAX(C305:C316)-MIN(C305:C316)<5,AVERAGEIF(C305:C316,">0",W305:W316), IF(FORECAST($C302,W$305:W$316,$C$305:$C$316)<0,0, IF(FORECAST($C302,W$305:W$316,$C$305:$C$316)>100,100, FORECAST($C302,W$305:W$316,$C$305:$C$316)))) -> 8.98001698 | X302: =IF(MAX(C305:C316)-MIN(C305:C316)<5,AVERAGEIF(C305:C316,">0",X305:X316), IF(FORECAST($C302,X$305:X$316,$C$305:$C$316)<0,0, IF(FORECAST($C302,X$305:X$316,$C$305:$C$316)>100,100, FORECAST($C302,X$305:X$316,$C$305:$C$316)))) -> 85.2788364 | AB302: =IF(MAX(C305:C316)-MIN(C305:C316)<5,AVERAGEIF(C305:C316,">0",AB305:AB316), IF(FORECAST($C302,AB$305:AB$316,$C$305:$C$316)<0,0, IF(FORECAST($C302,AB$305:AB$316,$C$305:$C$316)>100,100, FORECAST($C302,AB$305:AB$316,$C$305:$C$316)))) -> 4.477180036
B304: Survey | C304: Year | D304: Improved | E304: % Improved < = 30min | H304: Surface water | I304: Improved | J304: % Improved < = 30min | M304: Surface water | N304: Improved | O304: % Improved < = 30min | R304: Surface water | S304: Improved | T304: % Improved < = 30min | W304: Surface water | X304: Improved | Y304: % Improved < = 30min | AB304: Surface water
B305: WHS03 | C305: 2003 | D305: =IF(ISERROR(INDIRECT(CONCATENATE($B305,"!M16"))),"",INDIRECT(CONCATENATE($B305,"!M16"))) -> 61.97741219 | E305: =IF(ISERROR(INDIRECT(CONCATENATE($B305,"!M23"))),"",INDIRECT(CONCATENATE($B305,"!M23"))) -> 71.50452384 | H305: =IF(ISERROR(INDIRECT(CONCATENATE($B305,"!M21"))),"",INDIRECT(CONCATENATE($B305,"!M21"))) -> 10.02763119 | I305: =IF(ISERROR(INDIRECT(CONCATENATE($B305,"!N16"))),"",INDIRECT(CONCATENATE($B305,"!N16"))) -> 70.11976956 | J305: =IF(ISERROR(INDIRECT(CONCATENATE($B305,"!N23"))),"",INDIRECT(CONCATENATE($B305,"!N23"))) -> 73.5702795 | M305: =IF(ISERROR(INDIRECT(CONCATENATE($B305,"!N21"))),"",INDIRECT(CONCATENATE($B305,"!N21"))) -> 10.00398654 | N305: =IF(ISERROR(INDIRECT(CONCATENATE($B305,"!O16"))),"",INDIRECT(CONCATENATE($B305,"!O16"))) -> 69.68174764 | O305: =IF(ISERROR(INDIRECT(CONCATENATE($B305,"!O23"))),"",INDIRECT(CONCATENATE($B305,"!O23"))) -> 75.10682223 | R305: =IF(ISERROR(INDIRECT(CONCATENATE($B305,"!O21"))),"",INDIRECT(CONCATENATE($B305,"!O21"))) -> 7.526653385 | S305: =IF(ISERROR(INDIRECT(CONCATENATE($B305,"!P16"))),"",INDIRECT(CONCATENATE($B305,"!P16"))) -> 71.29161562 | T305: =IF(ISERROR(INDIRECT(CONCATENATE($B305,"!P23"))),"",INDIRECT(CONCATENATE($B305,"!P23"))) -> 84.19402755 | W305: =IF(ISERROR(INDIRECT(CONCATENATE($B305,"!P21"))),"",INDIRECT(CONCATENATE($B305,"!P21"))) -> 4.8480696 | X305: =IF(ISERROR(INDIRECT(CONCATENATE($B305,"!Q16"))),"",INDIRECT(CONCATENATE($B305,"!Q16"))) -> 70.87037165 | Y305: =IF(ISERROR(INDIRECT(CONCATENATE($B305,"!Q23"))),"",INDIRECT(CONCATENATE($B305,"!Q23"))) -> 85.12882455 | AB305: =IF(ISERROR(INDIRECT(CONCATENATE($B305,"!Q221"))),"",INDIRECT(CONCATENATE($B305,"!Q21"))) -> 2.964740282
B306: DHS06 | C306: 2006 | D306: 55.22469111 | E306: 69.1 | H306: 17.67386326 | I306: 56.01155255 | J306: 67.1 | M306: 16.24241056 | N306: 63.24502046 | O306: 78.4 | R306: 10.78771569 | S306: 71.12796839 | T306: 81.8 | W306: 8.873422248 | X306: 81.129277 | Y306: 87.5 | AB306: 5.119869434
B307: MICS09 | C307: 2009 | D307: 52.38375605 | E307: 76.01666899 | H307: 15.51240887 | I307: 53.09070009 | J307: 73.87548512 | M307: 14.6708343 | N307: 59.49663701 | O307: 81.17209756 | R307: 9.825428424 | S307: 66.69918843 | T307: 85.3473563 | W307: 8.70174211 | X307: 74.10392911 | Y307: 86.37545504 | AB307: 7.128979147
B308: DHS11 | C308: 2011 | D308: 55.79632959 | E308: 78.7 | H308: 14.7061214 | I308: 62.19382637 | J308: 79.7 | M308: 12.20937142 | N308: 70.43191334 | O308: 85.3 | R308: 7.740756544 | S308: 72.63776226 | T308: 84.9 | W308: 5.622031066 | X308: 83.23392158 | Y308: 92.6 | AB308: 5.764977845
B309: MICS14 | C309: 2014 | D309: 52.74040475 | E309: 71.3 | H309: 16.33456681 | I309: 59.66853971 | J309: 73.1 | M309: 12.54358419 | N309: 67.96998595 | O309: 78.2 | R309: 8.893612476 | S309: 73.04843039 | T309: 80.9 | W309: 6.627151901 | X309: 84.15914891 | Y309: 88.8 | AB309: 2.8375573
B310: DHS15 | C310: 2015 | D310: 56.59550349 | E310: 70.46063212 | H310: 17.03674844 | I310: 62.64882062 | J310: 75.15028661 | M310: 13.84933391 | N310: 65.75975054 | O310: 75.89741256 | R310: 12.15188878 | S310: 70.60304624 | T310: 81.34749692 | W310: 11.02593642 | X310: 80.09452614 | Y310: 83.06429514 | AB310: 4.801053208
B311: MICS19 | C311: 2019 | D311: 53.11459155 | E311: 64.82621647 | H311: 14.96208223 | I311: 60.28337083 | J311: 72.59048705 | M311: 12.66644851 | N311: 69.43398363 | O311: 73.90377342 | R311: 8.541058806 | S311: 73.38711221 | T311: 75.50411645 | W311: 7.911586337 | X311: 83.05135385 | Y311: 82.79615243 | AB311: 4.015563732
B318: =CONCATENATE("Rural use of drinking water sources, ",C299,"–",C300) -> Rural use of drinking water sources, 2000–2020 | S318: Data points used for regression

Sheet Sanitation
B4: Summary of trends in use of sanitation facilities by wealth quintile (%)
B5: =IF(ISERROR(INDIRECT(CONCATENATE($B105,"!A2"))),"",INDIRECT(CONCATENATE($B105,"!A2"))) -> Zimbabwe
B7: =B118 -> National use of sanitation facilities, 2000–2020 | J7: =B218 -> Urban use of sanitation facilities, 2000–2020 | R7: =B318 -> Rural use of sanitation facilities, 2000–2020
B31: =IF(ISERROR(INDIRECT(CONCATENATE($B105,"!A2"))),"",INDIRECT(CONCATENATE($B105,"!A2"))) -> Zimbabwe | F31: Poorest | J31: Poor | N31: Middle | R31: Rich | V31: Richest
F32: Basic | G32: Limited | H32: Unimproved | I32: Open defecation | J32: Basic | K32: Limited | L32: Unimproved | M32: Open defecation | N32: Basic | O32: Limited | P32: Unimproved | Q32: Open defecation | R32: Basic | S32: Limited | T32: Unimproved | U32: Open defecation | V32: Basic | W32: Limited | X32: Unimproved | Y32: Open defecation
B33: NATIONAL | D33: Estimate | E33: =C99 -> 2000 | F33: =E99 -> 11.25545041 | G33: =F99 -> 9.130049409 | H33: 5.417821721 | I33: 74.19667846 | J33: =J99 -> 27.48695015 | K33: =K99 -> 14.86764093 | L33: 7.267657201 | M33: 50.37775172 | N33: =O99 -> 45.89462132 | O33: =P99 -> 19.63780078 | P33: 13.1395331 | Q33: 21.3280448 | R33: =T99 -> 42.98325327 | S33: =U99 -> 40.67561269 | T33: 12.56418852 | U33: 3.776945525 | V33: =Y99 -> 63.9382832 | W33: =Z99 -> 34.9449071 | X33: 1.043322512 | Y33: 0.07348718727
E34: =C100 -> 2020 | F34: =E100 -> 11.95304774 | G34: 9.69591731 | H34: 19.20517693 | I34: 59.14585802 | J34: =J100 -> 28.77807257 | K34: 15.56600668 | L34: 16.93506157 | M34: 38.72085917 | N34: =O100 -> 47.98618537 | O34: 20.5327579 | P34: 8.350443222 | Q34: 23.1306135 | R34: =T100 -> 47.68856621 | S34: 45.12831163 | T34: 1.138297888 | U34: 6.044824268 | V34: =Y100 -> 63.88178105 | W34: 34.91402635 | X34: 0.9754970022 | Y34: 0.2286955995
B36: URBAN | D36: Estimate | E36: =C199 -> 2000 | F36: =E199 -> 35.15884611 | G36: =F199 -> 54.17782184 | H36: 7.909532103 | I36: 2.753799946 | J36: =J199 -> 39.46534298 | K36: =K199 -> 58.65481384 | L36: 1.75684262 | M36: 0.1230005549 | N36: =O199 -> 49.51624486 | O36: =P199 -> 48.79325915 | P36: 1.550698758 | Q36: 0.1397972337 | R36: =T199 -> 60.72756679 | S36: =U199 -> 38.60253999 | T36: 0.5317158384 | U36: 0.138177388 | V36: =Y199 -> 78.96972043 | W36: =Z199 -> 20.34104052 | X36: 0.5248866641 | Y36: 0.164352381
E37: =C200 -> 2020 | F37: =E200 -> 35.51575276 | G37: 54.72779508 | H37: 5.640805526 | I37: 4.115646634 | J37: =J200 -> 39.39353231 | K37: 58.54808624 | L37: 1.695446175 | M37: 0.3629352814 | N37: =O200 -> 49.78078018 | O37: 49.05393199 | P37: 0.8204002308 | Q37: 0.3448875989 | R37: =T200 -> 60.5208319 | S37: 38.47112534 | T37: 0.8359837089 | U37: 0.1720590441 | V37: =Y200 -> 78.7085574 | W37: 20.27377009 | X37: 0.9127857341 | Y37: 0.104886777
B39: RURAL | D39: Estimate | E39: =C299 -> 2000 | F39: =E299 -> 8.487379141 | G39: =F299 -> 7.844352073 | H39: 4.947958284 | I39: 78.7203105 | J39: =J299 -> 18.76785912 | K39: =K299 -> 11.3528983 | L39: 6.152039084 | M39: 63.7272035 | N39: =O299 -> 32.33740867 | O39: =P299 -> 16.93892999 | P39: 7.935902523 | Q39: 42.78775882 | R39: =T299 -> 45.53775428 | S39: =U299 -> 18.57978093 | T39: 11.8136817 | U39: 24.0687831 | V39: =Y299 -> 53.72861606 | W39: =Z299 -> 20.40582383 | X39: 14.86276723 | Y39: 11.00279288
E40: =C300 -> 2020 | F40: =E300 -> 10.4785427 | G40: 9.684659628 | H40: 18.33909047 | I40: 61.49770721 | J40: =J300 -> 19.79451607 | K40: 11.97393514 | L40: 19.95617442 | M40: 48.27537436 | N40: =O300 -> 33.35602812 | O40: 17.47250161 | P40: 15.33047892 | Q40: 33.84099135 | R40: =T300 -> 48.01834666 | S40: 19.59188317 | T40: 9.339690758 | U40: 23.05007942 | V40: =Y300 -> 62.79361357 | W40: 23.84865851 | X40: 2.239240156 | Y40: 11.11848777
A97: NATIONAL | D97: Poorest | I97: Poor | N97: Middle | S97: Rich | X97: Richest
D98: Improved | E98: Basic | F98: Limited | G98: Unimproved | H98: Open defecation | I98: Improved | J98: Basic | K98: Limited | L98: Unimproved | M98: Open defecation | N98: Improved | O98: Basic | P98: Limited | Q98: Unimproved | R98: Open defecation | S98: Improved | T98: Basic | U98: Limited | V98: Unimproved | W98: Open defecation | X98: Improved | Y98: Basic | Z98: Limited | AA98: Unimproved | AB98: Open defecation
A99: Forecast period: | C99: 2000 | D99: =IF((D101+H101)>100,D101*100/(D101+H101),D101) -> 20.38549982 | E99: =D99*AVERAGEIF(E105:E116,">0")/100 -> 11.25545041 | F99: =D99*(100-AVERAGEIF(E105:E116,">0"))/100 -> 9.130049409 | G99: =100-(E99+F99+H99) -> 5.417821721 | H99: =IF((D101+H101)>100,H101*100/(D101+H101),H101) -> 74.19667846 | I99: =IF((I101+M101)>100,I101*100/(I101+M101),I101) -> 42.35459108 | J99: =I99*AVERAGEIF(J105:J116,">0")/100 -> 27.48695015 | K99: =I99*(100-AVERAGEIF(J105:J116,">0"))/100 -> 14.86764093 | L99: =100-(J99+K99+M99) -> 7.267657201 | M99: =IF((I101+M101)>100,M101*100/(I101+M101),M101) -> 50.37775172 | N99: =IF((N101+R101)>100,N101*100/(N101+R101),N101) -> 65.5324221 | O99: =N99*AVERAGEIF(O105:O116,">0")/100 -> 45.89462132 | P99: =N99*(100-AVERAGEIF(O105:O116,">0"))/100 -> 19.63780078 | Q99: =100-(O99+P99+R99) -> 13.1395331 | R99: =IF((N101+R101)>100,R101*100/(N101+R101),R101) -> 21.3280448 | S99: =IF((S101+W101)>100,S101*100/(S101+W101),S101) -> 83.65886596 | T99: =S99*AVERAGEIF(T105:T116,">0")/100 -> 42.98325327 | U99: =S99*(100-AVERAGEIF(T105:T116,">0"))/100 -> 40.67561269 | V99: =100-(T99+U99+W99) -> 12.56418852 | W99: =IF((S101+W101)>100,W101*100/(S101+W101),W101) -> 3.776945525 | X99: =IF((X101+AB101)>100,X101*100/(X101+AB101),X101) -> 98.8831903 | Y99: =X99*AVERAGEIF(Y105:Y116,">0")/100 -> 63.9382832 | Z99: =X99*(100-AVERAGEIF(Y105:Y116,">0"))/100 -> 34.9449071 | AA99: =100-(Y99+Z99+AB99) -> 1.043322512 | AB99: =IF((X101+AB101)>100,AB101*100/(X101+AB101),AB101) -> 0.07348718727
C100: 2020 | D100: =IF((D102+H102)>100,D102*100/(D102+H102),D102) -> 21.64896505 | E100: =D100*AVERAGEIF(E105:E116,">0")/100 -> 11.95304774 | F100: =D100*(100-AVERAGEIF(E105:E116,">0"))/100 -> 9.69591731 | G100: =100-(E100+F100+H100) -> 19.20517693 | H100: =IF((D102+H102)>100,H102*100/(D102+H102),H102) -> 59.14585802 | I100: =IF((I102+M102)>100,I102*100/(I102+M102),I102) -> 44.34407926 | J100: =I100*AVERAGEIF(J105:J116,">0")/100 -> 28.77807257 | K100: =I100*(100-AVERAGEIF(J105:J116,">0"))/100 -> 15.56600668 | L100: =100-(J100+K100+M100) -> 16.93506157 | M100: =IF((I102+M102)>100,M102*100/(I102+M102),M102) -> 38.72085917 | N100: =IF((N102+R102)>100,N102*100/(N102+R102),N102) -> 68.51894328 | O100: =N100*AVERAGEIF(O105:O116,">0")/100 -> 47.98618537 | P100: =N100*(100-AVERAGEIF(O105:O116,">0"))/100 -> 20.5327579 | Q100: =100-(O100+P100+R100) -> 8.350443222 | R100: =IF((N102+R102)>100,R102*100/(N102+R102),R102) -> 23.1306135 | S100: =IF((S102+W102)>100,S102*100/(S102+W102),S102) -> 92.81687784 | T100: =S100*AVERAGEIF(T105:T116,">0")/100 -> 47.68856621 | U100: =S100*(100-AVERAGEIF(T105:T116,">0"))/100 -> 45.12831163 | V100: =100-(T100+U100+W100) -> 1.138297888 | W100: =IF((S102+W102)>100,W102*100/(S102+W102),W102) -> 6.044824268 | X100: =IF((X102+AB102)>100,X102*100/(X102+AB102),X102) -> 98.7958074 | Y100: =X100*AVERAGEIF(Y105:Y116,">0")/100 -> 63.88178105 | Z100: =X100*(100-AVERAGEIF(Y105:Y116,">0"))/100 -> 34.91402635 | AA100: =100-(Y100+Z100+AB100) -> 0.9754970022 | AB100: =IF((X102+AB102)>100,AB102*100/(X102+AB102),AB102) -> 0.2286955995
A101: Regression period: | C101: =MinRegYear(C99,C105:C116) -> 2001 | D101: =IF(MAX(C105:C116)-MIN(C105:C116)<5,AVERAGEIF(C105:C116,">0",D105:D116), IF(FORECAST($C101,D$105:D$116,$C$105:$C$116)<0,0, IF(FORECAST($C101,D$105:D$116,$C$105:$C$116)>100,100, FORECAST($C101,D$105:D$116,$C$105:$C$116)))) -> 20.38549982 | H101: =IF(MAX(C105:C116)-MIN(C105:C116)<5,AVERAGEIF(C105:C116,">0",H105:H116), IF(FORECAST($C101,H$105:H$116,$C$105:$C$116)<0,0, IF(FORECAST($C101,H$105:H$116,$C$105:$C$116)>100,100, FORECAST($C101,H$105:H$116,$C$105:$C$116)))) -> 74.19667846 | I101: =IF(MAX(C105:C116)-MIN(C105:C116)<5,AVERAGEIF(C105:C116,">0",I105:I116), IF(FORECAST($C101,I$105:I$116,$C$105:$C$116)<0,0, IF(FORECAST($C101,I$105:I$116,$C$105:$C$116)>100,100, FORECAST($C101,I$105:I$116,$C$105:$C$116)))) -> 42.35459108 | M101: =IF(MAX(C105:C116)-MIN(C105:C116)<5,AVERAGEIF(C105:C116,">0",M105:M116), IF(FORECAST($C101,M$105:M$116,$C$105:$C$116)<0,0, IF(FORECAST($C101,M$105:M$116,$C$105:$C$116)>100,100, FORECAST($C101,M$105:M$116,$C$105:$C$116)))) -> 50.37775172 | N101: =IF(MAX(C105:C116)-MIN(C105:C116)<5,AVERAGEIF(C105:C116,">0",N105:N116), IF(FORECAST($C101,N$105:N$116,$C$105:$C$116)<0,0, IF(FORECAST($C101,N$105:N$116,$C$105:$C$116)>100,100, FORECAST($C101,N$105:N$116,$C$105:$C$116)))) -> 65.5324221 | R101: =IF(MAX(C105:C116)-MIN(C105:C116)<5,AVERAGEIF(C105:C116,">0",R105:R116), IF(FORECAST($C101,R$105:R$116,$C$105:$C$116)<0,0, IF(FORECAST($C101,R$105:R$116,$C$105:$C$116)>100,100, FORECAST($C101,R$105:R$116,$C$105:$C$116)))) -> 21.3280448 | S101: =IF(MAX(C105:C116)-MIN(C105:C116)<5,AVERAGEIF(C105:C116,">0",S105:S116), IF(FORECAST($C101,S$105:S$116,$C$105:$C$116)<0,0, IF(FORECAST($C101,S$105:S$116,$C$105:$C$116)>100,100, FORECAST($C101,S$105:S$116,$C$105:$C$116)))) -> 83.65886596 | W101: =IF(MAX(C105:C116)-MIN(C105:C116)<5,AVERAGEIF(C105:C116,">0",W105:W116), IF(FORECAST($C101,W$105:W$116,$C$105:$C$116)<0,0, IF(FORECAST($C101,W$105:W$116,$C$105:$C$116)>100,100, FORECAST($C101,W$105:W$116,$C$105:$C$116)))) -> 3.776945525 | X101: =IF(MAX(C105:C116)-MIN(C105:C116)<5,AVERAGEIF(C105:C116,">0",X105:X116), IF(FORECAST($C101,X$105:X$116,$C$105:$C$116)<0,0, IF(FORECAST($C101,X$105:X$116,$C$105:$C$116)>100,100, FORECAST($C101,X$105:X$116,$C$105:$C$116)))) -> 98.8831903 | AB101: =IF(MAX(C105:C116)-MIN(C105:C116)<5,AVERAGEIF(C105:C116,">0",AB105:AB116), IF(FORECAST($C101,AB$105:AB$116,$C$105:$C$116)<0,0, IF(FORECAST($C101,AB$105:AB$116,$C$105:$C$116)>100,100, FORECAST($C101,AB$105:AB$116,$C$105:$C$116)))) -> 0.07348718727
C102: =MaxRegYear(C100,C105:C116) -> 2020 | D102: =IF(MAX(C105:C116)-MIN(C105:C116)<5,AVERAGEIF(C105:C116,">0",D105:D116), IF(FORECAST($C102,D$105:D$116,$C$105:$C$116)<0,0, IF(FORECAST($C102,D$105:D$116,$C$105:$C$116)>100,100, FORECAST($C102,D$105:D$116,$C$105:$C$116)))) -> 21.64896505 | H102: =IF(MAX(C105:C116)-MIN(C105:C116)<5,AVERAGEIF(C105:C116,">0",H105:H116), IF(FORECAST($C102,H$105:H$116,$C$105:$C$116)<0,0, IF(FORECAST($C102,H$105:H$116,$C$105:$C$116)>100,100, FORECAST($C102,H$105:H$116,$C$105:$C$116)))) -> 59.14585802 | I102: =IF(MAX(C105:C116)-MIN(C105:C116)<5,AVERAGEIF(C105:C116,">0",I105:I116), IF(FORECAST($C102,I$105:I$116,$C$105:$C$116)<0,0, IF(FORECAST($C102,I$105:I$116,$C$105:$C$116)>100,100, FORECAST($C102,I$105:I$116,$C$105:$C$116)))) -> 44.34407926 | M102: =IF(MAX(C105:C116)-MIN(C105:C116)<5,AVERAGEIF(C105:C116,">0",M105:M116), IF(FORECAST($C102,M$105:M$116,$C$105:$C$116)<0,0, IF(FORECAST($C102,M$105:M$116,$C$105:$C$116)>100,100, FORECAST($C102,M$105:M$116,$C$105:$C$116)))) -> 38.72085917 | N102: =IF(MAX(C105:C116)-MIN(C105:C116)<5,AVERAGEIF(C105:C116,">0",N105:N116), IF(FORECAST($C102,N$105:N$116,$C$105:$C$116)<0,0, IF(FORECAST($C102,N$105:N$116,$C$105:$C$116)>100,100, FORECAST($C102,N$105:N$116,$C$105:$C$116)))) -> 68.51894328 | R102: =IF(MAX(C105:C116)-MIN(C105:C116)<5,AVERAGEIF(C105:C116,">0",R105:R116), IF(FORECAST($C102,R$105:R$116,$C$105:$C$116)<0,0, IF(FORECAST($C102,R$105:R$116,$C$105:$C$116)>100,100, FORECAST($C102,R$105:R$116,$C$105:$C$116)))) -> 23.1306135 | S102: =IF(MAX(C105:C116)-MIN(C105:C116)<5,AVERAGEIF(C105:C116,">0",S105:S116), IF(FORECAST($C102,S$105:S$116,$C$105:$C$116)<0,0, IF(FORECAST($C102,S$105:S$116,$C$105:$C$116)>100,100, FORECAST($C102,S$105:S$116,$C$105:$C$116)))) -> 92.81687784 | W102: =IF(MAX(C105:C116)-MIN(C105:C116)<5,AVERAGEIF(C105:C116,">0",W105:W116), IF(FORECAST($C102,W$105:W$116,$C$105:$C$116)<0,0, IF(FORECAST($C102,W$105:W$116,$C$105:$C$116)>100,100, FORECAST($C102,W$105:W$116,$C$105:$C$116)))) -> 6.044824268 | X102: =IF(MAX(C105:C116)-MIN(C105:C116)<5,AVERAGEIF(C105:C116,">0",X105:X116), IF(FORECAST($C102,X$105:X$116,$C$105:$C$116)<0,0, IF(FORECAST($C102,X$105:X$116,$C$105:$C$116)>100,100, FORECAST($C102,X$105:X$116,$C$105:$C$116)))) -> 98.7958074 | AB102: =IF(MAX(C105:C116)-MIN(C105:C116)<5,AVERAGEIF(C105:C116,">0",AB105:AB116), IF(FORECAST($C102,AB$105:AB$116,$C$105:$C$116)<0,0, IF(FORECAST($C102,AB$105:AB$116,$C$105:$C$116)>100,100, FORECAST($C102,AB$105:AB$116,$C$105:$C$116)))) -> 0.2286955995
B104: Survey | C104: Year | D104: Improved | E104: Not shared | H104: Open defecation | I104: Improved | J104: Not shared | M104: Open defecation | N104: Improved | O104: Not shared | R104: Open defecation | S104: Improved | T104: Not shared | W104: Open defecation | X104: Improved | Y104: Not shared | AB104: Open defecation
B105: WHS03 | C105: 2003 | D105: =IF(ISERROR(INDIRECT(CONCATENATE($B105,"!C122"))),"",INDIRECT(CONCATENATE($B105,"!C122"))) -> 30.35238044 | E105: =IF(ISERROR(INDIRECT(CONCATENATE($B105,"!C129"))),"",INDIRECT(CONCATENATE($B105,"!C129"))) -> 71.49579429 | H105: =IF(ISERROR(INDIRECT(CONCATENATE($B105,"!C127"))),"",INDIRECT(CONCATENATE($B105,"!C127"))) -> 62.46170417 | I105: =IF(ISERROR(INDIRECT(CONCATENATE($B105,"!D122"))),"",INDIRECT(CONCATENATE($B105,"!D122"))) -> 56.38457227 | J105: =IF(ISERROR(INDIRECT(CONCATENATE($B105,"!D129"))),"",INDIRECT(CONCATENATE($B105,"!D129"))) -> 85.28638914 | M105: =IF(ISERROR(INDIRECT(CONCATENATE($B105,"!D127"))),"",INDIRECT(CONCATENATE($B105,"!D127"))) -> 37.36688214 | N105: =IF(ISERROR(INDIRECT(CONCATENATE($B105,"!E122"))),"",INDIRECT(CONCATENATE($B105,"!E122"))) -> 67.7612425 | O105: =IF(ISERROR(INDIRECT(CONCATENATE($B105,"!E129"))),"",INDIRECT(CONCATENATE($B105,"!E129"))) -> 84.28618117 | R105: =IF(ISERROR(INDIRECT(CONCATENATE($B105,"!E127"))),"",INDIRECT(CONCATENATE($B105,"!E127"))) -> 13.40516019 | S105: =IF(ISERROR(INDIRECT(CONCATENATE($B105,"!F122"))),"",INDIRECT(CONCATENATE($B105,"!F122"))) -> 80.21556787 | T105: =IF(ISERROR(INDIRECT(CONCATENATE($B105,"!F129"))),"",INDIRECT(CONCATENATE($B105,"!F129"))) -> 61.78545423 | W105: =IF(ISERROR(INDIRECT(CONCATENATE($B105,"!F127"))),"",INDIRECT(CONCATENATE($B105,"!F127"))) -> 1.363494173 | X105: =IF(ISERROR(INDIRECT(CONCATENATE($B105,"!G122"))),"",INDIRECT(CONCATENATE($B105,"!G122"))) -> 98.88763878 | Y105: =IF(ISERROR(INDIRECT(CONCATENATE($B105,"!G129"))),"",INDIRECT(CONCATENATE($B105,"!G129"))) -> 73.37360387 | AB105: =IF(ISERROR(INDIRECT(CONCATENATE($B105,"!G2127"))),"",INDIRECT(CONCATENATE($B105,"!G127"))) -> 0
B106: DHS06 | C106: 2006 | D106: 14.17235565 | E106: 64.7444445 | H106: 76.76275837 | I106: 34.84439284 | J106: 66.26939363 | M106: 53.69592453 | N106: 69.16923354 | O106: 68.78721583 | R106: 24.28558511 | S106: 92.60250357 | T106: 58.62206063 | W106: 4.067645788 | X106: 99.60990289 | Y106: 77.92529903 | AB106: 0
B107: MICS09 | C107: 2009 | D107: 16.33837459 | E107: 49.32466979 | H107: 73.74435612 | I107: 34.76240575 | J107: 55.9373798 | M107: 54.14725829 | N107: 63.06893585 | O107: 62.36480653 | R107: 29.12521867 | S107: 89.13830194 | T107: 45.11578176 | W107: 7.334155718 | X107: 99.09538662 | Y107: 61.49616934 | AB107: 0.06587192064
B108: DHS11 | C108: 2011 | D108: 18.99493141 | E108: 58.65227159 | H108: 65.96562737 | I108: 41.19051458 | J108: 64.99482549 | M108: 44.28016317 | N108: 65.3177494 | O108: 67.00820778 | R108: 23.51668574 | S108: 86.25706616 | T108: 50.45042861 | W108: 6.123360665 | X108: 97.67962256 | Y108: 64.34310135 | AB108: 0.5336880877
B109: MICS14 | C109: 2014 | D109: 16.82583985 | E109: 51.03063893 | H109: 73.20911333 | I109: 38.59706529 | J109: 62.37489881 | M109: 49.79747175 | N109: 65.55023274 | O109: 68.19926095 | R109: 27.29125051 | S109: 88.51943807 | T109: 45.09274651 | W109: 8.083284975 | X109: 99.26185747 | Y109: 57.96001518 | AB109: 0.3282060215
B110: DHS15 | C110: 2015 | D110: 24.3432978 | E110: 46.03649189 | H110: 56.76615239 | I110: 46.54342011 | J110: 62.82230414 | M110: 37.15622659 | N110: 66.21731429 | O110: 72.77302561 | R110: 21.04876102 | S110: 88.94358966 | T110: 56.41815331 | W110: 4.796907706 | X110: 97.47227624 | Y110: 63.00030527 | AB110: 0.1584647471
B111: MICS19 | C111: 2019 | D111: 26.3261909 | E111: 45.20683991 | H111: 55.01664639 | I111: 51.48946001 | J111: 56.59531586 | M111: 33.25388932 | N111: 72.64521915 | O111: 66.81550826 | R111: 17.26469494 | S111: 93.67563822 | T111: 42.16975164 | W111: 3.02511239 | X111: 99.85371055 | Y111: 54.52442501 | AB111: 0
B118: =CONCATENATE("National use of sanitation facilities, ",C99,"–",C100) -> National use of sanitation facilities, 2000–2020 | S118: Data points used for regression
A197: URBAN | D197: Poorest | I197: Poor | N197: Middle | S197: Rich | X197: Richest
D198: Improved | E198: Basic | F198: Limited | G198: Unimproved | H198: Open defecation | I198: Improved | J198: Basic | K198: Limited | L198: Unimproved | M198: Open defecation | N198: Improved | O198: Basic | P198: Limited | Q198: Unimproved | R198: Open defecation | S198: Improved | T198: Basic | U198: Limited | V198: Unimproved | W198: Open defecation | X198: Improved | Y198: Basic | Z198: Limited | AA198: Unimproved | AB198: Open defecation
A199: Forecast period: | C199: =MinBase(C205:C216) -> 2000 | D199: =IF((D201+H201)>100,D201*100/(D201+H201),D201) -> 89.33666795 | E199: =D199*AVERAGEIF(E205:E216,">0")/100 -> 35.15884611 | F199: =D199*(100-AVERAGEIF(E205:E216,">0"))/100 -> 54.17782184 | G199: =100-(E199+F199+H199) -> 7.909532103 | H199: =IF((D201+H201)>100,H201*100/(D201+H201),H201) -> 2.753799946 | I199: =IF((I201+M201)>100,I201*100/(I201+M201),I201) -> 98.12015682 | J199: =I199*AVERAGEIF(J205:J216,">0")/100 -> 39.46534298 | K199: =I199*(100-AVERAGEIF(J205:J216,">0"))/100 -> 58.65481384 | L199: =100-(J199+K199+M199) -> 1.75684262 | M199: =IF((I201+M201)>100,M201*100/(I201+M201),M201) -> 0.1230005549 | N199: =IF((N201+R201)>100,N201*100/(N201+R201),N201) -> 98.30950401 | O199: =N199*AVERAGEIF(O205:O216,">0")/100 -> 49.51624486 | P199: =N199*(100-AVERAGEIF(O205:O216,">0"))/100 -> 48.79325915 | Q199: =100-(O199+P199+R199) -> 1.550698758 | R199: =IF((N201+R201)>100,R201*100/(N201+R201),R201) -> 0.1397972337 | S199: =IF((S201+W201)>100,S201*100/(S201+W201),S201) -> 99.33010677 | T199: =S199*AVERAGEIF(T205:T216,">0")/100 -> 60.72756679 | U199: =S199*(100-AVERAGEIF(T205:T216,">0"))/100 -> 38.60253999 | V199: =100-(T199+U199+W199) -> 0.5317158384 | W199: =IF((S201+W201)>100,W201*100/(S201+W201),W201) -> 0.138177388 | X199: =IF((X201+AB201)>100,X201*100/(X201+AB201),X201) -> 99.31076095 | Y199: =X199*AVERAGEIF(Y205:Y216,">0")/100 -> 78.96972043 | Z199: =X199*(100-AVERAGEIF(Y205:Y216,">0"))/100 -> 20.34104052 | AA199: =100-(Y199+Z199+AB199) -> 0.5248866641 | AB199: =IF((X201+AB201)>100,AB201*100/(X201+AB201),AB201) -> 0.164352381
C200: =MaxTarget(C205:C216) -> 2020 | D200: =IF((D202+H202)>100,D202*100/(D202+H202),D202) -> 90.24354784 | E200: =D200*AVERAGEIF(E205:E216,">0")/100 -> 35.51575276 | F200: =D200*(100-AVERAGEIF(E205:E216,">0"))/100 -> 54.72779508 | G200: =100-(E200+F200+H200) -> 5.640805526 | H200: =IF((D202+H202)>100,H202*100/(D202+H202),H202) -> 4.115646634 | I200: =IF((I202+M202)>100,I202*100/(I202+M202),I202) -> 97.94161854 | J200: =I200*AVERAGEIF(J205:J216,">0")/100 -> 39.39353231 | K200: =I200*(100-AVERAGEIF(J205:J216,">0"))/100 -> 58.54808624 | L200: =100-(J200+K200+M200) -> 1.695446175 | M200: =IF((I202+M202)>100,M202*100/(I202+M202),M202) -> 0.3629352814 | N200: =IF((N202+R202)>100,N202*100/(N202+R202),N202) -> 98.83471217 | O200: =N200*AVERAGEIF(O205:O216,">0")/100 -> 49.78078018 | P200: =N200*(100-AVERAGEIF(O205:O216,">0"))/100 -> 49.05393199 | Q200: =100-(O200+P200+R200) -> 0.8204002308 | R200: =IF((N202+R202)>100,R202*100/(N202+R202),R202) -> 0.3448875989 | S200: =IF((S202+W202)>100,S202*100/(S202+W202),S202) -> 98.99195725 | T200: =S200*AVERAGEIF(T205:T216,">0")/100 -> 60.5208319 | U200: =S200*(100-AVERAGEIF(T205:T216,">0"))/100 -> 38.47112534 | V200: =100-(T200+U200+W200) -> 0.8359837089 | W200: =IF((S202+W202)>100,W202*100/(S202+W202),W202) -> 0.1720590441 | X200: =IF((X202+AB202)>100,X202*100/(X202+AB202),X202) -> 98.98232749 | Y200: =X200*AVERAGEIF(Y205:Y216,">0")/100 -> 78.7085574 | Z200: =X200*(100-AVERAGEIF(Y205:Y216,">0"))/100 -> 20.27377009 | AA200: =100-(Y200+Z200+AB200) -> 0.9127857341 | AB200: =IF((X202+AB202)>100,AB202*100/(X202+AB202),AB202) -> 0.104886777
A201: Regression period: | C201: =MinRegYear(C199,C205:C216) -> 2004 | D201: =IF(MAX(C205:C216)-MIN(C205:C216)<5,AVERAGEIF(C205:C216,">0",D205:D216), IF(FORECAST($C201,D$205:D$216,$C$205:$C$216)<0,0, IF(FORECAST($C201,D$205:D$216,$C$205:$C$216)>100,100, FORECAST($C201,D$205:D$216,$C$205:$C$216)))) -> 89.33666795 | H201: =IF(MAX(C205:C216)-MIN(C205:C216)<5,AVERAGEIF(C205:C216,">0",H205:H216), IF(FORECAST($C201,H$205:H$216,$C$205:$C$216)<0,0, IF(FORECAST($C201,H$205:H$216,$C$205:$C$216)>100,100, FORECAST($C201,H$205:H$216,$C$205:$C$216)))) -> 2.753799946 | I201: =IF(MAX(C205:C216)-MIN(C205:C216)<5,AVERAGEIF(C205:C216,">0",I205:I216), IF(FORECAST($C201,I$205:I$216,$C$205:$C$216)<0,0, IF(FORECAST($C201,I$205:I$216,$C$205:$C$216)>100,100, FORECAST($C201,I$205:I$216,$C$205:$C$216)))) -> 98.12015682 | M201: =IF(MAX(C205:C216)-MIN(C205:C216)<5,AVERAGEIF(C205:C216,">0",M205:M216), IF(FORECAST($C201,M$205:M$216,$C$205:$C$216)<0,0, IF(FORECAST($C201,M$205:M$216,$C$205:$C$216)>100,100, FORECAST($C201,M$205:M$216,$C$205:$C$216)))) -> 0.1230005549 | N201: =IF(MAX(C205:C216)-MIN(C205:C216)<5,AVERAGEIF(C205:C216,">0",N205:N216), IF(FORECAST($C201,N$205:N$216,$C$205:$C$216)<0,0, IF(FORECAST($C201,N$205:N$216,$C$205:$C$216)>100,100, FORECAST($C201,N$205:N$216,$C$205:$C$216)))) -> 98.30950401 | R201: =IF(MAX(C205:C216)-MIN(C205:C216)<5,AVERAGEIF(C205:C216,">0",R205:R216), IF(FORECAST($C201,R$205:R$216,$C$205:$C$216)<0,0, IF(FORECAST($C201,R$205:R$216,$C$205:$C$216)>100,100, FORECAST($C201,R$205:R$216,$C$205:$C$216)))) -> 0.1397972337 | S201: =IF(MAX(C205:C216)-MIN(C205:C216)<5,AVERAGEIF(C205:C216,">0",S205:S216), IF(FORECAST($C201,S$205:S$216,$C$205:$C$216)<0,0, IF(FORECAST($C201,S$205:S$216,$C$205:$C$216)>100,100, FORECAST($C201,S$205:S$216,$C$205:$C$216)))) -> 99.33010677 | W201: =IF(MAX(C205:C216)-MIN(C205:C216)<5,AVERAGEIF(C205:C216,">0",W205:W216), IF(FORECAST($C201,W$205:W$216,$C$205:$C$216)<0,0, IF(FORECAST($C201,W$205:W$216,$C$205:$C$216)>100,100, FORECAST($C201,W$205:W$216,$C$205:$C$216)))) -> 0.138177388 | X201: =IF(MAX(C205:C216)-MIN(C205:C216)<5,AVERAGEIF(C205:C216,">0",X205:X216), IF(FORECAST($C201,X$205:X$216,$C$205:$C$216)<0,0, IF(FORECAST($C201,X$205:X$216,$C$205:$C$216)>100,100, FORECAST($C201,X$205:X$216,$C$205:$C$216)))) -> 99.31076095 | AB201: =IF(MAX(C205:C216)-MIN(C205:C216)<5,AVERAGEIF(C205:C216,">0",AB205:AB216), IF(FORECAST($C201,AB$205:AB$216,$C$205:$C$216)<0,0, IF(FORECAST($C201,AB$205:AB$216,$C$205:$C$216)>100,100, FORECAST($C201,AB$205:AB$216,$C$205:$C$216)))) -> 0.164352381
C202: =MaxRegYear(C200,C205:C216) -> 2020 | D202: =IF(MAX(C205:C216)-MIN(C205:C216)<5,AVERAGEIF(C205:C216,">0",D205:D216), IF(FORECAST($C202,D$205:D$216,$C$205:$C$216)<0,0, IF(FORECAST($C202,D$205:D$216,$C$205:$C$216)>100,100, FORECAST($C202,D$205:D$216,$C$205:$C$216)))) -> 90.24354784 | H202: =IF(MAX(C205:C216)-MIN(C205:C216)<5,AVERAGEIF(C205:C216,">0",H205:H216), IF(FORECAST($C202,H$205:H$216,$C$205:$C$216)<0,0, IF(FORECAST($C202,H$205:H$216,$C$205:$C$216)>100,100, FORECAST($C202,H$205:H$216,$C$205:$C$216)))) -> 4.115646634 | I202: =IF(MAX(C205:C216)-MIN(C205:C216)<5,AVERAGEIF(C205:C216,">0",I205:I216), IF(FORECAST($C202,I$205:I$216,$C$205:$C$216)<0,0, IF(FORECAST($C202,I$205:I$216,$C$205:$C$216)>100,100, FORECAST($C202,I$205:I$216,$C$205:$C$216)))) -> 97.94161854 | M202: =IF(MAX(C205:C216)-MIN(C205:C216)<5,AVERAGEIF(C205:C216,">0",M205:M216), IF(FORECAST($C202,M$205:M$216,$C$205:$C$216)<0,0, IF(FORECAST($C202,M$205:M$216,$C$205:$C$216)>100,100, FORECAST($C202,M$205:M$216,$C$205:$C$216)))) -> 0.3629352814 | N202: =IF(MAX(C205:C216)-MIN(C205:C216)<5,AVERAGEIF(C205:C216,">0",N205:N216), IF(FORECAST($C202,N$205:N$216,$C$205:$C$216)<0,0, IF(FORECAST($C202,N$205:N$216,$C$205:$C$216)>100,100, FORECAST($C202,N$205:N$216,$C$205:$C$216)))) -> 98.83471217 | R202: =IF(MAX(C205:C216)-MIN(C205:C216)<5,AVERAGEIF(C205:C216,">0",R205:R216), IF(FORECAST($C202,R$205:R$216,$C$205:$C$216)<0,0, IF(FORECAST($C202,R$205:R$216,$C$205:$C$216)>100,100, FORECAST($C202,R$205:R$216,$C$205:$C$216)))) -> 0.3448875989 | S202: =IF(MAX(C205:C216)-MIN(C205:C216)<5,AVERAGEIF(C205:C216,">0",S205:S216), IF(FORECAST($C202,S$205:S$216,$C$205:$C$216)<0,0, IF(FORECAST($C202,S$205:S$216,$C$205:$C$216)>100,100, FORECAST($C202,S$205:S$216,$C$205:$C$216)))) -> 98.99195725 | W202: =IF(MAX(C205:C216)-MIN(C205:C216)<5,AVERAGEIF(C205:C216,">0",W205:W216), IF(FORECAST($C202,W$205:W$216,$C$205:$C$216)<0,0, IF(FORECAST($C202,W$205:W$216,$C$205:$C$216)>100,100, FORECAST($C202,W$205:W$216,$C$205:$C$216)))) -> 0.1720590441 | X202: =IF(MAX(C205:C216)-MIN(C205:C216)<5,AVERAGEIF(C205:C216,">0",X205:X216), IF(FORECAST($C202,X$205:X$216,$C$205:$C$216)<0,0, IF(FORECAST($C202,X$205:X$216,$C$205:$C$216)>100,100, FORECAST($C202,X$205:X$216,$C$205:$C$216)))) -> 98.98232749 | AB202: =IF(MAX(C205:C216)-MIN(C205:C216)<5,AVERAGEIF(C205:C216,">0",AB205:AB216), IF(FORECAST($C202,AB$205:AB$216,$C$205:$C$216)<0,0, IF(FORECAST($C202,AB$205:AB$216,$C$205:$C$216)>100,100, FORECAST($C202,AB$205:AB$216,$C$205:$C$216)))) -> 0.104886777
B204: Survey | C204: Year | D204: Improved | E204: Not shared | H204: Open defecation | I204: Improved | J204: Not shared | M204: Open defecation | N204: Improved | O204: Not shared | R204: Open defecation | S204: Improved | T204: Not shared | W204: Open defecation | X204: Improved | Y204: Not shared | AB204: Open defecation
B205: WHS03 | D205: =IF(ISERROR(INDIRECT(CONCATENATE($B205,"!H122"))),"",INDIRECT(CONCATENATE($B205,"!H122"))) -> 59.50931039 | E205: =IF(ISERROR(INDIRECT(CONCATENATE($B205,"!H129"))),"",INDIRECT(CONCATENATE($B205,"!H129"))) -> 66.8104793 | H205: =IF(ISERROR(INDIRECT(CONCATENATE($B205,"!H127"))),"",INDIRECT(CONCATENATE($B205,"!H127"))) -> 32.08264847 | I205: =IF(ISERROR(INDIRECT(CONCATENATE($B205,"!I122"))),"",INDIRECT(CONCATENATE($B205,"!I122"))) -> 76.174945 | J205: =IF(ISERROR(INDIRECT(CONCATENATE($B205,"!I129"))),"",INDIRECT(CONCATENATE($B205,"!I129"))) -> 56.2626007 | M205: =IF(ISERROR(INDIRECT(CONCATENATE($B205,"!I127"))),"",INDIRECT(CONCATENATE($B205,"!I127"))) -> 0 | N205: =IF(ISERROR(INDIRECT(CONCATENATE($B205,"!J122"))),"",INDIRECT(CONCATENATE($B205,"!J122"))) -> 92.69547433 | O205: =IF(ISERROR(INDIRECT(CONCATENATE($B205,"!J129"))),"",INDIRECT(CONCATENATE($B205,"!J129"))) -> 57.55072262 | R205: =IF(ISERROR(INDIRECT(CONCATENATE($B205,"!J127"))),"",INDIRECT(CONCATENATE($B205,"!J127"))) -> 0 | S205: =IF(ISERROR(INDIRECT(CONCATENATE($B205,"!K122"))),"",INDIRECT(CONCATENATE($B205,"!K122"))) -> 98.76156729 | T205: =IF(ISERROR(INDIRECT(CONCATENATE($B205,"!K129"))),"",INDIRECT(CONCATENATE($B205,"!K129"))) -> 64.07440644 | W205: =IF(ISERROR(INDIRECT(CONCATENATE($B205,"!K127"))),"",INDIRECT(CONCATENATE($B205,"!K127"))) -> 0 | X205: =IF(ISERROR(INDIRECT(CONCATENATE($B205,"!L122"))),"",INDIRECT(CONCATENATE($B205,"!L122"))) -> 99.76800949 | Y205: =IF(ISERROR(INDIRECT(CONCATENATE($B205,"!L129"))),"",INDIRECT(CONCATENATE($B205,"!L129"))) -> 85.63249184 | AB205: =IF(ISERROR(INDIRECT(CONCATENATE($B205,"!L2127"))),"",INDIRECT(CONCATENATE($B205,"!L127"))) -> 0
B206: DHS06 | C206: 2006 | D206: 93.95012853 | E206: 44.74156822 | H206: 0.4642105488 | I206: 98.49485738 | J206: 53.4888314 | M206: 0 | N206: 99.38894577 | O206: 68.71051664 | R206: 0 | S206: 99.77397858 | T206: 76.16186852 | W206: 0 | X206: 99.81176455 | Y206: 86.91364783 | AB206: 0
B207: MICS09 | C207: 2009 | D207: 91.18704248 | E207: 30.53787757 | H207: 4.860167752 | I207: 99.75219269 | J207: 33.03432988 | M207: 0 | N207: 98.65118574 | O207: 44.10374371 | R207: 0 | S207: 99.43805059 | T207: 59.36970082 | W207: 0 | X207: 99.66133368 | Y207: 75.79476278 | AB207: 0
B208: DHS11 | C208: 2011 | D208: 79.3763512 | E208: 35.6116161 | H208: 6.006588762 | I208: 96.21630346 | J208: 41.51177745 | M208: 0.4441208545 | N208: 96.99217414 | O208: 51.46338606 | R208: 0.3930264315 | S208: 98.60437357 | T208: 53.97812718 | W208: 0.5545651774 | X208: 97.98401899 | Y208: 79.55866984 | AB208: 0.5995173527
B209: MICS14 | C209: 2014 | D209: 92.98671605 | E209: 25.84055162 | H209: 3.486630686 | I209: 98.06959324 | J209: 33.25344948 | M209: 0.8671290359 | N209: 98.37602784 | O209: 44.20580194 | R209: 0.9979218571 | S209: 99.39612109 | T209: 60.60188847 | W209: 0.04763518979 | X209: 99.74782775 | Y209: 75.63675781 | AB209: 0.1349370783
B210: DHS15 | C210: 2015 | D210: 88.27747773 | E210: 38.82567393 | H210: 2.316451031 | I210: 96.06273825 | J210: 39.43023567 | M210: 0.105122048 | N210: 98.35326023 | O210: 53.57749301 | R210: 0.0887425048 | S210: 97.79252187 | T210: 64.79695071 | W210: 0.3327441361 | X210: 97.75343721 | Y210: 75.1806253 | AB210: 0.06582984247
B211: MICS19 | C211: 2019 | D211: 93.07629137 | E211: 33.12037092 | H211: 3.644521797 | I211: 99.5673238 | J211: 24.56887666 | M211: 0.07142741129 | N211: 99.73670584 | O211: 32.96229873 | R211: 0 | S211: 99.91887768 | T211: 48.97689934 | W211: 0 | X211: 99.87982896 | Y211: 77.90756113 | AB211: 0
B218: =CONCATENATE("Urban use of sanitation facilities, ",C199,"–",C200) -> Urban use of sanitation facilities, 2000–2020 | S218: Data points used for regression
A297: RURAL | D297: Poorest | I297: Poor | N297: Middle | S297: Rich | X297: Richest
D298: Improved | E298: Basic | F298: Limited | G298: Unimproved | H298: Open defecation | I298: Improved | J298: Basic | K298: Limited | L298: Unimproved | M298: Open defecation | N298: Improved | O298: Basic | P298: Limited | Q298: Unimproved | R298: Open defecation | S298: Improved | T298: Basic | U298: Limited | V298: Unimproved | W298: Open defecation | X298: Improved | Y298: Basic | Z298: Limited | AA298: Unimproved | AB298: Open defecation
A299: Forecast period: | C299: 2000 | D299: =IF((D301+H301)>100,D301*100/(D301+H301),D301) -> 16.33173121 | E299: =D299*AVERAGEIF(E305:E316,">0")/100 -> 8.487379141 | F299: =D299*(100-AVERAGEIF(E305:E316,">0"))/100 -> 7.844352073 | G299: =100-(E299+F299+H299) -> 4.947958284 | H299: =IF((D301+H301)>100,H301*100/(D301+H301),H301) -> 78.7203105 | I299: =IF((I301+M301)>100,I301*100/(I301+M301),I301) -> 30.12075742 | J299: =I299*AVERAGEIF(J305:J316,">0")/100 -> 18.76785912 | K299: =I299*(100-AVERAGEIF(J305:J316,">0"))/100 -> 11.3528983 | L299: =100-(J299+K299+M299) -> 6.152039084 | M299: =IF((I301+M301)>100,M301*100/(I301+M301),M301) -> 63.7272035 | N299: =IF((N301+R301)>100,N301*100/(N301+R301),N301) -> 49.27633865 | O299: =N299*AVERAGEIF(O305:O316,">0")/100 -> 32.33740867 | P299: =N299*(100-AVERAGEIF(O305:O316,">0"))/100 -> 16.93892999 | Q299: =100-(O299+P299+R299) -> 7.935902523 | R299: =IF((N301+R301)>100,R301*100/(N301+R301),R301) -> 42.78775882 | S299: =IF((S301+W301)>100,S301*100/(S301+W301),S301) -> 64.1175352 | T299: =S299*AVERAGEIF(T305:T316,">0")/100 -> 45.53775428 | U299: =S299*(100-AVERAGEIF(T305:T316,">0"))/100 -> 18.57978093 | V299: =100-(T299+U299+W299) -> 11.8136817 | W299: =IF((S301+W301)>100,W301*100/(S301+W301),W301) -> 24.0687831 | X299: =IF((X301+AB301)>100,X301*100/(X301+AB301),X301) -> 74.13443989 | Y299: =X299*AVERAGEIF(Y305:Y316,">0")/100 -> 53.72861606 | Z299: =X299*(100-AVERAGEIF(Y305:Y316,">0"))/100 -> 20.40582383 | AA299: =100-(Y299+Z299+AB299) -> 14.86276723 | AB299: =IF((X301+AB301)>100,AB301*100/(X301+AB301),AB301) -> 11.00279288
C300: 2020 | D300: =IF((D302+H302)>100,D302*100/(D302+H302),D302) -> 20.16320232 | E300: =D300*AVERAGEIF(E305:E316,">0")/100 -> 10.4785427 | F300: =D300*(100-AVERAGEIF(E305:E316,">0"))/100 -> 9.684659628 | G300: =100-(E300+F300+H300) -> 18.33909047 | H300: =IF((D302+H302)>100,H302*100/(D302+H302),H302) -> 61.49770721 | I300: =IF((I302+M302)>100,I302*100/(I302+M302),I302) -> 31.76845121 | J300: =I300*AVERAGEIF(J305:J316,">0")/100 -> 19.79451607 | K300: =I300*(100-AVERAGEIF(J305:J316,">0"))/100 -> 11.97393514 | L300: =100-(J300+K300+M300) -> 19.95617442 | M300: =IF((I302+M302)>100,M302*100/(I302+M302),M302) -> 48.27537436 | N300: =IF((N302+R302)>100,N302*100/(N302+R302),N302) -> 50.82852973 | O300: =N300*AVERAGEIF(O305:O316,">0")/100 -> 33.35602812 | P300: =N300*(100-AVERAGEIF(O305:O316,">0"))/100 -> 17.47250161 | Q300: =100-(O300+P300+R300) -> 15.33047892 | R300: =IF((N302+R302)>100,R302*100/(N302+R302),R302) -> 33.84099135 | S300: =IF((S302+W302)>100,S302*100/(S302+W302),S302) -> 67.61022983 | T300: =S300*AVERAGEIF(T305:T316,">0")/100 -> 48.01834666 | U300: =S300*(100-AVERAGEIF(T305:T316,">0"))/100 -> 19.59188317 | V300: =100-(T300+U300+W300) -> 9.339690758 | W300: =IF((S302+W302)>100,W302*100/(S302+W302),W302) -> 23.05007942 | X300: =IF((X302+AB302)>100,X302*100/(X302+AB302),X302) -> 86.64227207 | Y300: =X300*AVERAGEIF(Y305:Y316,">0")/100 -> 62.79361357 | Z300: =X300*(100-AVERAGEIF(Y305:Y316,">0"))/100 -> 23.84865851 | AA300: =100-(Y300+Z300+AB300) -> 2.239240156 | AB300: =IF((X302+AB302)>100,AB302*100/(X302+AB302),AB302) -> 11.11848777
A301: Regression period: | C301: =MinRegYear(C299,C305:C316) -> 2001 | D301: =IF(MAX(C305:C316)-MIN(C305:C316)<5,AVERAGEIF(C305:C316,">0",D305:D316), IF(FORECAST($C301,D$305:D$316,$C$305:$C$316)<0,0, IF(FORECAST($C301,D$305:D$316,$C$305:$C$316)>100,100, FORECAST($C301,D$305:D$316,$C$305:$C$316)))) -> 16.33173121 | H301: =IF(MAX(C305:C316)-MIN(C305:C316)<5,AVERAGEIF(C305:C316,">0",H305:H316), IF(FORECAST($C301,H$305:H$316,$C$305:$C$316)<0,0, IF(FORECAST($C301,H$305:H$316,$C$305:$C$316)>100,100, FORECAST($C301,H$305:H$316,$C$305:$C$316)))) -> 78.7203105 | I301: =IF(MAX(C305:C316)-MIN(C305:C316)<5,AVERAGEIF(C305:C316,">0",I305:I316), IF(FORECAST($C301,I$305:I$316,$C$305:$C$316)<0,0, IF(FORECAST($C301,I$305:I$316,$C$305:$C$316)>100,100, FORECAST($C301,I$305:I$316,$C$305:$C$316)))) -> 30.12075742 | M301: =IF(MAX(C305:C316)-MIN(C305:C316)<5,AVERAGEIF(C305:C316,">0",M305:M316), IF(FORECAST($C301,M$305:M$316,$C$305:$C$316)<0,0, IF(FORECAST($C301,M$305:M$316,$C$305:$C$316)>100,100, FORECAST($C301,M$305:M$316,$C$305:$C$316)))) -> 63.7272035 | N301: =IF(MAX(C305:C316)-MIN(C305:C316)<5,AVERAGEIF(C305:C316,">0",N305:N316), IF(FORECAST($C301,N$305:N$316,$C$305:$C$316)<0,0, IF(FORECAST($C301,N$305:N$316,$C$305:$C$316)>100,100, FORECAST($C301,N$305:N$316,$C$305:$C$316)))) -> 49.27633865 | R301: =IF(MAX(C305:C316)-MIN(C305:C316)<5,AVERAGEIF(C305:C316,">0",R305:R316), IF(FORECAST($C301,R$305:R$316,$C$305:$C$316)<0,0, IF(FORECAST($C301,R$305:R$316,$C$305:$C$316)>100,100, FORECAST($C301,R$305:R$316,$C$305:$C$316)))) -> 42.78775882 | S301: =IF(MAX(C305:C316)-MIN(C305:C316)<5,AVERAGEIF(C305:C316,">0",S305:S316), IF(FORECAST($C301,S$305:S$316,$C$305:$C$316)<0,0, IF(FORECAST($C301,S$305:S$316,$C$305:$C$316)>100,100, FORECAST($C301,S$305:S$316,$C$305:$C$316)))) -> 64.1175352 | W301: =IF(MAX(C305:C316)-MIN(C305:C316)<5,AVERAGEIF(C305:C316,">0",W305:W316), IF(FORECAST($C301,W$305:W$316,$C$305:$C$316)<0,0, IF(FORECAST($C301,W$305:W$316,$C$305:$C$316)>100,100, FORECAST($C301,W$305:W$316,$C$305:$C$316)))) -> 24.0687831 | X301: =IF(MAX(C305:C316)-MIN(C305:C316)<5,AVERAGEIF(C305:C316,">0",X305:X316), IF(FORECAST($C301,X$305:X$316,$C$305:$C$316)<0,0, IF(FORECAST($C301,X$305:X$316,$C$305:$C$316)>100,100, FORECAST($C301,X$305:X$316,$C$305:$C$316)))) -> 74.13443989 | AB301: =IF(MAX(C305:C316)-MIN(C305:C316)<5,AVERAGEIF(C305:C316,">0",AB305:AB316), IF(FORECAST($C301,AB$305:AB$316,$C$305:$C$316)<0,0, IF(FORECAST($C301,AB$305:AB$316,$C$305:$C$316)>100,100, FORECAST($C301,AB$305:AB$316,$C$305:$C$316)))) -> 11.00279288
C302: =MaxRegYear(C300,C305:C316) -> 2020 | D302: =IF(MAX(C305:C316)-MIN(C305:C316)<5,AVERAGEIF(C305:C316,">0",D305:D316), IF(FORECAST($C302,D$305:D$316,$C$305:$C$316)<0,0, IF(FORECAST($C302,D$305:D$316,$C$305:$C$316)>100,100, FORECAST($C302,D$305:D$316,$C$305:$C$316)))) -> 20.16320232 | H302: =IF(MAX(C305:C316)-MIN(C305:C316)<5,AVERAGEIF(C305:C316,">0",H305:H316), IF(FORECAST($C302,H$305:H$316,$C$305:$C$316)<0,0, IF(FORECAST($C302,H$305:H$316,$C$305:$C$316)>100,100, FORECAST($C302,H$305:H$316,$C$305:$C$316)))) -> 61.49770721 | I302: =IF(MAX(C305:C316)-MIN(C305:C316)<5,AVERAGEIF(C305:C316,">0",I305:I316), IF(FORECAST($C302,I$305:I$316,$C$305:$C$316)<0,0, IF(FORECAST($C302,I$305:I$316,$C$305:$C$316)>100,100, FORECAST($C302,I$305:I$316,$C$305:$C$316)))) -> 31.76845121 | M302: =IF(MAX(C305:C316)-MIN(C305:C316)<5,AVERAGEIF(C305:C316,">0",M305:M316), IF(FORECAST($C302,M$305:M$316,$C$305:$C$316)<0,0, IF(FORECAST($C302,M$305:M$316,$C$305:$C$316)>100,100, FORECAST($C302,M$305:M$316,$C$305:$C$316)))) -> 48.27537436 | N302: =IF(MAX(C305:C316)-MIN(C305:C316)<5,AVERAGEIF(C305:C316,">0",N305:N316), IF(FORECAST($C302,N$305:N$316,$C$305:$C$316)<0,0, IF(FORECAST($C302,N$305:N$316,$C$305:$C$316)>100,100, FORECAST($C302,N$305:N$316,$C$305:$C$316)))) -> 50.82852973 | R302: =IF(MAX(C305:C316)-MIN(C305:C316)<5,AVERAGEIF(C305:C316,">0",R305:R316), IF(FORECAST($C302,R$305:R$316,$C$305:$C$316)<0,0, IF(FORECAST($C302,R$305:R$316,$C$305:$C$316)>100,100, FORECAST($C302,R$305:R$316,$C$305:$C$316)))) -> 33.84099135 | S302: =IF(MAX(C305:C316)-MIN(C305:C316)<5,AVERAGEIF(C305:C316,">0",S305:S316), IF(FORECAST($C302,S$305:S$316,$C$305:$C$316)<0,0, IF(FORECAST($C302,S$305:S$316,$C$305:$C$316)>100,100, FORECAST($C302,S$305:S$316,$C$305:$C$316)))) -> 67.61022983 | W302: =IF(MAX(C305:C316)-MIN(C305:C316)<5,AVERAGEIF(C305:C316,">0",W305:W316), IF(FORECAST($C302,W$305:W$316,$C$305:$C$316)<0,0, IF(FORECAST($C302,W$305:W$316,$C$305:$C$316)>100,100, FORECAST($C302,W$305:W$316,$C$305:$C$316)))) -> 23.05007942 | X302: =IF(MAX(C305:C316)-MIN(C305:C316)<5,AVERAGEIF(C305:C316,">0",X305:X316), IF(FORECAST($C302,X$305:X$316,$C$305:$C$316)<0,0, IF(FORECAST($C302,X$305:X$316,$C$305:$C$316)>100,100, FORECAST($C302,X$305:X$316,$C$305:$C$316)))) -> 86.64227207 | AB302: =IF(MAX(C305:C316)-MIN(C305:C316)<5,AVERAGEIF(C305:C316,">0",AB305:AB316), IF(FORECAST($C302,AB$305:AB$316,$C$305:$C$316)<0,0, IF(FORECAST($C302,AB$305:AB$316,$C$305:$C$316)>100,100, FORECAST($C302,AB$305:AB$316,$C$305:$C$316)))) -> 11.11848777
B304: Survey | C304: Year | D304: Improved | E304: Not shared | H304: Open defecation | I304: Improved | J304: Not shared | M304: Open defecation | N304: Improved | O304: Not shared | R304: Open defecation | S304: Improved | T304: Not shared | W304: Open defecation | X304: Improved | Y304: Not shared | AB304: Open defecation
B305: WHS03 | C305: 2003 | D305: =IF(ISERROR(INDIRECT(CONCATENATE($B305,"!M122"))),"",INDIRECT(CONCATENATE($B305,"!M122"))) -> 24.77810296 | E305: =IF(ISERROR(INDIRECT(CONCATENATE($B305,"!M129"))),"",INDIRECT(CONCATENATE($B305,"!M129"))) -> 68.43828052 | H305: =IF(ISERROR(INDIRECT(CONCATENATE($B305,"!M127"))),"",INDIRECT(CONCATENATE($B305,"!M127"))) -> 68.73267698 | I305: =IF(ISERROR(INDIRECT(CONCATENATE($B305,"!N122"))),"",INDIRECT(CONCATENATE($B305,"!N122"))) -> 43.71438435 | J305: =IF(ISERROR(INDIRECT(CONCATENATE($B305,"!N129"))),"",INDIRECT(CONCATENATE($B305,"!N129"))) -> 79.16416937 | M305: =IF(ISERROR(INDIRECT(CONCATENATE($B305,"!N127"))),"",INDIRECT(CONCATENATE($B305,"!N127"))) -> 49.10912096 | N305: =IF(ISERROR(INDIRECT(CONCATENATE($B305,"!O122"))),"",INDIRECT(CONCATENATE($B305,"!O122"))) -> 62.09392798 | O305: =IF(ISERROR(INDIRECT(CONCATENATE($B305,"!O129"))),"",INDIRECT(CONCATENATE($B305,"!O129"))) -> 85.98003742 | R305: =IF(ISERROR(INDIRECT(CONCATENATE($B305,"!O127"))),"",INDIRECT(CONCATENATE($B305,"!O127"))) -> 31.01447559 | S305: =IF(ISERROR(INDIRECT(CONCATENATE($B305,"!P122"))),"",INDIRECT(CONCATENATE($B305,"!P122"))) -> 67.95521185 | T305: =IF(ISERROR(INDIRECT(CONCATENATE($B305,"!P129"))),"",INDIRECT(CONCATENATE($B305,"!P129"))) -> 88.33689886 | W305: =IF(ISERROR(INDIRECT(CONCATENATE($B305,"!P127"))),"",INDIRECT(CONCATENATE($B305,"!P127"))) -> 16.01016796 | X305: =IF(ISERROR(INDIRECT(CONCATENATE($B305,"!Q122"))),"",INDIRECT(CONCATENATE($B305,"!Q122"))) -> 72.39296948 | Y305: =IF(ISERROR(INDIRECT(CONCATENATE($B305,"!Q129"))),"",INDIRECT(CONCATENATE($B305,"!Q129"))) -> 82.16865555 | AB305: =IF(ISERROR(INDIRECT(CONCATENATE($B305,"!Q2127"))),"",INDIRECT(CONCATENATE($B305,"!Q127"))) -> 4.850376674
B306: DHS06 | C306: 2006 | D306: 11.46830792 | E306: 60.38827773 | H306: 79.8637288 | I306: 23.76760264 | J306: 68.12988375 | M306: 65.86905986 | N306: 41.08328377 | O306: 66.53051526 | R306: 47.42592898 | S306: 65.65702533 | T306: 69.31526068 | W306: 27.04459135 | X306: 84.09873697 | Y306: 74.48586555 | AB306: 12.36626862
B307: MICS09 | C307: 2009 | D307: 15.11691242 | E307: 43.57584925 | H307: 75.62694014 | I307: 21.75673951 | J307: 53.12089547 | M307: 67.05757724 | N307: 42.0927499 | O307: 58.43511807 | R307: 47.58753089 | S307: 61.23096846 | T307: 63.51010753 | W307: 31.01235586 | X307: 75.41596539 | Y307: 70.72574118 | AB307: 17.46945648
B308: DHS11 | C308: 2011 | D308: 16.83082519 | E308: 58.80944099 | H308: 68.59962114 | I308: 27.2608715 | J308: 65.54879416 | M308: 58.08116811 | N308: 49.1795318 | O308: 64.18825567 | R308: 36.13928147 | S308: 64.19235538 | T308: 65.71514677 | W308: 23.89577514 | X308: 81.13949992 | Y308: 73.13755257 | AB308: 12.42546627
B309: MICS14 | C309: 2014 | D309: 14.35777403 | E309: 49.04093214 | H309: 76.41392435 | I309: 27.01823094 | J309: 60.61322207 | M309: 60.40223193 | N309: 48.32960148 | O309: 62.32024516 | R309: 41.44311505 | S309: 66.66248268 | T309: 69.45698368 | W309: 26.76104027 | X309: 83.47284813 | Y309: 61.8311886 | AB309: 12.36711632
B310: DHS15 | C310: 2015 | D310: 21.9152028 | E310: 41.09465111 | H310: 60.15273238 | I310: 35.09708604 | J310: 58.1094894 | M310: 45.50833275 | N310: 51.68952505 | O310: 63.50844904 | R310: 33.28677189 | S310: 65.020638 | T310: 73.8471145 | W310: 21.18691892 | X310: 82.03941934 | Y310: 76.86031534 | AB310: 11.03918135
B311: MICS19 | C311: 2019 | D311: 23.97093937 | E311: 42.43307143 | H311: 58.20085338 | I311: 38.30083777 | J311: 51.4746024 | M311: 43.13514208 | N311: 56.1843493 | O311: 58.40970058 | R311: 29.65543299 | S311: 70.97188703 | T311: 66.97465426 | W311: 18.81751334 | X311: 86.46312698 | Y311: 68.11266672 | AB311: 6.927928796
B318: =CONCATENATE("Rural use of sanitation facilities, ",C299,"–",C300) -> Rural use of sanitation facilities, 2000–2020 | S318: Data points used for regression

Sheet Hygiene
B4: Access to hygiene facilities by wealth quintile (%)
B5: =IF(ISERROR(INDIRECT(CONCATENATE($E$32,"!A2"))),"",INDIRECT(CONCATENATE($E$32,"!A2"))) -> Zimbabwe
B7: =CONCATENATE("National ",IF(ISERROR(INDIRECT(CONCATENATE($E$32,"!A2"))),"",INDIRECT(CONCATENATE($E$32,"!A210")))) -> National Access to hygiene facilities | K7: =CONCATENATE("Urban ",IF(ISERROR(INDIRECT(CONCATENATE($E$32,"!A2"))),"",INDIRECT(CONCATENATE($E$32,"!A210")))) -> Urban Access to hygiene facilities | S7: =CONCATENATE("Rural ",IF(ISERROR(INDIRECT(CONCATENATE($E$32,"!A2"))),"",INDIRECT(CONCATENATE($E$32,"!A210")))) -> Rural Access to hygiene facilities
E32: =INDEX(B88:B100,A88) -> MICS19 | G32: =IF(ISERROR(INDIRECT(CONCATENATE($E$32,"!A2"))),"",INDIRECT(CONCATENATE($E$32,"!A2"))) -> Zimbabwe | K32: Poorest | N32: Poor | Q32: Middle | T32: Rich | W32: Richest
K33: Basic | L33: Limited | M33: No facility | N33: Basic | O33: Limited | P33: No facility | Q33: Basic | R33: Limited | S33: No facility | T33: Basic | U33: Limited | V33: No facility | W33: Basic | X33: Limited | Y33: No facility
B34: >>> Select Survey : | G34: NATIONAL | J34: =IF(ISERROR(INDIRECT(CONCATENATE(#REF!,"!A2"))),"",INDIRECT(CONCATENATE(#REF!,"!A210"))) ->  | K34: =IF(ISERROR(INDIRECT(CONCATENATE($E$32,"!C222"))),"",INDIRECT(CONCATENATE($E$32,"!C222"))) -> 30.90859139 | L34: =IF(ISERROR(INDIRECT(CONCATENATE($E$32,"!C223"))),"",INDIRECT(CONCATENATE($E$32,"!C223"))) -> 57.17365995 | M34: =IF(ISERROR(INDIRECT(CONCATENATE($E$32,"!C224"))),"",INDIRECT(CONCATENATE($E$32,"!C224"))) -> 11.91774865 | N34: =IF(ISERROR(INDIRECT(CONCATENATE($E$32,"!D222"))),"",INDIRECT(CONCATENATE($E$32,"!D222"))) -> 39.4156252 | O34: =IF(ISERROR(INDIRECT(CONCATENATE($E$32,"!D223"))),"",INDIRECT(CONCATENATE($E$32,"!D223"))) -> 49.82604462 | P34: =IF(ISERROR(INDIRECT(CONCATENATE($E$32,"!D224"))),"",INDIRECT(CONCATENATE($E$32,"!D224"))) -> 10.75833018 | Q34: =IF(ISERROR(INDIRECT(CONCATENATE($E$32,"!E222"))),"",INDIRECT(CONCATENATE($E$32,"!E222"))) -> 45.55499752 | R34: =IF(ISERROR(INDIRECT(CONCATENATE($E$32,"!E223"))),"",INDIRECT(CONCATENATE($E$32,"!E223"))) -> 44.15628067 | S34: =IF(ISERROR(INDIRECT(CONCATENATE($E$32,"!E224"))),"",INDIRECT(CONCATENATE($E$32,"!E224"))) -> 10.28872181 | T34: =IF(ISERROR(INDIRECT(CONCATENATE($E$32,"!F222"))),"",INDIRECT(CONCATENATE($E$32,"!F222"))) -> 55.06496156 | U34: =IF(ISERROR(INDIRECT(CONCATENATE($E$32,"!F223"))),"",INDIRECT(CONCATENATE($E$32,"!F223"))) -> 39.81880325 | V34: =IF(ISERROR(INDIRECT(CONCATENATE($E$32,"!F224"))),"",INDIRECT(CONCATENATE($E$32,"!F224"))) -> 5.116235182 | W34: =IF(ISERROR(INDIRECT(CONCATENATE($E$32,"!G222"))),"",INDIRECT(CONCATENATE($E$32,"!G222"))) -> 69.51747959 | X34: =IF(ISERROR(INDIRECT(CONCATENATE($E$32,"!G223"))),"",INDIRECT(CONCATENATE($E$32,"!G223"))) -> 28.26426882 | Y34: =IF(ISERROR(INDIRECT(CONCATENATE($E$32,"!G224"))),"",INDIRECT(CONCATENATE($E$32,"!G224"))) -> 2.218251587
G37: URBAN | J37: =IF(ISERROR(INDIRECT(CONCATENATE(#REF!,"!A2"))),"",INDIRECT(CONCATENATE(#REF!,"!A210"))) ->  | K37: =IF(ISERROR(INDIRECT(CONCATENATE($E$32,"!H222"))),"",INDIRECT(CONCATENATE($E$32,"!H222"))) -> 55.66401025 | L37: =IF(ISERROR(INDIRECT(CONCATENATE($E$32,"!H223"))),"",INDIRECT(CONCATENATE($E$32,"!H223"))) -> 39.01353379 | M37: =IF(ISERROR(INDIRECT(CONCATENATE($E$32,"!H224"))),"",INDIRECT(CONCATENATE($E$32,"!H224"))) -> 5.322455964 | N37: =IF(ISERROR(INDIRECT(CONCATENATE($E$32,"!I222"))),"",INDIRECT(CONCATENATE($E$32,"!I222"))) -> 53.08590672 | O37: =IF(ISERROR(INDIRECT(CONCATENATE($E$32,"!I223"))),"",INDIRECT(CONCATENATE($E$32,"!I223"))) -> 42.69504359 | P37: =IF(ISERROR(INDIRECT(CONCATENATE($E$32,"!I224"))),"",INDIRECT(CONCATENATE($E$32,"!I224"))) -> 4.219049686 | Q37: =IF(ISERROR(INDIRECT(CONCATENATE($E$32,"!J222"))),"",INDIRECT(CONCATENATE($E$32,"!J222"))) -> 59.19300148 | R37: =IF(ISERROR(INDIRECT(CONCATENATE($E$32,"!J223"))),"",INDIRECT(CONCATENATE($E$32,"!J223"))) -> 38.09215908 | S37: =IF(ISERROR(INDIRECT(CONCATENATE($E$32,"!J224"))),"",INDIRECT(CONCATENATE($E$32,"!J224"))) -> 2.714839437 | T37: =IF(ISERROR(INDIRECT(CONCATENATE($E$32,"!K222"))),"",INDIRECT(CONCATENATE($E$32,"!K222"))) -> 68.18403975 | U37: =IF(ISERROR(INDIRECT(CONCATENATE($E$32,"!K223"))),"",INDIRECT(CONCATENATE($E$32,"!K223"))) -> 29.44795991 | V37: =IF(ISERROR(INDIRECT(CONCATENATE($E$32,"!K224"))),"",INDIRECT(CONCATENATE($E$32,"!K224"))) -> 2.368000337 | W37: =IF(ISERROR(INDIRECT(CONCATENATE($E$32,"!L222"))),"",INDIRECT(CONCATENATE($E$32,"!L222"))) -> 79.53741519 | X37: =IF(ISERROR(INDIRECT(CONCATENATE($E$32,"!L223"))),"",INDIRECT(CONCATENATE($E$32,"!L223"))) -> 18.65208548 | Y37: =IF(ISERROR(INDIRECT(CONCATENATE($E$32,"!L224"))),"",INDIRECT(CONCATENATE($E$32,"!L224"))) -> 1.810499326
G40: RURAL | J40: =IF(ISERROR(INDIRECT(CONCATENATE(#REF!,"!A2"))),"",INDIRECT(CONCATENATE(#REF!,"!A210"))) ->  | K40: =IF(ISERROR(INDIRECT(CONCATENATE($E$32,"!M222"))),"",INDIRECT(CONCATENATE($E$32,"!M222"))) -> 29.24169985 | L40: =IF(ISERROR(INDIRECT(CONCATENATE($E$32,"!M223"))),"",INDIRECT(CONCATENATE($E$32,"!M223"))) -> 58.33328007 | M40: =IF(ISERROR(INDIRECT(CONCATENATE($E$32,"!M224"))),"",INDIRECT(CONCATENATE($E$32,"!M224"))) -> 12.42502008 | N40: =IF(ISERROR(INDIRECT(CONCATENATE($E$32,"!N222"))),"",INDIRECT(CONCATENATE($E$32,"!N222"))) -> 37.18050141 | O40: =IF(ISERROR(INDIRECT(CONCATENATE($E$32,"!N223"))),"",INDIRECT(CONCATENATE($E$32,"!N223"))) -> 51.84739596 | P40: =IF(ISERROR(INDIRECT(CONCATENATE($E$32,"!N224"))),"",INDIRECT(CONCATENATE($E$32,"!N224"))) -> 10.97210263 | Q40: =IF(ISERROR(INDIRECT(CONCATENATE($E$32,"!O222"))),"",INDIRECT(CONCATENATE($E$32,"!O222"))) -> 40.02857053 | R40: =IF(ISERROR(INDIRECT(CONCATENATE($E$32,"!O223"))),"",INDIRECT(CONCATENATE($E$32,"!O223"))) -> 49.07544054 | S40: =IF(ISERROR(INDIRECT(CONCATENATE($E$32,"!O224"))),"",INDIRECT(CONCATENATE($E$32,"!O224"))) -> 10.89598893 | T40: =IF(ISERROR(INDIRECT(CONCATENATE($E$32,"!P222"))),"",INDIRECT(CONCATENATE($E$32,"!P222"))) -> 44.72629409 | U40: =IF(ISERROR(INDIRECT(CONCATENATE($E$32,"!P223"))),"",INDIRECT(CONCATENATE($E$32,"!P223"))) -> 45.35153373 | V40: =IF(ISERROR(INDIRECT(CONCATENATE($E$32,"!P224"))),"",INDIRECT(CONCATENATE($E$32,"!P224"))) -> 9.922172179 | W40: =IF(ISERROR(INDIRECT(CONCATENATE($E$32,"!Q222"))),"",INDIRECT(CONCATENATE($E$32,"!Q222"))) -> 54.72019022 | X40: =IF(ISERROR(INDIRECT(CONCATENATE($E$32,"!Q223"))),"",INDIRECT(CONCATENATE($E$32,"!Q223"))) -> 38.21834931 | Y40: =IF(ISERROR(INDIRECT(CONCATENATE($E$32,"!Q224"))),"",INDIRECT(CONCATENATE($E$32,"!Q224"))) -> 7.061460473
A88: 7 | B88: WHS03
B89: DHS06
B90: MICS09
B91: DHS11
B92: MICS14
B93: DHS15
B94: MICS19
B95: Input
B96: Template

Sheet WHS03
A2: =A1026 -> Zimbabwe
A3: =A1034 -> 2003
A4: Use of drinking water sources
A5: by wealth quintile and sub-national region
A6: Notes:
A7: WHO/UNICEF JMP customised wealth index excludes water,
A8: sanitation and hygiene assets.
A9: Survey used for analysis: | B9: =A1025 -> WHS03
A10: =B1028 -> 
A11: =B1027 -> 
A14: Use of drinking water sources | C14: NATIONAL wealth index quintile | H14: URBAN wealth index quintile | M14: RURAL wealth index quintile | BA14: Raw numbers of respondents: | BB14: Use of drinking water sources | BC14: NATIONAL wealth index quintile | BH14: URBAN wealth index quintile | BM14: RURAL wealth index quintile
A15: Weighted percentage (used in graphs) | C15: Poorest | D15: Poor | E15: Middle | F15: Rich | G15: Richest | H15: Poorest | I15: Poor | J15: Middle | K15: Rich | L15: Richest | M15: Poorest | N15: Poor | O15: Middle | P15: Rich | Q15: Richest | BA15: Water data, raw numbers (weighted) | BC15: Poorest | BD15: Poor | BE15: Middle | BF15: Rich | BG15: Richest | BH15: Poorest | BI15: Poor | BJ15: Middle | BK15: Rich | BL15: Richest | BM15: Poorest | BN15: Poor | BO15: Middle | BP15: Rich | BQ15: Richest
A16: Water | B16: Improved | C16: 66.28230993 | D16: 70.13688812 | E16: 70.57589584 | F16: 79.83814031 | G16: 98.13128395 | H16: 81.76816136 | I16: 75.41822108 | J16: 90.93272226 | K16: 98.70077442 | L16: 99.03182509 | M16: 61.97741219 | N16: 70.11976956 | O16: 69.68174764 | P16: 71.29161562 | Q16: 70.87037165 | BA16: Water | BB16: Improved | BC16: N/A | BD16: N/A | BE16: N/A | BF16: N/A | BG16: N/A | BH16: N/A | BI16: N/A | BJ16: N/A | BK16: N/A | BL16: N/A | BM16: N/A | BN16: N/A | BO16: N/A | BP16: N/A | BQ16: N/A
B17: Not Improved | C17: 33.71769007 | D17: 29.86311188 | E17: 29.42410416 | F17: 20.16185969 | G17: 1.868716047 | H17: 18.23183864 | I17: 24.58177892 | J17: 9.067277744 | K17: 1.299225579 | L17: 0.9681749076 | M17: 38.02258781 | N17: 29.88023044 | O17: 30.31825236 | P17: 28.70838438 | Q17: 29.12962835 | BB17: Not Improved | BC17: N/A | BD17: N/A | BE17: N/A | BF17: N/A | BG17: N/A | BH17: N/A | BI17: N/A | BJ17: N/A | BK17: N/A | BL17: N/A | BM17: N/A | BN17: N/A | BO17: N/A | BP17: N/A | BQ17: N/A
A18: Water ladder | B18: Basic | C18: =C16*C23/100 -> 48.28329549 | D18: =D16*D23/100 -> 53.7645511 | E18: =E16*E23/100 -> 60.80026001 | F18: 70.66737128 | G18: 94.42464386 | H18: 73.97752697 | I18: 72.8255247 | J18: 85.03896901 | K18: 98.70077442 | L18: 99.03182509 | M18: 44.31665347 | N18: 51.58731045 | O18: 52.33574633 | P18: 60.0232825 | Q18: 60.33111434 | BA18: Water ladder | BB18: Basic | BC18: N/A | BD18: N/A | BE18: N/A | BF18: N/A | BG18: N/A | BH18: N/A | BI18: N/A | BJ18: N/A | BK18: N/A | BL18: N/A | BM18: N/A | BN18: N/A | BO18: N/A | BP18: N/A | BQ18: N/A
B19: Limited | C19: =C16*C22/100 -> 17.99901445 | D19: =D16*D22/100 -> 16.37233702 | E19: =E16*E22/100 -> 9.775635832 | F19: 9.170769037 | G19: 3.706640091 | H19: 7.790634393 | I19: 2.592696381 | J19: 5.893753245 | K19: 0 | L19: 0 | M19: 17.66075871 | N19: 18.53245911 | O19: 17.34600131 | P19: 11.26833312 | Q19: 10.53925731 | BB19: Limited | BC19: N/A | BD19: N/A | BE19: N/A | BF19: N/A | BG19: N/A | BH19: N/A | BI19: N/A | BJ19: N/A | BK19: N/A | BL19: N/A | BM19: N/A | BN19: N/A | BO19: N/A | BP19: N/A | BQ19: N/A
B20: Unimproved | C20: =100-C18-C19-C21 -> 23.65550491 | D20: =100-D18-D19-D21 -> 21.48128645 | E20: =100-E18-E19-E21 -> 25.54628603 | F20: 18.67133056 | G20: 1.868716047 | H20: 12.5098668 | I20: 24.17942592 | J20: 9.067277744 | K20: 1.299225579 | L20: 0.9681749076 | M20: 27.99495662 | N20: 19.8762439 | O20: 22.79159898 | P20: 23.86031478 | Q20: 26.16488807 | BB20: Unimproved | BC20: N/A | BD20: N/A | BE20: N/A | BF20: N/A | BG20: N/A | BH20: N/A | BI20: N/A | BJ20: N/A | BK20: N/A | BL20: N/A | BM20: N/A | BN20: N/A | BO20: N/A | BP20: N/A | BQ20: N/A
B21: Surface water | C21: 10.06218515 | D21: 8.38182543 | E21: 3.87781813 | F21: 1.490529128 | G21: 0 | H21: 5.721971844 | I21: 0.4023529924 | J21: 0 | K21: 0 | L21: 0 | M21: 10.02763119 | N21: 10.00398654 | O21: 7.526653385 | P21: 4.8480696 | Q21: 2.964740282 | BB21: Surface water | BC21: N/A | BD21: N/A | BE21: N/A | BF21: N/A | BG21: N/A | BH21: N/A | BI21: N/A | BJ21: N/A | BK21: N/A | BL21: N/A | BM21: N/A | BN21: N/A | BO21: N/A | BP21: N/A | BQ21: N/A
A22: Improved water point at more than 30 minutes | B22: Yes | C22: 27.15508024 | D22: 23.34340381 | E22: 13.85123875 | F22: 11.48670172 | G22: 3.777225714 | H22: 9.527711353 | I22: 3.437758599 | J22: 6.481443752 | K22: 0 | L22: 0 | M22: 28.49547616 | N22: 26.4297205 | O22: 24.89317777 | P22: 15.80597245 | Q22: 14.87117545 | BA22: Improved water point at more than 30 minutes | BB22: Yes | BC22: N/A | BD22: N/A | BE22: N/A | BF22: N/A | BG22: N/A | BH22: N/A | BI22: N/A | BJ22: N/A | BK22: N/A | BL22: N/A | BM22: N/A | BN22: N/A | BO22: N/A | BP22: N/A | BQ22: N/A
B23: No | C23: 72.84491976 | D23: 76.65659619 | E23: 86.14876125 | F23: 88.51329828 | G23: 96.22277429 | H23: 90.47228865 | I23: 96.5622414 | J23: 93.51855625 | K23: 100 | L23: 100 | M23: 71.50452384 | N23: 73.5702795 | O23: 75.10682223 | P23: 84.19402755 | Q23: 85.12882455 | BB23: No | BC23: N/A | BD23: N/A | BE23: N/A | BF23: N/A | BG23: N/A | BH23: N/A | BI23: N/A | BJ23: N/A | BK23: N/A | BL23: N/A | BM23: N/A | BN23: N/A | BO23: N/A | BP23: N/A | BQ23: N/A
A24: Manually calculated ratios | B24: Improved wells
B25: Improved springs
B26: Other
C27: NATIONAL wealth index quintile | H27: URBAN wealth index quintile | M27: RURAL wealth index quintile | BA27: Raw numbers of respondents: | BB27: Use of drinking water sources | BC27: NATIONAL wealth index quintile | BH27: URBAN wealth index quintile | BM27: RURAL wealth index quintile
A28: Percentage based on weighted population | C28: Poorest | D28: Poor | E28: Middle | F28: Rich | G28: Richest | H28: Poorest | I28: Poor | J28: Middle | K28: Rich | L28: Richest | M28: Poorest | N28: Poor | O28: Middle | P28: Rich | Q28: Richest | BA28: Water data, raw numbers (weighted) | BC28: Poorest | BD28: Poor | BE28: Middle | BF28: Rich | BG28: Richest | BH28: Poorest | BI28: Poor | BJ28: Middle | BK28: Rich | BL28: Richest | BM28: Poorest | BN28: Poor | BO28: Middle | BP28: Rich | BQ28: Richest
A29: Piped water | B29: Yes | C29: 12.57645557 | D29: 11.8210523 | E29: 15.48370168 | F29: 65.75579397 | G29: 96.93938816 | H29: 40.09317362 | I29: 68.83712415 | J29: 90.20338054 | K29: 98.55834051 | L29: 98.73253263 | M29: 11.9191034 | N29: 12.83889982 | O29: 9.637149321 | P29: 9.008499768 | Q29: 29.11799717 | BA29: Piped water | BB29: Yes | BC29: N/A | BD29: N/A | BE29: N/A | BF29: N/A | BG29: N/A | BH29: N/A | BI29: N/A | BJ29: N/A | BK29: N/A | BL29: N/A | BM29: N/A | BN29: N/A | BO29: N/A | BP29: N/A | BQ29: N/A
B30: No | C30: 87.42354443 | D30: 88.1789477 | E30: 84.51629832 | F30: 34.24420603 | G30: 3.060611837 | H30: 59.90682638 | I30: 31.16287585 | J30: 9.796619463 | K30: 1.44165949 | L30: 1.267467369 | M30: 88.0808966 | N30: 87.16110018 | O30: 90.36285068 | P30: 90.99150023 | Q30: 70.88200283 | BB30: No | BC30: N/A | BD30: N/A | BE30: N/A | BF30: N/A | BG30: N/A | BH30: N/A | BI30: N/A | BJ30: N/A | BK30: N/A | BL30: N/A | BM30: N/A | BN30: N/A | BO30: N/A | BP30: N/A | BQ30: N/A
A31: Piped water on premises | B31: Yes | C31: 2.30376801 | D31: 3.820451202 | E31: 8.595064512 | F31: 58.48220743 | G31: 95.39451172 | H31: 25.28827181 | I31: 62.93121526 | J31: 87.89449807 | K31: 95.3264152 | L31: 98.42235677 | M31: 1.315446626 | N31: 1.835730692 | O31: 4.250510858 | P31: 4.125747988 | Q31: 21.92783074 | BA31: Piped water on premises | BB31: Yes | BC31: N/A | BD31: N/A | BE31: N/A | BF31: N/A | BG31: N/A | BH31: N/A | BI31: N/A | BJ31: N/A | BK31: N/A | BL31: N/A | BM31: N/A | BN31: N/A | BO31: N/A | BP31: N/A | BQ31: N/A
B32: No | C32: 97.69623199 | D32: 96.1795488 | E32: 91.40493549 | F32: 41.51779257 | G32: 4.605488278 | H32: 74.71172819 | I32: 37.06878474 | J32: 12.10550193 | K32: 4.673584798 | L32: 1.57764323 | M32: 98.68455337 | N32: 98.16426931 | O32: 95.74948914 | P32: 95.87425201 | Q32: 78.07216926 | BB32: No | BC32: N/A | BD32: N/A | BE32: N/A | BF32: N/A | BG32: N/A | BH32: N/A | BI32: N/A | BJ32: N/A | BK32: N/A | BL32: N/A | BM32: N/A | BN32: N/A | BO32: N/A | BP32: N/A | BQ32: N/A
A33: Piped water into dwelling | B33: Yes | C33: N/A | D33: N/A | E33: N/A | F33: N/A | G33: N/A | H33: N/A | I33: N/A | J33: N/A | K33: N/A | L33: N/A | M33: N/A | N33: N/A | O33: N/A | P33: N/A | Q33: N/A | BA33: Piped water into dwelling | BB33: Yes | BC33: N/A | BD33: N/A | BE33: N/A | BF33: N/A | BG33: N/A | BH33: N/A | BI33: N/A | BJ33: N/A | BK33: N/A | BL33: N/A | BM33: N/A | BN33: N/A | BO33: N/A | BP33: N/A | BQ33: N/A
B34: No | C34: N/A | D34: N/A | E34: N/A | F34: N/A | G34: N/A | H34: N/A | I34: N/A | J34: N/A | K34: N/A | L34: N/A | M34: N/A | N34: N/A | O34: N/A | P34: N/A | Q34: N/A | BB34: No | BC34: N/A | BD34: N/A | BE34: N/A | BF34: N/A | BG34: N/A | BH34: N/A | BI34: N/A | BJ34: N/A | BK34: N/A | BL34: N/A | BM34: N/A | BN34: N/A | BO34: N/A | BP34: N/A | BQ34: N/A
A35: Water source on premises | B35: Yes | C35: N/A | D35: N/A | E35: N/A | F35: N/A | G35: N/A | H35: N/A | I35: N/A | J35: N/A | K35: N/A | L35: N/A | M35: N/A | N35: N/A | O35: N/A | P35: N/A | Q35: N/A | BA35: Water source on premises | BB35: Yes | BC35: N/A | BD35: N/A | BE35: N/A | BF35: N/A | BG35: N/A | BH35: N/A | BI35: N/A | BJ35: N/A | BK35: N/A | BL35: N/A | BM35: N/A | BN35: N/A | BO35: N/A | BP35: N/A | BQ35: N/A
B36: No | C36: N/A | D36: N/A | E36: N/A | F36: N/A | G36: N/A | H36: N/A | I36: N/A | J36: N/A | K36: N/A | L36: N/A | M36: N/A | N36: N/A | O36: N/A | P36: N/A | Q36: N/A | BB36: No | BC36: N/A | BD36: N/A | BE36: N/A | BF36: N/A | BG36: N/A | BH36: N/A | BI36: N/A | BJ36: N/A | BK36: N/A | BL36: N/A | BM36: N/A | BN36: N/A | BO36: N/A | BP36: N/A | BQ36: N/A
A37: Improved Water source on premises | B37: Yes | C37: N/A | D37: N/A | E37: N/A | F37: N/A | G37: N/A | H37: N/A | I37: N/A | J37: N/A | K37: N/A | L37: N/A | M37: N/A | N37: N/A | O37: N/A | P37: N/A | Q37: N/A | BA37: Improved water source on premises | BB37: Yes | BC37: N/A | BD37: N/A | BE37: N/A | BF37: N/A | BG37: N/A | BH37: N/A | BI37: N/A | BJ37: N/A | BK37: N/A | BL37: N/A | BM37: N/A | BN37: N/A | BO37: N/A | BP37: N/A | BQ37: N/A
B38: No | C38: N/A | D38: N/A | E38: N/A | F38: N/A | G38: N/A | H38: N/A | I38: N/A | J38: N/A | K38: N/A | L38: N/A | M38: N/A | N38: N/A | O38: N/A | P38: N/A | Q38: N/A | BB38: No | BC38: N/A | BD38: N/A | BE38: N/A | BF38: N/A | BG38: N/A | BH38: N/A | BI38: N/A | BJ38: N/A | BK38: N/A | BL38: N/A | BM38: N/A | BN38: N/A | BO38: N/A | BP38: N/A | BQ38: N/A
A39: Piped water on premises available when needed | B39: Yes | C39: N/A | D39: N/A | E39: N/A | F39: N/A | G39: N/A | H39: N/A | I39: N/A | J39: N/A | K39: N/A | L39: N/A | M39: N/A | N39: N/A | O39: N/A | P39: N/A | Q39: N/A | BA39: Piped water on premises available when needed | BB39: Yes | BC39: N/A | BD39: N/A | BE39: N/A | BF39: N/A | BG39: N/A | BH39: N/A | BI39: N/A | BJ39: N/A | BK39: N/A | BL39: N/A | BM39: N/A | BN39: N/A | BO39: N/A | BP39: N/A | BQ39: N/A
B40: No | C40: N/A | D40: N/A | E40: N/A | F40: N/A | G40: N/A | H40: N/A | I40: N/A | J40: N/A | K40: N/A | L40: N/A | M40: N/A | N40: N/A | O40: N/A | P40: N/A | Q40: N/A | BB40: No | BC40: N/A | BD40: N/A | BE40: N/A | BF40: N/A | BG40: N/A | BH40: N/A | BI40: N/A | BJ40: N/A | BK40: N/A | BL40: N/A | BM40: N/A | BN40: N/A | BO40: N/A | BP40: N/A | BQ40: N/A
A41: Water point at more than 30 minutes | B41: Yes | C41: 30.74759316 | D41: 25.90484511 | E41: 15.93233825 | F41: 12.82501901 | G41: 3.287095929 | H41: 13.26405124 | I41: 4.476790869 | J41: 4.978008579 | K41: 0 | L41: 0 | M41: 32.31001074 | N41: 30.51710543 | O41: 25.18171644 | P41: 17.79653458 | Q41: 16.70187604 | BA41: Water point at more than 30 minutes | BB41: Yes | BC41: N/A | BD41: N/A | BE41: N/A | BF41: N/A | BG41: N/A | BH41: N/A | BI41: N/A | BJ41: N/A | BK41: N/A | BL41: N/A | BM41: N/A | BN41: N/A | BO41: N/A | BP41: N/A | BQ41: N/A
B42: No | C42: 69.25240684 | D42: 74.09515489 | E42: 84.06766175 | F42: 87.17498099 | G42: 96.71290407 | H42: 86.73594876 | I42: 95.52320913 | J42: 95.02199142 | K42: 100 | L42: 100 | M42: 67.68998926 | N42: 69.48289457 | O42: 74.81828356 | P42: 82.20346542 | Q42: 83.29812396 | BB42: No | BC42: N/A | BD42: N/A | BE42: N/A | BF42: N/A | BG42: N/A | BH42: N/A | BI42: N/A | BJ42: N/A | BK42: N/A | BL42: N/A | BM42: N/A | BN42: N/A | BO42: N/A | BP42: N/A | BQ42: N/A
A43: Water source available when needed | B43: Yes | C43: N/A | D43: N/A | E43: N/A | F43: N/A | G43: N/A | H43: N/A | I43: N/A | J43: N/A | K43: N/A | L43: N/A | M43: N/A | N43: N/A | O43: N/A | P43: N/A | Q43: N/A | BA43: Water source available when needed | BB43: Yes | BC43: N/A | BD43: N/A | BE43: N/A | BF43: N/A | BG43: N/A | BH43: N/A | BI43: N/A | BJ43: N/A | BK43: N/A | BL43: N/A | BM43: N/A | BN43: N/A | BO43: N/A | BP43: N/A | BQ43: N/A
B44: No | C44: N/A | D44: N/A | E44: N/A | F44: N/A | G44: N/A | H44: N/A | I44: N/A | J44: N/A | K44: N/A | L44: N/A | M44: N/A | N44: N/A | O44: N/A | P44: N/A | Q44: N/A | BB44: No | BC44: N/A | BD44: N/A | BE44: N/A | BF44: N/A | BG44: N/A | BH44: N/A | BI44: N/A | BJ44: N/A | BK44: N/A | BL44: N/A | BM44: N/A | BN44: N/A | BO44: N/A | BP44: N/A | BQ44: N/A
A45: Improved water source available when needed | B45: Yes | C45: N/A | D45: N/A | E45: N/A | F45: N/A | G45: N/A | H45: N/A | I45: N/A | J45: N/A | K45: N/A | L45: N/A | M45: N/A | N45: N/A | O45: N/A | P45: N/A | Q45: N/A | BA45: Improved water source available when needed | BB45: Yes | BC45: N/A | BD45: N/A | BE45: N/A | BF45: N/A | BG45: N/A | BH45: N/A | BI45: N/A | BJ45: N/A | BK45: N/A | BL45: N/A | BM45: N/A | BN45: N/A | BO45: N/A | BP45: N/A | BQ45: N/A
B46: No | C46: N/A | D46: N/A | E46: N/A | F46: N/A | G46: N/A | H46: N/A | I46: N/A | J46: N/A | K46: N/A | L46: N/A | M46: N/A | N46: N/A | O46: N/A | P46: N/A | Q46: N/A | BB46: No | BC46: N/A | BD46: N/A | BE46: N/A | BF46: N/A | BG46: N/A | BH46: N/A | BI46: N/A | BJ46: N/A | BK46: N/A | BL46: N/A | BM46: N/A | BN46: N/A | BO46: N/A | BP46: N/A | BQ46: N/A
A47: Microbiological quality at point of collection | B47: Not contaminated (No E. coli in 100 mL) | C47: N/A | D47: N/A | E47: N/A | F47: N/A | G47: N/A | H47: N/A | I47: N/A | J47: N/A | K47: N/A | L47: N/A | M47: N/A | N47: N/A | O47: N/A | P47: N/A | Q47: N/A | BA47: Microbiological quality at point of collection | BB47: Not contaminated (No E. coli in 100 mL) | BC47: N/A | BD47: N/A | BE47: N/A | BF47: N/A | BG47: N/A | BH47: N/A | BI47: N/A | BJ47: N/A | BK47: N/A | BL47: N/A | BM47: N/A | BN47: N/A | BO47: N/A | BP47: N/A | BQ47: N/A
B48: Contaminated (E. coli detected in 100 mL) | C48: N/A | D48: N/A | E48: N/A | F48: N/A | G48: N/A | H48: N/A | I48: N/A | J48: N/A | K48: N/A | L48: N/A | M48: N/A | N48: N/A | O48: N/A | P48: N/A | Q48: N/A | BB48: Contaminated (E. coli detected in 100 mL) | BC48: N/A | BD48: N/A | BE48: N/A | BF48: N/A | BG48: N/A | BH48: N/A | BI48: N/A | BJ48: N/A | BK48: N/A | BL48: N/A | BM48: N/A | BN48: N/A | BO48: N/A | BP48: N/A | BQ48: N/A
B49: Highly contaminated (>100 CFU/100 mL) | C49: N/A | D49: N/A | E49: N/A | F49: N/A | G49: N/A | H49: N/A | I49: N/A | J49: N/A | K49: N/A | L49: N/A | M49: N/A | N49: N/A | O49: N/A | P49: N/A | Q49: N/A | BB49: Highly contaminated (>100 CFU/100 mL) | BC49: N/A | BD49: N/A | BE49: N/A | BF49: N/A | BG49: N/A | BH49: N/A | BI49: N/A | BJ49: N/A | BK49: N/A | BL49: N/A | BM49: N/A | BN49: N/A | BO49: N/A | BP49: N/A | BQ49: N/A
A50: Microbiological quality of improved water sources at point of collection | B50: Not contaminated (No E. coli in 100 mL) | C50: N/A | D50: N/A | E50: N/A | F50: N/A | G50: N/A | H50: N/A | I50: N/A | J50: N/A | K50: N/A | L50: N/A | M50: N/A | N50: N/A | O50: N/A | P50: N/A | Q50: N/A | BA50: Microbiological quality of improved water sources at point of collection | BB50: Not contaminated (No E. coli in 100 mL) | BC50: N/A | BD50: N/A | BE50: N/A | BF50: N/A | BG50: N/A | BH50: N/A | BI50: N/A | BJ50: N/A | BK50: N/A | BL50: N/A | BM50: N/A | BN50: N/A | BO50: N/A | BP50: N/A | BQ50: N/A
B51: Contaminated (E. coli detected in 100 mL) | C51: N/A | D51: N/A | E51: N/A | F51: N/A | G51: N/A | H51: N/A | I51: N/A | J51: N/A | K51: N/A | L51: N/A | M51: N/A | N51: N/A | O51: N/A | P51: N/A | Q51: N/A | BB51: Contaminated (E. coli detected in 100 mL) | BC51: N/A | BD51: N/A | BE51: N/A | BF51: N/A | BG51: N/A | BH51: N/A | BI51: N/A | BJ51: N/A | BK51: N/A | BL51: N/A | BM51: N/A | BN51: N/A | BO51: N/A | BP51: N/A | BQ51: N/A
B52: Highly contaminated (>100 CFU/100 mL) | C52: N/A | D52: N/A | E52: N/A | F52: N/A | G52: N/A | H52: N/A | I52: N/A | J52: N/A | K52: N/A | L52: N/A | M52: N/A | N52: N/A | O52: N/A | P52: N/A | Q52: N/A | BB52: Highly contaminated (>100 CFU/100 mL) | BC52: N/A | BD52: N/A | BE52: N/A | BF52: N/A | BG52: N/A | BH52: N/A | BI52: N/A | BJ52: N/A | BK52: N/A | BL52: N/A | BM52: N/A | BN52: N/A | BO52: N/A | BP52: N/A | BQ52: N/A
A53: Microbiological quality of piped on premises at point of collection | B53: Not contaminated (No E. coli in 100 mL) | C53: N/A | D53: N/A | E53: N/A | F53: N/A | G53: N/A | H53: N/A | I53: N/A | J53: N/A | K53: N/A | L53: N/A | M53: N/A | N53: N/A | O53: N/A | P53: N/A | Q53: N/A | BA53: Microbiological quality of piped on premises at point of collection | BB53: Not contaminated (No E. coli in 100 mL) | BC53: N/A | BD53: N/A | BE53: N/A | BF53: N/A | BG53: N/A | BH53: N/A | BI53: N/A | BJ53: N/A | BK53: N/A | BL53: N/A | BM53: N/A | BN53: N/A | BO53: N/A | BP53: N/A | BQ53: N/A
B54: Contaminated (E. coli detected in 100 mL) | C54: N/A | D54: N/A | E54: N/A | F54: N/A | G54: N/A | H54: N/A | I54: N/A | J54: N/A | K54: N/A | L54: N/A | M54: N/A | N54: N/A | O54: N/A | P54: N/A | Q54: N/A | BB54: Contaminated (E. coli detected in 100 mL) | BC54: N/A | BD54: N/A | BE54: N/A | BF54: N/A | BG54: N/A | BH54: N/A | BI54: N/A | BJ54: N/A | BK54: N/A | BL54: N/A | BM54: N/A | BN54: N/A | BO54: N/A | BP54: N/A | BQ54: N/A
B55: Highly contaminated (>100 CFU/100 mL) | C55: N/A | D55: N/A | E55: N/A | F55: N/A | G55: N/A | H55: N/A | I55: N/A | J55: N/A | K55: N/A | L55: N/A | M55: N/A | N55: N/A | O55: N/A | P55: N/A | Q55: N/A | BB55: Highly contaminated (>100 CFU/100 mL) | BC55: N/A | BD55: N/A | BE55: N/A | BF55: N/A | BG55: N/A | BH55: N/A | BI55: N/A | BJ55: N/A | BK55: N/A | BL55: N/A | BM55: N/A | BN55: N/A | BO55: N/A | BP55: N/A | BQ55: N/A
C56: NATIONAL wealth index quintile | H56: URBAN wealth index quintile | M56: RURAL wealth index quintile | BA56: Raw numbers of respondents: | BB56: Use of drinking water sources | BC56: NATIONAL wealth index quintile | BH56: URBAN wealth index quintile | BM56: RURAL wealth index quintile
A57: Percentage based on weighted population | C57: Poorest | D57: Poor | E57: Middle | F57: Rich | G57: Richest | H57: Poorest | I57: Poor | J57: Middle | K57: Rich | L57: Richest | M57: Poorest | N57: Poor | O57: Middle | P57: Rich | Q57: Richest | BA57: Water data, raw numbers (weighted) | BC57: Poorest | BD57: Poor | BE57: Middle | BF57: Rich | BG57: Richest | BH57: Poorest | BI57: Poor | BJ57: Middle | BK57: Rich | BL57: Richest | BM57: Poorest | BN57: Poor | BO57: Middle | BP57: Rich | BQ57: Richest
A58: main source of drinking water | B58: Piped water through house connection or yard | C58: 2.317507188 | D58: 3.840918148 | E58: 10.03217622 | F58: 71.54401503 | G58: 96.69912747 | H58: 26.46418184 | I58: 82.97474825 | J58: 95.31485235 | K58: 96.58122316 | L58: 99.38457327 | M58: 1.324615806 | N58: 1.836820817 | O58: 4.286071539 | P58: 4.589962576 | Q58: 27.86602147
B59: Public standpipe | C59: 10.33395166 | D59: 8.043461975 | E59: 8.040430872 | F59: 8.898118043 | G59: 1.566004178 | H59: 15.4933329 | I59: 7.786935329 | J59: 2.50380622 | K59: 3.274468034 | L59: 0.3132082657 | M59: 10.67756843 | N59: 11.00970322 | O59: 5.431704231 | P59: 5.432141762 | Q59: 9.137307495
B60: Protected tube well or bore hole | C60: 39.4013458 | D60: 38.23866295 | E60: 38.91905394 | F60: 10.80506536 | G60: 1.06398901 | H60: 24.82298067 | I60: 5.329146108 | J60: 0.7909152432 | K60: 0.1443088083 | L60: 0.3022184644 | M60: 36.36234777 | N60: 41.92322142 | O60: 39.34968936 | P60: 41.32734334 | Q60: 34.96104627
B61: Protected dug well or protected spring | C61: 14.56056112 | D61: 20.38958285 | E61: 25.38466355 | F61: 6.42252646 | G61: 0.1442071516 | H61: 18.78990288 | I61: 3.348024019 | J61: 0 | K61: 0 | L61: 0 | M61: 14.0448871 | N61: 15.28499851 | O61: 21.19725489 | P61: 27.96364868 | Q61: 18.09812666
B62: Unprotected dug well or spring | C62: 23.40993885 | D62: 21.40795084 | E62: 13.50214167 | F62: 1.570000583 | G62: 0.5266721887 | H62: 9.976388499 | I62: 0.3642037048 | J62: 1.390426192 | K62: 0 | L62: 0 | M62: 27.64999796 | N62: 20.0262698 | O62: 22.47117276 | P62: 15.53783651 | Q62: 6.98720815
B63: Rainwater (into tank or cistern ) | C63: 0.0642376241 | D63: 0 | E63: 0 | F63: 0 | G63: 0 | H63: 0 | I63: 0 | J63: 0 | K63: 0 | L63: 0 | M63: 0 | N63: 0.1066653182 | O63: 0 | P63: 0 | Q63: 0
B64: Water taken directly from pond-water or stream | C64: 9.912457753 | D64: 8.079423243 | E64: 4.121533738 | F64: 0.7602745293 | G64: 0 | H64: 4.453213211 | I64: 0.1969425893 | J64: 0 | K64: 0 | L64: 0 | M64: 9.940582923 | N64: 9.812320912 | O64: 7.264107222 | P64: 5.149067124 | Q64: 2.950289952
A108: =A1026 -> Zimbabwe
A109: =A1034 -> 2003
A110: Use of sanitation facilities
A111: by wealth quintile and sub-national region
A112: Notes:
A113: WHO/UNICEF JMP customised wealth index excludes water,
A114: sanitation and hygiene assets.
A115: Survey used for analysis: | B115: =A1025 -> WHS03
A116: =B1030 -> 
A117: =B1029 -> 
A120: Use of sanitation facilities | C120: NATIONAL wealth index quintile | H120: URBAN wealth index quintile | M120: RURAL wealth index quintile | BA120: Raw numbers of respondents: | BB120: Use of sanitation facilities | BC120: NATIONAL wealth index quintile | BH120: URBAN wealth index quintile | BM120: RURAL wealth index quintile
A121: Weighted percentage (used in graphs) | C121: Poorest | D121: Poor | E121: Middle | F121: Rich | G121: Richest | H121: Poorest | I121: Poor | J121: Middle | K121: Rich | L121: Richest | M121: Poorest | N121: Poor | O121: Middle | P121: Rich | Q121: Richest | BA121: Sanitation data, raw numbers (weighted) | BC121: Poorest | BD121: Poor | BE121: Middle | BF121: Rich | BG121: Richest | BH121: Poorest | BI121: Poor | BJ121: Middle | BK121: Rich | BL121: Richest | BM121: Poorest | BN121: Poor | BO121: Middle | BP121: Rich | BQ121: Richest
A122: Sanitation | B122: Improved | C122: 30.35238044 | D122: 56.38457227 | E122: 67.7612425 | F122: 80.21556787 | G122: 98.88763878 | H122: 59.50931039 | I122: 76.174945 | J122: 92.69547433 | K122: 98.76156729 | L122: 99.76800949 | M122: 24.77810296 | N122: 43.71438435 | O122: 62.09392798 | P122: 67.95521185 | Q122: 72.39296948 | BA122: Sanitation | BB122: Improved | BC122: 141846.7235 | BD122: 263384.9937 | BE122: 316811.379 | BF122: 378554.9168 | BG122: 457793.9484 | BH122: 111495.3602 | BI122: 142350.6866 | BJ122: 173891.6547 | BK122: 182568.9729 | BL122: 189358.9622 | BM122: 69448.63904 | BN122: 122374.9793 | BO122: 173854.8401 | BP122: 191010.2691 | BQ122: 202037.5972
B123: Not Improved | C123: 69.64761956 | D123: 43.61542773 | E123: 32.2387575 | F123: 19.78443213 | G123: 1.11236122 | H123: 40.49068961 | I123: 23.825055 | J123: 7.304525674 | K123: 1.23843271 | L123: 0.2319905103 | M123: 75.22189704 | N123: 56.28561565 | O123: 37.90607202 | P123: 32.04478815 | Q123: 27.60703052 | BB123: Not Improved | BC123: 325486.3866 | BD123: 203737.4532 | BE123: 150729.3085 | BF123: 93367.08893 | BG123: 5149.604553 | BH123: 75862.48257 | BI123: 44522.68311 | BJ123: 13702.89182 | BK123: 2289.345886 | BL123: 440.3163147 | BM123: 210833.6696 | BN123: 157567.1522 | BO123: 106132.0214 | BP123: 90072.32033 | BQ123: 77046.95847
A124: Sanitation ladder | B124: Basic | C124: =C122*C129/100 -> 21.70067548 | D124: =D122*D129/100 -> 48.08836572 | E124: =E122*E129/100 -> 57.11336361 | F124: 49.56155297 | G124: 72.55742436 | H124: 39.7584555 | I124: 42.85800513 | J124: 53.34691531 | K124: 63.28088803 | L124: 85.43383259 | M124: 16.95770761 | N124: 34.60612926 | O124: 53.38838251 | P124: 60.02952676 | Q124: 59.48432973 | BA124: Sanitation ladder | BB124: Basic | BC124: 93814.96408 | BD124: 217947.8331 | BE124: 263984.8201 | BF124: 228044.9662 | BG124: 330990.2344 | BH124: 71673.19025 | BI124: 76984.75607 | BJ124: 98451.17664 | BK124: 115392.0225 | BL124: 159782.1383 | BM124: 43645.35474 | BN124: 92008.67488 | BO124: 145788.3152 | BP124: 166636.6282 | BQ124: 164420.5612
B125: Limited | C125: =C122*C128/100 -> 8.651704958 | D125: =D122*D128/100 -> 8.296206552 | E125: =E122*E128/100 -> 10.64787888 | F125: 30.6540149 | G125: 26.33021442 | H125: 19.75085489 | I125: 33.31693986 | J125: 39.34855901 | K125: 35.48067926 | L125: 14.3341769 | M125: 7.82039535 | N125: 9.108255084 | O125: 8.705545464 | P125: 7.925685086 | Q125: 12.90863975 | BB125: Limited | BC125: 44360.94623 | BD125: 40212.3596 | BE125: 49471.07358 | BF125: 142409.0106 | BG125: 120590.1088 | BH125: 37741.96616 | BI125: 60249.43716 | BJ125: 72617.35587 | BK125: 65436.78424 | BL125: 26808.41263 | BM125: 23448.25211 | BN125: 28319.19333 | BO125: 24666.75215 | BP125: 21697.77872 | BQ125: 36057.56638
B126: Unimproved | C126: =100-C124-C125-C127 -> 7.18591539 | D126: =100-D124-D125-D127 -> 6.248545592 | E126: =100-E124-E125-E127 -> 18.83359731 | F126: 18.42093796 | G126: 1.11236122 | H126: 8.408041141 | I126: 23.825055 | J126: 7.304525674 | K126: 1.23843271 | L126: 0.2319905103 | M126: 6.489220059 | N126: 7.17649469 | O126: 6.891596438 | P126: 16.03462019 | Q126: 22.75665385 | BB126: Unimproved | BC126: 35875.01434 | BD126: 31140.70427 | BE126: 88504.53853 | BF126: 87042.91573 | BG126: 5149.604553 | BH126: 16420.50897 | BI126: 44522.68311 | BJ126: 13702.89182 | BK126: 2289.345886 | BL126: 440.3163147 | BM126: 19806.81247 | BN126: 21095.35048 | BO126: 20349.98627 | BP126: 45498.93568 | BQ126: 63585.94643
B127: Open defecation | C127: 62.46170417 | D127: 37.36688214 | E127: 13.40516019 | F127: 1.363494173 | G127: 0 | H127: 32.08264847 | I127: 0 | J127: 0 | K127: 0 | L127: 0 | M127: 68.73267698 | N127: 49.10912096 | O127: 31.01447559 | P127: 16.01016796 | Q127: 4.850376674 | BB127: Open defecation | BC127: 289611.3722 | BD127: 172596.7489 | BE127: 62224.76993 | BF127: 6324.173203 | BG127: 0 | BH127: 59441.9736 | BI127: 0 | BJ127: 0 | BK127: 0 | BL127: 0 | BM127: 191026.8572 | BN127: 136471.8017 | BO127: 85782.03511 | BP127: 44573.38464 | BQ127: 13461.01204
A128: Shared among Improved Sanitation | B128: Yes | C128: 28.50420571 | D128: 14.71361086 | E128: 15.71381883 | F128: 38.21454577 | G128: 26.62639613 | H128: 33.1895207 | I128: 43.7373993 | J128: 42.44927738 | K128: 35.92559356 | L128: 14.36750816 | M128: 31.56171948 | N128: 20.83583063 | O128: 14.01996258 | P128: 11.66310114 | Q128: 17.83134445 | BA128: Shared among improved sanitation facilities | BB128: Yes | BC128: N/A | BD128: N/A | BE128: N/A | BF128: N/A | BG128: N/A | BH128: N/A | BI128: N/A | BJ128: N/A | BK128: N/A | BL128: N/A | BM128: N/A | BN128: N/A | BO128: N/A | BP128: N/A | BQ128: N/A
B129: No | C129: 71.49579429 | D129: 85.28638914 | E129: 84.28618117 | F129: 61.78545423 | G129: 73.37360387 | H129: 66.8104793 | I129: 56.2626007 | J129: 57.55072262 | K129: 64.07440644 | L129: 85.63249184 | M129: 68.43828052 | N129: 79.16416937 | O129: 85.98003742 | P129: 88.33689886 | Q129: 82.16865555 | BB129: No | BC129: N/A | BD129: N/A | BE129: N/A | BF129: N/A | BG129: N/A | BH129: N/A | BI129: N/A | BJ129: N/A | BK129: N/A | BL129: N/A | BM129: N/A | BN129: N/A | BO129: N/A | BP129: N/A | BQ129: N/A
A130: Manually calculated ratios | B130: Improved latrines
B131: Other
B132: Other
C133: NATIONAL wealth index quintile | H133: URBAN wealth index quintile | M133: RURAL wealth index quintile | BA133: Raw numbers of respondents: | BB133: Use of sanitation facilities | BC133: NATIONAL wealth index quintile | BH133: URBAN wealth index quintile | BM133: RURAL wealth index quintile
A134: Percentage based on weighted population | C134: Poorest | D134: Poor | E134: Middle | F134: Rich | G134: Richest | H134: Poorest | I134: Poor | J134: Middle | K134: Rich | L134: Richest | M134: Poorest | N134: Poor | O134: Middle | P134: Rich | Q134: Richest | BA134: Sanitation data, raw numbers (weighted) | BC134: Poorest | BD134: Poor | BE134: Middle | BF134: Rich | BG134: Richest | BH134: Poorest | BI134: Poor | BJ134: Middle | BK134: Rich | BL134: Richest | BM134: Poorest | BN134: Poor | BO134: Middle | BP134: Rich | BQ134: Richest
A135: Sanitation type | B135: Sewer connection | C135: 0.3690631121 | D135: 1.907819151 | E135: 5.951837963 | F135: 55.95185571 | G135: 95.05830922 | H135: 22.95295693 | I135: 59.0060841 | J135: 87.63451856 | K135: 94.85012057 | L135: 98.08674052 | M135: 0 | N135: 0.4073701443 | O135: 1.841935588 | P135: 1.018920693 | Q135: 19.43606376 | BA135: Sanitation type | BB135: Sewer connection | BC135: N/A | BD135: N/A | BE135: N/A | BF135: N/A | BG135: N/A | BH135: N/A | BI135: N/A | BJ135: N/A | BK135: N/A | BL135: N/A | BM135: N/A | BN135: N/A | BO135: N/A | BP135: N/A | BQ135: N/A
B136: Septic tank connection | C136: 0.06633459151 | D136: 0 | E136: 0.4333348798 | F136: 3.280781849 | G136: 1.496735275 | H136: 0.948853753 | I136: 4.292912318 | J136: 2.573334172 | K136: 1.065276054 | L136: 1.408095669 | M136: 0 | N136: 0.1107384258 | O136: 0 | P136: 0.2869355518 | Q136: 1.562952393 | BB136: Septic tank connection | BC136: N/A | BD136: N/A | BE136: N/A | BF136: N/A | BG136: N/A | BH136: N/A | BI136: N/A | BJ136: N/A | BK136: N/A | BL136: N/A | BM136: N/A | BN136: N/A | BO136: N/A | BP136: N/A | BQ136: N/A
B137: Improved latrines | C137: 29.91698274 | D137: 54.47675312 | E137: 61.37606965 | F137: 20.98293032 | G137: 2.332594289 | H137: 35.60749971 | I137: 12.87594858 | J137: 2.487621598 | K137: 2.846170664 | L137: 0.2731733024 | M137: 24.77810296 | N137: 43.19627578 | O137: 60.25199239 | P137: 66.6493556 | Q137: 51.39395333 | BB137: Improved latrines | BC137: N/A | BD137: N/A | BE137: N/A | BF137: N/A | BG137: N/A | BH137: N/A | BI137: N/A | BJ137: N/A | BK137: N/A | BL137: N/A | BM137: N/A | BN137: N/A | BO137: N/A | BP137: N/A | BQ137: N/A
B138: Unimproved facilities | C138: 7.67654026 | D138: 6.666497077 | E138: 18.92980459 | F138: 18.44434349 | G138: 1.11236122 | H138: 8.764249593 | I138: 23.825055 | J138: 7.304525674 | K138: 1.23843271 | L138: 0.2319905103 | M138: 7.066736592 | N138: 7.535611151 | O138: 7.268193285 | P138: 16.18703448 | Q138: 22.7837568 | BB138: Unimproved facilities | BC138: N/A | BD138: N/A | BE138: N/A | BF138: N/A | BG138: N/A | BH138: N/A | BI138: N/A | BJ138: N/A | BK138: N/A | BL138: N/A | BM138: N/A | BN138: N/A | BO138: N/A | BP138: N/A | BQ138: N/A
B139: Open defecation | C139: 61.9710793 | D139: 36.94893065 | E139: 13.30895291 | F139: 1.340088643 | G139: 0 | H139: 31.72644002 | I139: 0 | J139: 0 | K139: 0 | L139: 0 | M139: 68.15516044 | N139: 48.7500045 | O139: 30.63787874 | P139: 15.85775367 | Q139: 4.823273723 | BB139: Open defecation | BC139: N/A | BD139: N/A | BE139: N/A | BF139: N/A | BG139: N/A | BH139: N/A | BI139: N/A | BJ139: N/A | BK139: N/A | BL139: N/A | BM139: N/A | BN139: N/A | BO139: N/A | BP139: N/A | BQ139: N/A
A140: Septic tank emptying practices | B140: Not emptied/treated and disposed in situ | C140: N/A | D140: N/A | E140: N/A | F140: N/A | G140: N/A | H140: N/A | I140: N/A | J140: N/A | K140: N/A | L140: N/A | M140: N/A | N140: N/A | O140: N/A | P140: N/A | Q140: N/A | BA140: Septic tank emptying practices | BB140: Not emptied/treated and disposed in situ | BC140: N/A | BD140: N/A | BE140: N/A | BF140: N/A | BG140: N/A | BH140: N/A | BI140: N/A | BJ140: N/A | BK140: N/A | BL140: N/A | BM140: N/A | BN140: N/A | BO140: N/A | BP140: N/A | BQ140: N/A
B141: Emptied and buried on site | C141: N/A | D141: N/A | E141: N/A | F141: N/A | G141: N/A | H141: N/A | I141: N/A | J141: N/A | K141: N/A | L141: N/A | M141: N/A | N141: N/A | O141: N/A | P141: N/A | Q141: N/A | BB141: Emptied and buried on site | BC141: N/A | BD141: N/A | BE141: N/A | BF141: N/A | BG141: N/A | BH141: N/A | BI141: N/A | BJ141: N/A | BK141: N/A | BL141: N/A | BM141: N/A | BN141: N/A | BO141: N/A | BP141: N/A | BQ141: N/A
B142: Emptied and discharged locally | C142: N/A | D142: N/A | E142: N/A | F142: N/A | G142: N/A | H142: N/A | I142: N/A | J142: N/A | K142: N/A | L142: N/A | M142: N/A | N142: N/A | O142: N/A | P142: N/A | Q142: N/A | BB142: Emptied and discharged locally | BC142: N/A | BD142: N/A | BE142: N/A | BF142: N/A | BG142: N/A | BH142: N/A | BI142: N/A | BJ142: N/A | BK142: N/A | BL142: N/A | BM142: N/A | BN142: N/A | BO142: N/A | BP142: N/A | BQ142: N/A
B143: Emptied and removed offsite | C143: N/A | D143: N/A | E143: N/A | F143: N/A | G143: N/A | H143: N/A | I143: N/A | J143: N/A | K143: N/A | L143: N/A | M143: N/A | N143: N/A | O143: N/A | P143: N/A | Q143: N/A | BB143: Emptied and removed offsite | BC143: N/A | BD143: N/A | BE143: N/A | BF143: N/A | BG143: N/A | BH143: N/A | BI143: N/A | BJ143: N/A | BK143: N/A | BL143: N/A | BM143: N/A | BN143: N/A | BO143: N/A | BP143: N/A | BQ143: N/A
A144: Latrine emptying practices | B144: Not emptied/treated and disposed in situ | C144: N/A | D144: N/A | E144: N/A | F144: N/A | G144: N/A | H144: N/A | I144: N/A | J144: N/A | K144: N/A | L144: N/A | M144: N/A | N144: N/A | O144: N/A | P144: N/A | Q144: N/A | BA144: Latrine emptying practices | BB144: Not emptied/treated and disposed in situ | BC144: N/A | BD144: N/A | BE144: N/A | BF144: N/A | BG144: N/A | BH144: N/A | BI144: N/A | BJ144: N/A | BK144: N/A | BL144: N/A | BM144: N/A | BN144: N/A | BO144: N/A | BP144: N/A | BQ144: N/A
B145: Emptied and buried on site | C145: N/A | D145: N/A | E145: N/A | F145: N/A | G145: N/A | H145: N/A | I145: N/A | J145: N/A | K145: N/A | L145: N/A | M145: N/A | N145: N/A | O145: N/A | P145: N/A | Q145: N/A | BB145: Emptied and buried on site | BC145: N/A | BD145: N/A | BE145: N/A | BF145: N/A | BG145: N/A | BH145: N/A | BI145: N/A | BJ145: N/A | BK145: N/A | BL145: N/A | BM145: N/A | BN145: N/A | BO145: N/A | BP145: N/A | BQ145: N/A
B146: Emptied and discharged locally | C146: N/A | D146: N/A | E146: N/A | F146: N/A | G146: N/A | H146: N/A | I146: N/A | J146: N/A | K146: N/A | L146: N/A | M146: N/A | N146: N/A | O146: N/A | P146: N/A | Q146: N/A | BB146: Emptied and discharged locally | BC146: N/A | BD146: N/A | BE146: N/A | BF146: N/A | BG146: N/A | BH146: N/A | BI146: N/A | BJ146: N/A | BK146: N/A | BL146: N/A | BM146: N/A | BN146: N/A | BO146: N/A | BP146: N/A | BQ146: N/A
B147: Emptied and removed offsite | C147: N/A | D147: N/A | E147: N/A | F147: N/A | G147: N/A | H147: N/A | I147: N/A | J147: N/A | K147: N/A | L147: N/A | M147: N/A | N147: N/A | O147: N/A | P147: N/A | Q147: N/A | BB147: Emptied and removed offsite | BC147: N/A | BD147: N/A | BE147: N/A | BF147: N/A | BG147: N/A | BH147: N/A | BI147: N/A | BJ147: N/A | BK147: N/A | BL147: N/A | BM147: N/A | BN147: N/A | BO147: N/A | BP147: N/A | BQ147: N/A
A148: Shared among improved sanitation facilities | B148: Yes | C148: 10.2766013 | D148: 9.000103961 | E148: 11.25899921 | F148: 30.17638695 | G148: 26.0485556 | H148: 20.4253889 | I148: 32.24078277 | J148: 38.70973715 | K148: 35.39834435 | L148: 14.12461251 | M148: 9.431478904 | N148: 10.2644042 | O148: 9.463264901 | P148: 8.523743509 | Q148: 13.15107309 | BA148: Shared among improved sanitation facilities | BB148: Yes | BC148: N/A | BD148: N/A | BE148: N/A | BF148: N/A | BG148: N/A | BH148: N/A | BI148: N/A | BJ148: N/A | BK148: N/A | BL148: N/A | BM148: N/A | BN148: N/A | BO148: N/A | BP148: N/A | BQ148: N/A
B149: No | C149: 25.77632858 | D149: 52.16845652 | E149: 60.39130636 | F149: 48.7893219 | G149: 71.78126512 | H149: 41.11629193 | I149: 41.47366592 | J149: 52.48083084 | K149: 63.13404118 | L149: 84.18479752 | M149: 20.45117344 | N149: 38.99883076 | O149: 58.03523839 | P149: 64.55925052 | Q149: 60.60148735 | BB149: No | BC149: N/A | BD149: N/A | BE149: N/A | BF149: N/A | BG149: N/A | BH149: N/A | BI149: N/A | BJ149: N/A | BK149: N/A | BL149: N/A | BM149: N/A | BN149: N/A | BO149: N/A | BP149: N/A | BQ149: N/A
B150: DK/missing | C150: 63.94707012 | D150: 38.83143951 | E150: 28.34969443 | F150: 21.03429115 | G150: 2.17017929 | H150: 38.45831917 | I150: 26.28555131 | J150: 8.809432013 | K150: 1.467614476 | L150: 1.690589972 | M150: 70.11734766 | N150: 50.73676504 | O150: 32.5014967 | P150: 26.91700597 | Q150: 26.24743956 | BB150: DK/missing | BC150: N/A | BD150: N/A | BE150: N/A | BF150: N/A | BG150: N/A | BH150: N/A | BI150: N/A | BJ150: N/A | BK150: N/A | BL150: N/A | BM150: N/A | BN150: N/A | BO150: N/A | BP150: N/A | BQ150: N/A
A151: Shared among all sanitation facilities | B151: Yes | C151: 82.77814942 | D151: 89.70983171 | E151: 88.30289836 | F151: 62.77058326 | G151: 73.75066741 | H151: 71.03874596 | I151: 57.52620923 | J151: 57.70473111 | K151: 64.34409202 | L151: 85.85876772 | M151: 81.91279609 | N151: 88.62072255 | O151: 89.50753664 | P151: 91.52377339 | Q151: 84.58697295 | BA151: Shared among all sanitation facilities | BB151: Yes | BC151: N/A | BD151: N/A | BE151: N/A | BF151: N/A | BG151: N/A | BH151: N/A | BI151: N/A | BJ151: N/A | BK151: N/A | BL151: N/A | BM151: N/A | BN151: N/A | BO151: N/A | BP151: N/A | BQ151: N/A
B152: No | C152: 17.22185058 | D152: 10.29016829 | E152: 11.69710164 | F152: 37.22941674 | G152: 26.24933259 | H152: 28.96125404 | I152: 42.47379077 | J152: 42.29526889 | K152: 35.65590798 | L152: 14.14123228 | M152: 18.08720391 | N152: 11.37927745 | O152: 10.49246336 | P152: 8.47622661 | Q152: 15.41302705 | BB152: No | BC152: N/A | BD152: N/A | BE152: N/A | BF152: N/A | BG152: N/A | BH152: N/A | BI152: N/A | BJ152: N/A | BK152: N/A | BL152: N/A | BM152: N/A | BN152: N/A | BO152: N/A | BP152: N/A | BQ152: N/A
A153: What type of toilet facilities | B153: Flush to piped sewage system | C153: 0.3702734151 | D153: 1.910292861 | E153: 6.940843183 | F153: 67.86540388 | G153: 95.85194829 | H153: 23.95008611 | I153: 76.87975644 | J153: 94.54023424 | K153: 95.35192262 | L153: 98.31482157 | M153: 0 | N153: 0.4084668949 | O153: 1.845923592 | P153: 1.133566049 | Q153: 24.67823012 | BA153: What type of toilet facilities | BB153: Flush to piped sewage system | BC153: 1724.75412 | BD153: 8911.851501 | BE153: 27827.26413 | BF153: 264049.1197 | BG153: 440066.3141 | BH153: 43004.16495 | BI153: 110266.6577 | BJ153: 164397.5777 | BK153: 175338.3383 | BL153: 186167.9258 | BM153: 0 | BN153: 1140.400665 | BO153: 5157.177643 | BP153: 2864.008667 | BQ153: 54243.05219
B154: Flush to septic tank | C154: 0.06655212871 | D154: 0 | E154: 0.5053412854 | F154: 3.979342283 | G154: 1.509231474 | H154: 0.9900741399 | I154: 5.593288532 | J154: 2.7761163 | K154: 1.070911869 | L154: 1.411369913 | M154: 0 | N154: 0.1110365636 | O154: 0 | P154: 0.3192205264 | Q154: 1.984501558 | BB154: Flush to septic tank | BC154: 310.0035095 | BD154: 0 | BE154: 2026.016876 | BF154: 15482.73151 | BG154: 6929.039459 | BH154: 1777.751923 | BI154: 8022.309906 | BJ154: 4827.43457 | BK154: 1969.251404 | BL154: 2672.55542 | BM154: 0 | BN154: 310.0035095 | BO154: 0 | BP154: 806.5258789 | BQ154: 4361.95874
B155: Pour flush latrine | C155: 0.08657324929 | D155: 0.05983278896 | E155: 0.4702729169 | F155: 3.105187477 | G155: 0.7693219668 | H155: 2.089165936 | I155: 5.730942554 | J155: 1.403049809 | K155: 1.070812376 | L155: 0.2738085122 | M155: 0.1438774364 | N155: 0 | O155: 0 | P155: 0 | Q155: 0.400291898 | BB155: Pour flush latrine | BC155: 403.2630005 | BD155: 279.1304626 | BE155: 1885.420593 | BF155: 12081.59052 | BG155: 3532.037567 | BH155: 3751.253174 | BI155: 8219.74353 | BJ155: 2439.78653 | BK155: 1969.068451 | BL155: 518.480957 | BM155: 403.2630005 | BN155: 0 | BO155: 0 | BP155: 0 | BQ155: 879.8464966
B156: Covered dry latrine (with privacy) | C156: 29.92851903 | D156: 54.4875558 | E156: 71.10453763 | F156: 22.34553301 | G156: 1.582747085 | H156: 35.06520537 | I156: 11.04529004 | J156: 1.280599653 | K156: 1.790415879 | L156: 0 | M156: 24.63422553 | N156: 43.31257183 | O156: 60.38244495 | P156: 74.14850565 | Q156: 64.85529805 | BB156: Covered dry latrine (with privacy) | BC156: 139408.7029 | BD156: 254194.0117 | BE156: 285072.6774 | BF156: 86941.4751 | BG156: 7266.557312 | BH156: 62962.19016 | BI156: 15841.97546 | BJ156: 2226.855927 | BK156: 3292.314789 | BL156: 0 | BM156: 69045.37604 | BN156: 120924.5751 | BO156: 168697.6625 | BP156: 187339.7346 | BQ156: 142552.7398
B157: Uncovered dry latrine (without privacy) | C157: 4.600002215 | D157: 4.880560574 | E157: 3.585172349 | F157: 0.822155725 | G157: 0.2867511794 | H157: 4.498665491 | I157: 0.3892288465 | J157: 0 | K157: 0.7159372541 | L157: 0 | M157: 4.284254552 | N157: 4.262348137 | O157: 5.570615294 | P157: 4.181386866 | Q157: 1.408753453 | BB157: Uncovered dry latrine (without privacy) | BC157: 21427.06564 | BD157: 22768.67174 | BE157: 14373.69139 | BF157: 3198.824188 | BG157: 1316.504639 | BH157: 8077.68924 | BI157: 558.2609253 | BJ157: 0 | BK157: 1316.504639 | BL157: 0 | BM157: 12008.00757 | BN157: 11900.07002 | BO157: 15563.29459 | BP157: 10564.47327 | BQ157: 3096.457352
B158: Bucket latrine (where fresh excreta are manually removed) | C158: 0.1911566016 | D158: 0 | E158: 0.1724301851 | F158: 0.07174158203 | G158: 0 | H158: 0.3020934988 | I158: 0 | J158: 0 | K158: 0 | L158: 0 | M158: 0 | N158: 0.2246198141 | O158: 0 | P158: 0.2736176286 | Q158: 0 | BB158: Bucket latrine (where fresh excreta are manually removed) | BC158: 890.4180603 | BD158: 0 | BE158: 691.3079834 | BF158: 279.1304626 | BG158: 0 | BH158: 542.4313965 | BI158: 0 | BJ158: 0 | BK158: 0 | BL158: 0 | BM158: 0 | BN158: 627.1171265 | BO158: 0 | BP158: 691.3079834 | BQ158: 0
B159: No facilities (open defecation) | C159: 62.17430683 | D159: 36.99683925 | E159: 15.52047546 | F159: 1.625427 | G159: 0 | H159: 33.10470946 | I159: 0 | J159: 0 | K159: 0 | L159: 0 | M159: 68.15516044 | N159: 48.8812527 | O159: 30.70421331 | P159: 17.64201209 | Q159: 6.124175159 | BB159: No facilities (open defecation) | BC159: 289611.3722 | BD159: 172596.7489 | BE159: 62224.76993 | BF159: 6324.173203 | BG159: 0 | BH159: 59441.9736 | BI159: 0 | BJ159: 0 | BK159: 0 | BL159: 0 | BM159: 191026.8572 | BN159: 136471.8017 | BO159: 85782.03511 | BP159: 44573.38464 | BQ159: 13461.01204
B160: Other | C160: 2.582616527 | D160: 1.664918733 | E160: 1.700926982 | F160: 0.1852090428 | G160: 0 | H160: 0 | I160: 0.3614935879 | J160: 0 | K160: 0 | L160: 0 | M160: 2.78248204 | N160: 2.799704063 | O160: 1.496802859 | P160: 2.301691188 | Q160: 0.5487497647 | BB160: Other | BC160: 12029.97113 | BD160: 7767.138123 | BE160: 6819.365189 | BF160: 720.6069946 | BG160: 0 | BH160: 0 | BI160: 518.480957 | BJ160: 0 | BK160: 0 | BL160: 0 | BM160: 7798.804901 | BN160: 7816.50708 | BO160: 4181.797272 | BP160: 5815.33252 | BQ160: 1206.158707
BB161: Total | BC161: 465805.5505 | BD161: 466517.5525 | BE161: 400920.5135 | BF161: 389077.6517 | BG161: 459110.453 | BH161: 179557.4544 | BI161: 143427.4284 | BJ161: 173891.6547 | BK161: 183885.4775 | BL161: 189358.9622 | BM161: 280282.3087 | BN161: 279190.4753 | BO161: 279381.9671 | BP161: 252654.7675 | BQ161: 219801.2253
A208: =A1026 -> Zimbabwe
A209: =A1034 -> 2003
A210: Access to hygiene facilities
A211: by wealth quintile and sub-national region
A212: Notes:
A213: WHO/UNICEF JMP customised wealth index excludes water,
A214: sanitation and hygiene assets.
A215: Survey used for analysis: | B215: =A1025 -> WHS03
A220: Access to handwashing | C220: NATIONAL wealth index quintile | H220: URBAN wealth index quintile | M220: RURAL wealth index quintile | BA220: Raw numbers of respondents: | BB220: Access to handwashing | BC220: NATIONAL wealth index quintile | BH220: URBAN wealth index quintile | BM220: RURAL wealth index quintile
A221: Weighted percentage (used in graphs) | C221: Poorest | D221: Poor | E221: Middle | F221: Rich | G221: Richest | H221: Poorest | I221: Poor | J221: Middle | K221: Rich | L221: Richest | M221: Poorest | N221: Poor | O221: Middle | P221: Rich | Q221: Richest | BA221: Hygiene data, raw numbers (weighted) | BC221: Poorest | BD221: Poor | BE221: Middle | BF221: Rich | BG221: Richest | BH221: Poorest | BI221: Poor | BJ221: Middle | BK221: Rich | BL221: Richest | BM221: Poorest | BN221: Poor | BO221: Middle | BP221: Rich | BQ221: Richest
A222: Hygiene ladder | B222: Basic | C222: N/A | D222: N/A | E222: N/A | F222: N/A | G222: N/A | H222: N/A | I222: N/A | J222: N/A | K222: N/A | L222: N/A | M222: N/A | N222: N/A | O222: N/A | P222: N/A | Q222: N/A | BA222: Hygiene ladder | BB222: Basic | BC222: N/A | BD222: N/A | BE222: N/A | BF222: N/A | BG222: N/A | BH222: N/A | BI222: N/A | BJ222: N/A | BK222: N/A | BL222: N/A | BM222: N/A | BN222: N/A | BO222: N/A | BP222: N/A | BQ222: N/A
B223: Limited | C223: N/A | D223: N/A | E223: N/A | F223: N/A | G223: N/A | H223: N/A | I223: N/A | J223: N/A | K223: N/A | L223: N/A | M223: N/A | N223: N/A | O223: N/A | P223: N/A | Q223: N/A | BB223: Limited | BC223: N/A | BD223: N/A | BE223: N/A | BF223: N/A | BG223: N/A | BH223: N/A | BI223: N/A | BJ223: N/A | BK223: N/A | BL223: N/A | BM223: N/A | BN223: N/A | BO223: N/A | BP223: N/A | BQ223: N/A
B224: No facility | C224: N/A | D224: N/A | E224: N/A | F224: N/A | G224: N/A | H224: N/A | I224: N/A | J224: N/A | K224: N/A | L224: N/A | M224: N/A | N224: N/A | O224: N/A | P224: N/A | Q224: N/A | BB224: No facility | BC224: N/A | BD224: N/A | BE224: N/A | BF224: N/A | BG224: N/A | BH224: N/A | BI224: N/A | BJ224: N/A | BK224: N/A | BL224: N/A | BM224: N/A | BN224: N/A | BO224: N/A | BP224: N/A | BQ224: N/A
BA225: Observed handwashing place | BB225: Fixed | BC225: N/A | BD225: N/A | BE225: N/A | BF225: N/A | BG225: N/A | BH225: N/A | BI225: N/A | BJ225: N/A | BK225: N/A | BL225: N/A | BM225: N/A | BN225: N/A | BO225: N/A | BP225: N/A | BQ225: N/A
BB226: Mobile | BC226: N/A | BD226: N/A | BE226: N/A | BF226: N/A | BG226: N/A | BH226: N/A | BI226: N/A | BJ226: N/A | BK226: N/A | BL226: N/A | BM226: N/A | BN226: N/A | BO226: N/A | BP226: N/A | BQ226: N/A
BA227: Water / Soap | BB227: Water and soap | BC227: N/A | BD227: N/A | BE227: N/A | BF227: N/A | BG227: N/A | BH227: N/A | BI227: N/A | BJ227: N/A | BK227: N/A | BL227: N/A | BM227: N/A | BN227: N/A | BO227: N/A | BP227: N/A | BQ227: N/A
BB228: Water only | BC228: N/A | BD228: N/A | BE228: N/A | BF228: N/A | BG228: N/A | BH228: N/A | BI228: N/A | BJ228: N/A | BK228: N/A | BL228: N/A | BM228: N/A | BN228: N/A | BO228: N/A | BP228: N/A | BQ228: N/A
BB229: Soap only | BC229: N/A | BD229: N/A | BE229: N/A | BF229: N/A | BG229: N/A | BH229: N/A | BI229: N/A | BJ229: N/A | BK229: N/A | BL229: N/A | BM229: N/A | BN229: N/A | BO229: N/A | BP229: N/A | BQ229: N/A
BB230: Neither | BC230: N/A | BD230: N/A | BE230: N/A | BF230: N/A | BG230: N/A | BH230: N/A | BI230: N/A | BJ230: N/A | BK230: N/A | BL230: N/A | BM230: N/A | BN230: N/A | BO230: N/A | BP230: N/A | BQ230: N/A
BA259: Raw numbers of respondents: | BB259: Menstrual health and hygiene | BC259: NATIONAL wealth index quintile | BH259: URBAN wealth index quintile | BM259: RURAL wealth index quintile
BA260: MHH data, raw numbers (weighted) | BC260: Poorest | BD260: Poor | BE260: Middle | BF260: Rich | BG260: Richest | BH260: Poorest | BI260: Poor | BJ260: Middle | BK260: Rich | BL260: Richest | BM260: Poorest | BN260: Poor | BO260: Middle | BP260: Rich | BQ260: Richest
BA261: Private place to wash and change | BB261: Yes | BC261: N/A | BD261: N/A | BE261: N/A | BF261: N/A | BG261: N/A | BH261: N/A | BI261: N/A | BJ261: N/A | BK261: N/A | BL261: N/A | BM261: N/A | BN261: N/A | BO261: N/A | BP261: N/A | BQ261: N/A
BB262: No | BC262: N/A | BD262: N/A | BE262: N/A | BF262: N/A | BG262: N/A | BH262: N/A | BI262: N/A | BJ262: N/A | BK262: N/A | BL262: N/A | BM262: N/A | BN262: N/A | BO262: N/A | BP262: N/A | BQ262: N/A
BB263: DK/not sure/missing | BC263: N/A | BD263: N/A | BE263: N/A | BF263: N/A | BG263: N/A | BH263: N/A | BI263: N/A | BJ263: N/A | BK263: N/A | BL263: N/A | BM263: N/A | BN263: N/A | BO263: N/A | BP263: N/A | BQ263: N/A
BA264: Use of menstrual materials | BB264: Materials reusable | BC264: N/A | BD264: N/A | BE264: N/A | BF264: N/A | BG264: N/A | BH264: N/A | BI264: N/A | BJ264: N/A | BK264: N/A | BL264: N/A | BM264: N/A | BN264: N/A | BO264: N/A | BP264: N/A | BQ264: N/A
BB265: Materials not reusable | BC265: N/A | BD265: N/A | BE265: N/A | BF265: N/A | BG265: N/A | BH265: N/A | BI265: N/A | BJ265: N/A | BK265: N/A | BL265: N/A | BM265: N/A | BN265: N/A | BO265: N/A | BP265: N/A | BQ265: N/A
BB266: No materials used | BC266: N/A | BD266: N/A | BE266: N/A | BF266: N/A | BG266: N/A | BH266: N/A | BI266: N/A | BJ266: N/A | BK266: N/A | BL266: N/A | BM266: N/A | BN266: N/A | BO266: N/A | BP266: N/A | BQ266: N/A
BB267: DK/not sure/missing | BC267: N/A | BD267: N/A | BE267: N/A | BF267: N/A | BG267: N/A | BH267: N/A | BI267: N/A | BJ267: N/A | BK267: N/A | BL267: N/A | BM267: N/A | BN267: N/A | BO267: N/A | BP267: N/A | BQ267: N/A
BA268: Use of menstrual materials with private place to wash and change | BB268: Materials reusable | BC268: N/A | BD268: N/A | BE268: N/A | BF268: N/A | BG268: N/A | BH268: N/A | BI268: N/A | BJ268: N/A | BK268: N/A | BL268: N/A | BM268: N/A | BN268: N/A | BO268: N/A | BP268: N/A | BQ268: N/A
BB269: Materials not reusable | BC269: N/A | BD269: N/A | BE269: N/A | BF269: N/A | BG269: N/A | BH269: N/A | BI269: N/A | BJ269: N/A | BK269: N/A | BL269: N/A | BM269: N/A | BN269: N/A | BO269: N/A | BP269: N/A | BQ269: N/A
BB270: No materials used | BC270: N/A | BD270: N/A | BE270: N/A | BF270: N/A | BG270: N/A | BH270: N/A | BI270: N/A | BJ270: N/A | BK270: N/A | BL270: N/A | BM270: N/A | BN270: N/A | BO270: N/A | BP270: N/A | BQ270: N/A
BA271: Awareness of menstruation before menarche | BB271: Yes | BC271: N/A | BD271: N/A | BE271: N/A | BF271: N/A | BG271: N/A | BH271: N/A | BI271: N/A | BJ271: N/A | BK271: N/A | BL271: N/A | BM271: N/A | BN271: N/A | BO271: N/A | BP271: N/A | BQ271: N/A
BB272: No | BC272: N/A | BD272: N/A | BE272: N/A | BF272: N/A | BG272: N/A | BH272: N/A | BI272: N/A | BJ272: N/A | BK272: N/A | BL272: N/A | BM272: N/A | BN272: N/A | BO272: N/A | BP272: N/A | BQ272: N/A
BB273: DK/not sure/missing | BC273: N/A | BD273: N/A | BE273: N/A | BF273: N/A | BG273: N/A | BH273: N/A | BI273: N/A | BJ273: N/A | BK273: N/A | BL273: N/A | BM273: N/A | BN273: N/A | BO273: N/A | BP273: N/A | BQ273: N/A
BA274: Participation in (all) activities during menstruation | BB274: Yes | BC274: N/A | BD274: N/A | BE274: N/A | BF274: N/A | BG274: N/A | BH274: N/A | BI274: N/A | BJ274: N/A | BK274: N/A | BL274: N/A | BM274: N/A | BN274: N/A | BO274: N/A | BP274: N/A | BQ274: N/A
BB275: No | BC275: N/A | BD275: N/A | BE275: N/A | BF275: N/A | BG275: N/A | BH275: N/A | BI275: N/A | BJ275: N/A | BK275: N/A | BL275: N/A | BM275: N/A | BN275: N/A | BO275: N/A | BP275: N/A | BQ275: N/A
BB276: DK/not sure/missing/no such activity | BC276: N/A | BD276: N/A | BE276: N/A | BF276: N/A | BG276: N/A | BH276: N/A | BI276: N/A | BJ276: N/A | BK276: N/A | BL276: N/A | BM276: N/A | BN276: N/A | BO276: N/A | BP276: N/A | BQ276: N/A
BA277: Participation in specific activities during menstruation | BB277: Did not go to school (amongst those usually attending school) | BC277: N/A | BD277: N/A | BE277: N/A | BF277: N/A | BG277: N/A | BH277: N/A | BI277: N/A | BJ277: N/A | BK277: N/A | BL277: N/A | BM277: N/A | BN277: N/A | BO277: N/A | BP277: N/A | BQ277: N/A
BB278: Did not go to work (amongst those who usually work) | BC278: N/A | BD278: N/A | BE278: N/A | BF278: N/A | BG278: N/A | BH278: N/A | BI278: N/A | BJ278: N/A | BK278: N/A | BL278: N/A | BM278: N/A | BN278: N/A | BO278: N/A | BP278: N/A | BQ278: N/A
BB279: Did not participate in social activities | BC279: N/A | BD279: N/A | BE279: N/A | BF279: N/A | BG279: N/A | BH279: N/A | BI279: N/A | BJ279: N/A | BK279: N/A | BL279: N/A | BM279: N/A | BN279: N/A | BO279: N/A | BP279: N/A | BQ279: N/A
BB280: Did not cook food | BC280: N/A | BD280: N/A | BE280: N/A | BF280: N/A | BG280: N/A | BH280: N/A | BI280: N/A | BJ280: N/A | BK280: N/A | BL280: N/A | BM280: N/A | BN280: N/A | BO280: N/A | BP280: N/A | BQ280: N/A
BB281: Did not eat with others | BC281: N/A | BD281: N/A | BE281: N/A | BF281: N/A | BG281: N/A | BH281: N/A | BI281: N/A | BJ281: N/A | BK281: N/A | BL281: N/A | BM281: N/A | BN281: N/A | BO281: N/A | BP281: N/A | BQ281: N/A
BB282: Did not bathe in regular place | BC282: N/A | BD282: N/A | BE282: N/A | BF282: N/A | BG282: N/A | BH282: N/A | BI282: N/A | BJ282: N/A | BK282: N/A | BL282: N/A | BM282: N/A | BN282: N/A | BO282: N/A | BP282: N/A | BQ282: N/A
BB283: Did not participate in other activities | BC283: N/A | BD283: N/A | BE283: N/A | BF283: N/A | BG283: N/A | BH283: N/A | BI283: N/A | BJ283: N/A | BK283: N/A | BL283: N/A | BM283: N/A | BN283: N/A | BO283: N/A | BP283: N/A | BQ283: N/A
BB284: DK/not sure/missing/no such activity | BC284: N/A | BD284: N/A | BE284: N/A | BF284: N/A | BG284: N/A | BH284: N/A | BI284: N/A | BJ284: N/A | BK284: N/A | BL284: N/A | BM284: N/A | BN284: N/A | BO284: N/A | BP284: N/A | BQ284: N/A
BA339: Raw numbers of respondents: | BB339: Basic water, sanitation and hygiene | BC339: NATIONAL wealth index quintile | BH339: URBAN wealth index quintile | BM339: RURAL wealth index quintile
BA340: WatSan data, raw numbers (weighted) | BC340: Poorest | BD340: Poor | BE340: Middle | BF340: Rich | BG340: Richest | BH340: Poorest | BI340: Poor | BJ340: Middle | BK340: Rich | BL340: Richest | BM340: Poorest | BN340: Poor | BO340: Middle | BP340: Rich | BQ340: Richest
BA341: Use of Basic Water Sanitation and Hygiene | BB341: Yes | BC341: N/A | BD341: N/A | BE341: N/A | BF341: N/A | BG341: N/A | BH341: N/A | BI341: N/A | BJ341: N/A | BK341: N/A | BL341: N/A | BM341: N/A | BN341: N/A | BO341: N/A | BP341: N/A | BQ341: N/A
BB342: No | BC342: N/A | BD342: N/A | BE342: N/A | BF342: N/A | BG342: N/A | BH342: N/A | BI342: N/A | BJ342: N/A | BK342: N/A | BL342: N/A | BM342: N/A | BN342: N/A | BO342: N/A | BP342: N/A | BQ342: N/A
BA343: Use of Basic Water and Sanitation | BB343: Yes | BC343: N/A | BD343: N/A | BE343: N/A | BF343: N/A | BG343: N/A | BH343: N/A | BI343: N/A | BJ343: N/A | BK343: N/A | BL343: N/A | BM343: N/A | BN343: N/A | BO343: N/A | BP343: N/A | BQ343: N/A
BB344: No | BC344: N/A | BD344: N/A | BE344: N/A | BF344: N/A | BG344: N/A | BH344: N/A | BI344: N/A | BJ344: N/A | BK344: N/A | BL344: N/A | BM344: N/A | BN344: N/A | BO344: N/A | BP344: N/A | BQ344: N/A
BA345: Use of Basic Water and Hygiene | BB345: Yes | BC345: N/A | BD345: N/A | BE345: N/A | BF345: N/A | BG345: N/A | BH345: N/A | BI345: N/A | BJ345: N/A | BK345: N/A | BL345: N/A | BM345: N/A | BN345: N/A | BO345: N/A | BP345: N/A | BQ345: N/A
BB346: No | BC346: N/A | BD346: N/A | BE346: N/A | BF346: N/A | BG346: N/A | BH346: N/A | BI346: N/A | BJ346: N/A | BK346: N/A | BL346: N/A | BM346: N/A | BN346: N/A | BO346: N/A | BP346: N/A | BQ346: N/A
BA347: Use of Basic Sanitation and Hygiene | BB347: Yes | BC347: N/A | BD347: N/A | BE347: N/A | BF347: N/A | BG347: N/A | BH347: N/A | BI347: N/A | BJ347: N/A | BK347: N/A | BL347: N/A | BM347: N/A | BN347: N/A | BO347: N/A | BP347: N/A | BQ347: N/A
BB348: No | BC348: N/A | BD348: N/A | BE348: N/A | BF348: N/A | BG348: N/A | BH348: N/A | BI348: N/A | BJ348: N/A | BK348: N/A | BL348: N/A | BM348: N/A | BN348: N/A | BO348: N/A | BP348: N/A | BQ348: N/A
BA349: Use of Basic Water | BB349: Yes | BC349: N/A | BD349: N/A | BE349: N/A | BF349: N/A | BG349: N/A | BH349: N/A | BI349: N/A | BJ349: N/A | BK349: N/A | BL349: N/A | BM349: N/A | BN349: N/A | BO349: N/A | BP349: N/A | BQ349: N/A
BB350: No | BC350: N/A | BD350: N/A | BE350: N/A | BF350: N/A | BG350: N/A | BH350: N/A | BI350: N/A | BJ350: N/A | BK350: N/A | BL350: N/A | BM350: N/A | BN350: N/A | BO350: N/A | BP350: N/A | BQ350: N/A
BA351: Use of Basic Sanitation | BB351: Yes | BC351: N/A | BD351: N/A | BE351: N/A | BF351: N/A | BG351: N/A | BH351: N/A | BI351: N/A | BJ351: N/A | BK351: N/A | BL351: N/A | BM351: N/A | BN351: N/A | BO351: N/A | BP351: N/A | BQ351: N/A
BB352: No | BC352: N/A | BD352: N/A | BE352: N/A | BF352: N/A | BG352: N/A | BH352: N/A | BI352: N/A | BJ352: N/A | BK352: N/A | BL352: N/A | BM352: N/A | BN352: N/A | BO352: N/A | BP352: N/A | BQ352: N/A
BA353: Access to Basic Hygiene | BB353: Yes | BC353: N/A | BD353: N/A | BE353: N/A | BF353: N/A | BG353: N/A | BH353: N/A | BI353: N/A | BJ353: N/A | BK353: N/A | BL353: N/A | BM353: N/A | BN353: N/A | BO353: N/A | BP353: N/A | BQ353: N/A
BB354: No | BC354: N/A | BD354: N/A | BE354: N/A | BF354: N/A | BG354: N/A | BH354: N/A | BI354: N/A | BJ354: N/A | BK354: N/A | BL354: N/A | BM354: N/A | BN354: N/A | BO354: N/A | BP354: N/A | BQ354: N/A
C399: INITIAL (national) Wealth Index | H399: URBAN Wealth Index | M399: RURAL Wealth Index
C400: Component Matrix | H400: Component Matrix | M400: Component Matrix
E401: Component | J401: Component | O401: Component
B402: Note: The INITIAL (national) Wealth Index is based on the first component of the Principal Component Analysis (PCA) which has been obtained at national level. The final national-level (NATIONAL) Wealth Index is based on the URBAN and RURAL specific wealth indexes. Regression procedures are used to establish the relationships between the two sets of scores (urban and rural) and the initial (national) wealth factors. This allows best use of the available information for each area and a better precision of the FINAL (NATIONAL) Wealth Index. For dependency reasons, all WASH variables (contained in the generic MICS and DHS scripts) have been excluded from the sets of asset variables used in the PCAs. The PCA can extracts as many components as there are asset variables in the input. Only the first of the components is used to represent the Wealth Index. The scores represent the weights of the asset variables on the Wealth Index (correlations between the variables and the component). The communalities are the proportion of each variable's variance that can be explained by the component. Proportion of explained variance is the part of the model's total variance that is explained by the component. For more information on the procedure used: The DHS Wealth Index, DHS Comparative Reports No. 6, Shea Oscar Rutstein, Kiersten Johnson, ORC Macro International Inc., 2004. The DHS Wealth Index: Approaches for Rural and Urban Areas, Shea O. Rutstein, ORC Macro International Inc., 2008. MICS Methodological Paper No. 4, Review of options for reporting water, sanitation and hygiene coverage by wealth quintile, UNICEF, 2016. | E402: 1 | J402: 1 | O402: 1
C403: Uses wood fuel | E403: 0.8627436523 | H403: Uses wood fuel | J403: 0.834067946 | M403: Has hearth floor | O403: 0.6125214409
C404: Uses electricity fuel | E404: -0.8533260932 | H404: Uses open fire without chimney | J404: 0.8232797669 | M404: Uses electricity fuel | O404: -0.5838159691
C405: Uses open fire without chimney | E405: 0.8481591588 | H405: Uses electricity fuel | J405: -0.804867744 | M405: Has Video | O405: 0.5718144045
C406: Has Video | E406: 0.7652424112 | H406: Has Video | J406: 0.7192650761 | M406: Uses wood fuel | O406: 0.5691326585
C407: Uses open fire without chimney | E407: 0.6721323559 | H407: Uses open fire without chimney | J407: 0.6704746655 | M407: Uses open fire without chimney | O407: 0.5623443575
C408: Uses wood heating | E408: 0.6555877933 | H408: Uses wood heating | J408: 0.6256473809 | M408: Has hard floor | O408: -0.5103295461
C409: Has Vacuum cleaner | E409: 0.6554201812 | H409: Has mud brick wall | J409: 0.5984483892 | M409: Has Vacuum cleaner | O409: 0.5091137308
C410: Has Cellular phone | E410: 0.6410649533 | H410: Uses separate room as kitchen | J410: 0.5817236351 | M410: Has Cellular phone | O410: 0.4891910202
C411: Has hearth floor | E411: 0.5780929315 | H411: Has hearth floor | J411: 0.5576202054 | M411: Has cement, brick, stone or wood wall | O411: -0.4624967769
C412: Has cement, brick, stone or wood wall | E412: -0.5676250295 | H412: Has Vacuum cleaner | J412: 0.5544654785 | M412: Has TV | O412: 0.4539231684
C413: Has mud brick wall | E413: 0.5124242827 | H413: Has Cellular phone | J413: 0.5515008707 | M413: Has Refrigerator | O413: 0.4412142834
C414: Has hard floor | E414: -0.5079023839 | H414: Has cement, brick, stone or wood wall | J414: -0.513210209 | M414: Has DVD | O414: 0.4280331131
C415: Uses electricity heating | E415: -0.4883941073 | H415: Has hard floor | J415: -0.4305977631 | M415: Uses open fire without chimney | O415: 0.4062328095
C416: Has DVD | E416: 0.469247419 | H416: Has DVD | J416: 0.412588588 | M416: Uses electricity heating | O416: -0.3931467294
C417: Has Telephone | E417: 0.4599719815 | H417: Uses electricity heating | J417: -0.3762833906 | M417: Uses wood heating | O417: 0.3784952852
C418: Has Refrigerator | E418: 0.4516428974 | H418: Has Second home | J418: -0.3738263117 | M418: Has Bicycle | O418: 0.3626045821
C419: Heats house | E419: 0.3741751523 | H419: Has Employee | J419: -0.3696835521 | M419: Has Car | O419: 0.3505702439
C420: Has Magazine | E420: -0.3733488487 | H420: Has Internet | J420: -0.3556607024 | M420: Has Telephone | O420: 0.3483547627
C421: Uses separate room as kitchen | E421: 0.3714365568 | H421: Has Telephone | J421: 0.3493131756 | M421: Has mud brick wall | O421: 0.3444013529
C422: Has TV | E422: 0.3679468362 | H422: Has Magazine | J422: -0.3457952861 | M422: Has Employee | O422: 0.3369816449
C423: Uses separate building as kitchen | E423: 0.3648271968 | H423: Has TV | J423: 0.3212072624 | M423: Has Stereo | O423: 0.3146342244
C424: Has Internet | E424: -0.328355284 | H424: Has Refrigerator | J424: 0.3129379117 | M424: Has thatch wall | O424: 0.2925659197
... 199 more rows

Sheet DHS06
A2: =A1026 -> Zimbabwe
A3: =A1034 -> 2006
A4: Use of drinking water sources
A5: by wealth quintile and sub-national region
A6: Notes:
A7: WHO/UNICEF JMP customised wealth index excludes water,
A8: sanitation and hygiene assets.
A9: Survey used for analysis: | B9: =A1025 -> DHS06
A10: =B1028 -> 
A11: =B1027 -> 
A14: Use of drinking water sources | C14: NATIONAL wealth index quintile | H14: URBAN wealth index quintile | M14: RURAL wealth index quintile | R14: SUB-REGIONS: | BA14: Raw numbers of respondents: | BB14: Use of drinking water sources | BC14: NATIONAL wealth index quintile | BH14: URBAN wealth index quintile | BM14: RURAL wealth index quintile | BR14: SUB-REGIONS:
A15: Weighted percentage (used in graphs) | C15: Poorest | D15: Poor | E15: Middle | F15: Rich | G15: Richest | H15: Poorest | I15: Poor | J15: Middle | K15: Rich | L15: Richest | M15: Poorest | N15: Poor | O15: Middle | P15: Rich | Q15: Richest | R15: Bulawayo | S15: Harare | T15: Manicaland | U15: Mashonaland Central | V15: Mashonaland East | W15: Mashonaland West | X15: Masvingo | Y15: Matebeleland North | Z15: Matebeleland South | AA15: Midlands | BA15: Water data, raw numbers (weighted) | BC15: Poorest | BD15: Poor | BE15: Middle | BF15: Rich | BG15: Richest | BH15: Poorest | BI15: Poor | BJ15: Middle | BK15: Rich | BL15: Richest | BM15: Poorest | BN15: Poor | BO15: Middle | BP15: Rich | BQ15: Richest | BR15: Bulawayo | BS15: Harare | BT15: Manicaland | BU15: Mashonaland Central | BV15: Mashonaland East | BW15: Mashonaland West | BX15: Masvingo | BY15: Matebeleland North | BZ15: Matebeleland South | CA15: Midlands
A16: Water | B16: Improved | C16: 54.78334047 | D16: 60.93311883 | E16: 72.70423523 | F16: 93.00305758 | G16: 99.6715661 | H16: 98.19969548 | I16: 100 | J16: 99.69482472 | K16: 99.91208995 | L16: 100 | M16: 55.22469111 | N16: 56.01155255 | O16: 63.24502046 | P16: 71.12796839 | Q16: 81.129277 | R16: 99.90928795 | S16: 99.05430941 | T16: 76.8802316 | U16: 70.06961096 | V16: 81.31696876 | W16: 67.30824163 | X16: 52.51086753 | Y16: 79.271571 | Z16: 71.37573802 | AA16: 70.74841384 | BA16: Water | BB16: Improved | BC16: N/A | BD16: N/A | BE16: N/A | BF16: N/A | BG16: N/A | BH16: N/A | BI16: N/A | BJ16: N/A | BK16: N/A | BL16: N/A | BM16: N/A | BN16: N/A | BO16: N/A | BP16: N/A | BQ16: N/A | BR16: N/A | BS16: N/A | BT16: N/A | BU16: N/A | BV16: N/A | BW16: N/A | BX16: N/A | BY16: N/A | BZ16: N/A | CA16: N/A
B17: Not Improved | C17: 45.21665953 | D17: 39.06688117 | E17: 27.29576477 | F17: 6.996942417 | G17: 0.3284339035 | H17: 1.800304522 | I17: 0 | J17: 0.3051752849 | K17: 0.08791004693 | L17: 0 | M17: 44.77530889 | N17: 43.98844745 | O17: 36.75497954 | P17: 28.87203161 | Q17: 18.870723 | R17: 0.09071205184 | S17: 0.9456905867 | T17: 23.1197684 | U17: 29.93038904 | V17: 18.68303124 | W17: 32.69175837 | X17: 47.48913247 | Y17: 20.728429 | Z17: 28.62426198 | AA17: 29.25158616 | BB17: Not Improved | BC17: N/A | BD17: N/A | BE17: N/A | BF17: N/A | BG17: N/A | BH17: N/A | BI17: N/A | BJ17: N/A | BK17: N/A | BL17: N/A | BM17: N/A | BN17: N/A | BO17: N/A | BP17: N/A | BQ17: N/A | BR17: N/A | BS17: N/A | BT17: N/A | BU17: N/A | BV17: N/A | BW17: N/A | BX17: N/A | BY17: N/A | BZ17: N/A | CA17: N/A
A18: Water ladder | B18: Basic | C18: =C16*C23/100 -> 37.52658822 | D18: =D16*D23/100 -> 45.33424041 | E18: =E16*E23/100 -> 59.76288136 | F18: 89.18993222 | G18: 99.0735367 | H18: 97.31589822 | I18: 99.6 | J18: 99.09665577 | K18: 99.31261741 | L18: 99.9 | M18: 38.16026156 | N18: 37.58375176 | O18: 49.58409604 | P18: 58.18267815 | Q18: 70.98811737 | R18: 98.01101148 | S18: 98.65809218 | T18: 64.733155 | U18: 55.35499266 | V18: 72.69737007 | W18: 63.5389801 | X18: 41.11600927 | Y18: 58.97804882 | Z18: 46.82248414 | AA18: 59.92390652 | BA18: Water ladder | BB18: Basic | BC18: N/A | BD18: N/A | BE18: N/A | BF18: N/A | BG18: N/A | BH18: N/A | BI18: N/A | BJ18: N/A | BK18: N/A | BL18: N/A | BM18: N/A | BN18: N/A | BO18: N/A | BP18: N/A | BQ18: N/A | BR18: N/A | BS18: N/A | BT18: N/A | BU18: N/A | BV18: N/A | BW18: N/A | BX18: N/A | BY18: N/A | BZ18: N/A | CA18: N/A
B19: Limited | C19: =C16*C22/100 -> 17.25675225 | D19: =D16*D22/100 -> 15.59887842 | E19: =E16*E22/100 -> 12.94135387 | F19: 3.813125361 | G19: 0.5980293966 | H19: 0.8837972593 | I19: 0.4 | J19: 0.5981689483 | K19: 0.5994725397 | L19: 0.1 | M19: 17.06442955 | N19: 18.42780079 | O19: 13.66092442 | P19: 12.94529025 | Q19: 10.14115962 | R19: 1.898276471 | S19: 0.3962172377 | T19: 12.14707659 | U19: 14.7146183 | V19: 8.619598689 | W19: 3.769261531 | X19: 11.39485825 | Y19: 20.29352218 | Z19: 24.55325388 | AA19: 10.82450732 | BB19: Limited | BC19: N/A | BD19: N/A | BE19: N/A | BF19: N/A | BG19: N/A | BH19: N/A | BI19: N/A | BJ19: N/A | BK19: N/A | BL19: N/A | BM19: N/A | BN19: N/A | BO19: N/A | BP19: N/A | BQ19: N/A | BR19: N/A | BS19: N/A | BT19: N/A | BU19: N/A | BV19: N/A | BW19: N/A | BX19: N/A | BY19: N/A | BZ19: N/A | CA19: N/A
B20: Unimproved | C20: =100-C18-C19-C21 -> 27.71349961 | D20: =100-D18-D19-D21 -> 26.35831828 | E20: =100-E18-E19-E21 -> 19.01927576 | F20: 5.530694186 | G20: 0.23227865 | H20: 1.772046178 | I20: 5.662137426e-15 | J20: 0.3051752849 | K20: 0.08791004693 | L20: -5.689893001e-15 | M20: 27.10144563 | N20: 27.74603689 | O20: 25.96726384 | P20: 19.99860936 | Q20: 13.75085357 | R20: 0.09071205184 | S20: 0.9456905867 | T20: 14.94950887 | U20: 19.94088803 | V20: 14.15020772 | W20: 20.77695625 | X20: 38.01348754 | Y20: 5.883483683 | Z20: 14.25332585 | AA20: 19.33627345 | BB20: Unimproved | BC20: N/A | BD20: N/A | BE20: N/A | BF20: N/A | BG20: N/A | BH20: N/A | BI20: N/A | BJ20: N/A | BK20: N/A | BL20: N/A | BM20: N/A | BN20: N/A | BO20: N/A | BP20: N/A | BQ20: N/A | BR20: N/A | BS20: N/A | BT20: N/A | BU20: N/A | BV20: N/A | BW20: N/A | BX20: N/A | BY20: N/A | BZ20: N/A | CA20: N/A
B21: Surface water | C21: 17.50315991 | D21: 12.70856289 | E21: 8.27648901 | F21: 1.466248231 | G21: 0.09615525343 | H21: 0.02825834336 | I21: 0 | J21: 0 | K21: 0 | L21: 0 | M21: 17.67386326 | N21: 16.24241056 | O21: 10.78771569 | P21: 8.873422248 | Q21: 5.119869434 | R21: 0 | S21: 0 | T21: 8.170259533 | U21: 9.989501012 | V21: 4.532823514 | W21: 11.91480213 | X21: 9.475644936 | Y21: 14.84494532 | Z21: 14.37093613 | AA21: 9.915312706 | BB21: Surface water | BC21: N/A | BD21: N/A | BE21: N/A | BF21: N/A | BG21: N/A | BH21: N/A | BI21: N/A | BJ21: N/A | BK21: N/A | BL21: N/A | BM21: N/A | BN21: N/A | BO21: N/A | BP21: N/A | BQ21: N/A | BR21: N/A | BS21: N/A | BT21: N/A | BU21: N/A | BV21: N/A | BW21: N/A | BX21: N/A | BY21: N/A | BZ21: N/A | CA21: N/A
A22: Improved water point at more than 30 minutes | B22: Yes | C22: 31.5 | D22: 25.6 | E22: 17.8 | F22: 4.1 | G22: 0.6 | H22: 0.9 | I22: 0.4 | J22: 0.6 | K22: 0.6 | L22: 0.1 | M22: 30.9 | N22: 32.9 | O22: 21.6 | P22: 18.2 | Q22: 12.5 | R22: 1.9 | S22: 0.4 | T22: 15.8 | U22: 21 | V22: 10.6 | W22: 5.6 | X22: 21.7 | Y22: 25.6 | Z22: 34.4 | AA22: 15.3 | BA22: Improved water point at more than 30 minutes | BB22: Yes | BC22: N/A | BD22: N/A | BE22: N/A | BF22: N/A | BG22: N/A | BH22: N/A | BI22: N/A | BJ22: N/A | BK22: N/A | BL22: N/A | BM22: N/A | BN22: N/A | BO22: N/A | BP22: N/A | BQ22: N/A | BR22: N/A | BS22: N/A | BT22: N/A | BU22: N/A | BV22: N/A | BW22: N/A | BX22: N/A | BY22: N/A | BZ22: N/A | CA22: N/A
B23: No | C23: 68.5 | D23: 74.4 | E23: 82.2 | F23: 95.9 | G23: 99.4 | H23: 99.1 | I23: 99.6 | J23: 99.4 | K23: 99.4 | L23: 99.9 | M23: 69.1 | N23: 67.1 | O23: 78.4 | P23: 81.8 | Q23: 87.5 | R23: 98.1 | S23: 99.6 | T23: 84.2 | U23: 79 | V23: 89.4 | W23: 94.4 | X23: 78.3 | Y23: 74.4 | Z23: 65.6 | AA23: 84.7 | BB23: No | BC23: N/A | BD23: N/A | BE23: N/A | BF23: N/A | BG23: N/A | BH23: N/A | BI23: N/A | BJ23: N/A | BK23: N/A | BL23: N/A | BM23: N/A | BN23: N/A | BO23: N/A | BP23: N/A | BQ23: N/A | BR23: N/A | BS23: N/A | BT23: N/A | BU23: N/A | BV23: N/A | BW23: N/A | BX23: N/A | BY23: N/A | BZ23: N/A | CA23: N/A
A24: Manually calculated ratios | B24: Improved wells
B25: Improved springs
B26: Other
C27: NATIONAL wealth index quintile | H27: URBAN wealth index quintile | M27: RURAL wealth index quintile | R27: SUB-REGIONS: | BA27: Raw numbers of respondents: | BB27: Use of drinking water sources | BC27: NATIONAL wealth index quintile | BH27: URBAN wealth index quintile | BM27: RURAL wealth index quintile | BR27: SUB-REGIONS:
A28: Percentage based on weighted population | C28: Poorest | D28: Poor | E28: Middle | F28: Rich | G28: Richest | H28: Poorest | I28: Poor | J28: Middle | K28: Rich | L28: Richest | M28: Poorest | N28: Poor | O28: Middle | P28: Rich | Q28: Richest | R28: Bulawayo | S28: Harare | T28: Manicaland | U28: Mashonaland Central | V28: Mashonaland East | W28: Mashonaland West | X28: Masvingo | Y28: Matebeleland North | Z28: Matebeleland South | AA28: Midlands | BA28: Water data, raw numbers (weighted) | BC28: Poorest | BD28: Poor | BE28: Middle | BF28: Rich | BG28: Richest | BH28: Poorest | BI28: Poor | BJ28: Middle | BK28: Rich | BL28: Richest | BM28: Poorest | BN28: Poor | BO28: Middle | BP28: Rich | BQ28: Richest | BR28: Bulawayo | BS28: Harare | BT28: Manicaland | BU28: Mashonaland Central | BV28: Mashonaland East | BW28: Mashonaland West | BX28: Masvingo | BY28: Matebeleland North | BZ28: Matebeleland South | CA28: Midlands
A29: Piped water | B29: Yes | C29: 3.1 | D29: 3 | E29: 14.2 | F29: 68.1 | G29: 97.1 | H29: 91.5 | I29: 99.3 | J29: 98.6 | K29: 99.3 | L29: 98.8 | M29: 3.2 | N29: 2 | O29: 4.4 | P29: 12 | Q29: 23.1 | R29: 98.5 | S29: 95.4 | T29: 26.9 | U29: 16.5 | V29: 23.2 | W29: 35.3 | X29: 12.5 | Y29: 17.2 | Z29: 18.5 | AA29: 26.4 | BA29: Piped water | BB29: Yes | BC29: N/A | BD29: N/A | BE29: N/A | BF29: N/A | BG29: N/A | BH29: N/A | BI29: N/A | BJ29: N/A | BK29: N/A | BL29: N/A | BM29: N/A | BN29: N/A | BO29: N/A | BP29: N/A | BQ29: N/A | BR29: N/A | BS29: N/A | BT29: N/A | BU29: N/A | BV29: N/A | BW29: N/A | BX29: N/A | BY29: N/A | BZ29: N/A | CA29: N/A
B30: No | C30: 96.9 | D30: 97 | E30: 85.8 | F30: 31.9 | G30: 2.9 | H30: 8.5 | I30: 0.7 | J30: 1.4 | K30: 0.7 | L30: 1.2 | M30: 96.8 | N30: 98 | O30: 95.6 | P30: 88 | Q30: 76.9 | R30: 1.5 | S30: 4.6 | T30: 73.1 | U30: 83.5 | V30: 76.8 | W30: 64.7 | X30: 87.5 | Y30: 82.8 | Z30: 81.5 | AA30: 73.6 | BB30: No | BC30: N/A | BD30: N/A | BE30: N/A | BF30: N/A | BG30: N/A | BH30: N/A | BI30: N/A | BJ30: N/A | BK30: N/A | BL30: N/A | BM30: N/A | BN30: N/A | BO30: N/A | BP30: N/A | BQ30: N/A | BR30: N/A | BS30: N/A | BT30: N/A | BU30: N/A | BV30: N/A | BW30: N/A | BX30: N/A | BY30: N/A | BZ30: N/A | CA30: N/A
A31: Piped water on premises | B31: Yes | C31: 0.8 | D31: 1.3 | E31: 6.6 | F31: 60.5 | G31: 95.8 | H31: 79.6 | I31: 96 | J31: 96.4 | K31: 98.7 | L31: 98.3 | M31: 0.8 | N31: 0.5 | O31: 1.8 | P31: 4.5 | Q31: 15.6 | R31: 97.5 | S31: 93.9 | T31: 23.6 | U31: 9.1 | V31: 18.2 | W31: 26.2 | X31: 9.8 | Y31: 10.5 | Z31: 15.2 | AA31: 24.3 | BA31: Piped water on premises | BB31: Yes | BC31: N/A | BD31: N/A | BE31: N/A | BF31: N/A | BG31: N/A | BH31: N/A | BI31: N/A | BJ31: N/A | BK31: N/A | BL31: N/A | BM31: N/A | BN31: N/A | BO31: N/A | BP31: N/A | BQ31: N/A | BR31: N/A | BS31: N/A | BT31: N/A | BU31: N/A | BV31: N/A | BW31: N/A | BX31: N/A | BY31: N/A | BZ31: N/A | CA31: N/A
B32: No | C32: 99.2 | D32: 98.7 | E32: 93.4 | F32: 39.5 | G32: 4.2 | H32: 20.4 | I32: 4 | J32: 3.6 | K32: 1.3 | L32: 1.7 | M32: 99.2 | N32: 99.5 | O32: 98.2 | P32: 95.5 | Q32: 84.4 | R32: 2.5 | S32: 6.1 | T32: 76.4 | U32: 90.9 | V32: 81.8 | W32: 73.8 | X32: 90.2 | Y32: 89.5 | Z32: 84.8 | AA32: 75.7 | BB32: No | BC32: N/A | BD32: N/A | BE32: N/A | BF32: N/A | BG32: N/A | BH32: N/A | BI32: N/A | BJ32: N/A | BK32: N/A | BL32: N/A | BM32: N/A | BN32: N/A | BO32: N/A | BP32: N/A | BQ32: N/A | BR32: N/A | BS32: N/A | BT32: N/A | BU32: N/A | BV32: N/A | BW32: N/A | BX32: N/A | BY32: N/A | BZ32: N/A | CA32: N/A
A33: Piped water into dwelling | B33: Yes | C33: N/A | D33: N/A | E33: N/A | F33: N/A | G33: N/A | H33: N/A | I33: N/A | J33: N/A | K33: N/A | L33: N/A | M33: N/A | N33: N/A | O33: N/A | P33: N/A | Q33: N/A | R33: N/A | S33: N/A | T33: N/A | U33: N/A | V33: N/A | W33: N/A | X33: N/A | Y33: N/A | Z33: N/A | AA33: N/A | BA33: Piped water into dwelling | BB33: Yes | BC33: N/A | BD33: N/A | BE33: N/A | BF33: N/A | BG33: N/A | BH33: N/A | BI33: N/A | BJ33: N/A | BK33: N/A | BL33: N/A | BM33: N/A | BN33: N/A | BO33: N/A | BP33: N/A | BQ33: N/A | BR33: N/A | BS33: N/A | BT33: N/A | BU33: N/A | BV33: N/A | BW33: N/A | BX33: N/A | BY33: N/A | BZ33: N/A | CA33: N/A
B34: No | C34: N/A | D34: N/A | E34: N/A | F34: N/A | G34: N/A | H34: N/A | I34: N/A | J34: N/A | K34: N/A | L34: N/A | M34: N/A | N34: N/A | O34: N/A | P34: N/A | Q34: N/A | R34: N/A | S34: N/A | T34: N/A | U34: N/A | V34: N/A | W34: N/A | X34: N/A | Y34: N/A | Z34: N/A | AA34: N/A | BB34: No | BC34: N/A | BD34: N/A | BE34: N/A | BF34: N/A | BG34: N/A | BH34: N/A | BI34: N/A | BJ34: N/A | BK34: N/A | BL34: N/A | BM34: N/A | BN34: N/A | BO34: N/A | BP34: N/A | BQ34: N/A | BR34: N/A | BS34: N/A | BT34: N/A | BU34: N/A | BV34: N/A | BW34: N/A | BX34: N/A | BY34: N/A | BZ34: N/A | CA34: N/A
A35: Water source on premises | B35: Yes | C35: 7.7 | D35: 12.3 | E35: 24.6 | F35: 73.7 | G35: 97.8 | H35: 84.9 | I35: 97.8 | J35: 97.7 | K35: 99.3 | L35: 99.4 | M35: 7.6 | N35: 8 | O35: 14.3 | P35: 22.7 | Q35: 41 | R35: 97.8 | S35: 96.7 | T35: 38.1 | U35: 18.8 | V35: 43.6 | W35: 38.1 | X35: 25.4 | Y35: 13 | Z35: 17.7 | AA35: 34.1 | BA35: Water source on premises | BB35: Yes | BC35: N/A | BD35: N/A | BE35: N/A | BF35: N/A | BG35: N/A | BH35: N/A | BI35: N/A | BJ35: N/A | BK35: N/A | BL35: N/A | BM35: N/A | BN35: N/A | BO35: N/A | BP35: N/A | BQ35: N/A | BR35: N/A | BS35: N/A | BT35: N/A | BU35: N/A | BV35: N/A | BW35: N/A | BX35: N/A | BY35: N/A | BZ35: N/A | CA35: N/A
B36: No | C36: 92.3 | D36: 87.7 | E36: 75.4 | F36: 26.3 | G36: 2.2 | H36: 15.1 | I36: 2.2 | J36: 2.3 | K36: 0.7 | L36: 0.6 | M36: 92.4 | N36: 92 | O36: 85.7 | P36: 77.3 | Q36: 59 | R36: 2.2 | S36: 3.3 | T36: 61.9 | U36: 81.2 | V36: 56.4 | W36: 61.9 | X36: 74.6 | Y36: 87 | Z36: 82.3 | AA36: 65.9 | BB36: No | BC36: N/A | BD36: N/A | BE36: N/A | BF36: N/A | BG36: N/A | BH36: N/A | BI36: N/A | BJ36: N/A | BK36: N/A | BL36: N/A | BM36: N/A | BN36: N/A | BO36: N/A | BP36: N/A | BQ36: N/A | BR36: N/A | BS36: N/A | BT36: N/A | BU36: N/A | BV36: N/A | BW36: N/A | BX36: N/A | BY36: N/A | BZ36: N/A | CA36: N/A
A37: Improved Water source on premises | B37: Yes | C37: 3.9 | D37: 7.4 | E37: 20 | F37: 72.2 | G37: 97.7 | H37: 84.2 | I37: 97.8 | J37: 97.7 | K37: 99.3 | L37: 99.4 | M37: 4.1 | N37: 3.4 | O37: 9.6 | P37: 17.8 | Q37: 37.3 | R37: 97.8 | S37: 96.3 | T37: 34 | U37: 18 | V37: 40.4 | W37: 35.5 | X37: 14.9 | Y37: 12.7 | Z37: 17 | AA37: 30.6 | BA37: Improved water source on premises | BB37: Yes | BC37: N/A | BD37: N/A | BE37: N/A | BF37: N/A | BG37: N/A | BH37: N/A | BI37: N/A | BJ37: N/A | BK37: N/A | BL37: N/A | BM37: N/A | BN37: N/A | BO37: N/A | BP37: N/A | BQ37: N/A | BR37: N/A | BS37: N/A | BT37: N/A | BU37: N/A | BV37: N/A | BW37: N/A | BX37: N/A | BY37: N/A | BZ37: N/A | CA37: N/A
B38: No | C38: 96.1 | D38: 92.6 | E38: 80 | F38: 27.8 | G38: 2.3 | H38: 15.8 | I38: 2.2 | J38: 2.3 | K38: 0.7 | L38: 0.6 | M38: 95.9 | N38: 96.6 | O38: 90.4 | P38: 82.2 | Q38: 62.7 | R38: 2.2 | S38: 3.7 | T38: 66 | U38: 82 | V38: 59.6 | W38: 64.5 | X38: 85.1 | Y38: 87.3 | Z38: 83 | AA38: 69.4 | BB38: No | BC38: N/A | BD38: N/A | BE38: N/A | BF38: N/A | BG38: N/A | BH38: N/A | BI38: N/A | BJ38: N/A | BK38: N/A | BL38: N/A | BM38: N/A | BN38: N/A | BO38: N/A | BP38: N/A | BQ38: N/A | BR38: N/A | BS38: N/A | BT38: N/A | BU38: N/A | BV38: N/A | BW38: N/A | BX38: N/A | BY38: N/A | BZ38: N/A | CA38: N/A
A39: Piped water on premises available when needed | B39: Yes | C39: N/A | D39: N/A | E39: N/A | F39: N/A | G39: N/A | H39: N/A | I39: N/A | J39: N/A | K39: N/A | L39: N/A | M39: N/A | N39: N/A | O39: N/A | P39: N/A | Q39: N/A | R39: N/A | S39: N/A | T39: N/A | U39: N/A | V39: N/A | W39: N/A | X39: N/A | Y39: N/A | Z39: N/A | AA39: N/A | BA39: Piped water on premises available when needed | BB39: Yes | BC39: N/A | BD39: N/A | BE39: N/A | BF39: N/A | BG39: N/A | BH39: N/A | BI39: N/A | BJ39: N/A | BK39: N/A | BL39: N/A | BM39: N/A | BN39: N/A | BO39: N/A | BP39: N/A | BQ39: N/A | BR39: N/A | BS39: N/A | BT39: N/A | BU39: N/A | BV39: N/A | BW39: N/A | BX39: N/A | BY39: N/A | BZ39: N/A | CA39: N/A
B40: No | C40: N/A | D40: N/A | E40: N/A | F40: N/A | G40: N/A | H40: N/A | I40: N/A | J40: N/A | K40: N/A | L40: N/A | M40: N/A | N40: N/A | O40: N/A | P40: N/A | Q40: N/A | R40: N/A | S40: N/A | T40: N/A | U40: N/A | V40: N/A | W40: N/A | X40: N/A | Y40: N/A | Z40: N/A | AA40: N/A | BB40: No | BC40: N/A | BD40: N/A | BE40: N/A | BF40: N/A | BG40: N/A | BH40: N/A | BI40: N/A | BJ40: N/A | BK40: N/A | BL40: N/A | BM40: N/A | BN40: N/A | BO40: N/A | BP40: N/A | BQ40: N/A | BR40: N/A | BS40: N/A | BT40: N/A | BU40: N/A | BV40: N/A | BW40: N/A | BX40: N/A | BY40: N/A | BZ40: N/A | CA40: N/A
A41: Water point at more than 30 minutes | B41: Yes | C41: 31.8 | D41: 27 | E41: 20.2 | F41: 5.7 | G41: 0.7 | H41: 1 | I41: 0.4 | J41: 0.6 | K41: 0.7 | L41: 0.1 | M41: 32.4 | N41: 31.2 | O41: 24.1 | P41: 21.6 | Q41: 14.5 | R41: 1.9 | S41: 0.4 | T41: 19.1 | U41: 27.3 | V41: 12.1 | W41: 11.6 | X41: 21.4 | Y41: 29.3 | Z41: 36.8 | AA41: 20 | BA41: Water point at more than 30 minutes | BB41: Yes | BC41: N/A | BD41: N/A | BE41: N/A | BF41: N/A | BG41: N/A | BH41: N/A | BI41: N/A | BJ41: N/A | BK41: N/A | BL41: N/A | BM41: N/A | BN41: N/A | BO41: N/A | BP41: N/A | BQ41: N/A | BR41: N/A | BS41: N/A | BT41: N/A | BU41: N/A | BV41: N/A | BW41: N/A | BX41: N/A | BY41: N/A | BZ41: N/A | CA41: N/A
B42: No | C42: 68.2 | D42: 73 | E42: 79.8 | F42: 94.3 | G42: 99.3 | H42: 99 | I42: 99.6 | J42: 99.4 | K42: 99.3 | L42: 99.9 | M42: 67.6 | N42: 68.8 | O42: 75.9 | P42: 78.4 | Q42: 85.5 | R42: 98.1 | S42: 99.6 | T42: 80.9 | U42: 72.7 | V42: 87.9 | W42: 88.4 | X42: 78.6 | Y42: 70.7 | Z42: 63.2 | AA42: 80 | BB42: No | BC42: N/A | BD42: N/A | BE42: N/A | BF42: N/A | BG42: N/A | BH42: N/A | BI42: N/A | BJ42: N/A | BK42: N/A | BL42: N/A | BM42: N/A | BN42: N/A | BO42: N/A | BP42: N/A | BQ42: N/A | BR42: N/A | BS42: N/A | BT42: N/A | BU42: N/A | BV42: N/A | BW42: N/A | BX42: N/A | BY42: N/A | BZ42: N/A | CA42: N/A
A43: Water source available when needed | B43: Yes | C43: N/A | D43: N/A | E43: N/A | F43: N/A | G43: N/A | H43: N/A | I43: N/A | J43: N/A | K43: N/A | L43: N/A | M43: N/A | N43: N/A | O43: N/A | P43: N/A | Q43: N/A | R43: N/A | S43: N/A | T43: N/A | U43: N/A | V43: N/A | W43: N/A | X43: N/A | Y43: N/A | Z43: N/A | AA43: N/A | BA43: Water source available when needed | BB43: Yes | BC43: N/A | BD43: N/A | BE43: N/A | BF43: N/A | BG43: N/A | BH43: N/A | BI43: N/A | BJ43: N/A | BK43: N/A | BL43: N/A | BM43: N/A | BN43: N/A | BO43: N/A | BP43: N/A | BQ43: N/A | BR43: N/A | BS43: N/A | BT43: N/A | BU43: N/A | BV43: N/A | BW43: N/A | BX43: N/A | BY43: N/A | BZ43: N/A | CA43: N/A
B44: No | C44: N/A | D44: N/A | E44: N/A | F44: N/A | G44: N/A | H44: N/A | I44: N/A | J44: N/A | K44: N/A | L44: N/A | M44: N/A | N44: N/A | O44: N/A | P44: N/A | Q44: N/A | R44: N/A | S44: N/A | T44: N/A | U44: N/A | V44: N/A | W44: N/A | X44: N/A | Y44: N/A | Z44: N/A | AA44: N/A | BB44: No | BC44: N/A | BD44: N/A | BE44: N/A | BF44: N/A | BG44: N/A | BH44: N/A | BI44: N/A | BJ44: N/A | BK44: N/A | BL44: N/A | BM44: N/A | BN44: N/A | BO44: N/A | BP44: N/A | BQ44: N/A | BR44: N/A | BS44: N/A | BT44: N/A | BU44: N/A | BV44: N/A | BW44: N/A | BX44: N/A | BY44: N/A | BZ44: N/A | CA44: N/A
A45: Improved water source available when needed | B45: Yes | C45: N/A | D45: N/A | E45: N/A | F45: N/A | G45: N/A | H45: N/A | I45: N/A | J45: N/A | K45: N/A | L45: N/A | M45: N/A | N45: N/A | O45: N/A | P45: N/A | Q45: N/A | R45: N/A | S45: N/A | T45: N/A | U45: N/A | V45: N/A | W45: N/A | X45: N/A | Y45: N/A | Z45: N/A | AA45: N/A | BA45: Improved water source available when needed | BB45: Yes | BC45: N/A | BD45: N/A | BE45: N/A | BF45: N/A | BG45: N/A | BH45: N/A | BI45: N/A | BJ45: N/A | BK45: N/A | BL45: N/A | BM45: N/A | BN45: N/A | BO45: N/A | BP45: N/A | BQ45: N/A | BR45: N/A | BS45: N/A | BT45: N/A | BU45: N/A | BV45: N/A | BW45: N/A | BX45: N/A | BY45: N/A | BZ45: N/A | CA45: N/A
B46: No | C46: N/A | D46: N/A | E46: N/A | F46: N/A | G46: N/A | H46: N/A | I46: N/A | J46: N/A | K46: N/A | L46: N/A | M46: N/A | N46: N/A | O46: N/A | P46: N/A | Q46: N/A | R46: N/A | S46: N/A | T46: N/A | U46: N/A | V46: N/A | W46: N/A | X46: N/A | Y46: N/A | Z46: N/A | AA46: N/A | BB46: No | BC46: N/A | BD46: N/A | BE46: N/A | BF46: N/A | BG46: N/A | BH46: N/A | BI46: N/A | BJ46: N/A | BK46: N/A | BL46: N/A | BM46: N/A | BN46: N/A | BO46: N/A | BP46: N/A | BQ46: N/A | BR46: N/A | BS46: N/A | BT46: N/A | BU46: N/A | BV46: N/A | BW46: N/A | BX46: N/A | BY46: N/A | BZ46: N/A | CA46: N/A
A47: Microbiological quality at point of collection | B47: Not contaminated (No E. coli in 100 mL) | C47: N/A | D47: N/A | E47: N/A | F47: N/A | G47: N/A | H47: N/A | I47: N/A | J47: N/A | K47: N/A | L47: N/A | M47: N/A | N47: N/A | O47: N/A | P47: N/A | Q47: N/A | R47: N/A | S47: N/A | T47: N/A | U47: N/A | V47: N/A | W47: N/A | X47: N/A | Y47: N/A | Z47: N/A | AA47: N/A | BA47: Microbiological quality at point of collection | BB47: Not contaminated (No E. coli in 100 mL) | BC47: N/A | BD47: N/A | BE47: N/A | BF47: N/A | BG47: N/A | BH47: N/A | BI47: N/A | BJ47: N/A | BK47: N/A | BL47: N/A | BM47: N/A | BN47: N/A | BO47: N/A | BP47: N/A | BQ47: N/A | BR47: N/A | BS47: N/A | BT47: N/A | BU47: N/A | BV47: N/A | BW47: N/A | BX47: N/A | BY47: N/A | BZ47: N/A | CA47: N/A
B48: Contaminated (E. coli detected in 100 mL) | C48: N/A | D48: N/A | E48: N/A | F48: N/A | G48: N/A | H48: N/A | I48: N/A | J48: N/A | K48: N/A | L48: N/A | M48: N/A | N48: N/A | O48: N/A | P48: N/A | Q48: N/A | R48: N/A | S48: N/A | T48: N/A | U48: N/A | V48: N/A | W48: N/A | X48: N/A | Y48: N/A | Z48: N/A | AA48: N/A | BB48: Contaminated (E. coli detected in 100 mL) | BC48: N/A | BD48: N/A | BE48: N/A | BF48: N/A | BG48: N/A | BH48: N/A | BI48: N/A | BJ48: N/A | BK48: N/A | BL48: N/A | BM48: N/A | BN48: N/A | BO48: N/A | BP48: N/A | BQ48: N/A | BR48: N/A | BS48: N/A | BT48: N/A | BU48: N/A | BV48: N/A | BW48: N/A | BX48: N/A | BY48: N/A | BZ48: N/A | CA48: N/A
B49: Highly contaminated (>100 CFU/100 mL) | C49: N/A | D49: N/A | E49: N/A | F49: N/A | G49: N/A | H49: N/A | I49: N/A | J49: N/A | K49: N/A | L49: N/A | M49: N/A | N49: N/A | O49: N/A | P49: N/A | Q49: N/A | R49: N/A | S49: N/A | T49: N/A | U49: N/A | V49: N/A | W49: N/A | X49: N/A | Y49: N/A | Z49: N/A | AA49: N/A | BB49: Highly contaminated (>100 CFU/100 mL) | BC49: N/A | BD49: N/A | BE49: N/A | BF49: N/A | BG49: N/A | BH49: N/A | BI49: N/A | BJ49: N/A | BK49: N/A | BL49: N/A | BM49: N/A | BN49: N/A | BO49: N/A | BP49: N/A | BQ49: N/A | BR49: N/A | BS49: N/A | BT49: N/A | BU49: N/A | BV49: N/A | BW49: N/A | BX49: N/A | BY49: N/A | BZ49: N/A | CA49: N/A
A50: Microbiological quality of improved water sources at point of collection | B50: Not contaminated (No E. coli in 100 mL) | C50: N/A | D50: N/A | E50: N/A | F50: N/A | G50: N/A | H50: N/A | I50: N/A | J50: N/A | K50: N/A | L50: N/A | M50: N/A | N50: N/A | O50: N/A | P50: N/A | Q50: N/A | R50: N/A | S50: N/A | T50: N/A | U50: N/A | V50: N/A | W50: N/A | X50: N/A | Y50: N/A | Z50: N/A | AA50: N/A | BA50: Microbiological quality of improved water sources at point of collection | BB50: Not contaminated (No E. coli in 100 mL) | BC50: N/A | BD50: N/A | BE50: N/A | BF50: N/A | BG50: N/A | BH50: N/A | BI50: N/A | BJ50: N/A | BK50: N/A | BL50: N/A | BM50: N/A | BN50: N/A | BO50: N/A | BP50: N/A | BQ50: N/A | BR50: N/A | BS50: N/A | BT50: N/A | BU50: N/A | BV50: N/A | BW50: N/A | BX50: N/A | BY50: N/A | BZ50: N/A | CA50: N/A
B51: Contaminated (E. coli detected in 100 mL) | C51: N/A | D51: N/A | E51: N/A | F51: N/A | G51: N/A | H51: N/A | I51: N/A | J51: N/A | K51: N/A | L51: N/A | M51: N/A | N51: N/A | O51: N/A | P51: N/A | Q51: N/A | R51: N/A | S51: N/A | T51: N/A | U51: N/A | V51: N/A | W51: N/A | X51: N/A | Y51: N/A | Z51: N/A | AA51: N/A | BB51: Contaminated (E. coli detected in 100 mL) | BC51: N/A | BD51: N/A | BE51: N/A | BF51: N/A | BG51: N/A | BH51: N/A | BI51: N/A | BJ51: N/A | BK51: N/A | BL51: N/A | BM51: N/A | BN51: N/A | BO51: N/A | BP51: N/A | BQ51: N/A | BR51: N/A | BS51: N/A | BT51: N/A | BU51: N/A | BV51: N/A | BW51: N/A | BX51: N/A | BY51: N/A | BZ51: N/A | CA51: N/A
B52: Highly contaminated (>100 CFU/100 mL) | C52: N/A | D52: N/A | E52: N/A | F52: N/A | G52: N/A | H52: N/A | I52: N/A | J52: N/A | K52: N/A | L52: N/A | M52: N/A | N52: N/A | O52: N/A | P52: N/A | Q52: N/A | R52: N/A | S52: N/A | T52: N/A | U52: N/A | V52: N/A | W52: N/A | X52: N/A | Y52: N/A | Z52: N/A | AA52: N/A | BB52: Highly contaminated (>100 CFU/100 mL) | BC52: N/A | BD52: N/A | BE52: N/A | BF52: N/A | BG52: N/A | BH52: N/A | BI52: N/A | BJ52: N/A | BK52: N/A | BL52: N/A | BM52: N/A | BN52: N/A | BO52: N/A | BP52: N/A | BQ52: N/A | BR52: N/A | BS52: N/A | BT52: N/A | BU52: N/A | BV52: N/A | BW52: N/A | BX52: N/A | BY52: N/A | BZ52: N/A | CA52: N/A
A53: Microbiological quality of piped on premises at point of collection | B53: Not contaminated (No E. coli in 100 mL) | C53: N/A | D53: N/A | E53: N/A | F53: N/A | G53: N/A | H53: N/A | I53: N/A | J53: N/A | K53: N/A | L53: N/A | M53: N/A | N53: N/A | O53: N/A | P53: N/A | Q53: N/A | R53: N/A | S53: N/A | T53: N/A | U53: N/A | V53: N/A | W53: N/A | X53: N/A | Y53: N/A | Z53: N/A | AA53: N/A | BA53: Microbiological quality of piped on premises at point of collection | BB53: Not contaminated (No E. coli in 100 mL) | BC53: N/A | BD53: N/A | BE53: N/A | BF53: N/A | BG53: N/A | BH53: N/A | BI53: N/A | BJ53: N/A | BK53: N/A | BL53: N/A | BM53: N/A | BN53: N/A | BO53: N/A | BP53: N/A | BQ53: N/A | BR53: N/A | BS53: N/A | BT53: N/A | BU53: N/A | BV53: N/A | BW53: N/A | BX53: N/A | BY53: N/A | BZ53: N/A | CA53: N/A
B54: Contaminated (E. coli detected in 100 mL) | C54: N/A | D54: N/A | E54: N/A | F54: N/A | G54: N/A | H54: N/A | I54: N/A | J54: N/A | K54: N/A | L54: N/A | M54: N/A | N54: N/A | O54: N/A | P54: N/A | Q54: N/A | R54: N/A | S54: N/A | T54: N/A | U54: N/A | V54: N/A | W54: N/A | X54: N/A | Y54: N/A | Z54: N/A | AA54: N/A | BB54: Contaminated (E. coli detected in 100 mL) | BC54: N/A | BD54: N/A | BE54: N/A | BF54: N/A | BG54: N/A | BH54: N/A | BI54: N/A | BJ54: N/A | BK54: N/A | BL54: N/A | BM54: N/A | BN54: N/A | BO54: N/A | BP54: N/A | BQ54: N/A | BR54: N/A | BS54: N/A | BT54: N/A | BU54: N/A | BV54: N/A | BW54: N/A | BX54: N/A | BY54: N/A | BZ54: N/A | CA54: N/A
B55: Highly contaminated (>100 CFU/100 mL) | C55: N/A | D55: N/A | E55: N/A | F55: N/A | G55: N/A | H55: N/A | I55: N/A | J55: N/A | K55: N/A | L55: N/A | M55: N/A | N55: N/A | O55: N/A | P55: N/A | Q55: N/A | R55: N/A | S55: N/A | T55: N/A | U55: N/A | V55: N/A | W55: N/A | X55: N/A | Y55: N/A | Z55: N/A | AA55: N/A | BB55: Highly contaminated (>100 CFU/100 mL) | BC55: N/A | BD55: N/A | BE55: N/A | BF55: N/A | BG55: N/A | BH55: N/A | BI55: N/A | BJ55: N/A | BK55: N/A | BL55: N/A | BM55: N/A | BN55: N/A | BO55: N/A | BP55: N/A | BQ55: N/A | BR55: N/A | BS55: N/A | BT55: N/A | BU55: N/A | BV55: N/A | BW55: N/A | BX55: N/A | BY55: N/A | BZ55: N/A | CA55: N/A
C56: NATIONAL wealth index quintile | H56: URBAN wealth index quintile | M56: RURAL wealth index quintile | R56: SUB-REGIONS: | BA56: Raw numbers of respondents: | BB56: Use of drinking water sources | BC56: NATIONAL wealth index quintile | BH56: URBAN wealth index quintile | BM56: RURAL wealth index quintile | BR56: SUB-REGIONS:
A57: Percentage based on weighted population | C57: Poorest | D57: Poor | E57: Middle | F57: Rich | G57: Richest | H57: Poorest | I57: Poor | J57: Middle | K57: Rich | L57: Richest | M57: Poorest | N57: Poor | O57: Middle | P57: Rich | Q57: Richest | R57: Bulawayo | S57: Harare | T57: Manicaland | U57: Mashonaland Central | V57: Mashonaland East | W57: Mashonaland West | X57: Masvingo | Y57: Matebeleland North | Z57: Matebeleland South | AA57: Midlands | BA57: Water data, raw numbers (weighted) | BC57: Poorest | BD57: Poor | BE57: Middle | BF57: Rich | BG57: Richest | BH57: Poorest | BI57: Poor | BJ57: Middle | BK57: Rich | BL57: Richest | BM57: Poorest | BN57: Poor | BO57: Middle | BP57: Rich | BQ57: Richest | BR57: Bulawayo | BS57: Harare | BT57: Manicaland | BU57: Mashonaland Central | BV57: Mashonaland East | BW57: Mashonaland West | BX57: Masvingo | BY57: Matebeleland North | BZ57: Matebeleland South | CA57: Midlands
A58: Source of drinking water | B58: Piped into dwelling | C58: 0 | D58: 0.1136383327 | E58: 1.263657358 | F58: 40.03293143 | G58: 79.25838457 | H58: 49.24393085 | I58: 69.3339407 | J58: 75.16650204 | K58: 81.38837598 | L58: 86.24727261 | M58: 0 | N58: 0.05789264602 | O58: 0.2359088631 | P58: 0.5338314102 | Q58: 7.734445524 | R58: 83.89489264 | S58: 73.56023087 | T58: 12.49077807 | U58: 5.029909787 | V58: 9.388147052 | W58: 16.60692353 | X58: 6.593567148 | Y58: 7.869249066 | Z58: 10.89370665 | AA58: 17.8972869
B59: Piped into tap in yard/plot | C59: 0.7925495181 | D59: 1.158413007 | E59: 5.33477597 | F59: 20.49389743 | G59: 16.50075889 | H59: 30.35644141 | I59: 26.66612166 | J59: 21.28062208 | K59: 17.28734508 | L59: 12.01289918 | M59: 0.8385742529 | N59: 0.4765375208 | O59: 1.613415209 | P59: 3.974381654 | Q59: 7.900604197 | R59: 13.61699597 | S59: 20.3878545 | T59: 11.08625544 | U59: 4.067045401 | V59: 8.779812777 | W59: 9.584734268 | X59: 3.203239532 | Y59: 2.671296355 | Z59: 4.347751162 | AA59: 6.379658874
B60: Public tap | C60: 2.263282824 | D60: 1.722204924 | E60: 7.602668727 | F60: 7.563462149 | G60: 1.376351012 | H60: 11.94212797 | I60: 3.334694706 | J60: 2.170875867 | K60: 0.6376393249 | L60: 0.5509122553 | M60: 2.392467199 | N60: 1.4937956 | O60: 2.561010271 | P60: 7.480576283 | Q60: 7.483944565 | R60: 0.9571596526 | S60: 1.415503107 | T60: 3.363661355 | U60: 7.444007866 | V60: 5.066960298 | W60: 9.177453633 | X60: 2.718588618 | Y60: 6.698393821 | Z60: 3.241593658 | AA60: 2.144863794
B61: Tube well or borehole | C61: 38.13469882 | D61: 41.51388621 | E61: 37.85771067 | F61: 13.41814063 | G61: 1.701501696 | H61: 1.336197186 | I61: 0.1760652584 | J61: 0.7791323848 | K61: 0.4237633258 | L61: 1.070768187 | M61: 37.22853259 | N61: 41.56634678 | O61: 41.16595627 | P61: 37.25441366 | Q61: 35.4046113 | R61: 0.488075397 | S61: 1.125965746 | T61: 34.69092677 | U61: 36.25415924 | V61: 29.40349859 | W61: 19.00261475 | X61: 28.1592647 | Y61: 53.2024578 | Z61: 45.63579453 | AA61: 28.78289927
B62: Protected dug well | C62: 12.46666689 | D62: 15.3197104 | E62: 19.35880595 | F62: 11.03466489 | G62: 0.672217943 | H62: 5.286662854 | I62: 0.1155869302 | J62: 0.03854840376 | K62: 0 | L62: 0.04095002042 | M62: 13.75428098 | N62: 11.16077357 | O62: 16.65176555 | P62: 20.69667988 | Q62: 21.43938377 | R62: 0 | S62: 2.564755185 | T62: 14.32713377 | U62: 16.43821916 | V62: 26.22365055 | W62: 12.19589199 | X62: 11.02170925 | Y62: 8.32092909 | Z62: 6.196386163 | AA62: 14.9680541
B63: Unprotected dug well | C63: 24.15658491 | D63: 21.47041144 | E63: 16.61476138 | F63: 4.793996011 | G63: 0.232349991 | H63: 1.772072078 | I63: 0 | J63: 0.3051752849 | K63: 0.08791004693 | L63: 0 | M63: 23.70435484 | N63: 23.99286124 | O63: 20.64957556 | P63: 17.56539918 | Q63: 11.67549752 | R63: 0.09071205184 | S63: 0.9456905867 | T63: 10.21219419 | U63: 17.20836358 | V63: 12.58939579 | W63: 18.71821092 | X63: 32.57280054 | Y63: 5.74248617 | Z63: 10.47014657 | AA63: 17.59171542
B64: Protected spring | C64: 0.7800416436 | D64: 0.69762542 | E64: 0.7802604683 | F64: 0.1746619199 | G64: 0 | H64: 0 | I64: 0 | J64: 0 | K64: 0 | L64: 0 | M64: 0.6403251602 | N64: 0.7861337187 | O64: 0.7543711434 | P64: 0.6518866582 | Q64: 0.7327413626 | R64: 0 | S64: 0 | T64: 0.826819454 | U64: 0.4687120881 | V64: 1.598264673 | W64: 0.3207291756 | X64: 0.529097992 | Y64: 0.116971873 | Z64: 0.6378418973 | AA64: 0.3749997964
B65: Unprotected spring | C65: 3.650045041 | D65: 4.851160295 | E65: 2.44029644 | F65: 0.737760499 | G65: 0 | H65: 0 | I65: 0 | J65: 0 | K65: 0 | L65: 0 | M65: 3.508552697 | N65: 3.801243629 | O65: 5.245773424 | P65: 2.48572961 | Q65: 2.078608895 | R65: 0 | S65: 0 | T65: 4.758591991 | U65: 2.739615791 | V65: 1.562594414 | W65: 2.008337438 | X65: 5.440686999 | Y65: 0.2503915873 | Z65: 3.908820466 | AA65: 1.773347464
B66: Rainwater | C66: 0 | D66: 0 | E66: 0 | F66: 0.09616604984 | G66: 0 | H66: 0 | I66: 0 | J66: 0 | K66: 0 | L66: 0 | M66: 0 | N66: 0 | O66: 0 | P66: 0 | Q66: 0.1408557518 | R66: 0 | S66: 0 | T66: 0 | U66: 0.183139037 | V66: 0 | W66: 0 | X66: 0 | Y66: 0 | Z66: 0 | AA66: 0
B67: Tanker truck | C67: 0 | D67: 0 | E67: 0.01397991557 | F67: 0.1297445972 | G67: 0.1623519861 | H67: 0.03433520596 | I67: 0.3735907474 | J67: 0.2591439417 | K67: 0.1749662434 | L67: 0.07719774628 | M67: 0 | N67: 0 | O67: 0 | P67: 0.005379253263 | Q67: 0.01510787723 | R67: 0.9521642856 | S67: 0 | T67: 0 | U67: 0 | V67: 0 | W67: 0 | X67: 0 | Y67: 0.03820601319 | Z67: 0 | AA67: 0
B68: Cart with small tank | C68: 0.3461007818 | D68: 0.4362534631 | E68: 0.4923761747 | F68: 0.05938848726 | G68: 0 | H68: 0 | I68: 0 | J68: 0 | K68: 0 | L68: 0 | M68: 0.3705109272 | N68: 0.470072716 | O68: 0.3061607443 | P68: 0.5308195959 | Q68: 0.27758265 | R68: 0 | S68: 0 | T68: 0.09465672815 | U68: 0.1844183888 | V68: 0.8566348184 | W68: 0.483493249 | X68: 0.2854002971 | Y68: 0.3540669811 | Z68: 0.4226639634 | AA68: 0.2006511068
B69: Surface water(river/dam/lake/pond/stream/canal/irrigation channel | C69: 17.41002958 | D69: 12.68575202 | E69: 8.240706946 | F69: 1.465185907 | G69: 0.09608391248 | H69: 0.02823244349 | I69: 0 | J69: 0 | K69: 0 | L69: 0 | M69: 17.56240135 | N69: 16.19434258 | O69: 10.77066758 | P69: 8.820902813 | Q69: 5.11661659 | R69: 0 | S69: 0 | T69: 8.148982219 | U69: 9.98240967 | V69: 4.531041038 | W69: 11.90161105 | X69: 9.475644936 | Y69: 14.65103771 | Z69: 14.24529495 | AA69: 9.886523275
B70: Other | C70: 0 | D70: 0.03094448846 | E70: 0 | F70: 0 | G70: 0 | H70: 0 | I70: 0 | J70: 0 | K70: 0 | L70: 0 | M70: 0 | N70: 0 | O70: 0.04539537814 | P70: 0 | Q70: 0 | R70: 0 | S70: 0 | T70: 0 | U70: 0 | V70: 0 | W70: 0 | X70: 0 | Y70: 0.08451353005 | Z70: 0 | AA70: 0
A108: =A1026 -> Zimbabwe
A109: =A1034 -> 2006
A110: Use of sanitation facilities
A111: by wealth quintile and sub-national region
A112: Notes:
A113: WHO/UNICEF JMP customised wealth index excludes water,
A114: sanitation and hygiene assets.
A115: Survey used for analysis: | B115: =A1025 -> DHS06
A116: =B1030 -> 
A117: =B1029 -> 
A120: Use of sanitation facilities | C120: NATIONAL wealth index quintile | H120: URBAN wealth index quintile | M120: RURAL wealth index quintile | R120: SUB-REGIONS: | BA120: Raw numbers of respondents: | BB120: Use of sanitation facilities | BC120: NATIONAL wealth index quintile | BH120: URBAN wealth index quintile | BM120: RURAL wealth index quintile | BR120: SUB-REGIONS:
A121: Weighted percentage (used in graphs) | C121: Poorest | D121: Poor | E121: Middle | F121: Rich | G121: Richest | H121: Poorest | I121: Poor | J121: Middle | K121: Rich | L121: Richest | M121: Poorest | N121: Poor | O121: Middle | P121: Rich | Q121: Richest | R121: Bulawayo | S121: Harare | T121: Manicaland | U121: Mashonaland Central | V121: Mashonaland East | W121: Mashonaland West | X121: Masvingo | Y121: Matebeleland North | Z121: Matebeleland South | AA121: Midlands | BA121: Sanitation data, raw numbers (weighted) | BC121: Poorest | BD121: Poor | BE121: Middle | BF121: Rich | BG121: Richest | BH121: Poorest | BI121: Poor | BJ121: Middle | BK121: Rich | BL121: Richest | BM121: Poorest | BN121: Poor | BO121: Middle | BP121: Rich | BQ121: Richest | BR121: Bulawayo | BS121: Harare | BT121: Manicaland | BU121: Mashonaland Central | BV121: Mashonaland East | BW121: Mashonaland West | BX121: Masvingo | BY121: Matebeleland North | BZ121: Matebeleland South | CA121: Midlands
A122: Sanitation | B122: Improved | C122: 14.17235565 | D122: 34.84439284 | E122: 69.16923354 | F122: 92.60250357 | G122: 99.60990289 | H122: 93.95012853 | I122: 98.49485738 | J122: 99.38894577 | K122: 99.77397858 | L122: 99.81176455 | M122: 11.46830792 | N122: 23.76760264 | O122: 41.08328377 | P122: 65.65702533 | Q122: 84.09873697 | R122: 99.68040794 | S122: 98.6107976 | T122: 60.22738893 | U122: 52.81919507 | V122: 69.00618498 | W122: 58.90342047 | X122: 39.76470237 | Y122: 28.46098242 | Z122: 59.66395401 | AA122: 53.61523552 | BA122: Sanitation | BB122: Improved | BC122: 1198.458737 | BD122: 2945.713214 | BE122: 5848.585935 | BF122: 7825.06253 | BG122: 8420.797304 | BH122: 2518.494099 | BI122: 2647.830907 | BJ122: 2670.520102 | BK122: 2669.479689 | BL122: 2690.036615 | BM122: 661.503011 | BN122: 1371.437608 | BO122: 2368.042879 | BP122: 3789.485513 | BQ122: 4851.787297 | BR122: 2584.595944 | BS122: 5650.564642 | BT122: 3193.080724 | BU122: 2343.676784 | BV122: 2648.061667 | BW122: 2475.890747 | BX122: 1963.954313 | BY122: 880.563392 | BZ122: 1352.454079 | CA122: 3145.775428
B123: Not Improved | C123: 85.82764435 | D123: 65.15560716 | E123: 30.83076646 | F123: 7.397496428 | G123: 0.3900971114 | H123: 6.049871468 | I123: 1.505142616 | J123: 0.611054233 | K123: 0.2260214196 | L123: 0.1882354501 | M123: 88.53169208 | N123: 76.23239736 | O123: 58.91671623 | P123: 34.34297467 | Q123: 15.90126303 | R123: 0.3195920644 | S123: 1.389202396 | T123: 39.77261107 | U123: 47.18080493 | V123: 30.99381502 | W123: 41.09657953 | X123: 60.23529763 | Y123: 71.53901758 | Z123: 40.33604599 | AA123: 46.38476448 | BB123: Not Improved | BC123: 7257.854146 | BD123: 5508.195647 | BE123: 2606.887164 | BF123: 625.100509 | BG123: 32.977933 | BH123: 162.177166 | BI123: 40.462652 | BJ123: 16.418653 | BK123: 6.047264 | BL123: 5.073152 | BM123: 5106.592996 | BN123: 4398.759869 | BO123: 3395.962969 | BP123: 1982.152014 | BQ123: 917.368664 | BR123: 8.286647 | BS123: 79.603635 | BT123: 2108.627985 | BU123: 2093.491902 | BV123: 1189.364888 | BW123: 1727.414812 | BX123: 2974.984484 | BY123: 2213.36843 | BZ123: 914.331791 | CA123: 2721.540825
A124: Sanitation ladder | B124: Basic | C124: =C122*C129/100 -> 9.175812941 | D124: =D122*D129/100 -> 23.09116785 | E124: =E122*E129/100 -> 47.57958997 | F124: 54.28549579 | G124: 77.62131469 | H124: 42.03476085 | I124: 52.68374821 | J124: 68.29065812 | K124: 75.98972639 | L124: 86.75004553 | M124: 6.925513636 | N124: 16.19284005 | O124: 27.33292038 | P124: 45.51033826 | Q124: 62.64167215 | R124: 71.14869339 | S124: 65.69961405 | T124: 37.82085001 | U124: 32.99228917 | V124: 50.84688468 | W124: 36.08369487 | X124: 25.63031815 | Y124: 21.68541146 | Z124: 50.57478371 | AA124: 38.70848475 | BA124: Sanitation ladder | BB124: Basic | BC124: 773.664231 | BD124: 1952.106285 | BE124: 4014.491307 | BF124: 4579.293479 | BG124: 6561.93148 | BH124: 1124.628987 | BI124: 1411.679755 | BJ124: 1834.928159 | BK124: 2033.125611 | BL124: 2338.00895 | BM124: 397.351868 | BN124: 934.358848 | BO124: 1575.471129 | BP124: 2618.037712 | BQ124: 3613.895763 | BR124: 1838.644977 | BS124: 3762.368849 | BT124: 2005.151299 | BU124: 1463.923524 | BV124: 1951.211855 | BW124: 1510.737688 | BX124: 1260.945476 | BY124: 670.931846 | BZ124: 1146.422051 | CA124: 2271.149217
B125: Limited | C125: =C122*C128/100 -> 4.996542713 | D125: =D122*D128/100 -> 11.75322499 | E125: =E122*E128/100 -> 21.58964358 | F125: 38.31700778 | G125: 21.9885882 | H125: 51.91536768 | I125: 45.81110918 | J125: 31.09828765 | K125: 23.78425219 | L125: 13.06171902 | M125: 4.542794281 | N125: 7.574762592 | O125: 13.75036339 | P125: 20.14668707 | Q125: 21.45706482 | R125: 28.53171455 | S125: 32.91118356 | T125: 22.40653891 | U125: 19.8269059 | V125: 18.1593003 | W125: 22.8197256 | X125: 14.13438422 | Y125: 6.775570958 | Z125: 9.089170297 | AA125: 14.90675077 | BB125: Limited | BC125: 421.286528 | BD125: 993.606929 | BE125: 1821.609571 | BF125: 3232.259765 | BG125: 1858.865824 | BH125: 1388.982028 | BI125: 1227.52495 | BJ125: 835.591943 | BK125: 636.354078 | BL125: 352.027665 | BM125: 260.643165 | BN125: 437.07876 | BO125: 792.57175 | BP125: 1158.962744 | BQ125: 1237.891534 | BR125: 737.324765 | BS125: 1884.699227 | BT125: 1187.929425 | BU125: 879.75326 | BV125: 696.849812 | BW125: 955.407134 | BX125: 695.375209 | BY125: 209.631546 | BZ125: 206.032028 | CA125: 874.626211
B126: Unimproved | C126: =100-C124-C125-C127 -> 9.064885973 | D126: =100-D124-D125-D127 -> 11.45968263 | E126: =100-E124-E125-E127 -> 6.545181344 | F126: 3.329850641 | G126: 0.3900971114 | H126: 5.585660919 | I126: 1.505142616 | J126: 0.611054233 | K126: 0.2260214196 | L126: 0.1882354501 | M126: 8.667963282 | N126: 10.3633375 | O126: 11.49078725 | P126: 7.298383316 | Q126: 3.534994415 | R126: 0.2861723927 | S126: 1.276668688 | T126: 15.73727071 | U126: 16.53038874 | V126: 3.547326602 | W126: 3.590268825 | X126: 3.29433525 | Y126: 5.38952571 | Z126: 1.67425254 | AA126: 5.088383634 | BB126: Unimproved | BC126: 769.247941 | BD126: 968.791125 | BE126: 556.458117 | BF126: 281.927318 | BG126: 32.977933 | BH126: 149.755875 | BI126: 40.462652 | BJ126: 16.418653 | BK126: 6.047264 | BL126: 5.073152 | BM126: 502.778046 | BN126: 597.985039 | BO126: 662.329649 | BP126: 424.612763 | BQ126: 203.939341 | BR126: 7.422997 | BS126: 73.159199 | BT126: 834.344252 | BU126: 733.481233 | BV126: 136.126053 | BW126: 154.565306 | BX126: 167.051863 | BY126: 166.748251 | BZ126: 37.95172 | CA126: 298.55156
B127: Open defecation | C127: 76.76275837 | D127: 53.69592453 | E127: 24.28558511 | F127: 4.067645788 | G127: 0 | H127: 0.4642105488 | I127: 0 | J127: 0 | K127: 0 | L127: 0 | M127: 79.8637288 | N127: 65.86905986 | O127: 47.42592898 | P127: 27.04459135 | Q127: 12.36626862 | R127: 0.03341967166 | S127: 0.1125337076 | T127: 24.03534036 | U127: 30.65041618 | V127: 27.44648842 | W127: 37.50631071 | X127: 56.94096238 | Y127: 66.14949187 | Z127: 38.66179345 | AA127: 41.29638084 | BB127: Open defecation | BC127: 6488.606205 | BD127: 4539.404522 | BE127: 2050.429047 | BF127: 343.173191 | BG127: 0 | BH127: 12.421291 | BI127: 0 | BJ127: 0 | BK127: 0 | BL127: 0 | BM127: 4603.81495 | BN127: 3800.77483 | BO127: 2733.63332 | BP127: 1557.539251 | BQ127: 713.429323 | BR127: 0.86365 | BS127: 6.444436 | BT127: 1274.283733 | BU127: 1360.010669 | BV127: 1053.238835 | BW127: 1572.849506 | BX127: 2807.932621 | BY127: 2046.620179 | BZ127: 876.380071 | CA127: 2422.989265
A128: Shared among Improved Sanitation | B128: Yes | C128: 35.2555555 | D128: 33.73060637 | E128: 31.21278417 | F128: 41.37793937 | G128: 22.07470097 | H128: 55.25843178 | I128: 46.5111686 | J128: 31.28948336 | K128: 23.83813148 | L128: 13.08635217 | M128: 39.61172227 | N128: 31.87011625 | O128: 33.46948474 | P128: 30.68473932 | Q128: 25.51413445 | R128: 28.623192 | S128: 33.37482746 | T128: 37.20323812 | U128: 37.53731171 | V128: 26.31546768 | W128: 38.74091762 | X128: 35.54505222 | Y128: 23.80652522 | Z128: 15.2339389 | AA128: 27.80319928 | BA128: Shared among improved sanitation facilities | BB128: Yes | BC128: N/A | BD128: N/A | BE128: N/A | BF128: N/A | BG128: N/A | BH128: N/A | BI128: N/A | BJ128: N/A | BK128: N/A | BL128: N/A | BM128: N/A | BN128: N/A | BO128: N/A | BP128: N/A | BQ128: N/A | BR128: N/A | BS128: N/A | BT128: N/A | BU128: N/A | BV128: N/A | BW128: N/A | BX128: N/A | BY128: N/A | BZ128: N/A | CA128: N/A
B129: No | C129: 64.7444445 | D129: 66.26939363 | E129: 68.78721583 | F129: 58.62206063 | G129: 77.92529903 | H129: 44.74156822 | I129: 53.4888314 | J129: 68.71051664 | K129: 76.16186852 | L129: 86.91364783 | M129: 60.38827773 | N129: 68.12988375 | O129: 66.53051526 | P129: 69.31526068 | Q129: 74.48586555 | R129: 71.376808 | S129: 66.62517254 | T129: 62.79676188 | U129: 62.46268829 | V129: 73.68453232 | W129: 61.25908238 | X129: 64.45494778 | Y129: 76.19347478 | Z129: 84.7660611 | AA129: 72.19680072 | BB129: No | BC129: N/A | BD129: N/A | BE129: N/A | BF129: N/A | BG129: N/A | BH129: N/A | BI129: N/A | BJ129: N/A | BK129: N/A | BL129: N/A | BM129: N/A | BN129: N/A | BO129: N/A | BP129: N/A | BQ129: N/A | BR129: N/A | BS129: N/A | BT129: N/A | BU129: N/A | BV129: N/A | BW129: N/A | BX129: N/A | BY129: N/A | BZ129: N/A | CA129: N/A
A130: Manually calculated ratios | B130: Improved latrines
B131: Other
B132: Other
C133: NATIONAL wealth index quintile | H133: URBAN wealth index quintile | M133: RURAL wealth index quintile | R133: SUB-REGIONS: | BA133: Raw numbers of respondents: | BB133: Use of sanitation facilities | BC133: NATIONAL wealth index quintile | BH133: URBAN wealth index quintile | BM133: RURAL wealth index quintile | BR133: SUB-REGIONS:
A134: Percentage based on weighted population | C134: Poorest | D134: Poor | E134: Middle | F134: Rich | G134: Richest | H134: Poorest | I134: Poor | J134: Middle | K134: Rich | L134: Richest | M134: Poorest | N134: Poor | O134: Middle | P134: Rich | Q134: Richest | R134: Bulawayo | S134: Harare | T134: Manicaland | U134: Mashonaland Central | V134: Mashonaland East | W134: Mashonaland West | X134: Masvingo | Y134: Matebeleland North | Z134: Matebeleland South | AA134: Midlands | BA134: Sanitation data, raw numbers (weighted) | BC134: Poorest | BD134: Poor | BE134: Middle | BF134: Rich | BG134: Richest | BH134: Poorest | BI134: Poor | BJ134: Middle | BK134: Rich | BL134: Richest | BM134: Poorest | BN134: Poor | BO134: Middle | BP134: Rich | BQ134: Richest | BR134: Bulawayo | BS134: Harare | BT134: Manicaland | BU134: Mashonaland Central | BV134: Mashonaland East | BW134: Mashonaland West | BX134: Masvingo | BY134: Matebeleland North | BZ134: Matebeleland South | CA134: Midlands
A135: Sanitation type | B135: Sewer connection | C135: 0 | D135: 0 | E135: 1.446307162 | F135: 51.27102323 | G135: 88.20236147 | H135: 66.27261657 | I135: 87.60376675 | J135: 89.74433647 | K135: 94.26004112 | L135: 90.53199472 | M135: 0 | N135: 0 | O135: 0 | P135: 1.046667739 | Q135: 5.996275562 | R135: 95.5826146 | S135: 87.30040708 | T135: 14.54262651 | U135: 5.562139947 | V135: 12.01643954 | W135: 20.2729154 | X135: 8.559892284 | Y135: 10.22439227 | Z135: 15.24473972 | AA135: 17.29356809 | BA135: Sanitation type | BB135: Sewer connection | BC135: N/A | BD135: N/A | BE135: N/A | BF135: N/A | BG135: N/A | BH135: N/A | BI135: N/A | BJ135: N/A | BK135: N/A | BL135: N/A | BM135: N/A | BN135: N/A | BO135: N/A | BP135: N/A | BQ135: N/A | BR135: N/A | BS135: N/A | BT135: N/A | BU135: N/A | BV135: N/A | BW135: N/A | BX135: N/A | BY135: N/A | BZ135: N/A | CA135: N/A
B136: Septic tank connection | C136: 0 | D136: 0.01569068252 | E136: 0.9147976594 | F136: 4.992217689 | G136: 7.480271976 | H136: 6.119824245 | I136: 6.825052732 | J136: 5.735093281 | K136: 4.505334841 | L136: 8.602425951 | M136: 0 | N136: 0 | O136: 0.02301309254 | P136: 0.629400111 | Q136: 4.18129022 | R136: 3.029477897 | S136: 1.810988438 | T136: 3.139555606 | U136: 1.269774782 | V136: 2.647757515 | W136: 3.831512455 | X136: 0.9808537014 | Y136: 0.4251723295 | Z136: 0.5318247374 | AA136: 6.672005583 | BB136: Septic tank connection | BC136: N/A | BD136: N/A | BE136: N/A | BF136: N/A | BG136: N/A | BH136: N/A | BI136: N/A | BJ136: N/A | BK136: N/A | BL136: N/A | BM136: N/A | BN136: N/A | BO136: N/A | BP136: N/A | BQ136: N/A | BR136: N/A | BS136: N/A | BT136: N/A | BU136: N/A | BV136: N/A | BW136: N/A | BX136: N/A | BY136: N/A | BZ136: N/A | CA136: N/A
B137: Improved latrines | C137: 14.17235565 | D137: 34.82870216 | E137: 66.80812872 | F137: 36.33926265 | G137: 3.927269447 | H137: 21.55768772 | I137: 4.066037901 | J137: 3.909516017 | K137: 1.008602622 | L137: 0.6773438775 | M137: 11.46830792 | N137: 23.76760264 | O137: 41.06027068 | P137: 63.98095748 | Q137: 73.92117119 | R137: 1.068315438 | S137: 9.499402089 | T137: 42.54520682 | U137: 45.98728034 | V137: 54.34198792 | W137: 34.79899261 | X137: 30.22395639 | Y137: 17.81141782 | Z137: 43.88738955 | AA137: 29.64966186 | BB137: Improved latrines | BC137: N/A | BD137: N/A | BE137: N/A | BF137: N/A | BG137: N/A | BH137: N/A | BI137: N/A | BJ137: N/A | BK137: N/A | BL137: N/A | BM137: N/A | BN137: N/A | BO137: N/A | BP137: N/A | BQ137: N/A | BR137: N/A | BS137: N/A | BT137: N/A | BU137: N/A | BV137: N/A | BW137: N/A | BX137: N/A | BY137: N/A | BZ137: N/A | CA137: N/A
B138: Unimproved facilities | C138: 9.096729883 | D138: 11.45968263 | E138: 6.581040593 | F138: 3.336353591 | G138: 0.3900971114 | H138: 5.58650652 | I138: 1.505142616 | J138: 0.611054233 | K138: 0.2260214196 | L138: 0.1882354501 | M138: 8.716533938 | N138: 10.3633375 | O138: 11.49078725 | P138: 7.356885477 | Q138: 3.534994415 | R138: 0.2862835759 | S138: 1.276737357 | T138: 15.73727071 | U138: 16.53038874 | V138: 3.547326602 | W138: 3.677232212 | X138: 3.38234325 | Y138: 5.38952571 | Z138: 1.67425254 | AA138: 5.088383634 | BB138: Unimproved facilities | BC138: N/A | BD138: N/A | BE138: N/A | BF138: N/A | BG138: N/A | BH138: N/A | BI138: N/A | BJ138: N/A | BK138: N/A | BL138: N/A | BM138: N/A | BN138: N/A | BO138: N/A | BP138: N/A | BQ138: N/A | BR138: N/A | BS138: N/A | BT138: N/A | BU138: N/A | BV138: N/A | BW138: N/A | BX138: N/A | BY138: N/A | BZ138: N/A | CA138: N/A
B139: Open defecation | C139: 76.73091446 | D139: 53.69592453 | E139: 24.24972586 | F139: 4.061142837 | G139: 0 | H139: 0.4633649475 | I139: 0 | J139: 0 | K139: 0 | L139: 0 | M139: 79.81515815 | N139: 65.86905986 | O139: 47.42592898 | P139: 26.98608919 | Q139: 12.36626862 | R139: 0.03330848851 | S139: 0.1124650392 | T139: 24.03534036 | U139: 30.65041618 | V139: 27.44648842 | W139: 37.41934732 | X139: 56.85295438 | Y139: 66.14949187 | Z139: 38.66179345 | AA139: 41.29638084 | BB139: Open defecation | BC139: N/A | BD139: N/A | BE139: N/A | BF139: N/A | BG139: N/A | BH139: N/A | BI139: N/A | BJ139: N/A | BK139: N/A | BL139: N/A | BM139: N/A | BN139: N/A | BO139: N/A | BP139: N/A | BQ139: N/A | BR139: N/A | BS139: N/A | BT139: N/A | BU139: N/A | BV139: N/A | BW139: N/A | BX139: N/A | BY139: N/A | BZ139: N/A | CA139: N/A
A140: Septic tank emptying practices | B140: Not emptied/treated and disposed in situ | C140: N/A | D140: N/A | E140: N/A | F140: N/A | G140: N/A | H140: N/A | I140: N/A | J140: N/A | K140: N/A | L140: N/A | M140: N/A | N140: N/A | O140: N/A | P140: N/A | Q140: N/A | R140: N/A | S140: N/A | T140: N/A | U140: N/A | V140: N/A | W140: N/A | X140: N/A | Y140: N/A | Z140: N/A | AA140: N/A | BA140: Septic tank emptying practices | BB140: Not emptied/treated and disposed in situ | BC140: N/A | BD140: N/A | BE140: N/A | BF140: N/A | BG140: N/A | BH140: N/A | BI140: N/A | BJ140: N/A | BK140: N/A | BL140: N/A | BM140: N/A | BN140: N/A | BO140: N/A | BP140: N/A | BQ140: N/A | BR140: N/A | BS140: N/A | BT140: N/A | BU140: N/A | BV140: N/A | BW140: N/A | BX140: N/A | BY140: N/A | BZ140: N/A | CA140: N/A
B141: Emptied and buried on site | C141: N/A | D141: N/A | E141: N/A | F141: N/A | G141: N/A | H141: N/A | I141: N/A | J141: N/A | K141: N/A | L141: N/A | M141: N/A | N141: N/A | O141: N/A | P141: N/A | Q141: N/A | R141: N/A | S141: N/A | T141: N/A | U141: N/A | V141: N/A | W141: N/A | X141: N/A | Y141: N/A | Z141: N/A | AA141: N/A | BB141: Emptied and buried on site | BC141: N/A | BD141: N/A | BE141: N/A | BF141: N/A | BG141: N/A | BH141: N/A | BI141: N/A | BJ141: N/A | BK141: N/A | BL141: N/A | BM141: N/A | BN141: N/A | BO141: N/A | BP141: N/A | BQ141: N/A | BR141: N/A | BS141: N/A | BT141: N/A | BU141: N/A | BV141: N/A | BW141: N/A | BX141: N/A | BY141: N/A | BZ141: N/A | CA141: N/A
B142: Emptied and discharged locally | C142: N/A | D142: N/A | E142: N/A | F142: N/A | G142: N/A | H142: N/A | I142: N/A | J142: N/A | K142: N/A | L142: N/A | M142: N/A | N142: N/A | O142: N/A | P142: N/A | Q142: N/A | R142: N/A | S142: N/A | T142: N/A | U142: N/A | V142: N/A | W142: N/A | X142: N/A | Y142: N/A | Z142: N/A | AA142: N/A | BB142: Emptied and discharged locally | BC142: N/A | BD142: N/A | BE142: N/A | BF142: N/A | BG142: N/A | BH142: N/A | BI142: N/A | BJ142: N/A | BK142: N/A | BL142: N/A | BM142: N/A | BN142: N/A | BO142: N/A | BP142: N/A | BQ142: N/A | BR142: N/A | BS142: N/A | BT142: N/A | BU142: N/A | BV142: N/A | BW142: N/A | BX142: N/A | BY142: N/A | BZ142: N/A | CA142: N/A
B143: Emptied and removed offsite | C143: N/A | D143: N/A | E143: N/A | F143: N/A | G143: N/A | H143: N/A | I143: N/A | J143: N/A | K143: N/A | L143: N/A | M143: N/A | N143: N/A | O143: N/A | P143: N/A | Q143: N/A | R143: N/A | S143: N/A | T143: N/A | U143: N/A | V143: N/A | W143: N/A | X143: N/A | Y143: N/A | Z143: N/A | AA143: N/A | BB143: Emptied and removed offsite | BC143: N/A | BD143: N/A | BE143: N/A | BF143: N/A | BG143: N/A | BH143: N/A | BI143: N/A | BJ143: N/A | BK143: N/A | BL143: N/A | BM143: N/A | BN143: N/A | BO143: N/A | BP143: N/A | BQ143: N/A | BR143: N/A | BS143: N/A | BT143: N/A | BU143: N/A | BV143: N/A | BW143: N/A | BX143: N/A | BY143: N/A | BZ143: N/A | CA143: N/A
A144: Latrine emptying practices | B144: Not emptied/treated and disposed in situ | C144: N/A | D144: N/A | E144: N/A | F144: N/A | G144: N/A | H144: N/A | I144: N/A | J144: N/A | K144: N/A | L144: N/A | M144: N/A | N144: N/A | O144: N/A | P144: N/A | Q144: N/A | R144: N/A | S144: N/A | T144: N/A | U144: N/A | V144: N/A | W144: N/A | X144: N/A | Y144: N/A | Z144: N/A | AA144: N/A | BA144: Latrine emptying practices | BB144: Not emptied/treated and disposed in situ | BC144: N/A | BD144: N/A | BE144: N/A | BF144: N/A | BG144: N/A | BH144: N/A | BI144: N/A | BJ144: N/A | BK144: N/A | BL144: N/A | BM144: N/A | BN144: N/A | BO144: N/A | BP144: N/A | BQ144: N/A | BR144: N/A | BS144: N/A | BT144: N/A | BU144: N/A | BV144: N/A | BW144: N/A | BX144: N/A | BY144: N/A | BZ144: N/A | CA144: N/A
B145: Emptied and buried on site | C145: N/A | D145: N/A | E145: N/A | F145: N/A | G145: N/A | H145: N/A | I145: N/A | J145: N/A | K145: N/A | L145: N/A | M145: N/A | N145: N/A | O145: N/A | P145: N/A | Q145: N/A | R145: N/A | S145: N/A | T145: N/A | U145: N/A | V145: N/A | W145: N/A | X145: N/A | Y145: N/A | Z145: N/A | AA145: N/A | BB145: Emptied and buried on site | BC145: N/A | BD145: N/A | BE145: N/A | BF145: N/A | BG145: N/A | BH145: N/A | BI145: N/A | BJ145: N/A | BK145: N/A | BL145: N/A | BM145: N/A | BN145: N/A | BO145: N/A | BP145: N/A | BQ145: N/A | BR145: N/A | BS145: N/A | BT145: N/A | BU145: N/A | BV145: N/A | BW145: N/A | BX145: N/A | BY145: N/A | BZ145: N/A | CA145: N/A
B146: Emptied and discharged locally | C146: N/A | D146: N/A | E146: N/A | F146: N/A | G146: N/A | H146: N/A | I146: N/A | J146: N/A | K146: N/A | L146: N/A | M146: N/A | N146: N/A | O146: N/A | P146: N/A | Q146: N/A | R146: N/A | S146: N/A | T146: N/A | U146: N/A | V146: N/A | W146: N/A | X146: N/A | Y146: N/A | Z146: N/A | AA146: N/A | BB146: Emptied and discharged locally | BC146: N/A | BD146: N/A | BE146: N/A | BF146: N/A | BG146: N/A | BH146: N/A | BI146: N/A | BJ146: N/A | BK146: N/A | BL146: N/A | BM146: N/A | BN146: N/A | BO146: N/A | BP146: N/A | BQ146: N/A | BR146: N/A | BS146: N/A | BT146: N/A | BU146: N/A | BV146: N/A | BW146: N/A | BX146: N/A | BY146: N/A | BZ146: N/A | CA146: N/A
B147: Emptied and removed offsite | C147: N/A | D147: N/A | E147: N/A | F147: N/A | G147: N/A | H147: N/A | I147: N/A | J147: N/A | K147: N/A | L147: N/A | M147: N/A | N147: N/A | O147: N/A | P147: N/A | Q147: N/A | R147: N/A | S147: N/A | T147: N/A | U147: N/A | V147: N/A | W147: N/A | X147: N/A | Y147: N/A | Z147: N/A | AA147: N/A | BB147: Emptied and removed offsite | BC147: N/A | BD147: N/A | BE147: N/A | BF147: N/A | BG147: N/A | BH147: N/A | BI147: N/A | BJ147: N/A | BK147: N/A | BL147: N/A | BM147: N/A | BN147: N/A | BO147: N/A | BP147: N/A | BQ147: N/A | BR147: N/A | BS147: N/A | BT147: N/A | BU147: N/A | BV147: N/A | BW147: N/A | BX147: N/A | BY147: N/A | BZ147: N/A | CA147: N/A
A148: Shared among improved sanitation facilities | B148: Yes | C148: 4.98191746 | D148: 11.75322499 | E148: 21.54355587 | F148: 38.25085682 | G148: 21.9885882 | H148: 51.81470948 | I148: 45.66186404 | J148: 31.09828765 | K148: 23.78425219 | L148: 13.06171902 | M148: 4.518703653 | N148: 7.574762592 | O148: 13.75036339 | P148: 20.08031063 | Q148: 21.45706482 | R148: 28.4364887 | S148: 32.89081814 | T148: 22.40653891 | U148: 19.8269059 | V148: 18.1593003 | W148: 22.72989961 | X148: 14.07944576 | Y148: 6.775570958 | Z148: 9.089170297 | AA148: 14.90675077 | BA148: Shared among improved sanitation facilities | BB148: Yes | BC148: N/A | BD148: N/A | BE148: N/A | BF148: N/A | BG148: N/A | BH148: N/A | BI148: N/A | BJ148: N/A | BK148: N/A | BL148: N/A | BM148: N/A | BN148: N/A | BO148: N/A | BP148: N/A | BQ148: N/A | BR148: N/A | BS148: N/A | BT148: N/A | BU148: N/A | BV148: N/A | BW148: N/A | BX148: N/A | BY148: N/A | BZ148: N/A | CA148: N/A
B149: No | C149: 9.148954653 | D149: 23.09116785 | E149: 47.47802116 | F149: 54.19177663 | G149: 77.62131469 | H149: 41.95326005 | I149: 52.51211313 | J149: 68.29065812 | K149: 75.98972639 | L149: 86.75004553 | M149: 6.888787349 | N149: 16.19284005 | O149: 27.33292038 | P149: 45.36039728 | Q149: 62.64167215 | R149: 70.91123151 | S149: 65.65895916 | T149: 37.82085001 | U149: 32.99228917 | V149: 50.84688468 | W149: 35.94165751 | X149: 25.53069653 | Y149: 21.68541146 | Z149: 50.57478371 | AA149: 38.70848475 | BB149: No | BC149: N/A | BD149: N/A | BE149: N/A | BF149: N/A | BG149: N/A | BH149: N/A | BI149: N/A | BJ149: N/A | BK149: N/A | BL149: N/A | BM149: N/A | BN149: N/A | BO149: N/A | BP149: N/A | BQ149: N/A | BR149: N/A | BS149: N/A | BT149: N/A | BU149: N/A | BV149: N/A | BW149: N/A | BX149: N/A | BY149: N/A | BZ149: N/A | CA149: N/A
B150: DK/missing | C150: 85.86912789 | D150: 65.15560716 | E150: 30.97842297 | F150: 7.557366551 | G150: 0.3900971114 | H150: 6.232030469 | I150: 1.826022825 | J150: 0.611054233 | K150: 0.2260214196 | L150: 0.1882354501 | M150: 88.592509 | N150: 76.23239736 | O150: 58.91671623 | P150: 34.55929208 | Q150: 15.90126303 | R150: 0.6522797854 | S150: 1.450222698 | T150: 39.77261107 | U150: 47.18080493 | V150: 30.99381502 | W150: 41.32844288 | X150: 60.38985771 | Y150: 71.53901758 | Z150: 40.33604599 | AA150: 46.38476448 | BB150: DK/missing | BC150: N/A | BD150: N/A | BE150: N/A | BF150: N/A | BG150: N/A | BH150: N/A | BI150: N/A | BJ150: N/A | BK150: N/A | BL150: N/A | BM150: N/A | BN150: N/A | BO150: N/A | BP150: N/A | BQ150: N/A | BR150: N/A | BS150: N/A | BT150: N/A | BU150: N/A | BV150: N/A | BW150: N/A | BX150: N/A | BY150: N/A | BZ150: N/A | CA150: N/A
A151: Shared among all sanitation facilities | B151: Yes | C151: 30.37998827 | D151: 30.68901097 | E151: 30.82013344 | F151: 41.38518357 | G151: 22.14921226 | H151: 55.49780135 | I151: 46.74512282 | J151: 31.60365075 | K151: 23.78425219 | L151: 13.06171902 | M151: 33.83002512 | N151: 26.64510662 | O151: 31.82692989 | P151: 29.98225455 | Q151: 25.29974349 | R151: 28.73234259 | S151: 33.94245584 | T151: 35.50239251 | U151: 33.51145386 | V151: 25.64728631 | W151: 39.31735084 | X151: 35.01883539 | Y151: 20.91189193 | Z151: 14.81812203 | AA151: 27.07486279 | BA151: Shared among all sanitation facilities | BB151: Yes | BC151: N/A | BD151: N/A | BE151: N/A | BF151: N/A | BG151: N/A | BH151: N/A | BI151: N/A | BJ151: N/A | BK151: N/A | BL151: N/A | BM151: N/A | BN151: N/A | BO151: N/A | BP151: N/A | BQ151: N/A | BR151: N/A | BS151: N/A | BT151: N/A | BU151: N/A | BV151: N/A | BW151: N/A | BX151: N/A | BY151: N/A | BZ151: N/A | CA151: N/A
B152: No | C152: 69.44173424 | D152: 69.03581276 | E152: 68.98494117 | F152: 58.44817892 | G152: 77.85078774 | H152: 44.31919166 | I152: 52.93399697 | J152: 68.39634925 | K152: 76.21574781 | L152: 86.93828098 | M152: 65.86867496 | N152: 73.35489338 | O152: 67.81760929 | P152: 69.72147669 | Q152: 74.70025651 | R152: 70.93485884 | S152: 65.99645516 | T152: 64.49760749 | U152: 66.48854614 | V152: 74.35271369 | W152: 59.90264328 | X152: 64.62294753 | Y152: 79.08810807 | Z152: 85.18187797 | AA152: 72.92513721 | BB152: No | BC152: N/A | BD152: N/A | BE152: N/A | BF152: N/A | BG152: N/A | BH152: N/A | BI152: N/A | BJ152: N/A | BK152: N/A | BL152: N/A | BM152: N/A | BN152: N/A | BO152: N/A | BP152: N/A | BQ152: N/A | BR152: N/A | BS152: N/A | BT152: N/A | BU152: N/A | BV152: N/A | BW152: N/A | BX152: N/A | BY152: N/A | BZ152: N/A | CA152: N/A
A153: Type of toilet facility | B153: Flushed to piped sewer system | C153: 0 | D153: 0 | E153: 1.446442791 | F153: 51.44198342 | G153: 88.3040476 | H153: 66.84515227 | I153: 87.77101944 | J153: 89.90031071 | K153: 94.26004112 | L153: 90.70272941 | M153: 0 | N153: 0 | O153: 0 | P153: 1.046811538 | Q153: 5.996275562 | R153: 95.75477253 | S153: 87.39171237 | T153: 14.54262651 | U153: 5.563133982 | V153: 12.01643954 | W153: 20.55215672 | X153: 8.559892284 | Y153: 10.22439227 | Z153: 15.24473972 | AA153: 17.29356809 | BA153: Type of toilet facility | BB153: Flushed to piped sewer system | BC153: 0 | BD153: 0 | BE153: 122.292113 | BF153: 4332.485055 | BG153: 7456.429392 | BH153: 1776.550989 | BI153: 2355.046419 | BJ153: 2411.375357 | BK153: 2521.952806 | BL153: 2439.936632 | BM153: 0 | BN153: 0 | BO153: 0 | BP153: 60.409868 | BQ153: 345.934489 | BR153: 2478.344974 | BS153: 5002.460232 | BT153: 771.007696 | BU153: 246.801532 | BV153: 461.122042 | BW153: 852.13258 | BX153: 422.767841 | BY153: 316.335726 | BZ153: 345.565606 | CA153: 1014.668331
B154: Flush to septic tank | C154: 0 | D154: 0.01573291683 | E154: 0.9148834453 | F154: 5.008863943 | G154: 7.488895781 | H154: 6.172694013 | I154: 6.83808309 | J154: 5.745060782 | K154: 4.505334841 | L154: 8.618649304 | M154: 0 | N154: 0 | O154: 0.02305617998 | P154: 0.629486583 | Q154: 4.18129022 | R154: 3.034934419 | S154: 1.812882506 | T154: 3.139555606 | U154: 1.270001709 | V154: 2.647757515 | W154: 3.88428812 | X154: 0.9808537014 | Y154: 0.4251723295 | Z154: 0.5318247374 | AA154: 6.672005583 | BB154: Flush to septic tank | BC154: 0 | BD154: 1.326476 | BE154: 77.35047 | BF154: 421.850534 | BG154: 632.36538 | BH154: 164.05237 | BI154: 183.477453 | BJ154: 154.098444 | BK154: 120.541448 | BL154: 231.844822 | BM154: 0 | BN154: 0 | BO154: 1.326476 | BP154: 36.326693 | BQ154: 241.225154 | BR154: 78.550805 | BS154: 103.772685 | BT154: 166.450093 | BU154: 56.342049 | BV154: 101.60575 | BW154: 161.050176 | BX154: 48.443764 | BY154: 13.154542 | BZ154: 12.055328 | CA154: 391.467668
B155: Flush to latrine | C155: 0.09385054907 | D155: 0.1979613561 | E155: 0.4322786185 | F155: 1.684057301 | G155: 0.8288815219 | H155: 3.264921236 | I155: 1.813403451 | J155: 1.975704411 | K155: 0.2176586184 | L155: 0.2086252644 | M155: 0 | N155: 0.2472717565 | O155: 0.1807569949 | P155: 0.4454904163 | Q155: 0.3952848416 | R155: 0.419513623 | S155: 1.118578822 | T155: 1.27242117 | U155: 0.2133746179 | V155: 0.6381219718 | W155: 1.127266718 | X155: 0.750756823 | Y155: 0.077673528 | Z155: 0.01951128273 | AA155: 0.1708953219 | BB155: Flush to latrine | BC155: 7.929495 | BD155: 16.690547 | BE155: 36.547775 | BF155: 141.832655 | BG155: 69.99109 | BH155: 86.772172 | BI155: 48.656713 | BJ155: 52.993865 | BK155: 5.823515 | BL155: 5.612096 | BM155: 0 | BN155: 14.220669 | BO155: 10.399373 | BP155: 25.70856 | BQ155: 22.804599 | BR155: 10.857939 | BS155: 64.029482 | BT155: 67.460064 | BU155: 9.4661 | BV155: 24.487462 | BW155: 46.738681 | BX155: 37.07942 | BY155: 2.403166 | BZ155: 0.442279 | CA155: 10.026969
B156: Flush other | C156: 0 | D156: 0 | E156: 0.1469874629 | F156: 0.611767548 | G156: 0.04873754553 | H156: 2.00410215 | I156: 0.3983208506 | J156: 0.1534300149 | K156: 0 | L156: 0 | M156: 0 | N156: 0 | O156: 0 | P156: 0 | Q156: 0 | R156: 0 | S156: 0.7370835114 | T156: 0 | U156: 0 | V156: 0.1288509351 | W156: 0.5047936939 | X156: 0 | Y156: 0 | Z156: 0 | AA156: 0 | BB156: Flush other | BC156: 0 | BD156: 0 | BE156: 12.42732 | BF156: 51.523553 | BG156: 4.115418 | BH156: 53.263244 | BI156: 10.687629 | BJ156: 4.115418 | BK156: 0 | BL156: 0 | BM156: 0 | BN156: 0 | BO156: 0 | BP156: 0 | BQ156: 0 | BR156: 0 | BS156: 42.191998 | BT156: 0 | BU156: 0 | BV156: 4.94456 | BW156: 20.929733 | BX156: 0 | BY156: 0 | BZ156: 0 | CA156: 0
B157: Flush, don't know where | C157: 0 | D157: 0.04485745084 | E157: 0 | F157: 0.430089129 | G157: 0.4075580605 | H157: 0.6370896147 | I157: 0.7189422885 | J157: 0.5797659973 | K157: 0.2324914721 | L157: 0.469996019 | M157: 0 | N157: 0 | O157: 0.06573742629 | P157: 0 | Q157: 0 | R157: 0 | S157: 0.04704518891 | T157: 0 | U157: 0.05411651506 | V157: 0.09855636182 | W157: 0.229451679 | X157: 0 | Y157: 0.08494240181 | Z157: 0 | AA157: 0.9101517065 | BB157: Flush, don't know where | BC157: 0 | BD157: 3.782028 | BE157: 0 | BF157: 36.222451 | BG157: 34.414367 | BH157: 16.932001 | BI157: 19.29045 | BJ157: 15.55093 | BK157: 6.220372 | BL157: 12.643065 | BM157: 0 | BN157: 0 | BO157: 3.782028 | BP157: 0 | BQ157: 0 | BR157: 0 | BS157: 2.692952 | BT157: 0 | BU157: 2.400812 | BV157: 3.782028 | BW157: 9.513515 | BX157: 0 | BY157: 2.62806 | BZ157: 0 | CA157: 53.401479
B158: Ventilated improved pit/latrine (VIP Blair toilet) | C158: 9.223906317 | D158: 24.2738392 | E158: 52.48712412 | F158: 26.96626374 | G158: 2.446589073 | H158: 12.5298264 | I158: 1.124049848 | J158: 1.130070981 | K158: 0.2482011251 | L158: 0 | M158: 7.156158627 | N158: 16.59516104 | O158: 28.42569219 | P158: 49.77565614 | Q158: 60.07959021 | R158: 0.5478035646 | S158: 5.848683519 | T158: 32.37940527 | U158: 36.93356604 | V158: 40.13377765 | W158: 26.22120999 | X158: 22.72599233 | Y158: 11.87951274 | Z158: 38.3281435 | AA158: 17.9133251 | BB158: Ventilated improved pit/latrine (VIP Blair toilet) | BC158: 779.333949 | BD158: 2046.579505 | BE158: 4437.618519 | BF158: 2271.120336 | BG158: 206.590968 | BH158: 333.006579 | BI158: 30.160178 | BJ158: 30.311634 | BK158: 6.640688 | BL158: 0 | BM158: 412.7741 | BN158: 954.392428 | BO158: 1635.396605 | BP158: 2872.475805 | BQ158: 3466.08526 | BR158: 14.178366 | BS158: 334.78926 | BT158: 1716.661749 | BU158: 1638.511801 | BV158: 1540.104241 | BW158: 1087.182607 | BX158: 1122.422852 | BY158: 367.544025 | BZ158: 868.816941 | CA158: 1051.031435
B159: Non-VIP pit latrine with slab | C159: 4.694427521 | D159: 10.27238776 | E159: 13.84608259 | F159: 7.228567371 | G159: 0.2487684352 | H159: 5.108299893 | I159: 0.3308955134 | J159: 0.2307693053 | K159: 0.3102514064 | L159: 0 | M159: 4.242572345 | N159: 6.686011922 | O159: 12.40439943 | P159: 13.69694704 | Q159: 13.35930899 | R159: 0.1029224386 | S159: 2.359860375 | T159: 8.645031464 | U159: 8.734064513 | V159: 13.47153194 | W159: 7.429114357 | X159: 6.587898157 | Y159: 5.769289153 | Z159: 5.53973477 | AA159: 10.65528973 | BB159: Non-VIP pit latrine with slab | BC159: 396.635288 | BD159: 866.087069 | BE159: 1170.642011 | BF159: 608.795735 | BG159: 21.006107 | BH159: 135.76385 | BI159: 8.878492 | BJ159: 6.189872 | BK159: 8.30086 | BL159: 0 | BM159: 244.715646 | BN159: 384.514446 | BO159: 713.654133 | BP159: 790.42954 | BQ159: 770.719371 | BR159: 2.66386 | BS159: 135.082691 | BT159: 458.334386 | BU159: 387.475928 | BV159: 516.960144 | BW159: 308.025599 | BX159: 325.372258 | BY159: 178.497873 | BZ159: 125.573925 | CA159: 625.179546
B160: Non-VIP pit latrine without slab | C160: 9.018762794 | D160: 11.05261247 | E160: 6.329427535 | F160: 1.579599187 | G160: 0.06441068242 | H160: 1.806761057 | I160: 0 | J160: 0 | K160: 0 | L160: 0 | M160: 8.716533938 | N160: 9.931445943 | O160: 11.21084356 | P160: 7.20370845 | Q160: 3.203585624 | R160: 0 | S160: 0.08482608387 | T160: 15.73727071 | U160: 16.0811606 | V160: 3.324169966 | W160: 1.675405836 | X160: 3.036686688 | Y160: 5.142083089 | Z160: 1.67425254 | AA160: 4.615473759 | BB160: Non-VIP pit latrine without slab | BC160: 762.001237 | BD160: 931.86949 | BE160: 535.13286 | BF160: 133.035109 | BG160: 5.438864 | BH160: 48.018488 | BI160: 0 | BJ160: 0 | BK160: 0 | BL160: 0 | BM160: 502.778046 | BN160: 571.160279 | BO160: 644.98607 | BP160: 415.714826 | BQ160: 184.819851 | BR160: 0 | BS160: 4.855599 | BT160: 834.344252 | BU160: 713.420724 | BV160: 127.562581 | BW160: 69.4656 | BX160: 149.980097 | BY160: 159.092545 | BZ160: 37.95172 | CA160: 270.804442
B161: No facility/bush/field | C161: 76.79672602 | D161: 53.84045681 | E161: 24.2519999 | F161: 4.074684477 | G161: 0 | H161: 0.4673680032 | I161: 0 | J161: 0 | K161: 0 | L161: 0 | M161: 79.81515815 | N161: 66.08861147 | O161: 47.51472461 | P161: 26.98979676 | Q161: 12.36626862 | R161: 0.03336848185 | S161: 0.1125826636 | T161: 24.03534036 | U161: 30.65589386 | V161: 27.44648842 | W161: 37.93476544 | X161: 56.85295438 | Y161: 66.14949187 | Z161: 38.66179345 | AA161: 41.29638084 | BB161: No facility/bush/field | BC161: 6488.606205 | BD161: 4539.404522 | BE161: 2050.429047 | BF161: 343.173191 | BG161: 0 | BH161: 12.421291 | BI161: 0 | BJ161: 0 | BK161: 0 | BL161: 0 | BM161: 4603.81495 | BN161: 3800.77483 | BO161: 2733.63332 | BP161: 1557.539251 | BQ161: 713.429323 | BR161: 0.86365 | BS161: 6.444436 | BT161: 1274.283733 | BU161: 1360.010669 | BV161: 1053.238835 | BW161: 1572.849506 | BX161: 2807.932621 | BY161: 2046.620179 | BZ161: 876.380071 | CA161: 2422.989265
B162: Composting toilet/Arbo loo | C162: 0.1723267955 | D162: 0.1334041341 | E162: 0.04890837827 | F162: 0.1514562178 | G162: 0 | H162: 0.2037895741 | I162: 0.08650966038 | J162: 0 | K162: 0 | L162: 0 | M162: 0.06957694524 | N162: 0.318378969 | O162: 0.06056183293 | P162: 0.07165410313 | Q162: 0.08698714394 | R162: 0 | S162: 0.1351693688 | T162: 0.248348914 | U162: 0.06037725603 | V162: 0 | W162: 0.2712749369 | X162: 0.1593090808 | Y162: 0 | Z162: 0 | AA162: 0 | BB162: Composting toilet/Arbo loo | BC162: 14.560005 | BD162: 11.247589 | BE162: 4.135047 | BF162: 12.755764 | BG162: 0 | BH162: 5.416138 | BI162: 2.321202 | BJ162: 0 | BK162: 0 | BL162: 0 | BM162: 4.013265 | BN162: 18.310065 | BO162: 3.484264 | BP162: 4.135047 | BQ162: 5.018424 | BR162: 0 | BS162: 7.73734 | BT162: 13.166736 | BU162: 2.678562 | BV162: 0 | BW162: 11.247589 | BX162: 7.868178 | BY162: 0 | BZ162: 0 | CA162: 0
B163: Bucket toilet | C163: 0 | D163: 0.1687479025 | E163: 0 | F163: 0.4860371838 | G163: 0.09049554125 | H163: 0.4950707892 | I163: 0.7323686418 | J163: 0.2848878024 | K163: 0 | L163: 0 | M163: 0 | N163: 0.1331189039 | O163: 0.1142277879 | P163: 0 | Q163: 0.1408557518 | R163: 0.106684946 | S163: 0.3049366796 | T163: 0 | U163: 0.4343109036 | V163: 0 | W163: 0.08667068574 | X163: 0.2443873572 | Y163: 0.2474426212 | Z163: 0 | AA163: 0 | BB163: Bucket toilet | BC163: 0 | BD163: 14.227498 | BE163: 0 | BF163: 40.934441 | BG163: 7.64148 | BH163: 13.157551 | BI163: 19.650702 | BJ163: 7.64148 | BK163: 0 | BL163: 0 | BM163: 0 | BN163: 7.655706 | BO163: 6.571792 | BP163: 0 | BQ163: 8.126188 | BR163: 2.761242 | BS163: 17.455129 | BT163: 0 | BU163: 19.267664 | BV163: 0 | BW163: 3.593536 | BX163: 12.070142 | BY163: 7.655706 | BZ163: 0 | CA163: 0
B164: OTHER | C164: 0 | D164: 0 | E164: 0.09586515109 | F164: 0.3366304834 | G164: 0.07161576406 | H164: 0.4649249987 | I164: 0.1864072121 | J164: 0 | K164: 0.2260214196 | L164: 0 | M164: 0 | N164: 0 | O164: 0 | P164: 0.1404489715 | Q164: 0.1905530389 | R164: 0 | S164: 0.04663891248 | T164: 0 | U164: 0 | V164: 0.09430570066 | W164: 0.08360182412 | X164: 0.1012692039 | Y164: 0 | Z164: 0 | AA164: 0.4729098757 | BB164: OTHER | BC164: 0 | BD164: 0 | BE164: 8.105092 | BF164: 28.351289 | BG164: 6.047264 | BH164: 12.356363 | BI164: 5.001624 | BJ164: 0 | BK164: 6.047264 | BL164: 0 | BM164: 0 | BN164: 0 | BO164: 0 | BP164: 8.105092 | BQ164: 10.993302 | BR164: 0 | BS164: 2.669696 | BT164: 0 | BU164: 0 | BV164: 3.618912 | BW164: 3.466295 | BX164: 5.001624 | BY164: 0 | BZ164: 0 | CA164: 27.747118
BB165: Total | BC165: 8449.066179 | BD165: 8431.214724 | BE165: 8454.680254 | BF165: 8422.080113 | BG165: 8444.04033 | BH165: 2657.711036 | BI165: 2683.170862 | BJ165: 2682.277 | BK165: 2675.526953 | BL165: 2690.036615 | BM165: 5768.096007 | BN165: 5751.028423 | BO165: 5753.234061 | BP165: 5770.844682 | BQ165: 5769.155961 | BR165: 2588.220836 | BS165: 5724.1815 | BT165: 5301.708709 | BU165: 4436.375841 | BV165: 3837.426555 | BW165: 4146.195417 | BX165: 4938.938797 | BY165: 3093.931822 | BZ165: 2266.78587 | CA165: 5867.316253
A208: =A1026 -> Zimbabwe
A209: =A1034 -> 2006
A210: Access to hygiene facilities
A211: by wealth quintile and sub-national region
A212: Notes:
A213: WHO/UNICEF JMP customised wealth index excludes water,
A214: sanitation and hygiene assets.
A215: Survey used for analysis: | B215: =A1025 -> DHS06
A220: Access to handwashing | C220: NATIONAL wealth index quintile | H220: URBAN wealth index quintile | M220: RURAL wealth index quintile | R220: SUB-REGIONS: | BA220: Raw numbers of respondents: | BB220: Access to handwashing | BC220: NATIONAL wealth index quintile | BH220: URBAN wealth index quintile | BM220: RURAL wealth index quintile | BR220: SUB-REGIONS:
A221: Weighted percentage (used in graphs) | C221: Poorest | D221: Poor | E221: Middle | F221: Rich | G221: Richest | H221: Poorest | I221: Poor | J221: Middle | K221: Rich | L221: Richest | M221: Poorest | N221: Poor | O221: Middle | P221: Rich | Q221: Richest | R221: Bulawayo | S221: Harare | T221: Manicaland | U221: Mashonaland Central | V221: Mashonaland East | W221: Mashonaland West | X221: Masvingo | Y221: Matebeleland North | Z221: Matebeleland South | AA221: Midlands | BA221: Hygiene data, raw numbers (weighted) | BC221: Poorest | BD221: Poor | BE221: Middle | BF221: Rich | BG221: Richest | BH221: Poorest | BI221: Poor | BJ221: Middle | BK221: Rich | BL221: Richest | BM221: Poorest | BN221: Poor | BO221: Middle | BP221: Rich | BQ221: Richest | BR221: Bulawayo | BS221: Harare | BT221: Manicaland | BU221: Mashonaland Central | BV221: Mashonaland East | BW221: Mashonaland West | BX221: Masvingo | BY221: Matebeleland North | BZ221: Matebeleland South | CA221: Midlands
A222: Hygiene ladder | B222: Basic | C222: N/A | D222: N/A | E222: N/A | F222: N/A | G222: N/A | H222: N/A | I222: N/A | J222: N/A | K222: N/A | L222: N/A | M222: N/A | N222: N/A | O222: N/A | P222: N/A | Q222: N/A | R222: N/A | S222: N/A | T222: N/A | U222: N/A | V222: N/A | W222: N/A | X222: N/A | Y222: N/A | Z222: N/A | AA222: N/A | BA222: Hygiene ladder | BB222: Basic | BC222: N/A | BD222: N/A | BE222: N/A | BF222: N/A | BG222: N/A | BH222: N/A | BI222: N/A | BJ222: N/A | BK222: N/A | BL222: N/A | BM222: N/A | BN222: N/A | BO222: N/A | BP222: N/A | BQ222: N/A | BR222: N/A | BS222: N/A | BT222: N/A | BU222: N/A | BV222: N/A | BW222: N/A | BX222: N/A | BY222: N/A | BZ222: N/A | CA222: N/A
B223: Limited | C223: N/A | D223: N/A | E223: N/A | F223: N/A | G223: N/A | H223: N/A | I223: N/A | J223: N/A | K223: N/A | L223: N/A | M223: N/A | N223: N/A | O223: N/A | P223: N/A | Q223: N/A | R223: N/A | S223: N/A | T223: N/A | U223: N/A | V223: N/A | W223: N/A | X223: N/A | Y223: N/A | Z223: N/A | AA223: N/A | BB223: Limited | BC223: N/A | BD223: N/A | BE223: N/A | BF223: N/A | BG223: N/A | BH223: N/A | BI223: N/A | BJ223: N/A | BK223: N/A | BL223: N/A | BM223: N/A | BN223: N/A | BO223: N/A | BP223: N/A | BQ223: N/A | BR223: N/A | BS223: N/A | BT223: N/A | BU223: N/A | BV223: N/A | BW223: N/A | BX223: N/A | BY223: N/A | BZ223: N/A | CA223: N/A
B224: No facility | C224: N/A | D224: N/A | E224: N/A | F224: N/A | G224: N/A | H224: N/A | I224: N/A | J224: N/A | K224: N/A | L224: N/A | M224: N/A | N224: N/A | O224: N/A | P224: N/A | Q224: N/A | R224: N/A | S224: N/A | T224: N/A | U224: N/A | V224: N/A | W224: N/A | X224: N/A | Y224: N/A | Z224: N/A | AA224: N/A | BB224: No facility | BC224: N/A | BD224: N/A | BE224: N/A | BF224: N/A | BG224: N/A | BH224: N/A | BI224: N/A | BJ224: N/A | BK224: N/A | BL224: N/A | BM224: N/A | BN224: N/A | BO224: N/A | BP224: N/A | BQ224: N/A | BR224: N/A | BS224: N/A | BT224: N/A | BU224: N/A | BV224: N/A | BW224: N/A | BX224: N/A | BY224: N/A | BZ224: N/A | CA224: N/A
BA225: Observed handwashing place | BB225: Fixed | BC225: N/A | BD225: N/A | BE225: N/A | BF225: N/A | BG225: N/A | BH225: N/A | BI225: N/A | BJ225: N/A | BK225: N/A | BL225: N/A | BM225: N/A | BN225: N/A | BO225: N/A | BP225: N/A | BQ225: N/A | BR225: N/A | BS225: N/A | BT225: N/A | BU225: N/A | BV225: N/A | BW225: N/A | BX225: N/A | BY225: N/A | BZ225: N/A | CA225: N/A
BB226: Mobile | BC226: N/A | BD226: N/A | BE226: N/A | BF226: N/A | BG226: N/A | BH226: N/A | BI226: N/A | BJ226: N/A | BK226: N/A | BL226: N/A | BM226: N/A | BN226: N/A | BO226: N/A | BP226: N/A | BQ226: N/A | BR226: N/A | BS226: N/A | BT226: N/A | BU226: N/A | BV226: N/A | BW226: N/A | BX226: N/A | BY226: N/A | BZ226: N/A | CA226: N/A
BA227: Water / Soap | BB227: Water and soap | BC227: N/A | BD227: N/A | BE227: N/A | BF227: N/A | BG227: N/A | BH227: N/A | BI227: N/A | BJ227: N/A | BK227: N/A | BL227: N/A | BM227: N/A | BN227: N/A | BO227: N/A | BP227: N/A | BQ227: N/A | BR227: N/A | BS227: N/A | BT227: N/A | BU227: N/A | BV227: N/A | BW227: N/A | BX227: N/A | BY227: N/A | BZ227: N/A | CA227: N/A
BB228: Water only | BC228: N/A | BD228: N/A | BE228: N/A | BF228: N/A | BG228: N/A | BH228: N/A | BI228: N/A | BJ228: N/A | BK228: N/A | BL228: N/A | BM228: N/A | BN228: N/A | BO228: N/A | BP228: N/A | BQ228: N/A | BR228: N/A | BS228: N/A | BT228: N/A | BU228: N/A | BV228: N/A | BW228: N/A | BX228: N/A | BY228: N/A | BZ228: N/A | CA228: N/A
BB229: Soap only | BC229: N/A | BD229: N/A | BE229: N/A | BF229: N/A | BG229: N/A | BH229: N/A | BI229: N/A | BJ229: N/A | BK229: N/A | BL229: N/A | BM229: N/A | BN229: N/A | BO229: N/A | BP229: N/A | BQ229: N/A | BR229: N/A | BS229: N/A | BT229: N/A | BU229: N/A | BV229: N/A | BW229: N/A | BX229: N/A | BY229: N/A | BZ229: N/A | CA229: N/A
BB230: Neither | BC230: N/A | BD230: N/A | BE230: N/A | BF230: N/A | BG230: N/A | BH230: N/A | BI230: N/A | BJ230: N/A | BK230: N/A | BL230: N/A | BM230: N/A | BN230: N/A | BO230: N/A | BP230: N/A | BQ230: N/A | BR230: N/A | BS230: N/A | BT230: N/A | BU230: N/A | BV230: N/A | BW230: N/A | BX230: N/A | BY230: N/A | BZ230: N/A | CA230: N/A
BA259: Raw numbers of respondents: | BB259: Menstrual health and hygiene | BC259: NATIONAL wealth index quintile | BH259: URBAN wealth index quintile | BM259: RURAL wealth index quintile | BR259: SUB-REGIONS:
BA260: MHH data, raw numbers (weighted) | BC260: Poorest | BD260: Poor | BE260: Middle | BF260: Rich | BG260: Richest | BH260: Poorest | BI260: Poor | BJ260: Middle | BK260: Rich | BL260: Richest | BM260: Poorest | BN260: Poor | BO260: Middle | BP260: Rich | BQ260: Richest | BR260: Bulawayo | BS260: Harare | BT260: Manicaland | BU260: Mashonaland Central | BV260: Mashonaland East | BW260: Mashonaland West | BX260: Masvingo | BY260: Matebeleland North | BZ260: Matebeleland South | CA260: Midlands
BA261: Private place to wash and change | BB261: Yes | BC261: N/A | BD261: N/A | BE261: N/A | BF261: N/A | BG261: N/A | BH261: N/A | BI261: N/A | BJ261: N/A | BK261: N/A | BL261: N/A | BM261: N/A | BN261: N/A | BO261: N/A | BP261: N/A | BQ261: N/A | BR261: N/A | BS261: N/A | BT261: N/A | BU261: N/A | BV261: N/A | BW261: N/A | BX261: N/A | BY261: N/A | BZ261: N/A | CA261: N/A
BB262: No | BC262: N/A | BD262: N/A | BE262: N/A | BF262: N/A | BG262: N/A | BH262: N/A | BI262: N/A | BJ262: N/A | BK262: N/A | BL262: N/A | BM262: N/A | BN262: N/A | BO262: N/A | BP262: N/A | BQ262: N/A | BR262: N/A | BS262: N/A | BT262: N/A | BU262: N/A | BV262: N/A | BW262: N/A | BX262: N/A | BY262: N/A | BZ262: N/A | CA262: N/A
BB263: DK/not sure/missing | BC263: N/A | BD263: N/A | BE263: N/A | BF263: N/A | BG263: N/A | BH263: N/A | BI263: N/A | BJ263: N/A | BK263: N/A | BL263: N/A | BM263: N/A | BN263: N/A | BO263: N/A | BP263: N/A | BQ263: N/A | BR263: N/A | BS263: N/A | BT263: N/A | BU263: N/A | BV263: N/A | BW263: N/A | BX263: N/A | BY263: N/A | BZ263: N/A | CA263: N/A
BA264: Use of menstrual materials | BB264: Materials reusable | BC264: N/A | BD264: N/A | BE264: N/A | BF264: N/A | BG264: N/A | BH264: N/A | BI264: N/A | BJ264: N/A | BK264: N/A | BL264: N/A | BM264: N/A | BN264: N/A | BO264: N/A | BP264: N/A | BQ264: N/A | BR264: N/A | BS264: N/A | BT264: N/A | BU264: N/A | BV264: N/A | BW264: N/A | BX264: N/A | BY264: N/A | BZ264: N/A | CA264: N/A
BB265: Materials not reusable | BC265: N/A | BD265: N/A | BE265: N/A | BF265: N/A | BG265: N/A | BH265: N/A | BI265: N/A | BJ265: N/A | BK265: N/A | BL265: N/A | BM265: N/A | BN265: N/A | BO265: N/A | BP265: N/A | BQ265: N/A | BR265: N/A | BS265: N/A | BT265: N/A | BU265: N/A | BV265: N/A | BW265: N/A | BX265: N/A | BY265: N/A | BZ265: N/A | CA265: N/A
BB266: No materials used | BC266: N/A | BD266: N/A | BE266: N/A | BF266: N/A | BG266: N/A | BH266: N/A | BI266: N/A | BJ266: N/A | BK266: N/A | BL266: N/A | BM266: N/A | BN266: N/A | BO266: N/A | BP266: N/A | BQ266: N/A | BR266: N/A | BS266: N/A | BT266: N/A | BU266: N/A | BV266: N/A | BW266: N/A | BX266: N/A | BY266: N/A | BZ266: N/A | CA266: N/A
BB267: DK/not sure/missing | BC267: N/A | BD267: N/A | BE267: N/A | BF267: N/A | BG267: N/A | BH267: N/A | BI267: N/A | BJ267: N/A | BK267: N/A | BL267: N/A | BM267: N/A | BN267: N/A | BO267: N/A | BP267: N/A | BQ267: N/A | BR267: N/A | BS267: N/A | BT267: N/A | BU267: N/A | BV267: N/A | BW267: N/A | BX267: N/A | BY267: N/A | BZ267: N/A | CA267: N/A
BA268: Use of menstrual materials with private place to wash and change | BB268: Materials reusable | BC268: N/A | BD268: N/A | BE268: N/A | BF268: N/A | BG268: N/A | BH268: N/A | BI268: N/A | BJ268: N/A | BK268: N/A | BL268: N/A | BM268: N/A | BN268: N/A | BO268: N/A | BP268: N/A | BQ268: N/A | BR268: N/A | BS268: N/A | BT268: N/A | BU268: N/A | BV268: N/A | BW268: N/A | BX268: N/A | BY268: N/A | BZ268: N/A | CA268: N/A
BB269: Materials not reusable | BC269: N/A | BD269: N/A | BE269: N/A | BF269: N/A | BG269: N/A | BH269: N/A | BI269: N/A | BJ269: N/A | BK269: N/A | BL269: N/A | BM269: N/A | BN269: N/A | BO269: N/A | BP269: N/A | BQ269: N/A | BR269: N/A | BS269: N/A | BT269: N/A | BU269: N/A | BV269: N/A | BW269: N/A | BX269: N/A | BY269: N/A | BZ269: N/A | CA269: N/A
BB270: No materials used | BC270: N/A | BD270: N/A | BE270: N/A | BF270: N/A | BG270: N/A | BH270: N/A | BI270: N/A | BJ270: N/A | BK270: N/A | BL270: N/A | BM270: N/A | BN270: N/A | BO270: N/A | BP270: N/A | BQ270: N/A | BR270: N/A | BS270: N/A | BT270: N/A | BU270: N/A | BV270: N/A | BW270: N/A | BX270: N/A | BY270: N/A | BZ270: N/A | CA270: N/A
BA271: Awareness of menstruation before menarche | BB271: Yes | BC271: N/A | BD271: N/A | BE271: N/A | BF271: N/A | BG271: N/A | BH271: N/A | BI271: N/A | BJ271: N/A | BK271: N/A | BL271: N/A | BM271: N/A | BN271: N/A | BO271: N/A | BP271: N/A | BQ271: N/A | BR271: N/A | BS271: N/A | BT271: N/A | BU271: N/A | BV271: N/A | BW271: N/A | BX271: N/A | BY271: N/A | BZ271: N/A | CA271: N/A
BB272: No | BC272: N/A | BD272: N/A | BE272: N/A | BF272: N/A | BG272: N/A | BH272: N/A | BI272: N/A | BJ272: N/A | BK272: N/A | BL272: N/A | BM272: N/A | BN272: N/A | BO272: N/A | BP272: N/A | BQ272: N/A | BR272: N/A | BS272: N/A | BT272: N/A | BU272: N/A | BV272: N/A | BW272: N/A | BX272: N/A | BY272: N/A | BZ272: N/A | CA272: N/A
BB273: DK/not sure/missing | BC273: N/A | BD273: N/A | BE273: N/A | BF273: N/A | BG273: N/A | BH273: N/A | BI273: N/A | BJ273: N/A | BK273: N/A | BL273: N/A | BM273: N/A | BN273: N/A | BO273: N/A | BP273: N/A | BQ273: N/A | BR273: N/A | BS273: N/A | BT273: N/A | BU273: N/A | BV273: N/A | BW273: N/A | BX273: N/A | BY273: N/A | BZ273: N/A | CA273: N/A
BA274: Participation in (all) activities during menstruation | BB274: Yes | BC274: N/A | BD274: N/A | BE274: N/A | BF274: N/A | BG274: N/A | BH274: N/A | BI274: N/A | BJ274: N/A | BK274: N/A | BL274: N/A | BM274: N/A | BN274: N/A | BO274: N/A | BP274: N/A | BQ274: N/A | BR274: N/A | BS274: N/A | BT274: N/A | BU274: N/A | BV274: N/A | BW274: N/A | BX274: N/A | BY274: N/A | BZ274: N/A | CA274: N/A
BB275: No | BC275: N/A | BD275: N/A | BE275: N/A | BF275: N/A | BG275: N/A | BH275: N/A | BI275: N/A | BJ275: N/A | BK275: N/A | BL275: N/A | BM275: N/A | BN275: N/A | BO275: N/A | BP275: N/A | BQ275: N/A | BR275: N/A | BS275: N/A | BT275: N/A | BU275: N/A | BV275: N/A | BW275: N/A | BX275: N/A | BY275: N/A | BZ275: N/A | CA275: N/A
BB276: DK/not sure/missing/no such activity | BC276: N/A | BD276: N/A | BE276: N/A | BF276: N/A | BG276: N/A | BH276: N/A | BI276: N/A | BJ276: N/A | BK276: N/A | BL276: N/A | BM276: N/A | BN276: N/A | BO276: N/A | BP276: N/A | BQ276: N/A | BR276: N/A | BS276: N/A | BT276: N/A | BU276: N/A | BV276: N/A | BW276: N/A | BX276: N/A | BY276: N/A | BZ276: N/A | CA276: N/A
BA277: Participation in specific activities during menstruation | BB277: Did not go to school (amongst those usually attending school) | BC277: N/A | BD277: N/A | BE277: N/A | BF277: N/A | BG277: N/A | BH277: N/A | BI277: N/A | BJ277: N/A | BK277: N/A | BL277: N/A | BM277: N/A | BN277: N/A | BO277: N/A | BP277: N/A | BQ277: N/A | BR277: N/A | BS277: N/A | BT277: N/A | BU277: N/A | BV277: N/A | BW277: N/A | BX277: N/A | BY277: N/A | BZ277: N/A | CA277: N/A
BB278: Did not go to work (amongst those who usually work) | BC278: N/A | BD278: N/A | BE278: N/A | BF278: N/A | BG278: N/A | BH278: N/A | BI278: N/A | BJ278: N/A | BK278: N/A | BL278: N/A | BM278: N/A | BN278: N/A | BO278: N/A | BP278: N/A | BQ278: N/A | BR278: N/A | BS278: N/A | BT278: N/A | BU278: N/A | BV278: N/A | BW278: N/A | BX278: N/A | BY278: N/A | BZ278: N/A | CA278: N/A
BB279: Did not participate in social activities | BC279: N/A | BD279: N/A | BE279: N/A | BF279: N/A | BG279: N/A | BH279: N/A | BI279: N/A | BJ279: N/A | BK279: N/A | BL279: N/A | BM279: N/A | BN279: N/A | BO279: N/A | BP279: N/A | BQ279: N/A | BR279: N/A | BS279: N/A | BT279: N/A | BU279: N/A | BV279: N/A | BW279: N/A | BX279: N/A | BY279: N/A | BZ279: N/A | CA279: N/A
BB280: Did not cook food | BC280: N/A | BD280: N/A | BE280: N/A | BF280: N/A | BG280: N/A | BH280: N/A | BI280: N/A | BJ280: N/A | BK280: N/A | BL280: N/A | BM280: N/A | BN280: N/A | BO280: N/A | BP280: N/A | BQ280: N/A | BR280: N/A | BS280: N/A | BT280: N/A | BU280: N/A | BV280: N/A | BW280: N/A | BX280: N/A | BY280: N/A | BZ280: N/A | CA280: N/A
BB281: Did not eat with others | BC281: N/A | BD281: N/A | BE281: N/A | BF281: N/A | BG281: N/A | BH281: N/A | BI281: N/A | BJ281: N/A | BK281: N/A | BL281: N/A | BM281: N/A | BN281: N/A | BO281: N/A | BP281: N/A | BQ281: N/A | BR281: N/A | BS281: N/A | BT281: N/A | BU281: N/A | BV281: N/A | BW281: N/A | BX281: N/A | BY281: N/A | BZ281: N/A | CA281: N/A
BB282: Did not bathe in regular place | BC282: N/A | BD282: N/A | BE282: N/A | BF282: N/A | BG282: N/A | BH282: N/A | BI282: N/A | BJ282: N/A | BK282: N/A | BL282: N/A | BM282: N/A | BN282: N/A | BO282: N/A | BP282: N/A | BQ282: N/A | BR282: N/A | BS282: N/A | BT282: N/A | BU282: N/A | BV282: N/A | BW282: N/A | BX282: N/A | BY282: N/A | BZ282: N/A | CA282: N/A
BB283: Did not participate in other activities | BC283: N/A | BD283: N/A | BE283: N/A | BF283: N/A | BG283: N/A | BH283: N/A | BI283: N/A | BJ283: N/A | BK283: N/A | BL283: N/A | BM283: N/A | BN283: N/A | BO283: N/A | BP283: N/A | BQ283: N/A | BR283: N/A | BS283: N/A | BT283: N/A | BU283: N/A | BV283: N/A | BW283: N/A | BX283: N/A | BY283: N/A | BZ283: N/A | CA283: N/A
BB284: DK/not sure/missing/no such activity | BC284: N/A | BD284: N/A | BE284: N/A | BF284: N/A | BG284: N/A | BH284: N/A | BI284: N/A | BJ284: N/A | BK284: N/A | BL284: N/A | BM284: N/A | BN284: N/A | BO284: N/A | BP284: N/A | BQ284: N/A | BR284: N/A | BS284: N/A | BT284: N/A | BU284: N/A | BV284: N/A | BW284: N/A | BX284: N/A | BY284: N/A | BZ284: N/A | CA284: N/A
BA339: Raw numbers of respondents: | BB339: Basic water, sanitation and hygiene | BC339: NATIONAL wealth index quintile | BH339: URBAN wealth index quintile | BM339: RURAL wealth index quintile | BR339: SUB-REGIONS:
BA340: WatSan data, raw numbers (weighted) | BC340: Poorest | BD340: Poor | BE340: Middle | BF340: Rich | BG340: Richest | BH340: Poorest | BI340: Poor | BJ340: Middle | BK340: Rich | BL340: Richest | BM340: Poorest | BN340: Poor | BO340: Middle | BP340: Rich | BQ340: Richest | BR340: Bulawayo | BS340: Harare | BT340: Manicaland | BU340: Mashonaland Central | BV340: Mashonaland East | BW340: Mashonaland West | BX340: Masvingo | BY340: Matebeleland North | BZ340: Matebeleland South | CA340: Midlands
BA341: Use of Basic Water Sanitation and Hygiene | BB341: Yes | BC341: N/A | BD341: N/A | BE341: N/A | BF341: N/A | BG341: N/A | BH341: N/A | BI341: N/A | BJ341: N/A | BK341: N/A | BL341: N/A | BM341: N/A | BN341: N/A | BO341: N/A | BP341: N/A | BQ341: N/A | BR341: N/A | BS341: N/A | BT341: N/A | BU341: N/A | BV341: N/A | BW341: N/A | BX341: N/A | BY341: N/A | BZ341: N/A | CA341: N/A
BB342: No | BC342: N/A | BD342: N/A | BE342: N/A | BF342: N/A | BG342: N/A | BH342: N/A | BI342: N/A | BJ342: N/A | BK342: N/A | BL342: N/A | BM342: N/A | BN342: N/A | BO342: N/A | BP342: N/A | BQ342: N/A | BR342: N/A | BS342: N/A | BT342: N/A | BU342: N/A | BV342: N/A | BW342: N/A | BX342: N/A | BY342: N/A | BZ342: N/A | CA342: N/A
BA343: Use of Basic Water and Sanitation | BB343: Yes | BC343: N/A | BD343: N/A | BE343: N/A | BF343: N/A | BG343: N/A | BH343: N/A | BI343: N/A | BJ343: N/A | BK343: N/A | BL343: N/A | BM343: N/A | BN343: N/A | BO343: N/A | BP343: N/A | BQ343: N/A | BR343: N/A | BS343: N/A | BT343: N/A | BU343: N/A | BV343: N/A | BW343: N/A | BX343: N/A | BY343: N/A | BZ343: N/A | CA343: N/A
BB344: No | BC344: N/A | BD344: N/A | BE344: N/A | BF344: N/A | BG344: N/A | BH344: N/A | BI344: N/A | BJ344: N/A | BK344: N/A | BL344: N/A | BM344: N/A | BN344: N/A | BO344: N/A | BP344: N/A | BQ344: N/A | BR344: N/A | BS344: N/A | BT344: N/A | BU344: N/A | BV344: N/A | BW344: N/A | BX344: N/A | BY344: N/A | BZ344: N/A | CA344: N/A
BA345: Use of Basic Water and Hygiene | BB345: Yes | BC345: N/A | BD345: N/A | BE345: N/A | BF345: N/A | BG345: N/A | BH345: N/A | BI345: N/A | BJ345: N/A | BK345: N/A | BL345: N/A | BM345: N/A | BN345: N/A | BO345: N/A | BP345: N/A | BQ345: N/A | BR345: N/A | BS345: N/A | BT345: N/A | BU345: N/A | BV345: N/A | BW345: N/A | BX345: N/A | BY345: N/A | BZ345: N/A | CA345: N/A
BB346: No | BC346: N/A | BD346: N/A | BE346: N/A | BF346: N/A | BG346: N/A | BH346: N/A | BI346: N/A | BJ346: N/A | BK346: N/A | BL346: N/A | BM346: N/A | BN346: N/A | BO346: N/A | BP346: N/A | BQ346: N/A | BR346: N/A | BS346: N/A | BT346: N/A | BU346: N/A | BV346: N/A | BW346: N/A | BX346: N/A | BY346: N/A | BZ346: N/A | CA346: N/A
BA347: Use of Basic Sanitation and Hygiene | BB347: Yes | BC347: N/A | BD347: N/A | BE347: N/A | BF347: N/A | BG347: N/A | BH347: N/A | BI347: N/A | BJ347: N/A | BK347: N/A | BL347: N/A | BM347: N/A | BN347: N/A | BO347: N/A | BP347: N/A | BQ347: N/A | BR347: N/A | BS347: N/A | BT347: N/A | BU347: N/A | BV347: N/A | BW347: N/A | BX347: N/A | BY347: N/A | BZ347: N/A | CA347: N/A
BB348: No | BC348: N/A | BD348: N/A | BE348: N/A | BF348: N/A | BG348: N/A | BH348: N/A | BI348: N/A | BJ348: N/A | BK348: N/A | BL348: N/A | BM348: N/A | BN348: N/A | BO348: N/A | BP348: N/A | BQ348: N/A | BR348: N/A | BS348: N/A | BT348: N/A | BU348: N/A | BV348: N/A | BW348: N/A | BX348: N/A | BY348: N/A | BZ348: N/A | CA348: N/A
BA349: Use of Basic Water | BB349: Yes | BC349: N/A | BD349: N/A | BE349: N/A | BF349: N/A | BG349: N/A | BH349: N/A | BI349: N/A | BJ349: N/A | BK349: N/A | BL349: N/A | BM349: N/A | BN349: N/A | BO349: N/A | BP349: N/A | BQ349: N/A | BR349: N/A | BS349: N/A | BT349: N/A | BU349: N/A | BV349: N/A | BW349: N/A | BX349: N/A | BY349: N/A | BZ349: N/A | CA349: N/A
BB350: No | BC350: N/A | BD350: N/A | BE350: N/A | BF350: N/A | BG350: N/A | BH350: N/A | BI350: N/A | BJ350: N/A | BK350: N/A | BL350: N/A | BM350: N/A | BN350: N/A | BO350: N/A | BP350: N/A | BQ350: N/A | BR350: N/A | BS350: N/A | BT350: N/A | BU350: N/A | BV350: N/A | BW350: N/A | BX350: N/A | BY350: N/A | BZ350: N/A | CA350: N/A
BA351: Use of Basic Sanitation | BB351: Yes | BC351: N/A | BD351: N/A | BE351: N/A | BF351: N/A | BG351: N/A | BH351: N/A | BI351: N/A | BJ351: N/A | BK351: N/A | BL351: N/A | BM351: N/A | BN351: N/A | BO351: N/A | BP351: N/A | BQ351: N/A | BR351: N/A | BS351: N/A | BT351: N/A | BU351: N/A | BV351: N/A | BW351: N/A | BX351: N/A | BY351: N/A | BZ351: N/A | CA351: N/A
BB352: No | BC352: N/A | BD352: N/A | BE352: N/A | BF352: N/A | BG352: N/A | BH352: N/A | BI352: N/A | BJ352: N/A | BK352: N/A | BL352: N/A | BM352: N/A | BN352: N/A | BO352: N/A | BP352: N/A | BQ352: N/A | BR352: N/A | BS352: N/A | BT352: N/A | BU352: N/A | BV352: N/A | BW352: N/A | BX352: N/A | BY352: N/A | BZ352: N/A | CA352: N/A
BA353: Access to Basic Hygiene | BB353: Yes | BC353: N/A | BD353: N/A | BE353: N/A | BF353: N/A | BG353: N/A | BH353: N/A | BI353: N/A | BJ353: N/A | BK353: N/A | BL353: N/A | BM353: N/A | BN353: N/A | BO353: N/A | BP353: N/A | BQ353: N/A | BR353: N/A | BS353: N/A | BT353: N/A | BU353: N/A | BV353: N/A | BW353: N/A | BX353: N/A | BY353: N/A | BZ353: N/A | CA353: N/A
BB354: No | BC354: N/A | BD354: N/A | BE354: N/A | BF354: N/A | BG354: N/A | BH354: N/A | BI354: N/A | BJ354: N/A | BK354: N/A | BL354: N/A | BM354: N/A | BN354: N/A | BO354: N/A | BP354: N/A | BQ354: N/A | BR354: N/A | BS354: N/A | BT354: N/A | BU354: N/A | BV354: N/A | BW354: N/A | BX354: N/A | BY354: N/A | BZ354: N/A | CA354: N/A
C399: INITIAL (national) Wealth Index | H399: URBAN Wealth Index | M399: RURAL Wealth Index
C400: Component Matrix | H400: Component Matrix | M400: Component Matrix
E401: Component | J401: Component | O401: Component
B402: Note: The INITIAL (national) Wealth Index is based on the first component of the Principal Component Analysis (PCA) which has been obtained at national level. The final national-level (NATIONAL) Wealth Index is based on the URBAN and RURAL specific wealth indexes. Regression procedures are used to establish the relationships between the two sets of scores (urban and rural) and the initial (national) wealth factors. This allows best use of the available information for each area and a better precision of the FINAL (NATIONAL) Wealth Index. For dependency reasons, all WASH variables (contained in the generic MICS and DHS scripts) have been excluded from the sets of asset variables used in the PCAs. The PCA can extracts as many components as there are asset variables in the input. Only the first of the components is used to represent the Wealth Index. The scores represent the weights of the asset variables on the Wealth Index (correlations between the variables and the component). The communalities are the proportion of each variable's variance that can be explained by the component. Proportion of explained variance is the part of the model's total variance that is explained by the component. For more information on the procedure used: The DHS Wealth Index, DHS Comparative Reports No. 6, Shea Oscar Rutstein, Kiersten Johnson, ORC Macro International Inc., 2004. The DHS Wealth Index: Approaches for Rural and Urban Areas, Shea O. Rutstein, ORC Macro International Inc., 2008. MICS Methodological Paper No. 4, Review of options for reporting water, sanitation and hygiene coverage by wealth quintile, UNICEF, 2016. | E402: 1 | J402: 1 | O402: 1
C403: if household has electric | E403: 0.8295654157 | H403: if household has fridge | J403: 0.5888947208 | M403: if has thatch roof | O403: -0.8214941365
C404: if uses electricity for cooking | E404: 0.8278206201 | H404: if uses electricity for cooking | J404: 0.5580438458 | M404: Windows with glass | O404: 0.8046755369
C405: if has thatch roof | E405: -0.8247700056 | H405: if uses wood/straw, dung for cooking fuel | J405: -0.5450125907 | M405: If dwelling is traditional type | O405: -0.8033335148
C406: if uses wood/straw, dung for cooking fuel | E406: -0.8232654144 | H406: if household has tv | J406: 0.5358001636 | M406: if floor is earth, sand or dung | O406: -0.7962672835
C407: Windows with glass | E407: 0.8073216982 | H407: If has mobile phone | J407: 0.532947608 | M407: if floor is of cement | O407: 0.7686252217
C408: If dwelling is traditional type | E408: -0.7791757627 | H408: if household has electric | J408: 0.5177677055 | M408: if has asbestos roof | O408: 0.7466638124
C409: if floor is earth, sand or dung | E409: -0.7770302037 | H409: if household has car or truck | J409: 0.4832173554 | M409: Windows with curtains/shutters | O409: 0.7037925032
C410: if has asbestos roof | E410: 0.7353846168 | H410: if household has phone | J410: 0.462388408 | M410: Windows with screens | O410: 0.5370587845
C411: if household has tv | E411: 0.7295573048 | H411: if floor is of cement | J411: -0.4596649178 | M411: if household has electric | O411: 0.4895943766
C412: Windows with curtains/shutters | E412: 0.6911497359 | H412: If owns a bank account | J412: 0.4143571442 | M412: if household has tv | O412: 0.4834765624
C413: if household has fridge | E413: 0.6571375833 | H413: if has tile roof | J413: 0.4075580331 | M413: if has cement walls | O413: 0.478099316
C414: if floor is of cement | E414: 0.6452395184 | H414: cattle | J414: 0.4041830099 | M414: if uses electricity for cooking | O414: 0.4534577502
... 266 more rows

Sheet MICS09
A2: =A1026 -> Zimbabwe
A3: =A1034 -> 2009
A4: Use of drinking water sources
A5: by wealth quintile and sub-national region
A6: Notes:
A7: WHO/UNICEF JMP customised wealth index excludes water,
A8: sanitation and hygiene assets.
A9: Survey used for analysis: | B9: =A1025 -> MICS09
A10: =B1028 -> 
A11: =B1027 -> 
A14: Use of drinking water sources | C14: NATIONAL wealth index quintile | H14: URBAN wealth index quintile | M14: RURAL wealth index quintile | R14: SUB-REGIONS: | BA14: Raw numbers of respondents: | BB14: Use of drinking water sources | BC14: NATIONAL wealth index quintile | BH14: URBAN wealth index quintile | BM14: RURAL wealth index quintile | BR14: SUB-REGIONS:
A15: Weighted percentage (used in graphs) | C15: Poorest | D15: Poor | E15: Middle | F15: Rich | G15: Richest | H15: Poorest | I15: Poor | J15: Middle | K15: Rich | L15: Richest | M15: Poorest | N15: Poor | O15: Middle | P15: Rich | Q15: Richest | R15: bulawayo | S15: harare | T15: manicaland | U15: mashonaland central | V15: mashonaland east | W15: mashonaland west | X15: masvingo | Y15: matabeleland north | Z15: matabeleland south | AA15: midlands | BA15: Water data, raw numbers (weighted) | BC15: Poorest | BD15: Poor | BE15: Middle | BF15: Rich | BG15: Richest | BH15: Poorest | BI15: Poor | BJ15: Middle | BK15: Rich | BL15: Richest | BM15: Poorest | BN15: Poor | BO15: Middle | BP15: Rich | BQ15: Richest | BR15: bulawayo | BS15: harare | BT15: manicaland | BU15: mashonaland central | BV15: mashonaland east | BW15: mashonaland west | BX15: masvingo | BY15: matabeleland north | BZ15: matabeleland south | CA15: midlands
A16: Water | B16: Improved | C16: 53.27956633 | D16: 56.95050867 | E16: 68.51472701 | F16: 87.47969114 | G16: 98.32479201 | H16: 95.78062431 | I16: 98.50404284 | J16: 98.2391686 | K16: 99.45021672 | L16: 98.70399761 | M16: 52.38375605 | N16: 53.09070009 | O16: 59.49663701 | P16: 66.69918843 | Q16: 74.10392911 | R16: 100 | S16: 98.01729287 | T16: 66.08273232 | U16: 64.05634181 | V16: 71.87264807 | W16: 63.12022439 | X16: 59.47086898 | Y16: 74.50231348 | Z16: 64.088977 | AA16: 69.18646353 | BA16: Water | BB16: Improved | BC16: N/A | BD16: N/A | BE16: N/A | BF16: N/A | BG16: N/A | BH16: N/A | BI16: N/A | BJ16: N/A | BK16: N/A | BL16: N/A | BM16: N/A | BN16: N/A | BO16: N/A | BP16: N/A | BQ16: N/A | BR16: N/A | BS16: N/A | BT16: N/A | BU16: N/A | BV16: N/A | BW16: N/A | BX16: N/A | BY16: N/A | BZ16: N/A | CA16: N/A
B17: Not Improved | C17: 46.72043367 | D17: 43.04949133 | E17: 31.48527299 | F17: 12.52030886 | G17: 1.675207986 | H17: 4.219375687 | I17: 1.49595716 | J17: 1.760831405 | K17: 0.5497832848 | L17: 1.296002395 | M17: 47.61624395 | N17: 46.90929991 | O17: 40.50336299 | P17: 33.30081157 | Q17: 25.89607089 | R17: 0 | S17: 1.98270713 | T17: 33.91726768 | U17: 35.94365819 | V17: 28.12735193 | W17: 36.87977561 | X17: 40.52913102 | Y17: 25.49768652 | Z17: 35.911023 | AA17: 30.81353647 | BB17: Not Improved | BC17: N/A | BD17: N/A | BE17: N/A | BF17: N/A | BG17: N/A | BH17: N/A | BI17: N/A | BJ17: N/A | BK17: N/A | BL17: N/A | BM17: N/A | BN17: N/A | BO17: N/A | BP17: N/A | BQ17: N/A | BR17: N/A | BS17: N/A | BT17: N/A | BU17: N/A | BV17: N/A | BW17: N/A | BX17: N/A | BY17: N/A | BZ17: N/A | CA17: N/A
A18: Water ladder | B18: Basic | C18: =C16*C23/100 -> 39.83166553 | D18: =D16*D23/100 -> 45.44933169 | E18: =E16*E23/100 -> 58.39693313 | F18: 81.42729633 | G18: 94.71662347 | H18: 91.36155067 | I18: 95.5440547 | J18: 95.11493454 | K18: 96.08286457 | L18: 95.81173442 | M18: 39.82038644 | N18: 39.22101225 | O18: 48.29466824 | P18: 56.925994 | Q18: 64.00760597 | R18: 100 | S18: 92.36840652 | T18: 58.17111787 | U18: 53.61495558 | V18: 67.019563 | W18: 57.83855061 | X18: 47.37585977 | Y18: 56.02848755 | Z18: 47.22764905 | AA18: 56.92748784 | BA18: Water ladder | BB18: Basic | BC18: N/A | BD18: N/A | BE18: N/A | BF18: N/A | BG18: N/A | BH18: N/A | BI18: N/A | BJ18: N/A | BK18: N/A | BL18: N/A | BM18: N/A | BN18: N/A | BO18: N/A | BP18: N/A | BQ18: N/A | BR18: N/A | BS18: N/A | BT18: N/A | BU18: N/A | BV18: N/A | BW18: N/A | BX18: N/A | BY18: N/A | BZ18: N/A | CA18: N/A
B19: Limited | C19: =C16*C22/100 -> 13.4479008 | D19: =D16*D22/100 -> 11.50117697 | E19: =E16*E22/100 -> 10.11779388 | F19: 6.052394817 | G19: 3.608168548 | H19: 4.419073648 | I19: 2.959988139 | J19: 3.124234059 | K19: 3.367352142 | L19: 2.892263186 | M19: 12.56336961 | N19: 13.86968784 | O19: 11.20196877 | P19: 9.77319443 | Q19: 10.09632314 | R19: 0 | S19: 5.648886352 | T19: 7.911614452 | U19: 10.44138623 | V19: 4.853085065 | W19: 5.281673778 | X19: 12.09500921 | Y19: 18.47382593 | Z19: 16.86132795 | AA19: 12.25897569 | BB19: Limited | BC19: N/A | BD19: N/A | BE19: N/A | BF19: N/A | BG19: N/A | BH19: N/A | BI19: N/A | BJ19: N/A | BK19: N/A | BL19: N/A | BM19: N/A | BN19: N/A | BO19: N/A | BP19: N/A | BQ19: N/A | BR19: N/A | BS19: N/A | BT19: N/A | BU19: N/A | BV19: N/A | BW19: N/A | BX19: N/A | BY19: N/A | BZ19: N/A | CA19: N/A
B20: Unimproved | C20: =100-C18-C19-C21 -> 31.74234182 | D20: =100-D18-D19-D21 -> 31.20985237 | E20: =100-E18-E19-E21 -> 23.51630185 | F20: 9.125724507 | G20: 1.37180388 | H20: 3.95950873 | I20: 1.49595716 | J20: 1.760831405 | K20: 0.5497832848 | L20: 0.7461953171 | M20: 32.10383509 | N20: 32.23846561 | O20: 30.67793456 | P20: 24.59906946 | Q20: 18.76709174 | R20: 0 | S20: 1.98270713 | T20: 31.00387614 | U20: 17.98396916 | V20: 23.93358789 | W20: 26.77853585 | X20: 33.59900389 | Y20: 12.29580722 | Z20: 13.11145913 | AA20: 22.12007546 | BB20: Unimproved | BC20: N/A | BD20: N/A | BE20: N/A | BF20: N/A | BG20: N/A | BH20: N/A | BI20: N/A | BJ20: N/A | BK20: N/A | BL20: N/A | BM20: N/A | BN20: N/A | BO20: N/A | BP20: N/A | BQ20: N/A | BR20: N/A | BS20: N/A | BT20: N/A | BU20: N/A | BV20: N/A | BW20: N/A | BX20: N/A | BY20: N/A | BZ20: N/A | CA20: N/A
B21: Surface water | C21: 14.97809185 | D21: 11.83963896 | E21: 7.968971135 | F21: 3.394584348 | G21: 0.3034041059 | H21: 0.2598669564 | I21: 0 | J21: 0 | K21: 0 | L21: 0.5498070778 | M21: 15.51240887 | N21: 14.6708343 | O21: 9.825428424 | P21: 8.70174211 | Q21: 7.128979147 | R21: 0 | S21: 0 | T21: 2.913391538 | U21: 17.95968904 | V21: 4.193764041 | W21: 10.10123976 | X21: 6.930127125 | Y21: 13.2018793 | Z21: 22.79956387 | AA21: 8.693461006 | BB21: Surface water | BC21: N/A | BD21: N/A | BE21: N/A | BF21: N/A | BG21: N/A | BH21: N/A | BI21: N/A | BJ21: N/A | BK21: N/A | BL21: N/A | BM21: N/A | BN21: N/A | BO21: N/A | BP21: N/A | BQ21: N/A | BR21: N/A | BS21: N/A | BT21: N/A | BU21: N/A | BV21: N/A | BW21: N/A | BX21: N/A | BY21: N/A | BZ21: N/A | CA21: N/A
A22: Improved water point at more than 30 minutes | B22: Yes | C22: 25.2402595 | D22: 20.19503819 | E22: 14.76732715 | F22: 6.91862847 | G22: 3.669642696 | H22: 4.613744877 | I22: 3.004940765 | J22: 3.180232593 | K22: 3.385967626 | L22: 2.930239156 | M22: 23.98333101 | N22: 26.12451488 | O22: 18.82790244 | P22: 14.6526437 | Q22: 13.62454496 | R22: 0 | S22: 5.763152793 | T22: 11.97228712 | U22: 16.30031615 | V22: 6.752339305 | W22: 8.367641005 | X22: 20.33770386 | Y22: 24.79631178 | Z22: 26.30924808 | AA22: 17.71874882 | BA22: Improved water point at more than 30 minutes | BB22: Yes | BC22: N/A | BD22: N/A | BE22: N/A | BF22: N/A | BG22: N/A | BH22: N/A | BI22: N/A | BJ22: N/A | BK22: N/A | BL22: N/A | BM22: N/A | BN22: N/A | BO22: N/A | BP22: N/A | BQ22: N/A | BR22: N/A | BS22: N/A | BT22: N/A | BU22: N/A | BV22: N/A | BW22: N/A | BX22: N/A | BY22: N/A | BZ22: N/A | CA22: N/A
B23: No | C23: 74.7597405 | D23: 79.80496181 | E23: 85.23267285 | F23: 93.08137153 | G23: 96.3303573 | H23: 95.38625512 | I23: 96.99505923 | J23: 96.81976741 | K23: 96.61403237 | L23: 97.06976084 | M23: 76.01666899 | N23: 73.87548512 | O23: 81.17209756 | P23: 85.3473563 | Q23: 86.37545504 | R23: 100 | S23: 94.23684721 | T23: 88.02771288 | U23: 83.69968385 | V23: 93.24766069 | W23: 91.632359 | X23: 79.66229614 | Y23: 75.20368822 | Z23: 73.69075192 | AA23: 82.28125118 | BB23: No | BC23: N/A | BD23: N/A | BE23: N/A | BF23: N/A | BG23: N/A | BH23: N/A | BI23: N/A | BJ23: N/A | BK23: N/A | BL23: N/A | BM23: N/A | BN23: N/A | BO23: N/A | BP23: N/A | BQ23: N/A | BR23: N/A | BS23: N/A | BT23: N/A | BU23: N/A | BV23: N/A | BW23: N/A | BX23: N/A | BY23: N/A | BZ23: N/A | CA23: N/A
A24: Manually calculated ratios | B24: Improved wells
B25: Improved springs
B26: Other
C27: NATIONAL wealth index quintile | H27: URBAN wealth index quintile | M27: RURAL wealth index quintile | R27: SUB-REGIONS: | BA27: Raw numbers of respondents: | BB27: Use of drinking water sources | BC27: NATIONAL wealth index quintile | BH27: URBAN wealth index quintile | BM27: RURAL wealth index quintile | BR27: SUB-REGIONS:
A28: Percentage based on weighted population | C28: Poorest | D28: Poor | E28: Middle | F28: Rich | G28: Richest | H28: Poorest | I28: Poor | J28: Middle | K28: Rich | L28: Richest | M28: Poorest | N28: Poor | O28: Middle | P28: Rich | Q28: Richest | R28: bulawayo | S28: harare | T28: manicaland | U28: mashonaland central | V28: mashonaland east | W28: mashonaland west | X28: masvingo | Y28: matabeleland north | Z28: matabeleland south | AA28: midlands | BA28: Water data, raw numbers (weighted) | BC28: Poorest | BD28: Poor | BE28: Middle | BF28: Rich | BG28: Richest | BH28: Poorest | BI28: Poor | BJ28: Middle | BK28: Rich | BL28: Richest | BM28: Poorest | BN28: Poor | BO28: Middle | BP28: Rich | BQ28: Richest | BR28: bulawayo | BS28: harare | BT28: manicaland | BU28: mashonaland central | BV28: mashonaland east | BW28: mashonaland west | BX28: masvingo | BY28: matabeleland north | BZ28: matabeleland south | CA28: midlands
A29: Piped water | B29: Yes | C29: 2.691231808 | D29: 4.718311138 | E29: 9.379137014 | F29: 49.92558639 | G29: 77.45005605 | H29: 66.88018376 | I29: 79.08189221 | J29: 80.26879633 | K29: 81.55158258 | L29: 76.47543089 | M29: 2.666672072 | N29: 2.351885263 | O29: 5.7968814 | P29: 7.451105172 | Q29: 14.00422861 | R29: 99.52712171 | S29: 61.66387674 | T29: 18.59078696 | U29: 12.56120517 | V29: 14.80930853 | W29: 23.31300629 | X29: 14.90208375 | Y29: 15.52115549 | Z29: 9.43436665 | AA29: 26.57913622 | BA29: Piped water | BB29: Yes | BC29: N/A | BD29: N/A | BE29: N/A | BF29: N/A | BG29: N/A | BH29: N/A | BI29: N/A | BJ29: N/A | BK29: N/A | BL29: N/A | BM29: N/A | BN29: N/A | BO29: N/A | BP29: N/A | BQ29: N/A | BR29: N/A | BS29: N/A | BT29: N/A | BU29: N/A | BV29: N/A | BW29: N/A | BX29: N/A | BY29: N/A | BZ29: N/A | CA29: N/A
B30: No | C30: 97.30876819 | D30: 95.28168886 | E30: 90.62086299 | F30: 50.07441361 | G30: 22.54994395 | H30: 33.11981624 | I30: 20.91810779 | J30: 19.73120367 | K30: 18.44841742 | L30: 23.52456911 | M30: 97.33332793 | N30: 97.64811474 | O30: 94.2031186 | P30: 92.54889483 | Q30: 85.99577139 | R30: 0.4728782947 | S30: 38.33612326 | T30: 81.40921304 | U30: 87.43879483 | V30: 85.19069147 | W30: 76.68699371 | X30: 85.09791625 | Y30: 84.47884451 | Z30: 90.56563335 | AA30: 73.42086378 | BB30: No | BC30: N/A | BD30: N/A | BE30: N/A | BF30: N/A | BG30: N/A | BH30: N/A | BI30: N/A | BJ30: N/A | BK30: N/A | BL30: N/A | BM30: N/A | BN30: N/A | BO30: N/A | BP30: N/A | BQ30: N/A | BR30: N/A | BS30: N/A | BT30: N/A | BU30: N/A | BV30: N/A | BW30: N/A | BX30: N/A | BY30: N/A | BZ30: N/A | CA30: N/A
A31: Piped water on premises | B31: Yes | C31: 0.4361828152 | D31: 1.271787239 | E31: 4.75218826 | F31: 43.80650232 | G31: 75.20695065 | H31: 59.90641512 | I31: 74.40718569 | J31: 77.00635254 | K31: 79.27458053 | L31: 75.23636561 | M31: 0.4470769907 | N31: 0.4624681324 | O31: 1.216515336 | P31: 2.363549023 | Q31: 8.965703147 | R31: 99.22532765 | S31: 59.98037864 | T31: 16.81977444 | U31: 6.738433068 | V31: 8.11134264 | W31: 15.37939626 | X31: 11.4630053 | Y31: 7.598465202 | Z31: 8.587436632 | AA31: 24.72756179 | BA31: Piped water on premises | BB31: Yes | BC31: N/A | BD31: N/A | BE31: N/A | BF31: N/A | BG31: N/A | BH31: N/A | BI31: N/A | BJ31: N/A | BK31: N/A | BL31: N/A | BM31: N/A | BN31: N/A | BO31: N/A | BP31: N/A | BQ31: N/A | BR31: N/A | BS31: N/A | BT31: N/A | BU31: N/A | BV31: N/A | BW31: N/A | BX31: N/A | BY31: N/A | BZ31: N/A | CA31: N/A
B32: No | C32: 99.56381718 | D32: 98.72821276 | E32: 95.24781174 | F32: 56.19349768 | G32: 24.79304935 | H32: 40.09358488 | I32: 25.59281431 | J32: 22.99364746 | K32: 20.72541947 | L32: 24.76363439 | M32: 99.55292301 | N32: 99.53753187 | O32: 98.78348466 | P32: 97.63645098 | Q32: 91.03429685 | R32: 0.7746723482 | S32: 40.01962136 | T32: 83.18022556 | U32: 93.26156693 | V32: 91.88865736 | W32: 84.62060374 | X32: 88.5369947 | Y32: 92.4015348 | Z32: 91.41256337 | AA32: 75.27243821 | BB32: No | BC32: N/A | BD32: N/A | BE32: N/A | BF32: N/A | BG32: N/A | BH32: N/A | BI32: N/A | BJ32: N/A | BK32: N/A | BL32: N/A | BM32: N/A | BN32: N/A | BO32: N/A | BP32: N/A | BQ32: N/A | BR32: N/A | BS32: N/A | BT32: N/A | BU32: N/A | BV32: N/A | BW32: N/A | BX32: N/A | BY32: N/A | BZ32: N/A | CA32: N/A
A33: Piped water into dwelling | B33: Yes | C33: N/A | D33: N/A | E33: N/A | F33: N/A | G33: N/A | H33: N/A | I33: N/A | J33: N/A | K33: N/A | L33: N/A | M33: N/A | N33: N/A | O33: N/A | P33: N/A | Q33: N/A | R33: N/A | S33: N/A | T33: N/A | U33: N/A | V33: N/A | W33: N/A | X33: N/A | Y33: N/A | Z33: N/A | AA33: N/A | BA33: Piped water into dwelling | BB33: Yes | BC33: N/A | BD33: N/A | BE33: N/A | BF33: N/A | BG33: N/A | BH33: N/A | BI33: N/A | BJ33: N/A | BK33: N/A | BL33: N/A | BM33: N/A | BN33: N/A | BO33: N/A | BP33: N/A | BQ33: N/A | BR33: N/A | BS33: N/A | BT33: N/A | BU33: N/A | BV33: N/A | BW33: N/A | BX33: N/A | BY33: N/A | BZ33: N/A | CA33: N/A
B34: No | C34: N/A | D34: N/A | E34: N/A | F34: N/A | G34: N/A | H34: N/A | I34: N/A | J34: N/A | K34: N/A | L34: N/A | M34: N/A | N34: N/A | O34: N/A | P34: N/A | Q34: N/A | R34: N/A | S34: N/A | T34: N/A | U34: N/A | V34: N/A | W34: N/A | X34: N/A | Y34: N/A | Z34: N/A | AA34: N/A | BB34: No | BC34: N/A | BD34: N/A | BE34: N/A | BF34: N/A | BG34: N/A | BH34: N/A | BI34: N/A | BJ34: N/A | BK34: N/A | BL34: N/A | BM34: N/A | BN34: N/A | BO34: N/A | BP34: N/A | BQ34: N/A | BR34: N/A | BS34: N/A | BT34: N/A | BU34: N/A | BV34: N/A | BW34: N/A | BX34: N/A | BY34: N/A | BZ34: N/A | CA34: N/A
A35: Water source on premises | B35: Yes | C35: 4.432197454 | D35: 10.29398248 | E35: 19.24890554 | F35: 54.1992323 | G35: 78.81556052 | H35: 66.43934418 | I35: 77.03560445 | J35: 80.2904543 | K35: 80.71717856 | L35: 79.60593846 | M35: 3.999788687 | N35: 6.434586822 | O35: 11.96503371 | P35: 17.04297142 | Q35: 26.37256344 | R35: 99.25340092 | S35: 66.58079666 | T35: 27.51349126 | U35: 11.66852134 | V35: 29.4185461 | W35: 25.66745648 | X35: 17.48685259 | Y35: 9.653407754 | Z35: 9.376001602 | AA35: 35.22401469 | BA35: Water source on premises | BB35: Yes | BC35: N/A | BD35: N/A | BE35: N/A | BF35: N/A | BG35: N/A | BH35: N/A | BI35: N/A | BJ35: N/A | BK35: N/A | BL35: N/A | BM35: N/A | BN35: N/A | BO35: N/A | BP35: N/A | BQ35: N/A | BR35: N/A | BS35: N/A | BT35: N/A | BU35: N/A | BV35: N/A | BW35: N/A | BX35: N/A | BY35: N/A | BZ35: N/A | CA35: N/A
B36: No | C36: 95.56780255 | D36: 89.70601752 | E36: 80.75109446 | F36: 45.8007677 | G36: 21.18443948 | H36: 33.56065582 | I36: 22.96439555 | J36: 19.7095457 | K36: 19.28282144 | L36: 20.39406154 | M36: 96.00021131 | N36: 93.56541318 | O36: 88.03496629 | P36: 82.95702858 | Q36: 73.62743656 | R36: 0.74659908 | S36: 33.41920334 | T36: 72.48650874 | U36: 88.33147866 | V36: 70.5814539 | W36: 74.33254352 | X36: 82.51314741 | Y36: 90.34659225 | Z36: 90.6239984 | AA36: 64.77598531 | BB36: No | BC36: N/A | BD36: N/A | BE36: N/A | BF36: N/A | BG36: N/A | BH36: N/A | BI36: N/A | BJ36: N/A | BK36: N/A | BL36: N/A | BM36: N/A | BN36: N/A | BO36: N/A | BP36: N/A | BQ36: N/A | BR36: N/A | BS36: N/A | BT36: N/A | BU36: N/A | BV36: N/A | BW36: N/A | BX36: N/A | BY36: N/A | BZ36: N/A | CA36: N/A
A37: Improved Water source on premises | B37: Yes | C37: 3.717049725 | D37: 11.9976609 | E37: 22.10168813 | F37: 60.40962675 | G37: 79.85842645 | H37: 69.25325397 | I37: 78.14439415 | J37: 81.25413005 | K37: 80.86158154 | L37: 80.65117968 | M37: 3.484012867 | N37: 5.887828691 | O37: 14.04603561 | P37: 19.46154965 | Q37: 30.84452915 | R37: 99.25340092 | S37: 67.74761467 | T37: 33.67837988 | U37: 17.35795255 | V37: 35.86356201 | W37: 33.87445859 | X37: 26.87598238 | Y37: 12.00748202 | Z37: 13.96842646 | AA37: 45.12621014 | BA37: Improved water source on premises | BB37: Yes | BC37: N/A | BD37: N/A | BE37: N/A | BF37: N/A | BG37: N/A | BH37: N/A | BI37: N/A | BJ37: N/A | BK37: N/A | BL37: N/A | BM37: N/A | BN37: N/A | BO37: N/A | BP37: N/A | BQ37: N/A | BR37: N/A | BS37: N/A | BT37: N/A | BU37: N/A | BV37: N/A | BW37: N/A | BX37: N/A | BY37: N/A | BZ37: N/A | CA37: N/A
B38: No | C38: 96.28295027 | D38: 88.0023391 | E38: 77.89831187 | F38: 39.59037325 | G38: 20.14157355 | H38: 30.74674603 | I38: 21.85560585 | J38: 18.74586995 | K38: 19.13841846 | L38: 19.34882032 | M38: 96.51598713 | N38: 94.11217131 | O38: 85.95396439 | P38: 80.53845035 | Q38: 69.15547085 | R38: 0.74659908 | S38: 32.25238533 | T38: 66.32162012 | U38: 82.64204745 | V38: 64.13643799 | W38: 66.12554141 | X38: 73.12401762 | Y38: 87.99251798 | Z38: 86.03157354 | AA38: 54.87378986 | BB38: No | BC38: N/A | BD38: N/A | BE38: N/A | BF38: N/A | BG38: N/A | BH38: N/A | BI38: N/A | BJ38: N/A | BK38: N/A | BL38: N/A | BM38: N/A | BN38: N/A | BO38: N/A | BP38: N/A | BQ38: N/A | BR38: N/A | BS38: N/A | BT38: N/A | BU38: N/A | BV38: N/A | BW38: N/A | BX38: N/A | BY38: N/A | BZ38: N/A | CA38: N/A
A39: Piped water on premises available when needed | B39: Yes | C39: N/A | D39: N/A | E39: N/A | F39: N/A | G39: N/A | H39: N/A | I39: N/A | J39: N/A | K39: N/A | L39: N/A | M39: N/A | N39: N/A | O39: N/A | P39: N/A | Q39: N/A | R39: N/A | S39: N/A | T39: N/A | U39: N/A | V39: N/A | W39: N/A | X39: N/A | Y39: N/A | Z39: N/A | AA39: N/A | BA39: Piped water on premises available when needed | BB39: Yes | BC39: N/A | BD39: N/A | BE39: N/A | BF39: N/A | BG39: N/A | BH39: N/A | BI39: N/A | BJ39: N/A | BK39: N/A | BL39: N/A | BM39: N/A | BN39: N/A | BO39: N/A | BP39: N/A | BQ39: N/A | BR39: N/A | BS39: N/A | BT39: N/A | BU39: N/A | BV39: N/A | BW39: N/A | BX39: N/A | BY39: N/A | BZ39: N/A | CA39: N/A
B40: No | C40: N/A | D40: N/A | E40: N/A | F40: N/A | G40: N/A | H40: N/A | I40: N/A | J40: N/A | K40: N/A | L40: N/A | M40: N/A | N40: N/A | O40: N/A | P40: N/A | Q40: N/A | R40: N/A | S40: N/A | T40: N/A | U40: N/A | V40: N/A | W40: N/A | X40: N/A | Y40: N/A | Z40: N/A | AA40: N/A | BB40: No | BC40: N/A | BD40: N/A | BE40: N/A | BF40: N/A | BG40: N/A | BH40: N/A | BI40: N/A | BJ40: N/A | BK40: N/A | BL40: N/A | BM40: N/A | BN40: N/A | BO40: N/A | BP40: N/A | BQ40: N/A | BR40: N/A | BS40: N/A | BT40: N/A | BU40: N/A | BV40: N/A | BW40: N/A | BX40: N/A | BY40: N/A | BZ40: N/A | CA40: N/A
A41: Water point at more than 30 minutes | B41: Yes | C41: 26.03668657 | D41: 21.80248957 | E41: 16.06783396 | F41: 9.110580886 | G41: 3.804175311 | H41: 5.348130758 | I41: 3.005623468 | J41: 3.120447399 | K41: 3.373913039 | L41: 2.911145604 | M41: 25.84196816 | N41: 25.86002379 | O41: 19.74728969 | P41: 16.43971868 | Q41: 16.07770817 | R41: 0 | S41: 5.783869706 | T41: 11.96620902 | U41: 24.19955056 | V41: 7.778219808 | W41: 11.17848424 | X41: 18.30467458 | Y41: 28.32581904 | Z41: 28.99789606 | AA41: 24.50664954 | BA41: Water point at more than 30 minutes | BB41: Yes | BC41: N/A | BD41: N/A | BE41: N/A | BF41: N/A | BG41: N/A | BH41: N/A | BI41: N/A | BJ41: N/A | BK41: N/A | BL41: N/A | BM41: N/A | BN41: N/A | BO41: N/A | BP41: N/A | BQ41: N/A | BR41: N/A | BS41: N/A | BT41: N/A | BU41: N/A | BV41: N/A | BW41: N/A | BX41: N/A | BY41: N/A | BZ41: N/A | CA41: N/A
B42: No | C42: 73.96331343 | D42: 78.19751043 | E42: 83.93216604 | F42: 90.88941911 | G42: 96.19582469 | H42: 94.65186924 | I42: 96.99437653 | J42: 96.8795526 | K42: 96.62608696 | L42: 97.0888544 | M42: 74.15803184 | N42: 74.13997621 | O42: 80.25271031 | P42: 83.56028132 | Q42: 83.92229183 | R42: 100 | S42: 94.21613029 | T42: 88.03379098 | U42: 75.80044944 | V42: 92.22178019 | W42: 88.82151576 | X42: 81.69532542 | Y42: 71.67418096 | Z42: 71.00210394 | AA42: 75.49335046 | BB42: No | BC42: N/A | BD42: N/A | BE42: N/A | BF42: N/A | BG42: N/A | BH42: N/A | BI42: N/A | BJ42: N/A | BK42: N/A | BL42: N/A | BM42: N/A | BN42: N/A | BO42: N/A | BP42: N/A | BQ42: N/A | BR42: N/A | BS42: N/A | BT42: N/A | BU42: N/A | BV42: N/A | BW42: N/A | BX42: N/A | BY42: N/A | BZ42: N/A | CA42: N/A
A43: Water source available when needed | B43: Yes | C43: 97.99925414 | D43: 98.55924279 | E43: 97.67275692 | F43: 89.24359173 | G43: 85.56390703 | H43: 84.42432423 | I43: 83.56681266 | J43: 86.27981761 | K43: 82.41924349 | L43: 86.24355924 | M43: 98.51531714 | N43: 98.1053547 | O43: 98.33275957 | P43: 98.24263283 | Q43: 97.31961354 | R43: 90.8496631 | S43: 85.54401128 | T43: 93.86477053 | U43: 98.11878091 | V43: 96.81078364 | W43: 96.48684529 | X43: 96.59022014 | Y43: 90.31346624 | Z43: 97.61818892 | AA43: 94.35361318 | BA43: Water source available when needed | BB43: Yes | BC43: N/A | BD43: N/A | BE43: N/A | BF43: N/A | BG43: N/A | BH43: N/A | BI43: N/A | BJ43: N/A | BK43: N/A | BL43: N/A | BM43: N/A | BN43: N/A | BO43: N/A | BP43: N/A | BQ43: N/A | BR43: N/A | BS43: N/A | BT43: N/A | BU43: N/A | BV43: N/A | BW43: N/A | BX43: N/A | BY43: N/A | BZ43: N/A | CA43: N/A
B44: No | C44: 2.000745864 | D44: 1.440757209 | E44: 2.327243082 | F44: 10.75640827 | G44: 14.43609297 | H44: 15.57567577 | I44: 16.43318734 | J44: 13.72018239 | K44: 17.58075651 | L44: 13.75644076 | M44: 1.484682864 | N44: 1.894645301 | O44: 1.667240426 | P44: 1.757367165 | Q44: 2.680386457 | R44: 9.150336899 | S44: 14.45598872 | T44: 6.135229473 | U44: 1.881219093 | V44: 3.189216359 | W44: 3.513154711 | X44: 3.409779864 | Y44: 9.686533761 | Z44: 2.381811085 | AA44: 5.646386818 | BB44: No | BC44: N/A | BD44: N/A | BE44: N/A | BF44: N/A | BG44: N/A | BH44: N/A | BI44: N/A | BJ44: N/A | BK44: N/A | BL44: N/A | BM44: N/A | BN44: N/A | BO44: N/A | BP44: N/A | BQ44: N/A | BR44: N/A | BS44: N/A | BT44: N/A | BU44: N/A | BV44: N/A | BW44: N/A | BX44: N/A | BY44: N/A | BZ44: N/A | CA44: N/A
A45: Improved water source available when needed | B45: Yes | C45: 97.4628377 | D45: 97.58119413 | E45: 96.83744675 | F45: 87.91562837 | G45: 85.42011033 | H45: 83.83487135 | I45: 83.57751912 | J45: 86.35681776 | K45: 82.3214546 | L45: 86.06192286 | M45: 98.60265904 | N45: 96.89966165 | O45: 97.33891285 | P45: 97.65766528 | Q45: 96.53618392 | R45: 90.8496631 | S45: 85.38504458 | T45: 91.32445644 | U45: 97.10594898 | V45: 95.91990451 | W45: 94.7214401 | X45: 94.28175755 | Y45: 88.91145376 | Z45: 96.61141523 | AA45: 91.99066487 | BA45: Improved water source available when needed | BB45: Yes | BC45: N/A | BD45: N/A | BE45: N/A | BF45: N/A | BG45: N/A | BH45: N/A | BI45: N/A | BJ45: N/A | BK45: N/A | BL45: N/A | BM45: N/A | BN45: N/A | BO45: N/A | BP45: N/A | BQ45: N/A | BR45: N/A | BS45: N/A | BT45: N/A | BU45: N/A | BV45: N/A | BW45: N/A | BX45: N/A | BY45: N/A | BZ45: N/A | CA45: N/A
B46: No | C46: 2.537162299 | D46: 2.418805871 | E46: 3.16255325 | F46: 12.08437163 | G46: 14.57988967 | H46: 16.16512865 | I46: 16.42248088 | J46: 13.64318224 | K46: 17.6785454 | L46: 13.93807714 | M46: 1.397340959 | N46: 3.100338346 | O46: 2.661087148 | P46: 2.342334724 | Q46: 3.463816079 | R46: 9.150336899 | S46: 14.61495542 | T46: 8.67554356 | U46: 2.894051022 | V46: 4.08009549 | W46: 5.2785599 | X46: 5.718242453 | Y46: 11.08854624 | Z46: 3.388584774 | AA46: 8.009335129 | BB46: No | BC46: N/A | BD46: N/A | BE46: N/A | BF46: N/A | BG46: N/A | BH46: N/A | BI46: N/A | BJ46: N/A | BK46: N/A | BL46: N/A | BM46: N/A | BN46: N/A | BO46: N/A | BP46: N/A | BQ46: N/A | BR46: N/A | BS46: N/A | BT46: N/A | BU46: N/A | BV46: N/A | BW46: N/A | BX46: N/A | BY46: N/A | BZ46: N/A | CA46: N/A
A47: Microbiological quality at point of collection | B47: Not contaminated (No E. coli in 100 mL) | C47: N/A | D47: N/A | E47: N/A | F47: N/A | G47: N/A | H47: N/A | I47: N/A | J47: N/A | K47: N/A | L47: N/A | M47: N/A | N47: N/A | O47: N/A | P47: N/A | Q47: N/A | R47: N/A | S47: N/A | T47: N/A | U47: N/A | V47: N/A | W47: N/A | X47: N/A | Y47: N/A | Z47: N/A | AA47: N/A | BA47: Microbiological quality at point of collection | BB47: Not contaminated (No E. coli in 100 mL) | BC47: N/A | BD47: N/A | BE47: N/A | BF47: N/A | BG47: N/A | BH47: N/A | BI47: N/A | BJ47: N/A | BK47: N/A | BL47: N/A | BM47: N/A | BN47: N/A | BO47: N/A | BP47: N/A | BQ47: N/A | BR47: N/A | BS47: N/A | BT47: N/A | BU47: N/A | BV47: N/A | BW47: N/A | BX47: N/A | BY47: N/A | BZ47: N/A | CA47: N/A
B48: Contaminated (E. coli detected in 100 mL) | C48: N/A | D48: N/A | E48: N/A | F48: N/A | G48: N/A | H48: N/A | I48: N/A | J48: N/A | K48: N/A | L48: N/A | M48: N/A | N48: N/A | O48: N/A | P48: N/A | Q48: N/A | R48: N/A | S48: N/A | T48: N/A | U48: N/A | V48: N/A | W48: N/A | X48: N/A | Y48: N/A | Z48: N/A | AA48: N/A | BB48: Contaminated (E. coli detected in 100 mL) | BC48: N/A | BD48: N/A | BE48: N/A | BF48: N/A | BG48: N/A | BH48: N/A | BI48: N/A | BJ48: N/A | BK48: N/A | BL48: N/A | BM48: N/A | BN48: N/A | BO48: N/A | BP48: N/A | BQ48: N/A | BR48: N/A | BS48: N/A | BT48: N/A | BU48: N/A | BV48: N/A | BW48: N/A | BX48: N/A | BY48: N/A | BZ48: N/A | CA48: N/A
B49: Highly contaminated (>100 CFU/100 mL) | C49: N/A | D49: N/A | E49: N/A | F49: N/A | G49: N/A | H49: N/A | I49: N/A | J49: N/A | K49: N/A | L49: N/A | M49: N/A | N49: N/A | O49: N/A | P49: N/A | Q49: N/A | R49: N/A | S49: N/A | T49: N/A | U49: N/A | V49: N/A | W49: N/A | X49: N/A | Y49: N/A | Z49: N/A | AA49: N/A | BB49: Highly contaminated (>100 CFU/100 mL) | BC49: N/A | BD49: N/A | BE49: N/A | BF49: N/A | BG49: N/A | BH49: N/A | BI49: N/A | BJ49: N/A | BK49: N/A | BL49: N/A | BM49: N/A | BN49: N/A | BO49: N/A | BP49: N/A | BQ49: N/A | BR49: N/A | BS49: N/A | BT49: N/A | BU49: N/A | BV49: N/A | BW49: N/A | BX49: N/A | BY49: N/A | BZ49: N/A | CA49: N/A
A50: Microbiological quality of improved water sources at point of collection | B50: Not contaminated (No E. coli in 100 mL) | C50: N/A | D50: N/A | E50: N/A | F50: N/A | G50: N/A | H50: N/A | I50: N/A | J50: N/A | K50: N/A | L50: N/A | M50: N/A | N50: N/A | O50: N/A | P50: N/A | Q50: N/A | R50: N/A | S50: N/A | T50: N/A | U50: N/A | V50: N/A | W50: N/A | X50: N/A | Y50: N/A | Z50: N/A | AA50: N/A | BA50: Microbiological quality of improved water sources at point of collection | BB50: Not contaminated (No E. coli in 100 mL) | BC50: N/A | BD50: N/A | BE50: N/A | BF50: N/A | BG50: N/A | BH50: N/A | BI50: N/A | BJ50: N/A | BK50: N/A | BL50: N/A | BM50: N/A | BN50: N/A | BO50: N/A | BP50: N/A | BQ50: N/A | BR50: N/A | BS50: N/A | BT50: N/A | BU50: N/A | BV50: N/A | BW50: N/A | BX50: N/A | BY50: N/A | BZ50: N/A | CA50: N/A
B51: Contaminated (E. coli detected in 100 mL) | C51: N/A | D51: N/A | E51: N/A | F51: N/A | G51: N/A | H51: N/A | I51: N/A | J51: N/A | K51: N/A | L51: N/A | M51: N/A | N51: N/A | O51: N/A | P51: N/A | Q51: N/A | R51: N/A | S51: N/A | T51: N/A | U51: N/A | V51: N/A | W51: N/A | X51: N/A | Y51: N/A | Z51: N/A | AA51: N/A | BB51: Contaminated (E. coli detected in 100 mL) | BC51: N/A | BD51: N/A | BE51: N/A | BF51: N/A | BG51: N/A | BH51: N/A | BI51: N/A | BJ51: N/A | BK51: N/A | BL51: N/A | BM51: N/A | BN51: N/A | BO51: N/A | BP51: N/A | BQ51: N/A | BR51: N/A | BS51: N/A | BT51: N/A | BU51: N/A | BV51: N/A | BW51: N/A | BX51: N/A | BY51: N/A | BZ51: N/A | CA51: N/A
B52: Highly contaminated (>100 CFU/100 mL) | C52: N/A | D52: N/A | E52: N/A | F52: N/A | G52: N/A | H52: N/A | I52: N/A | J52: N/A | K52: N/A | L52: N/A | M52: N/A | N52: N/A | O52: N/A | P52: N/A | Q52: N/A | R52: N/A | S52: N/A | T52: N/A | U52: N/A | V52: N/A | W52: N/A | X52: N/A | Y52: N/A | Z52: N/A | AA52: N/A | BB52: Highly contaminated (>100 CFU/100 mL) | BC52: N/A | BD52: N/A | BE52: N/A | BF52: N/A | BG52: N/A | BH52: N/A | BI52: N/A | BJ52: N/A | BK52: N/A | BL52: N/A | BM52: N/A | BN52: N/A | BO52: N/A | BP52: N/A | BQ52: N/A | BR52: N/A | BS52: N/A | BT52: N/A | BU52: N/A | BV52: N/A | BW52: N/A | BX52: N/A | BY52: N/A | BZ52: N/A | CA52: N/A
A53: Microbiological quality of piped on premises at point of collection | B53: Not contaminated (No E. coli in 100 mL) | C53: N/A | D53: N/A | E53: N/A | F53: N/A | G53: N/A | H53: N/A | I53: N/A | J53: N/A | K53: N/A | L53: N/A | M53: N/A | N53: N/A | O53: N/A | P53: N/A | Q53: N/A | R53: N/A | S53: N/A | T53: N/A | U53: N/A | V53: N/A | W53: N/A | X53: N/A | Y53: N/A | Z53: N/A | AA53: N/A | BA53: Microbiological quality of piped on premises at point of collection | BB53: Not contaminated (No E. coli in 100 mL) | BC53: N/A | BD53: N/A | BE53: N/A | BF53: N/A | BG53: N/A | BH53: N/A | BI53: N/A | BJ53: N/A | BK53: N/A | BL53: N/A | BM53: N/A | BN53: N/A | BO53: N/A | BP53: N/A | BQ53: N/A | BR53: N/A | BS53: N/A | BT53: N/A | BU53: N/A | BV53: N/A | BW53: N/A | BX53: N/A | BY53: N/A | BZ53: N/A | CA53: N/A
B54: Contaminated (E. coli detected in 100 mL) | C54: N/A | D54: N/A | E54: N/A | F54: N/A | G54: N/A | H54: N/A | I54: N/A | J54: N/A | K54: N/A | L54: N/A | M54: N/A | N54: N/A | O54: N/A | P54: N/A | Q54: N/A | R54: N/A | S54: N/A | T54: N/A | U54: N/A | V54: N/A | W54: N/A | X54: N/A | Y54: N/A | Z54: N/A | AA54: N/A | BB54: Contaminated (E. coli detected in 100 mL) | BC54: N/A | BD54: N/A | BE54: N/A | BF54: N/A | BG54: N/A | BH54: N/A | BI54: N/A | BJ54: N/A | BK54: N/A | BL54: N/A | BM54: N/A | BN54: N/A | BO54: N/A | BP54: N/A | BQ54: N/A | BR54: N/A | BS54: N/A | BT54: N/A | BU54: N/A | BV54: N/A | BW54: N/A | BX54: N/A | BY54: N/A | BZ54: N/A | CA54: N/A
B55: Highly contaminated (>100 CFU/100 mL) | C55: N/A | D55: N/A | E55: N/A | F55: N/A | G55: N/A | H55: N/A | I55: N/A | J55: N/A | K55: N/A | L55: N/A | M55: N/A | N55: N/A | O55: N/A | P55: N/A | Q55: N/A | R55: N/A | S55: N/A | T55: N/A | U55: N/A | V55: N/A | W55: N/A | X55: N/A | Y55: N/A | Z55: N/A | AA55: N/A | BB55: Highly contaminated (>100 CFU/100 mL) | BC55: N/A | BD55: N/A | BE55: N/A | BF55: N/A | BG55: N/A | BH55: N/A | BI55: N/A | BJ55: N/A | BK55: N/A | BL55: N/A | BM55: N/A | BN55: N/A | BO55: N/A | BP55: N/A | BQ55: N/A | BR55: N/A | BS55: N/A | BT55: N/A | BU55: N/A | BV55: N/A | BW55: N/A | BX55: N/A | BY55: N/A | BZ55: N/A | CA55: N/A
C56: NATIONAL wealth index quintile | H56: URBAN wealth index quintile | M56: RURAL wealth index quintile | R56: SUB-REGIONS: | BA56: Raw numbers of respondents: | BB56: Use of drinking water sources | BC56: NATIONAL wealth index quintile | BH56: URBAN wealth index quintile | BM56: RURAL wealth index quintile | BR56: SUB-REGIONS:
A57: Percentage based on weighted population | C57: Poorest | D57: Poor | E57: Middle | F57: Rich | G57: Richest | H57: Poorest | I57: Poor | J57: Middle | K57: Rich | L57: Richest | M57: Poorest | N57: Poor | O57: Middle | P57: Rich | Q57: Richest | R57: bulawayo | S57: harare | T57: manicaland | U57: mashonaland central | V57: mashonaland east | W57: mashonaland west | X57: masvingo | Y57: matabeleland north | Z57: matabeleland south | AA57: midlands | BA57: Water data, raw numbers (weighted) | BC57: Poorest | BD57: Poor | BE57: Middle | BF57: Rich | BG57: Richest | BH57: Poorest | BI57: Poor | BJ57: Middle | BK57: Rich | BL57: Richest | BM57: Poorest | BN57: Poor | BO57: Middle | BP57: Rich | BQ57: Richest | BR57: bulawayo | BS57: harare | BT57: manicaland | BU57: mashonaland central | BV57: mashonaland east | BW57: mashonaland west | BX57: masvingo | BY57: matabeleland north | BZ57: matabeleland south | CA57: midlands
A58: main source of drinking water | B58: piped into dwelling | C58: 0 | D58: 0.2912393064 | E58: 1.313330283 | F58: 28.30222816 | G58: 60.72655277 | H58: 33.05943793 | I58: 51.59148966 | J58: 58.55100523 | K58: 64.79284713 | L58: 64.59264669 | M58: 0 | N58: 0 | O58: 0.4628925185 | P58: 0.5416189053 | Q58: 4.831225116 | R58: 81.59367146 | S58: 42.53898006 | T58: 8.990012713 | U58: 4.344649823 | V58: 4.49352536 | W58: 11.1800289 | X58: 8.785676476 | Y58: 5.371207027 | Z58: 6.468908757 | AA58: 19.06194563
B59: piped into yard or plot | C59: 0.4361828152 | D59: 0.9805479329 | E59: 3.438857977 | F59: 15.50427416 | G59: 14.31948205 | H59: 26.84697719 | I59: 22.81569604 | J59: 18.45534732 | K59: 14.4817334 | L59: 10.13743659 | M59: 0.4470769907 | N59: 0.4624681324 | O59: 0.7536228174 | P59: 1.821930118 | Q59: 4.13447803 | R59: 17.63165619 | S59: 17.23177161 | T59: 7.829761731 | U59: 2.393783245 | V59: 3.61781728 | W59: 4.199367364 | X59: 2.677328821 | Y59: 2.227258175 | Z59: 2.118527875 | AA59: 5.665616158
B60: public tap/standpipe | C60: 2.255048993 | D60: 3.446523899 | E60: 4.626948754 | F60: 6.119084075 | G60: 2.243105393 | H60: 6.973768635 | I60: 4.674706519 | J60: 3.262443783 | K60: 2.277002049 | L60: 1.239065286 | M60: 2.219595082 | N60: 1.889417131 | O60: 4.580366064 | P60: 5.087556149 | Q60: 5.038525462 | R60: 0.3017940535 | S60: 1.683498104 | T60: 1.771012517 | U60: 5.8227721 | V60: 6.697965887 | W60: 7.933610028 | X60: 3.439078453 | Y60: 7.922690284 | Z60: 0.8469300178 | AA60: 1.851574433
B61: borehole | C61: 35.51335826 | D61: 35.43312267 | E61: 37.03798214 | F61: 21.48272546 | G61: 15.08587208 | H61: 14.74260762 | I61: 12.17460992 | J61: 12.37353775 | K61: 12.11717727 | L61: 18.26168208 | M61: 36.09505128 | N61: 34.56999544 | O61: 35.03410676 | P61: 37.46797791 | Q61: 36.2891806 | R61: 0.4728782947 | S61: 23.02970755 | T61: 27.31373018 | U61: 38.50494287 | V61: 22.8563032 | W61: 26.89416089 | X61: 31.63037727 | Y61: 44.64267254 | Z61: 49.94279458 | AA61: 28.61510756
